Workbook

Sheet About
A1: PVSyst Input Analysis Spreadsheet
A3: Created by PV Lighthouse
A4: Version 6.2
A5: 2024-12-16
A6: This spreadsheet was created to assist subscribers to SunSolve-Yield determine PVSyst input factors.
A7: Step-by-step instructions can be found in the word document called "Info0030 - Extracting PVSyst Input Factors with SunSolve".
A10: Change log
A11: Version 6.2
A12: Added workarounds for compatiblity issues with macOS: .GetOpenFilename not working; Windows(…).Activate not behaving as Workbooks(…).Activate
A13: Version 6.1
A14: Corrected headings from "PMP - noMM,300K" to "PMP - noMM,25C".
A15: Added calculation of bifacial gain for three conditions: (i) noMM, 25C; (ii) noMM, Tmod; and (iii) MM, Tmod. Each might be of value for different reasons.
A16: Version 6.0
A17: Added option to solve fMR for either versions before or after PVSyst Version 7.4.6.
A18: Previous versions of this spreadsheet only solved fMR for PVSyst versions prior to 7.4.6.
A19: They incorrectly calculated fMR, overesimating it by (1 - fB). See Section 2 of "Infor0030 - Extracting PVSyst Input Factors with SunSolve" for details.
A20: Version 5.3
A21: Corrected y-axis title for graphs of bifacial gain on the daily and hourly tabs. Added (%) to y-axis titles on daily and hourly graphs.
A22: Version 5.2
A23: Data in CSV files now selected by column headings rather than preassigned columns. This permits the loading from SAT, fixed and EW wave output files from SunSolve.
A24: Additional calculation column added to compute bifacial gain (see Column BH on 'Data' tab). The computed values will only be meaningful if Simulations 1 and 2 are loaded correctly.
A25: Graphs of bifacial gain added.
A26: Version 5.1
A27: File import updated to support SunSolve v6.13.0
A28: Version 5.0
A29: Created (refer to white paper for updates since previous version)

Sheet Data
A1: PVSyst Input calculations | J1: Simulation 1 | P1: Simulation 2 | V1: Simulation 3 | AB1: Simulation 4 | AH1: Simulation 5 | AN1: Simulation 6 | AT1: Calculations
A2: Time period | D2: Insolation | J2: Include rear current | P2: Omit rear current | V2: Include rear current | AB2: Include rear current | AH2: Include rear current | AN2: Include rear current | AY2: Solve for PVSyst Version 7.4.6 or later | AZ2: TRUE
D3: [Insolation data will load when Sim 1 is loaded.] | J3: Includes structural supports and lateral spacing | P3: Includes structural supports and lateral spacing | V3: Structural supports transparent, includes lateral spacing | AB3: Structural supports transparent and no lateral spacing | AH3: Structural supports transparent and no lateral spacing | AN3: Structural supports transparent and no lateral spacing | AU3: MM loss | AV3: PVSyst input factors | BD3: Equivalent factors for front intensity | BH3: Bifacial gain
J4: Actual albedo | P4: Actual albedo | V4: Actual albedo | AB4: Actual albedo | AH4: ="Albedo = " & AM4 -> Albedo = 0.3 | AM4: 0.3 | AN4: ="Albedo = " & AS4 -> Albedo = 0.2 | AS4: 0.2 | BH4: gB (%)
K5: =SUMIFS(K7:K9080, K7:K9080, ">="& 0)/1000 -> 9339.294917 | L5: =SUMIFS(L7:L9080, L7:L9080, ">="& 0)/1000 -> 9102.518775 | M5: =SUMIFS(M7:M9080, M7:M9080, ">="& 0)/1000 -> 9072.784302 | N5: =SUMIFS(N7:N9080, N7:N9080, ">="& 0) -> 69.82584299 | O5: 4.549828999 | Q5: =SUMIFS(Q7:Q9080, Q7:Q9080, ">="& 0)/1000 -> 8751.07834 | R5: =SUMIFS(R7:R9080, R7:R9080, ">="& 0)/1000 -> 8518.966207 | S5: =SUMIFS(S7:S9080, S7:S9080, ">="& 0)/1000 -> 8491.222155 | T5: =SUMIFS(T7:T9080, T7:T9080, ">="& 0) -> 69.82366481 | U5: 0 | W5: =SUMIFS(W7:W9080, W7:W9080, ">="& 0)/1000 -> 9396.983624 | X5: =SUMIFS(X7:X9080, X7:X9080, ">="& 0)/1000 -> 9160.170892 | Y5: =SUMIFS(Y7:Y9080, Y7:Y9080, ">="& 0)/1000 -> 9130.986338 | Z5: =SUMIFS(Z7:Z9080, Z7:Z9080, ">="& 0) -> 69.87196383 | AA5: 4.950360499 | AC5: =SUMIFS(AC7:AC9080, AC7:AC9080, ">="& 0)/1000 -> 9284.630341 | AD5: =SUMIFS(AD7:AD9080, AD7:AD9080, ">="& 0)/1000 -> 9048.781679 | AE5: =SUMIFS(AE7:AE9080, AE7:AE9080, ">="& 0)/1000 -> 9021.395238 | AF5: =SUMIFS(AF7:AF9080, AF7:AF9080, ">="& 0) -> 69.75033276 | AG5: 4.2018949 | AI5: =SUMIFS(AI7:AI9080, AI7:AI9080, ">="& 0)/1000 -> 9360.586046 | AJ5: =SUMIFS(AJ7:AJ9080, AJ7:AJ9080, ">="& 0)/1000 -> 9122.209135 | AK5: =SUMIFS(AK7:AK9080, AK7:AK9080, ">="& 0)/1000 -> 9094.279131 | AL5: =SUMIFS(AL7:AL9080, AL7:AL9080, ">="& 0) -> 69.81135918 | AM5: 4.7292685 | AO5: =SUMIFS(AO7:AO9080, AO7:AO9080, ">="& 0)/1000 -> 9186.346857 | AP5: =SUMIFS(AP7:AP9080, AP7:AP9080, ">="& 0)/1000 -> 8960.934376 | AQ5: =SUMIFS(AQ7:AQ9080, AQ7:AQ9080, ">="& 0)/1000 -> 8934.03373 | AR5: =SUMIFS(AR7:AR9080, AR7:AR9080, ">="& 0) -> 69.6349376 | AS5: 3.555829801 | AU5: =100*(L5-M5)/L5 -> 0.326662037 | AV5: =100* ($AS$4 + (AA5 - AS5) * ($AM$4 - $AS$4) /(AM5 - AS5) ) -> 31.88413761 | AW5: =100 * ($AS$4 + (AG5 - AS5) * ($AM$4 - $AS$4) /(AM5 - AS5) ) -> 25.50574222 | AX5: =100 * (AA5/AG5-1) -> 17.81257305 | AY5: =100 * (1-O5/AA5) -> 8.090956198 | AZ5: 75.3 | BA5: =IF($AZ$2, 1, AZ5/100) * N5/O5 -> 15.3469159 | BB5: =100*(R5-S5)/R5 -> 0.3256739293 | BC5: =(AU5-BB5)*BA5 -> 0.01516440616 | BD5: =100 * ($AS$4 + (Z5 - AR5) * ($AM$4 - $AS$4) /(AL5 - AR5)) -> 33.43521747 | BE5: =100 * ($AS$4 + (AF5 - AR5) * ($AM$4 - $AS$4) /(AL5 - AR5)) -> 26.54087571 | BF5: =100*(Z5/AF5-1) -> 0.174380624 | BG5: =100*(1-N5/Z5) -> 0.06600763669 | BH5: =100 * (K5-Q5)/Q5 -> 6.72164679 | BI5: =100 * (L5-R5)/R5 -> 6.85003971 | BJ5: =100 * (M5-S5)/S5 -> 6.848980467
A6: Day of year | B6: Hour | C6: Minute | D6: Zenith (°) | E6: Azimuth (°) | F6: GHI (W/m2) | G6: DHI (W/m2) | H6: DNI (W/m2) | I6: Diffuse fraction | J6: Tmod_av (°C) | K6: PMP - noMM,25C (W) | L6: PMP - noMM (W) | M6: PMP (W) | N6: JF (A/cm2) | O6: JR (A/cm2) | P6: Tmod_av (°C) | Q6: PMP - noMM,25C (W) | R6: PMP - noMM (W) | S6: PMP (W) | T6: JF (A/cm2) | U6: JR (A/cm2) | V6: Tmod_av (°C) | W6: PMP - noMM,25C (W) | X6: PMP - noMM (W) | Y6: PMP (W) | Z6: JF (A/cm2) | AA6: JR (A/cm2) | AB6: Tmod_av (°C) | AC6: PMP - noMM,25C (W) | AD6: PMP - noMM (W) | AE6: PMP (W) | AF6: JF (A/cm2) | AG6: JR (A/cm2) | AH6: Tmod_av (°C) | AI6: PMP - noMM,25C (W) | AJ6: PMP - noMM (W) | AK6: PMP (W) | AL6: JF (A/cm2) | AM6: JR (A/cm2) | AN6: Tmod_av (°C) | AO6: PMP - noMM,25C (W) | AP6: PMP - noMM (W) | AQ6: PMP (W) | AR6: JF (A/cm2) | AS6: JR (A/cm2) | AT6: Include | AU6: fM (%) | AV6: fAT (%) | AW6: fA (%) | AX6: fT (%) | AY6: fS (%) | AZ6: fB (%) | BA6: fMR mult | BB6: fMF (%) | BC6: fMR (%) | BD6: fAT (%) | BE6: fA (%) | BF6: fT (%) | BG6: fS (%) | BH6: noMM, 25C | BI6: noMM, Tmod | BJ6: MM, Tmod
A7: 1 | B7: 2 | C7: 0 | D7: 90.00000266 | E7: 51.99999689 | F7: 0 | G7: 0 | H7: 0 | AT7: =IF(ISNUMBER(O7),IF(O7>0,TRUE,FALSE),FALSE) -> FALSE | AU7: =100 * IF(AT7,(L7-M7)/L7,NA()) ->  | AV7: =100 * IF(AT7, $AS$4 + (AA7 - AS7) * ($AM$4 - $AS$4) /(AM7 - AS7),NA()) ->  | AW7: =100 * (IF(AT7, $AS$4 + (AG7 - AS7) * ($AM$4 - $AS$4) /(AM7 - AS7),NA()) ) ->  | AX7: =100 * (IF(AT7,AA7/AG7-1,NA())) ->  | AY7: =100 * (IF(AT7,1-O7/AA7,NA())) ->  | AZ7: =IF(AT7,$AZ$5,NA()) ->  | BA7: =IF($AZ$2, 1, AZ7/100) * (1 + N7/O7) ->  | BB7: =100 * IF(AT7,(R7-S7)/R7,NA()) ->  | BC7: =(AU7-BB7)*BA7 ->  | BD7: =100 * (IF(AT7, $AS$4 + (Z7 - AR7) * ($AM$4 - $AS$4) /(AL7 - AR7),NA())) ->  | BE7: =100 * (IF(AT7, $AS$4 + (AF7 - AR7) * ($AM$4 - $AS$4) /(AL7 - AR7),NA())) ->  | BF7: =100 * (IF(AT7,Z7/AF7-1,NA())) ->  | BG7: =100 * (IF(AT7,1-N7/Z7,NA())) ->  | BH7: =100 * IF(AT7,(K7-Q7)/Q7,NA()) -> 
A8: 1 | B8: 3 | C8: 0 | D8: 90.00000266 | E8: 70.90000095 | F8: 0 | G8: 0 | H8: 0 | AT8: FALSE | BA8: =IF($AZ$2, 1, AZ8/100) * (1 + N8/O8) -> 
A9: 1 | B9: 4 | C9: 0 | D9: 90.00000266 | E9: 83.80000256 | F9: 0 | G9: 0 | H9: 0 | AT9: FALSE
A10: 1 | B10: 5 | C10: 0 | D10: 90.00000266 | E10: 93.89999817 | F10: 0 | G10: 0 | H10: 0 | AT10: FALSE
A11: 1 | B11: 6 | C11: 0 | D11: 90.00000266 | E11: 103.399996 | F11: 0 | G11: 0 | H11: 0 | AT11: FALSE
A12: 1 | B12: 7 | C12: 0 | D12: 90.00000266 | E12: 112.4999985 | F12: 0 | G12: 0 | H12: 0 | AT12: FALSE
A13: 1 | B13: 8 | C13: 0 | D13: 89.90000626 | E13: 121.8999999 | F13: 6 | G13: 6 | H13: 0 | I13: 1 | AT13: FALSE
A14: 1 | B14: 9 | C14: 0 | D14: 80.99999656 | E14: 132.6000127 | F14: 62 | G14: 59 | H14: 19.177357 | I14: 0.9516129 | J14: 1.016015625 | K14: 294.2488 | L14: 316.0758 | M14: 313.95395 | N14: 0.0025917 | O14: 0.0002605 | P14: 1.063012695 | Q14: 261.9941 | R14: 280.9803 | S14: 278.79608 | T14: 0.0025932 | U14: 0 | V14: 1.011987305 | W14: 297.5372 | X14: 319.6544 | Y14: 317.606 | Z14: 0.0025949 | AA14: 0.0002839 | AB14: 1.019006348 | AC14: 292.981 | AD14: 314.6984 | AE14: 312.86783 | AF14: 0.0025906 | AG14: 0.0002515 | AH14: 1.02098999 | AI14: 294.7593 | AJ14: 316.6281 | AK14: 314.77103 | AL14: 0.00259 | AM14: 0.0002663 | AN14: 0.9619995117 | AO14: 284.5191 | AP14: 305.5487 | AQ14: 303.7551 | AR14: 0.0025875 | AS14: 0.0001866 | AT14: TRUE | AU14: 0.6713104894 | AV14: 32.20828105 | AW14: 28.14303639 | AX14: 12.88270378 | AY14: 8.242338852 | AZ14: 75.3 | BA14: 10.94894434 | BB14: 0.7773569891 | BC14: -1.161097222 | BD14: 49.6 | BE14: 32.4 | BF14: 0.165984714 | BG14: 0.1233188177 | BH14: 12.31123144 | BI14: 12.49037744 | BJ14: 12.61060414
A15: 1 | B15: 10 | C15: 0 | D15: 73.60000083 | E15: 144.6000079 | F15: 146 | G15: 119 | H15: 95.6289 | I15: 0.8150685 | J15: 4.378991699 | K15: 882.3056 | L15: 943.1641 | M15: 938.7423 | N15: 0.0067247 | O15: 0.0007241 | P15: 4.503015137 | Q15: 787.2965 | R15: 841.2381 | S15: 836.53687 | T15: 0.0067158 | U15: 0 | V15: 4.366998291 | W15: 890.2908 | X15: 951.7417 | Y15: 946.95544 | Z15: 0.0067268 | AA15: 0.0007834 | AB15: 4.385003662 | AC15: 876.5982 | AD15: 937.0421 | AE15: 932.13715 | AF15: 0.0066939 | AG15: 0.0007109 | AH15: 4.39498291 | AI15: 883.0687 | AJ15: 943.9368 | AK15: 939.3453 | AL15: 0.0067052 | AM15: 0.0007494 | AN15: 4.287011719 | AO15: 861.0966 | AP15: 920.7461 | AQ15: 915.89496 | AR15: 0.0066677 | AS15: 0.0006178 | AT15: TRUE | AU15: 0.4688261566 | AV15: 32.58358663 | AW15: 27.07446809 | AX15: 10.19834013 | AY15: 7.569568547 | AZ15: 75.3 | BA15: 10.28697694 | BB15: 0.5588465382 | BC15: -0.92603759 | BD15: 35.76 | BE15: 26.98666667 | BF15: 0.4914922541 | BG15: 0.03121840994 | BH15: 12.06776608 | BI15: 12.11618922 | BJ15: 12.21768384
A16: 1 | B16: 11 | C16: 0 | D16: 68.09999981 | E16: 157.8000084 | F16: 304 | G16: 138 | H16: 445.05475 | I16: 0.45394737 | J16: 11.08599243 | K16: 2010.8478 | L16: 2103.8413 | M16: 2093.6033 | N16: 0.0150825 | O16: 0.0009986 | P16: 11.23800049 | Q16: 1879.317 | R16: 1965.4462 | S16: 1957.1 | T16: 0.0150776 | U16: 0 | V16: 11.05498657 | W16: 2023.676 | X16: 2117.4592 | Y16: 2107.9648 | Z16: 0.0150885 | AA16: 0.0010906 | AB16: 11.1 | AC16: 1996.0831 | AD16: 2088.329 | AE16: 2079.0405 | AF16: 0.0150513 | AG16: 0.0009172 | AH16: 11.11000977 | AI16: 2007.6067 | AJ16: 2100.3054 | AK16: 2090.674 | AL16: 0.0150703 | AM16: 0.0009864001 | AN16: 10.90899048 | AO16: 1971.171 | AP16: 2063.5237 | AQ16: 2055.6216 | AR16: 0.0149987 | AS16: 0.0007797 | AT16: TRUE | AU16: 0.4866336639 | AV16: 35.04111512 | AW16: 26.65214966 | AX16: 18.90536415 | AY16: 8.435723455 | AZ16: 75.3 | BA16: 16.1036451 | BB16: 0.4246465764 | BC16: 0.9982180569 | BD16: 32.54189944 | BE16: 27.34636872 | BF16: 0.2471547308 | BG16: 0.03976538423 | BH16: 6.998861821 | BI16: 7.041408714 | BJ16: 6.9747739
A17: 1 | B17: 12 | C17: 0 | D17: 65.19999741 | E17: 172.5999999 | F17: 470 | G17: 146 | H17: 772.43616 | I17: 0.3106383 | J17: 16.2619873 | K17: 2591.9094 | L17: 2666.9995 | M17: 2648.7517 | N17: 0.0191202 | O17: 0.0013963 | P17: 16.46599731 | Q17: 2409.7207 | R17: 2478.0525 | S17: 2461.8362 | T17: 0.0191258 | U17: 0 | V17: 16.20998535 | W17: 2612.7747 | X17: 2688.9043 | Y17: 2669.4546 | Z17: 0.0191284 | AA17: 0.0015475 | AB17: 16.26299438 | AC17: 2576.4844 | AD17: 2651.1292 | AE17: 2634.5195 | AF17: 0.0191209 | AG17: 0.0012779001 | AH17: 16.2920166 | AI17: 2606.771 | AJ17: 2682.0298 | AK17: 2664.247 | AL17: 0.0191369 | AM17: 0.0014934 | AN17: 15.93499146 | AO17: 2542.8374 | AP17: 2619.2878 | AQ17: 2602.3455 | AR17: 0.0191095 | AS17: 0.0010323001 | AT17: TRUE | AU17: 0.6842071024 | AV17: 31.17328154 | AW17: 25.32639456 | AX17: 21.09710297 | AY17: 9.770597738 | AZ17: 75.3 | BA17: 14.69347561 | BB17: 0.6543969508 | BC17: 0.4380147351 | BD17: 26.89781022 | BE17: 24.16058394 | BF17: 0.0392240951 | BG17: 0.04286819598 | BH17: 7.560573306 | BI17: 7.62481828 | BJ17: 7.592523824
A18: 1 | B18: 13 | C18: 0 | D18: 65.19999741 | E18: 187.3999913 | F18: 389 | G18: 143 | H18: 586.4793 | I18: 0.36760926 | J18: 14.6880127 | K18: 2157.4978 | L18: 2231.4812 | M18: 2217.1782 | N18: 0.0159268 | O18: 0.0012736 | P18: 14.86400757 | Q18: 1992.2072 | R18: 2059.5122 | S18: 2048.204 | T18: 0.0159391 | U18: 0 | V18: 14.65700684 | W18: 2176.2766 | X18: 2251.115 | Y18: 2236.1213 | Z18: 0.0159373 | AA18: 0.0014067 | AB18: 14.68700562 | AC18: 2145.2512 | AD18: 2218.8325 | AE18: 2205.9153 | AF18: 0.0159327 | AG18: 0.0011742 | AH18: 14.70699463 | AI18: 2161.8225 | AJ18: 2235.8142 | AK18: 2223.577 | AL18: 0.0159327 | AM18: 0.001301 | AN18: 14.43300781 | AO18: 2106.4207 | AP18: 2180.4797 | AQ18: 2167.3127 | AR18: 0.0159087 | AS18: 0.000902 | AT18: TRUE | AU18: 0.6409643962 | AV18: 32.64912281 | AW18: 26.82205514 | AX18: 19.80071538 | AY18: 9.461861093 | AZ18: 75.3 | BA18: 13.5053392 | BB18: 0.5490717656 | BC18: 1.241041145 | BD18: 31.91666667 | BE18: 30 | BF18: 0.0288714405 | BG18: 0.06588317971 | BH18: 8.296857877 | BI18: 8.349986953 | BJ18: 8.249871595
A19: 1 | B19: 14 | C19: 0 | D19: 68.09999981 | E19: 202.1999828 | F19: 106 | G19: 106 | H19: 0 | I19: 1 | J19: 6.189996338 | K19: 455.6154 | L19: 483.6655 | M19: 479.44147 | N19: 0.0035046 | O19: 0.0006273 | P19: 6.292993164 | Q19: 376.202 | R19: 398.8567 | S19: 394.65115 | T19: 0.003505 | U19: 0 | V19: 6.185998535 | W19: 462.7 | X19: 491.23248 | Y19: 486.5551 | Z19: 0.0035103 | AA19: 0.0006775 | AB19: 6.196008301 | AC19: 453.7126 | AD19: 481.63058 | AE19: 477.41156 | AF19: 0.003483 | AG19: 0.0006337 | AH19: 6.209008789 | AI19: 459.5833 | AJ19: 487.8702 | AK19: 483.53204 | AL19: 0.003496 | AM19: 0.0006673 | AN19: 6.103997803 | AO19: 439.587 | AP19: 466.6994 | AQ19: 462.1287 | AR19: 0.0034625 | AS19: 0.000543 | AT19: TRUE | AU19: 0.873337048 | AV19: 30.82059533 | AW19: 27.29686243 | AX19: 6.911787912 | AY19: 7.409594096 | AZ19: 75.3 | BA19: 6.586800574 | BB19: 1.054401242 | BC19: -1.192633739 | BD19: 34.26865672 | BE19: 26.11940299 | BF19: 0.7838070629 | BG19: 0.1623792838 | BH19: 21.1092445 | BI19: 21.2629749 | BJ19: 21.48487848
A20: 1 | B20: 15 | C20: 0 | D20: 73.60000083 | E20: 215.399993 | F20: 24 | G20: 24 | H20: 0 | I20: 1 | J20: 3.290002441 | K20: 62.7057 | L20: 63.8764 | M20: 63.445686 | N20: 0.0007901 | O20: 0.0001448 | P20: 3.310998535 | Q20: 46.7419 | R20: 46.811802 | S20: 46.600018 | T20: 0.0007898 | U20: 0 | V20: 3.290002441 | W20: 64.0566 | X20: 65.3297 | Y20: 64.8641 | Z20: 0.00079039996 | AA20: 0.0001565 | AB20: 3.291009521 | AC20: 62.2318 | AD20: 63.3689 | AE20: 62.96291 | AF20: 0.00078390003 | AG20: 0.00014660001 | AH20: 3.295007324 | AI20: 63.263298 | AJ20: 64.4781 | AK20: 64.06722 | AL20: 0.0007862 | AM20: 0.0001534 | AN20: 3.269006348 | AO20: 59.3384 | AP20: 60.2617 | AQ20: 59.897373 | AR20: 0.0007787 | AS20: 0.0001258 | AT20: TRUE | AU20: 0.6742928531 | AV20: 31.12318841 | AW20: 27.53623551 | AX20: 6.753062295 | AY20: 7.476038339 | AZ20: 75.3 | BA20: 6.456491713 | BB20: 0.4524158245 | BC20: 1.432547196 | BD20: 35.59994667 | BE20: 26.93337333 | BF20: 0.8291784349 | BG20: 0.03795040678 | BH20: 34.15308321 | BI20: 36.45362338 | BJ20: 36.14948818
A21: 1 | B21: 16 | C21: 0 | D21: 80.99999656 | E21: 227.3999882 | F21: 10 | G21: 10 | H21: 0 | I21: 1 | J21: 2.14800415 | K21: 14.6861 | L21: 14.432301 | M21: 14.411846 | N21: 0.0003942 | O21: 4.37e-05 | P21: 2.154992676 | Q21: 11.9017 | R21: 11.696 | S21: 11.679852 | T21: 0.0003941 | U21: 0 | V21: 2.14498291 | W21: 14.952 | X21: 14.6938 | Y21: 14.674561 | Z21: 0.0003946 | AA21: 4.72e-05 | AB21: 2.14800415 | AC21: 14.5838 | AD21: 14.3319 | AE21: 14.313894 | AF21: 0.0003939 | AG21: 4.21e-05 | AH21: 2.153009033 | AI21: 14.7659 | AJ21: 14.5109005 | AK21: 14.492334 | AL21: 0.000394 | AM21: 4.5e-05 | AN21: 2.142999268 | AO21: 13.8224 | AP21: 13.5839 | AQ21: 13.5661955 | AR21: 0.0003934 | AS21: 3.15e-05 | AT21: TRUE | AU21: 0.1417306915 | AV21: 31.62962963 | AW21: 27.85185185 | AX21: 12.11401425 | AY21: 7.415254237 | AZ21: 75.3 | BA21: 10.02059497 | BB21: 0.1380642955 | BC21: 0.03673946898 | BD21: 40 | BE21: 28.33333333 | BF21: 0.1777100787 | BG21: 0.1013684744 | BH21: 23.39497719 | BI21: 23.39518639 | BJ21: 23.39065598
A22: 1 | B22: 17 | C22: 0 | D22: 89.90000626 | E22: 238.1000108 | F22: 1 | G22: 1 | H22: 0 | I22: 1 | AT22: FALSE
A23: 1 | B23: 18 | C23: 0 | D23: 90.00000266 | E23: 247.499983 | F23: 0 | G23: 0 | H23: 0 | AT23: FALSE
A24: 1 | B24: 19 | C24: 0 | D24: 90.00000266 | E24: 256.6000244 | F24: 0 | G24: 0 | H24: 0 | AT24: FALSE
A25: 1 | B25: 20 | C25: 0 | D25: 90.00000266 | E25: 266.1000125 | F25: 0 | G25: 0 | H25: 0 | AT25: FALSE
A26: 1 | B26: 21 | C26: 0 | D26: 90.00000266 | E26: 276.2000178 | F26: 0 | G26: 0 | H26: 0 | AT26: FALSE
A27: 1 | B27: 22 | C27: 0 | D27: 90.00000266 | E27: 289.1 | F27: 0 | G27: 0 | H27: 0 | AT27: FALSE
A28: 1 | B28: 23 | C28: 0 | D28: 90.00000266 | E28: 307.9999992 | F28: 0 | G28: 0 | H28: 0 | AT28: FALSE
A29: 2 | B29: 0 | C29: 0 | D29: 90.00000266 | E29: 339.1000058 | F29: 0 | G29: 0 | H29: 0 | AT29: FALSE
A30: 2 | B30: 1 | C30: 0 | D30: 90.00000266 | E30: 20.80000361 | F30: 0 | G30: 0 | H30: 0 | AT30: FALSE
A31: 2 | B31: 2 | C31: 0 | D31: 90.00000266 | E31: 51.89999564 | F31: 0 | G31: 0 | H31: 0 | AT31: FALSE
A32: 2 | B32: 3 | C32: 0 | D32: 90.00000266 | E32: 70.80000455 | F32: 0 | G32: 0 | H32: 0 | AT32: FALSE
A33: 2 | B33: 4 | C33: 0 | D33: 90.00000266 | E33: 83.69999645 | F33: 0 | G33: 0 | H33: 0 | AT33: FALSE
A34: 2 | B34: 5 | C34: 0 | D34: 90.00000266 | E34: 93.80000178 | F34: 0 | G34: 0 | H34: 0 | AT34: FALSE
A35: 2 | B35: 6 | C35: 0 | D35: 90.00000266 | E35: 103.0000007 | F35: 0 | G35: 0 | H35: 0 | AT35: FALSE
A36: 2 | B36: 7 | C36: 0 | D36: 90.00000266 | E36: 112.4999985 | F36: 0 | G36: 0 | H36: 0 | AT36: FALSE
A37: 2 | B37: 8 | C37: 0 | D37: 89.90000626 | E37: 121.8000035 | F37: 1 | G37: 1 | H37: 0 | I37: 1 | AT37: FALSE
A38: 2 | B38: 9 | C38: 0 | D38: 80.90000502 | E38: 132.6000127 | F38: 40 | G38: 40 | H38: 0 | I38: 1 | J38: 1.584008789 | K38: 158.45999 | L38: 168.1113 | M38: 166.77919 | N38: 0.0015771 | O38: 0.0001723 | P38: 1.611993408 | Q38: 137.8168 | R38: 145.6337 | S38: 144.33243 | T38: 0.0015779 | U38: 0 | V38: 1.580987549 | W38: 160.4785 | X38: 170.3092 | Y38: 169.03885 | Z38: 0.0015791 | AA38: 0.0001871 | AB38: 1.584985352 | AC38: 157.8074 | AD38: 167.4012 | AE38: 166.25188 | AF38: 0.0015761 | AG38: 0.0001678 | AH38: 1.585992432 | AI38: 159.2798 | AJ38: 169.0026 | AK38: 167.83209 | AL38: 0.0015757 | AM38: 0.0001806 | AN38: 1.545983887 | AO38: 152.5329 | AP38: 161.6752 | AQ38: 160.55951 | AR38: 0.0015742 | AS38: 0.0001259 | AT38: TRUE | AU38: 0.7923976556 | AV38: 31.18829982 | AW38: 27.65996344 | AX38: 11.50178784 | AY38: 7.910208445 | AZ38: 75.3 | BA38: 10.15322113 | BB38: 0.8935225844 | BC38: -1.026743763 | BD38: 52.66666667 | BE38: 32.66666667 | BF38: 0.1903432523 | BG38: 0.1266544234 | BH38: 14.97871812 | BI38: 15.43433972 | BJ38: 15.55212505
A39: 2 | B39: 10 | C39: 0 | D39: 73.49999958 | E39: 144.5000018 | F39: 92 | G39: 92 | H39: 0 | I39: 1 | J39: 3.415002441 | K39: 385.7741 | L39: 412.5443 | M39: 408.00446 | N39: 0.0030301 | O39: 0.0005503 | P39: 3.508996582 | Q39: 315.6629 | R39: 336.9427 | S39: 332.14935 | T39: 0.0030232 | U39: 0 | V39: 3.407983398 | W39: 391.4147 | X39: 418.62958 | Y39: 413.65717 | Z39: 0.0030306 | AA39: 0.0005943 | AB39: 3.420007324 | AC39: 383.6954 | AD39: 410.3024 | AE39: 405.244 | AF39: 0.0030065998 | AG39: 0.0005572 | AH39: 3.420007324 | AI39: 389.2402 | AJ39: 416.2708 | AK39: 411.51035 | AL39: 0.003018 | AM39: 0.0005899 | AN39: 3.330010986 | AO39: 371.9598 | AP39: 397.768 | AQ39: 392.74124 | AR39: 0.0029879 | AS39: 0.0004831 | AT39: TRUE | AU39: 1.100449091 | AV39: 30.41198502 | AW39: 26.93820225 | AX39: 6.658291457 | AY39: 7.403668181 | AZ39: 75.3 | BA39: 6.506269308 | BB39: 1.422600935 | BC39: -2.096006653 | BD39: 34.18604651 | BE39: 26.21255814 | BF39: 0.7982505686 | BG39: 0.01649838316 | BH39: 22.21078245 | BI39: 22.43752424 | BJ39: 22.8376512
A40: 2 | B40: 11 | C40: 0 | D40: 67.99999855 | E40: 157.8000084 | F40: 128 | G40: 128 | H40: 0 | I40: 1 | J40: 4.89901123 | K40: 564.9366 | L40: 602.5171 | M40: 596.52924 | N40: 0.0042412 | O40: 0.0007474 | P40: 5.029016113 | Q40: 469.3643 | R40: 500.07678 | S40: 494.35248 | T40: 0.0042401 | U40: 0 | V40: 4.889001465 | W40: 573.52637 | X40: 611.7307 | Y40: 606.13983 | Z40: 0.0042461 | AA40: 0.0008095 | AB40: 4.909997559 | AC40: 562.4569 | AD40: 599.852 | AE40: 594.3624 | AF40: 0.0042136 | AG40: 0.0007555 | AH40: 4.907006836 | AI40: 570.7713 | AJ40: 608.7469 | AK40: 603.7948 | AL40: 0.0042282 | AM40: 0.0008057 | AN40: 4.786004639 | AO40: 546.3773 | AP40: 582.8729 | AQ40: 577.5991 | AR40: 0.0041883 | AS40: 0.0006552 | AT40: TRUE | AU40: 0.9938074787 | AV40: 30.25249169 | AW40: 26.66445183 | AX40: 7.147584381 | AY40: 7.6714021 | AZ40: 75.3 | BA40: 6.674605298 | BB40: 1.144684222 | BC40: -1.007042712 | BD40: 34.48621554 | BE40: 26.34085213 | BF40: 0.7713119423 | BG40: 0.1154000141 | BH40: 20.3620727 | BI40: 20.48491834 | BJ40: 20.668807
A41: 2 | B41: 12 | C41: 0 | D41: 65.19999741 | E41: 172.5999999 | F41: 147 | G41: 146 | H41: 2.384062 | I41: 0.99319726 | J41: 6.261010742 | K41: 741.9856 | L41: 788.5017 | M41: 784.17725 | N41: 0.0057412 | O41: 0.0006241 | P41: 6.373010254 | Q41: 661.4113 | R41: 702.5281 | S41: 698.4897 | T41: 0.0057402 | U41: 0 | V41: 6.248986816 | W41: 748.8759 | X41: 795.8621 | Y41: 791.9096 | Z41: 0.0057422 | AA41: 0.0006763 | AB41: 6.257012939 | AC41: 739.4044 | AD41: 785.7674 | AE41: 782.3142 | AF41: 0.0057383003 | AG41: 0.0006069 | AH41: 6.275994873 | AI41: 746.964 | AJ41: 793.7618 | AK41: 790.09 | AL41: 0.0057387 | AM41: 0.0006652 | AN41: 6.132989502 | AO41: 721.0276 | AP41: 766.5162 | AQ41: 762.6476 | AR41: 0.0057342 | AS41: 0.00046870002 | AT41: TRUE | AU41: 0.5484388937 | AV41: 30.56488555 | AW41: 27.03307858 | AX41: 11.4351623 | AY41: 7.718468135 | AZ41: 75.3 | BA41: 10.1991668 | BB41: 0.5748382164 | BC41: -0.2692510964 | BD41: 37.77777778 | BE41: 29.11177778 | BF41: 0.06795914811 | BG41: 0.01741492808 | BH41: 12.18217772 | BI41: 12.23774537 | BJ41: 12.26754668
A42: 2 | B42: 13 | C42: 0 | D42: 65.19999741 | E42: 187.3999913 | F42: 142 | G42: 142 | H42: 0 | I42: 1 | J42: 6.261010742 | K42: 713.8949 | L42: 758.6203 | M42: 754.7166 | N42: 0.0055433 | O42: 0.0006042 | P42: 6.365991211 | Q42: 636.3969 | R42: 675.927 | S42: 671.3446 | T42: 0.005546 | U42: 0 | V42: 6.252008057 | W42: 721.196 | X42: 766.4071 | Y42: 762.1677 | Z42: 0.0055493 | AA42: 0.0006546 | AB42: 6.256005859 | AC42: 711.8542 | AD42: 756.4583 | AE42: 753.1507 | AF42: 0.0055448 | AG42: 0.0005873 | AH42: 6.26998291 | AI42: 718.4441 | AJ42: 763.4358 | AK42: 759.77545 | AL42: 0.0055377 | AM42: 0.0006452 | AN42: 6.132012939 | AO42: 693.3725 | AP42: 737.0739 | AQ42: 733.7186 | AR42: 0.0055339998 | AS42: 0.0004545 | AT42: TRUE | AU42: 0.5145789007 | AV42: 30.49292082 | AW42: 26.96381751 | AX42: 11.45922016 | AY42: 7.699358387 | AZ42: 75.3 | BA42: 10.17461106 | BB42: 0.6779430323 | BC42: -1.6621665 | BD42: 61.34965678 | BE42: 49.18815199 | BF42: 0.08115712018 | BG42: 0.1081217451 | BH42: 12.1776206 | BI42: 12.23405782 | BJ42: 12.41865951
A43: 2 | B43: 14 | C43: 0 | D43: 67.99999855 | E43: 202.1999828 | F43: 126 | G43: 126 | H43: 0 | I43: 1 | J43: 5.627984619 | K43: 555.1731 | L43: 590.7671 | M43: 585.59106 | N43: 0.0041711 | O43: 0.0007411 | P43: 5.749993896 | Q43: 460.64362 | R43: 489.6818 | S43: 484.4999 | T43: 0.0041714 | U43: 0 | V43: 5.622003174 | W43: 563.605 | X43: 599.7855 | Y43: 594.04846 | Z43: 0.0041779 | AA43: 0.0008004 | AB43: 5.633996582 | AC43: 552.898 | AD43: 588.3302 | AE43: 583.1823 | AF43: 0.0041458 | AG43: 0.0007488 | AH43: 5.64699707 | AI43: 560.431 | AJ43: 596.3427 | AK43: 591.0095 | AL43: 0.0041615 | AM43: 0.0007917 | AN43: 5.527001953 | AO43: 536.50757 | AP43: 571.0266 | AQ43: 565.43195 | AR43: 0.0041224 | AS43: 0.0006439 | AT43: TRUE | AU43: 0.8761557643 | AV43: 30.58863329 | AW43: 27.09742896 | AX43: 6.891025641 | AY43: 7.408795602 | AZ43: 75.3 | BA43: 6.628255296 | BB43: 1.058217806 | BC43: -1.206753692 | BD43: 34.1943734 | BE43: 25.98465473 | BF43: 0.7742775821 | BG43: 0.1627611958 | BH43: 20.52117426 | BI43: 20.64305841 | BJ43: 20.86505281
A44: 2 | B44: 15 | C44: 0 | D44: 73.49999958 | E44: 215.4999894 | F44: 89 | G44: 89 | H44: 0 | I44: 1 | J44: 4.847009277 | K44: 371.072 | L44: 395.057 | M44: 390.18683 | N44: 0.0029298 | O44: 0.0005344 | P44: 4.935998535 | Q44: 303.8673 | R44: 322.9219 | S44: 318.15283 | T44: 0.0029289 | U44: 0 | V44: 4.839990234 | W44: 376.6839 | X44: 401.08472 | Y44: 396.21436 | Z44: 0.0029308 | AA44: 0.0005776 | AB44: 4.853997803 | AC44: 369.08832 | AD44: 392.9261 | AE44: 388.24094 | AF44: 0.0029066 | AG44: 0.0005415 | AH44: 4.857995605 | AI44: 373.8106 | AJ44: 397.9815 | AK44: 393.24966 | AL44: 0.0029164 | AM44: 0.0005693 | AN44: 4.766992188 | AO44: 357.4193 | AP44: 380.5133 | AQ44: 376.0791 | AR44: 0.0028889999 | AS44: 0.0004666 | AT44: TRUE | AU44: 1.232776536 | AV44: 30.80817916 | AW44: 27.29308666 | AX44: 6.666666667 | AY44: 7.479224377 | AZ44: 75.3 | BA44: 6.48241018 | BB44: 1.476849356 | BC44: -1.582180132 | BD44: 35.25545527 | BE44: 26.42337072 | BF44: 0.8325879034 | BG44: 0.03412037669 | BH44: 22.11646334 | BI44: 22.33824959 | BJ44: 22.6413199
A45: 2 | B45: 16 | C45: 0 | D45: 80.90000502 | E45: 227.3999882 | F45: 44 | G45: 44 | H45: 0 | I45: 1 | J45: 3.564996338 | K45: 179.7732 | L45: 190.3593 | M45: 188.75934 | N45: 0.0017345 | O45: 0.0001906 | P45: 3.596002197 | Q45: 156.632 | R45: 165.3601 | S45: 163.95908 | T45: 0.0017343 | U45: 0 | V45: 3.559991455 | W45: 181.8927 | X45: 192.6476 | Y45: 191.24184 | Z45: 0.0017356 | AA45: 0.0002069 | AB45: 3.564996338 | AC45: 178.9751 | AD45: 189.4988 | AE45: 188.27441 | AF45: 0.001733 | AG45: 0.0001855 | AH45: 3.567987061 | AI45: 180.6053 | AJ45: 191.256 | AK45: 189.9761 | AL45: 0.0017335 | AM45: 0.0001984 | AN45: 3.529992676 | AO45: 172.9791 | AP45: 183.0454 | AQ45: 181.79613 | AR45: 0.0017308 | AS45: 0.00013860001 | AT45: TRUE | AU45: 0.8404947906 | AV45: 31.42140492 | AW45: 27.842809 | AX45: 11.53638814 | AY45: 7.87820203 | AZ45: 75.3 | BA45: 10.10020986 | BB45: 0.8472539627 | BC45: -0.06826905646 | BD45: 37.77777778 | BE45: 28.14814815 | BF45: 0.1500288517 | BG45: 0.06337865868 | BH45: 14.77424792 | BI45: 15.11803633 | BJ45: 15.12588385
A46: 2 | B46: 17 | C46: 0 | D46: 89.90000626 | E46: 238.2000072 | F46: 1 | G46: 1 | H46: 0 | I46: 1 | AT46: FALSE
A47: 2 | B47: 18 | C47: 0 | D47: 90.00000266 | E47: 247.499983 | F47: 0 | G47: 0 | H47: 0 | AT47: FALSE
A48: 2 | B48: 19 | C48: 0 | D48: 90.00000266 | E48: 256.9999905 | F48: 0 | G48: 0 | H48: 0 | AT48: FALSE
A49: 2 | B49: 20 | C49: 0 | D49: 90.00000266 | E49: 266.2000088 | F49: 0 | G49: 0 | H49: 0 | AT49: FALSE
A50: 2 | B50: 21 | C50: 0 | D50: 90.00000266 | E50: 276.2999753 | F50: 0 | G50: 0 | H50: 0 | AT50: FALSE
A51: 2 | B51: 22 | C51: 0 | D51: 90.00000266 | E51: 289.2000158 | F51: 0 | G51: 0 | H51: 0 | AT51: FALSE
A52: 2 | B52: 23 | C52: 0 | D52: 90.00000266 | E52: 308.0999956 | F52: 0 | G52: 0 | H52: 0 | AT52: FALSE
A53: 3 | B53: 0 | C53: 0 | D53: 90.00000266 | E53: 339.2000216 | F53: 0 | G53: 0 | H53: 0 | AT53: FALSE
A54: 3 | B54: 1 | C54: 0 | D54: 90.00000266 | E54: 20.80000361 | F54: 0 | G54: 0 | H54: 0 | AT54: FALSE
A55: 3 | B55: 2 | C55: 0 | D55: 90.00000266 | E55: 51.8000041 | F55: 0 | G55: 0 | H55: 0 | AT55: FALSE
A56: 3 | B56: 3 | C56: 0 | D56: 90.00000266 | E56: 70.69999844 | F56: 0 | G56: 0 | H56: 0 | AT56: FALSE
A57: 3 | B57: 4 | C57: 0 | D57: 90.00000266 | E57: 83.60000005 | F57: 0 | G57: 0 | H57: 0 | AT57: FALSE
A58: 3 | B58: 5 | C58: 0 | D58: 90.00000266 | E58: 93.80000178 | F58: 0 | G58: 0 | H58: 0 | AT58: FALSE
A59: 3 | B59: 6 | C59: 0 | D59: 90.00000266 | E59: 102.9000043 | F59: 0 | G59: 0 | H59: 0 | AT59: FALSE
A60: 3 | B60: 7 | C60: 0 | D60: 90.00000266 | E60: 112.4000021 | F60: 0 | G60: 0 | H60: 0 | AT60: FALSE
A61: 3 | B61: 8 | C61: 0 | D61: 89.80000015 | E61: 121.8000035 | F61: 1 | G61: 1 | H61: 0 | I61: 1 | AT61: FALSE
A62: 3 | B62: 9 | C62: 0 | D62: 80.90000502 | E62: 132.4999969 | F62: 78 | G62: 67 | H62: 69.55071 | I62: 0.85897434 | J62: 3.102990723 | K62: 429.8912 | L62: 460.4855 | M62: 458.15985 | N62: 0.0036362 | O62: 0.0002937 | P62: 3.158990479 | Q62: 392.9981 | R62: 420.6657 | S62: 418.2717 | T62: 0.0036380999 | U62: 0 | V62: 3.097009277 | W62: 434.0374 | X62: 464.9581 | Y62: 462.65723 | Z62: 0.0036397 | AA62: 0.0003227 | AB62: 3.106011963 | AC62: 427.7859 | AD62: 458.21442 | AE62: 456.142 | AF62: 0.003635 | AG62: 0.000278 | AH62: 3.106988525 | AI62: 430.9104 | AJ62: 461.5761 | AK62: 459.47156 | AL62: 0.0036346 | AM62: 0.000303 | AN62: 3.037988281 | AO62: 419.2558 | AP62: 449.1138 | AQ62: 447.10303 | AR62: 0.0036314 | AS62: 0.0002144 | AT62: TRUE | AU62: 0.505043047 | AV62: 32.2234763 | AW62: 27.17832957 | AX62: 16.07913669 | AY62: 8.98667493 | AZ62: 75.3 | BA62: 13.38066054 | BB62: 0.5690979797 | BC62: -0.8570973108 | BD62: 45.9375 | BE62: 31.25 | BF62: 0.1292984869 | BG62: 0.09616177157 | BH62: 9.387602637 | BI62: 9.465901308 | BJ62: 9.536420944
A63: 3 | B63: 10 | C63: 0 | D63: 73.39999832 | E63: 144.5000018 | F63: 147 | G63: 125 | H63: 77.00698 | I63: 0.8503401 | J63: 6.159997559 | K63: 844.7112 | L63: 897.9923 | M63: 893.3377 | N63: 0.0064066 | O63: 0.0007523 | P63: 6.305993652 | Q63: 746.1435 | R63: 792.7905 | S63: 787.82715 | T63: 0.0063973 | U63: 0 | V63: 6.14699707 | W63: 852.9056 | X63: 906.751 | Y63: 901.7154 | Z63: 0.0064087003 | AA63: 0.0008134 | AB63: 6.169000244 | AC63: 839.4722 | AD63: 892.401 | AE63: 887.21106 | AF63: 0.0063744 | AG63: 0.000744 | AH63: 6.176019287 | AI63: 847.4883 | AJ63: 900.905 | AK63: 896.06616 | AL63: 0.0063889 | AM63: 0.0007913 | AN63: 6.042993164 | AO63: 824.17377 | AP63: 876.467 | AQ63: 871.3366 | AR63: 0.0063487 | AS63: 0.0006518 | AT63: TRUE | AU63: 0.5183340659 | AV63: 31.58422939 | AW63: 26.609319 | AX63: 9.327956989 | AY63: 7.511679371 | AZ63: 75.3 | BA63: 9.516017546 | BB63: 0.6260607311 | BC63: -1.025128836 | BD63: 34.92544776 | BE63: 26.39303483 | BF63: 0.5380945658 | BG63: 0.03277263566 | BH63: 13.2102873 | BI63: 13.26981088 | BJ63: 13.39260141
A64: 3 | B64: 11 | C64: 0 | D64: 67.99999855 | E64: 157.8000084 | F64: 196 | G64: 171 | H64: 66.73667 | I64: 0.872449 | J64: 7.89598999 | K64: 994.80066 | L64: 1051.8531 | M64: 1045.6697 | N64: 0.0072920998 | O64: 0.0010224 | P64: 8.090997314 | Q64: 861.6766 | R64: 910.5491 | S64: 904.39014 | T64: 0.00729 | U64: 0 | V64: 7.879998779 | W64: 1006.908 | X64: 1064.7155 | Y64: 1058.8197 | Z64: 0.0072988 | AA64: 0.0011091 | AB64: 7.911004639 | AC64: 989.5666 | AD64: 1046.2756 | AE64: 1040.462 | AF64: 0.0072555 | AG64: 0.0010189 | AH64: 7.912011719 | AI64: 1001.10486 | AJ64: 1058.4713 | AK64: 1053.2455 | AL64: 0.007275 | AM64: 0.0010879 | AN64: 7.72600708 | AO64: 966.7032 | AP64: 1022.69836 | AQ64: 1017.30225 | AR64: 0.0072175 | AS64: 0.0008809 | AT64: TRUE | AU64: 0.5878577531 | AV64: 31.02415459 | AW64: 26.66666667 | AX64: 8.852684267 | AY64: 7.81714904 | AZ64: 75.3 | BA64: 8.132335485 | BB64: 0.6764006466 | BC64: -0.7200605144 | BD64: 34.13913043 | BE64: 26.60869565 | BF64: 0.5967886431 | BG64: 0.09179865183 | BH64: 15.44942267 | BI64: 15.51854809 | BJ64: 15.62152812
A65: 3 | B65: 12 | C65: 0 | D65: 65.10000101 | E65: 172.5999999 | F65: 213 | G65: 191 | H65: 52.25209 | I65: 0.8967136 | J65: 9.209985352 | K65: 1118.5397 | L65: 1177.8483 | M65: 1172.7333 | N65: 0.008398199 | O65: 0.0008665 | P65: 9.370019531 | Q65: 1005.5531 | R65: 1058.3727 | S65: 1053.7032 | T65: 0.0083973 | U65: 0 | V65: 9.188989258 | W65: 1128.5737 | X65: 1188.4825 | Y65: 1183.7815 | Z65: 0.0084 | AA65: 0.0009416 | AB65: 9.201989746 | AC65: 1114.2183 | AD65: 1173.325 | AE65: 1169.3539 | AF65: 0.0083946 | AG65: 0.00083689997 | AH65: 9.225 | AI65: 1125.671 | AJ65: 1185.2933 | AK65: 1180.9865 | AL65: 0.0083961 | AM65: 0.0009234 | AN65: 9.016015625 | AO65: 1088.9774 | AP65: 1147.4279 | AQ65: 1142.9075 | AR65: 0.0083889 | AS65: 0.0006492 | AT65: TRUE | AU65: 0.4342664501 | AV65: 30.66374909 | AW65: 26.84536725 | AX65: 12.51045928 | AY65: 7.975785896 | AZ65: 75.3 | BA65: 10.69209348 | BB65: 0.4411961873 | BC65: -0.07409339808 | BD65: 35.41666667 | BE65: 27.91666667 | BF65: 0.0643270674 | BG65: 0.02144047619 | BH65: 11.2362639 | BI65: 11.28861317 | BJ65: 11.29635935
A66: 3 | B66: 13 | C66: 0 | D66: 65.10000101 | E66: 187.3999913 | F66: 231 | G66: 199 | H66: 76.00304 | I66: 0.86147183 | J66: 10.13701782 | K66: 1222.969 | L66: 1283.9862 | M66: 1279.0984 | N66: 0.0091394 | O66: 0.0009253 | P66: 10.30498657 | Q66: 1102.8467 | R66: 1157.3171 | S66: 1151.9948 | T66: 0.0091445 | U66: 0 | V66: 10.12401733 | W66: 1234.7162 | X66: 1296.3665 | Y66: 1291.119 | Z66: 0.0091484 | AA66: 0.0010064 | AB66: 10.12801514 | AC66: 1218.6874 | AD66: 1279.5267 | AE66: 1275.539 | AF66: 0.0091419 | AG66: 0.00089019997 | AH66: 10.14901123 | AI66: 1230.0864 | AJ66: 1291.4047 | AK66: 1286.939 | AL66: 0.0091335 | AM66: 0.0009858 | AN66: 9.925012207 | AO66: 1190.7312 | AP66: 1250.9995 | AQ66: 1247.0222 | AR66: 0.0091257 | AS66: 0.0006924 | AT66: TRUE | AU66: 0.3806738733 | AV66: 30.70211316 | AW66: 26.7416486 | AX66: 13.05325027 | AY66: 8.058426073 | AZ66: 75.3 | BA66: 10.87722901 | BB66: 0.4598826026 | BC66: -0.8615714883 | BD66: 49.1025641 | BE66: 40.76923077 | BF66: 0.07110119341 | BG66: 0.09837785842 | BH66: 10.89202153 | BI66: 10.94506424 | BJ66: 11.03334841
A67: 3 | B67: 14 | C67: 0 | D67: 67.99999855 | E67: 202.1999828 | F67: 213 | G67: 177 | H67: 96.10081 | I67: 0.8309859 | J67: 9.951989746 | K67: 1120.2848 | L67: 1176.8635 | M67: 1171.4541 | N67: 0.0082125 | O67: 0.0010654 | P67: 10.15599976 | Q67: 981.4685 | R67: 1030.4288 | S67: 1024.7081 | T67: 0.0082122 | U67: 0 | V67: 9.941003418 | W67: 1133.1674 | X67: 1190.4398 | Y67: 1184.4072 | Z67: 0.0082242 | AA67: 0.0011525 | AB67: 9.969995117 | AC67: 1114.2021 | AD67: 1170.4163 | AE67: 1164.8812 | AF67: 0.008176 | AG67: 0.0010553 | AH67: 9.985009766 | AI67: 1126.9629 | AJ67: 1183.7491 | AK67: 1178.0464 | AL67: 0.0082018 | AM67: 0.0011271 | AN67: 9.787011719 | AO67: 1090.8997 | AP67: 1146.6124 | AQ67: 1140.885 | AR67: 0.0081412 | AS67: 0.0009114 | AT67: TRUE | AU67: 0.4596454899 | AV67: 31.17756143 | AW67: 26.67130274 | AX67: 9.210651 | AY67: 7.557483731 | AZ67: 75.3 | BA67: 8.708372442 | BB67: 0.555176641 | BC67: -0.8319208439 | BD67: 33.69636964 | BE67: 25.74257426 | BF67: 0.5895303327 | BG67: 0.1422630773 | BH67: 14.14373462 | BI67: 14.21104496 | BJ67: 14.3207612
A68: 3 | B68: 15 | C68: 0 | D68: 73.39999832 | E68: 215.4999894 | F68: 156 | G68: 127 | H68: 101.50921 | I68: 0.8141026 | J68: 9.063012695 | K68: 950.18823 | L68: 1001.0235 | M68: 996.2231 | N68: 0.007208 | O68: 0.0007636 | P68: 9.204003906 | Q68: 850.7143 | R68: 895.8312 | S68: 890.96265 | T68: 0.0072053997 | U68: 0 | V68: 9.05401001 | W68: 958.8622 | X68: 1010.2064 | Y68: 1005.26733 | Z68: 0.0072112 | AA68: 0.000827 | AB68: 9.080010986 | AC68: 944.2479 | AD68: 994.71643 | AE68: 989.7793 | AF68: 0.0071748 | AG68: 0.000751 | AH68: 9.083001709 | AI68: 951.9888 | AJ68: 1002.864 | AK68: 998.05176 | AL68: 0.0071883 | AM68: 0.0007972 | AN68: 8.955010986 | AO68: 928.9375 | AP68: 978.9723 | AQ68: 974.37286 | AR68: 0.0071492 | AS68: 0.0006587 | AT68: TRUE | AU68: 0.4795491814 | AV68: 32.15162455 | AW68: 26.66425993 | AX68: 10.11984021 | AY68: 7.666263603 | AZ68: 75.3 | BA68: 10.43949712 | BB68: 0.5434673407 | BC68: -0.66727344 | BD68: 35.85677749 | BE68: 26.54731458 | BF68: 0.5073312148 | BG68: 0.04437541602 | BH68: 11.69298906 | BI68: 11.74242424 | BJ68: 11.81423823
A69: 3 | B69: 16 | C69: 0 | D69: 80.90000502 | E69: 227.500004 | F69: 61 | G69: 57 | H69: 25.291166 | I69: 0.93442625 | J69: 5.291986084 | K69: 294.1182 | L69: 312.1687 | M69: 310.07922 | N69: 0.0026028 | O69: 0.0002483 | P69: 5.334008789 | Q69: 263.1592 | R69: 278.9592 | S69: 277.0736 | T69: 0.0026024 | U69: 0 | V69: 5.283013916 | W69: 297.1065 | X69: 315.377 | Y69: 313.5455 | Z69: 0.0026042 | AA69: 0.0002709 | AB69: 5.287988281 | AC69: 292.70428 | AD69: 310.6564 | AE69: 309.07748 | AF69: 0.002601 | AG69: 0.000239 | AH69: 5.292993164 | AI69: 295.16132 | AJ69: 313.2847 | AK69: 311.6485 | AL69: 0.0026013 | AM69: 0.0002581 | AN69: 5.236016846 | AO69: 285.1022 | AP69: 302.5547 | AQ69: 300.96158 | AR69: 0.002598 | AS69: 0.0001811 | AT69: TRUE | AU69: 0.6693432109 | AV69: 31.66233766 | AW69: 27.51948052 | AX69: 13.34728033 | AY69: 8.342561831 | AZ69: 75.3 | BA69: 11.48248087 | BB69: 0.6759411412 | BC69: -0.07576060862 | BD69: 38.78787879 | BE69: 29.09090909 | BF69: 0.123029604 | BG69: 0.05375931188 | BH69: 11.76436165 | BI69: 11.90478751 | BJ69: 11.91222116
A70: 3 | B70: 17 | C70: 0 | D70: 89.80000015 | E70: 238.2000072 | F70: 2 | G70: 2 | H70: 0 | I70: 1 | AT70: FALSE
A71: 3 | B71: 18 | C71: 0 | D71: 90.00000266 | E71: 247.6000183 | F71: 0 | G71: 0 | H71: 0 | AT71: =IF(ISNUMBER(O71),IF(O71>0,TRUE,FALSE),FALSE) -> FALSE | AU71: =100 * IF(AT71,(L71-M71)/L71,NA()) ->  | AV71: =100 * IF(AT71, $AS$4 + (AA71 - AS71) * ($AM$4 - $AS$4) /(AM71 - AS71),NA()) ->  | AW71: =100 * (IF(AT71, $AS$4 + (AG71 - AS71) * ($AM$4 - $AS$4) /(AM71 - AS71),NA()) ) ->  | AX71: =100 * (IF(AT71,AA71/AG71-1,NA())) ->  | AY71: =100 * (IF(AT71,1-O71/AA71,NA())) ->  | AZ71: =IF(AT71,$AZ$5,NA()) ->  | BB71: =100 * IF(AT71,(R71-S71)/R71,NA()) ->  | BC71: =(AU71-BB71)*BA71 ->  | BD71: =100 * (IF(AT71, $AS$4 + (Z71 - AR71) * ($AM$4 - $AS$4) /(AL71 - AR71),NA())) ->  | BE71: =100 * (IF(AT71, $AS$4 + (AF71 - AR71) * ($AM$4 - $AS$4) /(AL71 - AR71),NA())) ->  | BF71: =100 * (IF(AT71,Z71/AF71-1,NA())) ->  | BG71: =100 * (IF(AT71,1-N71/Z71,NA())) ->  | BH71: =100 * IF(AT71,(K71-Q71)/Q71,NA()) -> 
A72: 3 | B72: 19 | C72: 0 | D72: 90.00000266 | E72: 257.1000064 | F72: 0 | G72: 0 | H72: 0 | AT72: FALSE | BA72: =IF($AZ$2, 1, AZ72/100) * (1 + N72/O72) -> 
A73: 3 | B73: 20 | C73: 0 | D73: 90.00000266 | E73: 266.2000088 | F73: 0 | G73: 0 | H73: 0 | AT73: FALSE
A74: 3 | B74: 21 | C74: 0 | D74: 90.00000266 | E74: 276.3999911 | F74: 0 | G74: 0 | H74: 0 | AT74: FALSE
A75: 3 | B75: 22 | C75: 0 | D75: 90.00000266 | E75: 289.2999928 | F75: 0 | G75: 0 | H75: 0 | AT75: FALSE
A76: 3 | B76: 23 | C76: 0 | D76: 90.00000266 | E76: 308.2000114 | F76: 0 | G76: 0 | H76: 0 | AT76: FALSE
A77: 4 | B77: 0 | C77: 0 | D77: 90.00000266 | E77: 339.2000216 | F77: 0 | G77: 0 | H77: 0 | AT77: FALSE
A78: 4 | B78: 1 | C78: 0 | D78: 90.00000266 | E78: 20.6999975 | F78: 0 | G78: 0 | H78: 0 | AT78: FALSE
A79: 4 | B79: 2 | C79: 0 | D79: 90.00000266 | E79: 51.8000041 | F79: 0 | G79: 0 | H79: 0 | AT79: FALSE
A80: 4 | B80: 3 | C80: 0 | D80: 90.00000266 | E80: 70.69999844 | F80: 0 | G80: 0 | H80: 0 | AT80: FALSE
A81: 4 | B81: 4 | C81: 0 | D81: 90.00000266 | E81: 83.60000005 | F81: 0 | G81: 0 | H81: 0 | AT81: FALSE
A82: 4 | B82: 5 | C82: 0 | D82: 90.00000266 | E82: 93.69999566 | F82: 0 | G82: 0 | H82: 0 | AT82: FALSE
A83: 4 | B83: 6 | C83: 0 | D83: 90.00000266 | E83: 102.9000043 | F83: 0 | G83: 0 | H83: 0 | AT83: FALSE
A84: 4 | B84: 7 | C84: 0 | D84: 90.00000266 | E84: 111.999997 | F84: 0 | G84: 0 | H84: 0 | AT84: FALSE
A85: 4 | B85: 8 | C85: 0 | D85: 89.70000375 | E85: 121.6999974 | F85: 2 | G85: 2 | H85: 0 | I85: 1 | AT85: FALSE
A86: 4 | B86: 9 | C86: 0 | D86: 80.80000377 | E86: 132.4999969 | F86: 63 | G86: 60 | H86: 18.763943 | I86: 0.95238096 | J86: 5.72298584 | K86: 299.3129 | L86: 317.3408 | M86: 315.23895 | N86: 0.0026338 | O86: 0.000259 | P86: 5.77098999 | Q86: 267.2207 | R86: 282.9672 | S86: 280.796 | T86: 0.0026351 | U86: 0 | V86: 5.721002197 | W86: 302.5962 | X86: 320.8581 | Y86: 318.83063 | Z86: 0.0026369 | AA86: 0.0002822 | AB86: 5.72298584 | AC86: 298.0547 | AD86: 315.9946 | AE86: 314.1715 | AF86: 0.0026324 | AG86: 0.0002503 | AH86: 5.727990723 | AI86: 300.6833 | AJ86: 318.80472 | AK86: 316.95895 | AL86: 0.002632 | AM86: 0.0002716 | AN86: 5.667993164 | AO86: 290.2554 | AP86: 307.7007 | AQ86: 305.9354 | AR86: 0.0026294 | AS86: 0.0001907 | AT86: TRUE | AU86: 0.6623321048 | AV86: 31.31025958 | AW86: 27.3671199 | AX86: 12.74470635 | AY86: 8.221119773 | AZ86: 75.3 | BA86: 11.16911197 | BB86: 0.7672974111 | BC86: -1.17236926 | BD86: 48.84615385 | BE86: 31.53846154 | BF86: 0.1709466646 | BG86: 0.1175622891 | BH86: 12.00962351 | BI86: 12.14755632 | BJ86: 12.26618257
A87: 4 | B87: 10 | C87: 0 | D87: 73.30000678 | E87: 144.5000018 | F87: 124 | G87: 119 | H87: 17.399752 | I87: 0.9596774 | J87: 8.245019531 | K87: 584.2983 | L87: 616.8499 | M87: 611.5505 | N87: 0.0044271 | O87: 0.0007123 | P87: 8.373986816 | Q87: 492.1026 | R87: 519.0905 | S87: 513.51874 | T87: 0.0044188 | U87: 0 | V87: 8.234002686 | W87: 591.7975 | X87: 624.8094 | Y87: 619.09534 | Z87: 0.0044288 | AA87: 0.0007694 | AB87: 8.252008057 | AC87: 581.0841 | AD87: 613.4394 | AE87: 607.5477 | AF87: 0.0043968 | AG87: 0.0007179 | AH87: 8.253015137 | AI87: 589.0639 | AJ87: 621.8789 | AK87: 616.41254 | AL87: 0.0044125 | AM87: 0.000764 | AN87: 8.13302002 | AO87: 566.4793 | AP87: 598.2058 | AQ87: 592.37915 | AR87: 0.0043732 | AS87: 0.0006275 | AT87: TRUE | AU87: 0.8591068913 | AV87: 30.3956044 | AW87: 26.62271062 | AX87: 7.173701073 | AY87: 7.421367299 | AZ87: 75.3 | BA87: 7.215218307 | BB87: 1.073369673 | BC87: -1.545952741 | BD87: 34.1475827 | BE87: 26.00508906 | BF87: 0.7278020378 | BG87: 0.03838511561 | BH87: 18.73505647 | BI87: 18.83282395 | BJ87: 19.09020107
A88: 4 | B88: 11 | C88: 0 | D88: 67.90000216 | E88: 157.8000084 | F88: 189 | G88: 168 | H88: 55.81778 | I88: 0.8888889 | J88: 10.98000488 | K88: 944.5794 | L88: 989.09033 | M88: 983.12616 | N88: 0.0069343 | O88: 0.000994 | P88: 11.15801392 | Q88: 815.30994 | R88: 853.2362 | S88: 847.2687 | T88: 0.006932 | U88: 0 | V88: 10.96401367 | W88: 956.2791 | X88: 1001.3944 | Y88: 995.6683 | Z88: 0.0069403 | AA88: 0.0010779 | AB88: 10.99300537 | AC88: 939.72656 | AD88: 983.9698 | AE88: 978.3456 | AF88: 0.0068982 | AG88: 0.0009928 | AH88: 10.99199829 | AI88: 951.9432 | AJ88: 996.764 | AK88: 991.7209 | AL88: 0.006919 | AM88: 0.0010661 | AN88: 10.8170105 | AO88: 918.3794 | AP88: 962.15466 | AQ88: 956.9102 | AR88: 0.0068632 | AS88: 0.0008632 | AT88: TRUE | AU88: 0.6029954817 | AV88: 30.58156727 | AW88: 26.38738295 | AX88: 8.571716358 | AY88: 7.7836534 | AZ88: 75.3 | BA88: 7.976156942 | BB88: 0.6993960172 | BC88: -0.7689058002 | BD88: 33.8172043 | BE88: 26.27240143 | BF88: 0.6103041373 | BG88: 0.08645159431 | BH88: 15.85525377 | BI88: 15.92221826 | BJ88: 16.03475497
A89: 4 | B89: 12 | C89: 0 | D89: 64.99999976 | E89: 172.5999999 | F89: 207 | G89: 189 | H89: 42.59163 | I89: 0.9130435 | J89: 12.53099976 | K89: 1083.2048 | L89: 1128.6818 | M89: 1123.754 | N89: 0.0081544 | O89: 0.0008394 | P89: 12.68099365 | Q89: 973.7982 | R89: 1014.2182 | S89: 1009.69275 | T89: 0.0081533 | U89: 0 | V89: 12.51299438 | W89: 1092.8259 | X89: 1138.769 | Y89: 1134.2476 | Z89: 0.0081559 | AA89: 0.00091139995 | AB89: 12.52498779 | AC89: 1079.1277 | AD89: 1124.4567 | AE89: 1120.6173 | AF89: 0.0081506 | AG89: 0.0008119 | AH89: 12.54699097 | AI89: 1091.3583 | AJ89: 1137.1191 | AK89: 1132.962 | AL89: 0.008152 | AM89: 0.0009042 | AN89: 12.34499512 | AO89: 1055.5153 | AP89: 1100.4929 | AQ89: 1096.1232 | AR89: 0.0081453 | AS89: 0.0006357 | AT89: TRUE | AU89: 0.4365978082 | AV89: 30.26815456 | AW89: 26.56238361 | AX89: 12.25519768 | AY89: 7.899929115 | AZ89: 75.3 | BA89: 10.71455802 | BB89: 0.4462008274 | BC89: -0.1028921067 | BD89: 35.82089552 | BE89: 27.91044776 | BF89: 0.06502588766 | BG89: 0.01839159382 | BH89: 11.23503822 | BI89: 11.28589489 | BJ89: 11.29662959
A90: 4 | B90: 13 | C90: 0 | D90: 64.99999976 | E90: 187.3999913 | F90: 205 | G90: 192 | H90: 30.760622 | I90: 0.93658537 | J90: 12.86699829 | K90: 1070.6096 | L90: 1114.3597 | M90: 1109.6696 | N90: 0.0080597 | O90: 0.0008373 | P90: 13.01598511 | Q90: 962.1638 | R90: 1001.0327 | S90: 995.57227 | T90: 0.0080641 | U90: 0 | V90: 12.85698853 | W90: 1080.9609 | X90: 1125.1744 | Y90: 1120.0857 | Z90: 0.008068 | AA90: 0.0009085 | AB90: 12.86000977 | AC90: 1067.2965 | AD90: 1110.9374 | AE90: 1107.0205 | AF90: 0.0080617 | AG90: 0.00081 | AH90: 12.87700806 | AI90: 1078.7324 | AJ90: 1122.7749 | AK90: 1118.4052 | AL90: 0.0080535 | AM90: 0.00090590003 | AN90: 12.67800293 | AO90: 1042.9424 | AP90: 1086.227 | AQ90: 1082.3088 | AR90: 0.0080476 | AS90: 0.00063719996 | AT90: TRUE | AU90: 0.420878465 | AV90: 30.09676105 | AW90: 26.43096371 | AX90: 12.16049383 | AY90: 7.837094111 | AZ90: 75.3 | BA90: 10.62582109 | BB90: 0.5454796831 | BC90: -1.323990252 | BD90: 54.57627119 | BE90: 43.89830508 | BF90: 0.07814728903 | BG90: 0.1028755578 | BH90: 11.27103306 | BI90: 11.32100879 | BJ90: 11.4604769
A91: 4 | B91: 14 | C91: 0 | D91: 67.90000216 | E91: 202.1999828 | F91: 117 | G91: 117 | H91: 0 | I91: 1 | J91: 10.2960144 | K91: 509.8388 | L91: 534.6553 | M91: 530.1381 | N91: 0.003879 | O91: 0.0006786 | P91: 10.41799316 | Q91: 423.5765 | R91: 443.78 | S91: 439.23303 | T91: 0.0038796 | U91: 0 | V91: 10.28701172 | W91: 517.5194 | X91: 542.7489 | Y91: 537.7213 | Z91: 0.0038851 | AA91: 0.0007327 | AB91: 10.30199585 | AC91: 507.746 | AD91: 532.44653 | AE91: 527.9386 | AF91: 0.0038556 | AG91: 0.0006855 | AH91: 10.31398926 | AI91: 516.0642 | AJ91: 541.171 | AK91: 536.5222 | AL91: 0.0038723 | AM91: 0.0007338 | AN91: 10.19100342 | AO91: 493.9425 | AP91: 518.1147 | AQ91: 513.21045 | AR91: 0.0038361 | AS91: 0.0005967 | AT91: TRUE | AU91: 0.8448808045 | AV91: 29.91976659 | AW91: 26.47702407 | AX91: 6.885485047 | AY91: 7.383649515 | AZ91: 75.3 | BA91: 6.716180371 | BB91: 1.024600027 | BC91: -1.207026715 | BD91: 33.5359116 | BE91: 25.38674033 | BF91: 0.7651208632 | BG91: 0.1570101156 | BH91: 20.36522328 | BI91: 20.47755645 | BJ91: 20.69631922
A92: 4 | B92: 15 | C92: 0 | D92: 73.30000678 | E92: 215.4999894 | F92: 62 | G92: 62 | H92: 0 | I92: 1 | J92: 8.391992188 | K92: 238.9749 | L92: 250.9006 | M92: 248.05394 | N92: 0.0020367 | O92: 0.00037 | P92: 8.456994629 | Q92: 193.3933 | R92: 202.4932 | S92: 199.8333 | T92: 0.0020364001 | U92: 0 | V92: 8.386010742 | W92: 242.7773 | X92: 254.9411 | Y92: 252.06032 | Z92: 0.0020377 | AA92: 0.0004 | AB92: 8.39598999 | AC92: 237.6517 | AD92: 249.4947 | AE92: 246.76791 | AF92: 0.0020209 | AG92: 0.0003751 | AH92: 8.39901123 | AI92: 241.4859 | AJ92: 253.5608 | AK92: 250.82426 | AL92: 0.0020289 | AM92: 0.0003983 | AN92: 8.333001709 | AO92: 230.2886 | AP92: 241.7247 | AQ92: 239.1448 | AR92: 0.0020097 | AS92: 0.00032680001 | AT92: TRUE | AU92: 1.134576801 | AV92: 30.23776227 | AW92: 26.7552443 | AX92: 6.638229805 | AY92: 7.5 | AZ92: 75.3 | BA92: 6.504594595 | BB92: 1.313574974 | BC92: -1.164310554 | BD92: 34.58333333 | BE92: 25.83333333 | BF92: 0.8313127814 | BG92: 0.04907493743 | BH92: 23.56937908 | BI92: 23.90569165 | BJ92: 24.13043272
A93: 4 | B93: 16 | C93: 0 | D93: 80.80000377 | E93: 227.500004 | F93: 12 | G93: 12 | H93: 0 | I93: 1 | J93: 6.550012207 | K93: 21.0506 | L93: 20.7603 | M93: 20.730282 | N93: 0.000473 | O93: 5.1000003e-05 | P93: 6.55501709 | Q93: 17.1425 | R93: 16.9037 | S93: 16.879837 | T93: 0.0004732 | U93: 0 | V93: 6.550012207 | W93: 21.4226 | X93: 21.1278 | Y93: 21.099392 | Z93: 0.0004733 | AA93: 5.54e-05 | AB93: 6.550012207 | AC93: 20.9054 | AD93: 20.617 | AE93: 20.590244 | AF93: 0.0004726 | AG93: 4.96e-05 | AH93: 6.55300293 | AI93: 21.2761 | AJ93: 20.9828 | AK93: 20.955278 | AL93: 0.0004728 | AM93: 5.4e-05 | AN93: 6.540002441 | AO93: 19.9194 | AP93: 19.6434 | AQ93: 19.617418 | AR93: 0.0004719 | AS93: 3.8e-05 | AT93: TRUE | AU93: 0.1445932862 | AV93: 30.875 | AW93: 27.25 | AX93: 11.69354839 | AY93: 7.942232852 | AZ93: 75.3 | BA93: 10.27450926 | BB93: 0.1411702763 | BC93: 0.03516974685 | BD93: 35.55555556 | BE93: 27.77777778 | BF93: 0.1481168007 | BG93: 0.0633847454 | BH93: 22.79772495 | BI93: 22.81512332 | BJ93: 22.8109134
A94: 4 | B94: 17 | C94: 0 | D94: 89.70000375 | E94: 238.3000036 | F94: 2 | G94: 2 | H94: 0 | I94: 1 | AT94: FALSE
A95: 4 | B95: 18 | C95: 0 | D95: 90.00000266 | E95: 247.9999844 | F95: 0 | G95: 0 | H95: 0 | AT95: FALSE
A96: 4 | B96: 19 | C96: 0 | D96: 90.00000266 | E96: 257.1000064 | F96: 0 | G96: 0 | H96: 0 | AT96: FALSE
A97: 4 | B97: 20 | C97: 0 | D97: 90.00000266 | E97: 266.2999858 | F97: 0 | G97: 0 | H97: 0 | AT97: FALSE
A98: 4 | B98: 21 | C98: 0 | D98: 90.00000266 | E98: 276.3999911 | F98: 0 | G98: 0 | H98: 0 | AT98: FALSE
A99: 4 | B99: 22 | C99: 0 | D99: 90.00000266 | E99: 289.2999928 | F99: 0 | G99: 0 | H99: 0 | AT99: FALSE
A100: 4 | B100: 23 | C100: 0 | D100: 90.00000266 | E100: 308.2000114 | F100: 0 | G100: 0 | H100: 0 | AT100: FALSE
A101: 5 | B101: 0 | C101: 0 | D101: 90.00000266 | E101: 339.2999597 | F101: 0 | G101: 0 | H101: 0 | AT101: FALSE
A102: 5 | B102: 1 | C102: 0 | D102: 90.00000266 | E102: 20.6999975 | F102: 0 | G102: 0 | H102: 0 | AT102: FALSE
A103: 5 | B103: 2 | C103: 0 | D103: 90.00000266 | E103: 51.69999799 | F103: 0 | G103: 0 | H103: 0 | AT103: FALSE
A104: 5 | B104: 3 | C104: 0 | D104: 90.00000266 | E104: 70.59999718 | F104: 0 | G104: 0 | H104: 0 | AT104: FALSE
A105: 5 | B105: 4 | C105: 0 | D105: 90.00000266 | E105: 83.49999394 | F105: 0 | G105: 0 | H105: 0 | AT105: FALSE
A106: 5 | B106: 5 | C106: 0 | D106: 90.00000266 | E106: 93.69999566 | F106: 0 | G106: 0 | H106: 0 | AT106: FALSE
A107: 5 | B107: 6 | C107: 0 | D107: 90.00000266 | E107: 102.7999982 | F107: 0 | G107: 0 | H107: 0 | AT107: FALSE
A108: 5 | B108: 7 | C108: 0 | D108: 90.00000266 | E108: 111.9000006 | F108: 0 | G108: 0 | H108: 0 | AT108: FALSE
A109: 5 | B109: 8 | C109: 0 | D109: 89.59999764 | E109: 121.6999974 | F109: 1 | G109: 1 | H109: 0 | I109: 1 | AT109: FALSE
A110: 5 | B110: 9 | C110: 0 | D110: 80.69999765 | E110: 132.4999969 | F110: 45 | G110: 45 | H110: 0 | I110: 1 | J110: 6.924005127 | K110: 184.5766 | L110: 193.8994 | M110: 192.39085 | N110: 0.0017736 | O110: 0.0001911 | P110: 6.954003906 | Q110: 161.4809 | R110: 169.2432 | S110: 167.72498 | T110: 0.0017745 | U110: 0 | V110: 6.917016602 | W110: 186.8452 | X110: 196.3214 | Y110: 194.8741 | Z110: 0.0017758 | AA110: 0.0002072 | AB110: 6.924005127 | AC110: 183.8472 | AD110: 193.1213 | AE110: 191.81781 | AF110: 0.0017723 | AG110: 0.00018619999 | AH110: 6.924005127 | AI110: 185.9402 | AJ110: 195.3533 | AK110: 194.02661 | AL110: 0.0017721 | AM110: 0.0002036 | AN110: 6.879998779 | AO110: 178.2696 | AP110: 187.1926 | AQ110: 185.93266 | AR110: 0.0017701 | AS110: 0.0001424 | AT110: TRUE | AU110: 0.7780065333 | AV110: 30.58823529 | AW110: 27.15686111 | AX110: 11.27820146 | AY110: 7.77027027 | AZ110: 75.3 | BA110: 10.28100471 | BB110: 0.8970641066 | BC110: -1.224031472 | BD110: 48.5 | BE110: 31 | BF110: 0.197483496 | BG110: 0.1238878252 | BH110: 14.30243453 | BI110: 14.5685026 | BJ110: 14.70613978
A111: 5 | B111: 10 | C111: 0 | D111: 73.19999581 | E111: 144.3999957 | F111: 96 | G111: 96 | H111: 0 | I111: 1 | J111: 8.820001221 | K111: 404.1669 | L111: 425.4225 | M111: 421.00546 | N111: 0.0031543 | O111: 0.0005718 | P111: 8.919000244 | Q111: 331.2144 | R111: 348.1636 | S111: 343.49832 | T111: 0.0031472 | U111: 0 | V111: 8.812005615 | W111: 410.0614 | X111: 431.6688 | Y111: 426.83063 | Z111: 0.0031553 | AA111: 0.0006175 | AB111: 8.825006104 | AC111: 402.03 | AD111: 423.1583 | AE111: 418.2245 | AF111: 0.0031297 | AG111: 0.0005794 | AH111: 8.822991943 | AI111: 408.7129 | AJ111: 430.2243 | AK111: 425.5807 | AL111: 0.0031433 | AM111: 0.0006187 | AN111: 8.730004883 | AO111: 390.5911 | AP111: 411.1792 | AQ111: 406.2729 | AR111: 0.0031113 | AS111: 0.0005074 | AT111: TRUE | AU111: 1.038271366 | AV111: 29.89218329 | AW111: 26.4690027 | AX111: 6.575768036 | AY111: 7.400809717 | AZ111: 75.3 | BA111: 6.516439314 | BB111: 1.339967762 | BC111: -1.965986261 | BD111: 33.75 | BE111: 25.75 | BF111: 0.8179697735 | BG111: 0.03169270751 | BH111: 22.02576337 | BI111: 22.19040129 | BJ111: 22.56405213
A112: 5 | B112: 11 | C112: 0 | D112: 67.8000009 | E112: 157.6999926 | F112: 120 | G112: 120 | H112: 0 | I112: 1 | J112: 10.13601074 | K112: 524.8458 | L112: 550.7051 | M112: 545.4712 | N112: 0.0039801 | O112: 0.0006948 | P112: 10.25600586 | Q112: 436.1785 | R112: 457.25598 | S112: 452.25168 | T112: 0.0039788 | U112: 0 | V112: 10.1249939 | W112: 532.7943 | X112: 559.0881 | Y112: 554.1856 | Z112: 0.0039846 | AA112: 0.00075300003 | AB112: 10.14598999 | AC112: 522.5286 | AD112: 548.2564 | AE112: 543.4517 | AF112: 0.0039542 | AG112: 0.0007027 | AH112: 10.14098511 | AI112: 530.9814 | AJ112: 557.1499 | AK112: 552.8152 | AL112: 0.0039689 | AM112: 0.0007541 | AN112: 10.02300415 | AO112: 508.1928 | AP112: 533.3796 | AQ112: 528.76935 | AR112: 0.0039317 | AS112: 0.000613 | AT112: TRUE | AU112: 0.9503997693 | AV112: 29.92204323 | AW112: 26.35719348 | AX112: 7.158108723 | AY112: 7.729087341 | AZ112: 75.3 | BA112: 6.728411054 | BB112: 1.094419804 | BC112: -0.9690259932 | BD112: 34.22043011 | BE112: 26.0483871 | BF112: 0.768802792 | BG112: 0.112934799 | BH112: 20.32821425 | BI112: 20.43693775 | BJ112: 20.61231038
A113: 5 | B113: 12 | C113: 0 | D113: 64.8999985 | E113: 172.5999999 | F113: 160 | G113: 157 | H113: 7.0721455 | I113: 0.98125 | J113: 12.12398682 | K113: 814.6845 | L113: 850.0006 | M113: 845.72534 | N113: 0.0062642 | O113: 0.0006632 | P113: 12.24199829 | Q113: 728.79456 | R113: 760.0579 | S113: 756.0572 | T113: 0.0062632 | U113: 0 | V113: 12.11000977 | W113: 822.0217 | X113: 857.6948 | Y113: 853.7754 | Z113: 0.0062653 | AA113: 0.0007188 | AB113: 12.11699829 | AC113: 811.8567 | AD113: 847.0634 | AE113: 843.65466 | AF113: 0.0062608 | AG113: 0.0006445 | AH113: 12.13799438 | AI113: 821.7577 | AJ113: 857.3462 | AK113: 853.70624 | AL113: 0.0062618 | AM113: 0.0007202 | AN113: 11.97701416 | AO113: 793.5704 | AP113: 828.353 | AQ113: 824.52527 | AR113: 0.0062572 | AS113: 0.0005071 | AT113: TRUE | AU113: 0.5029714097 | AV113: 29.93430314 | AW113: 26.44767715 | AX113: 11.52831652 | AY113: 7.735114079 | AZ113: 75.3 | BA113: 10.44541616 | BB113: 0.5263677938 | BC113: -0.2443849692 | BD113: 37.60869565 | BE113: 27.82608696 | BF113: 0.07187579862 | BG113: 0.01755702041 | BH113: 11.78520597 | BI113: 11.83366425 | BJ113: 11.85996774
A114: 5 | B114: 13 | C114: 0 | D114: 64.8999985 | E114: 187.3999913 | F114: 159 | G114: 156 | H114: 7.0721455 | I114: 0.9811321 | J114: 12.50100098 | K114: 809.2454 | L114: 843.3082 | M114: 839.40137 | N114: 0.0062257 | O114: 0.0006596 | P114: 12.62200317 | Q114: 724.36194 | R114: 754.5177 | S114: 749.9291 | T114: 0.0062289 | U114: 0 | V114: 12.49099121 | W114: 817.2397 | X114: 851.6692 | Y114: 847.4272 | Z114: 0.0062321 | AA114: 0.0007148 | AB114: 12.49700317 | AC114: 806.8927 | AD114: 840.86847 | AE114: 837.557 | AF114: 0.0062272 | AG114: 0.0006401 | AH114: 12.5079895 | AI114: 815.9256 | AJ114: 850.247 | AK114: 846.57104 | AL114: 0.0062202 | AM114: 0.0007167 | AN114: 12.3460022 | AO114: 787.9086 | AP114: 821.4704 | AQ114: 818.1716 | AR114: 0.0062162 | AS114: 0.0005046 | AT114: TRUE | AU114: 0.463274281 | AV114: 29.91041961 | AW114: 26.38849599 | AX114: 11.67005155 | AY114: 7.722439843 | AZ114: 75.3 | BA114: 10.43859915 | BB114: 0.6081500805 | BC114: -1.512300398 | BD114: 59.75 | BE114: 47.5 | BF114: 0.07868705036 | BG114: 0.1026941159 | BH114: 11.71837659 | BI114: 11.76784852 | BJ114: 11.93076385
A115: 5 | B115: 14 | C115: 0 | D115: 67.8000009 | E115: 202.2999986 | F115: 139 | G115: 137 | H115: 5.2932353 | I115: 0.9856115 | J115: 11.75600586 | K115: 626.0553 | L115: 653.7774 | M115: 648.5758 | N115: 0.0046682 | O115: 0.0007969 | P115: 11.89400635 | Q115: 524.0083 | R115: 546.8185 | S115: 541.5099 | T115: 0.0046686 | U115: 0 | V115: 11.74700317 | W115: 635.1713 | X115: 663.3359 | Y115: 657.5333 | Z115: 0.0046755 | AA115: 0.00086050003 | AB115: 11.76101074 | AC115: 623.4524 | AD115: 651.0437 | AE115: 645.82983 | AF115: 0.0046407 | AG115: 0.000804 | AH115: 11.77599487 | AI115: 633.3633 | AJ115: 661.3774 | AK115: 655.9803 | AL115: 0.0046606 | AM115: 0.000861 | AN115: 11.63601074 | AO115: 607.1743 | AP115: 634.2787 | AQ115: 628.6172 | AR115: 0.0046180002 | AS115: 0.0007 | AT115: TRUE | AU115: 0.7956224856 | AV115: 29.96894596 | AW115: 26.45962733 | AX115: 7.027366915 | AY115: 7.391054943 | AZ115: 75.3 | BA115: 6.857949555 | BB115: 0.9708157277 | BC115: -1.201466417 | BD115: 33.497669 | BE115: 25.32861657 | BF115: 0.7498868705 | BG115: 0.1561330339 | BH115: 19.47430985 | BI115: 19.56021971 | BJ115: 19.77173455
A116: 5 | B116: 15 | C116: 0 | D116: 73.19999581 | E116: 215.6000052 | F116: 104 | G116: 103 | H116: 3.4598265 | I116: 0.99038464 | J116: 10.86699829 | K116: 451.4137 | L116: 472.382 | M116: 467.16455 | N116: 0.0034841 | O116: 0.0006148 | P116: 10.97200928 | Q116: 373.4442 | R116: 390.3916 | S116: 385.16565 | T116: 0.0034828 | U116: 0 | V116: 10.85799561 | W116: 457.9156 | X116: 479.2252 | Y116: 473.98358 | Z116: 0.0034854999 | AA116: 0.0006643 | AB116: 10.87301025 | AC116: 449.05 | AD116: 469.8927 | AE116: 464.79987 | AF116: 0.0034572 | AG116: 0.00062279997 | AH116: 10.87700806 | AI116: 455.711 | AJ116: 476.8786 | AK116: 471.7133 | AL116: 0.0034703999 | AM116: 0.000662 | AN116: 10.76900635 | AO116: 436.6052 | AP116: 456.9733 | AQ116: 452.17242 | AR116: 0.0034385 | AS116: 0.0005433 | AT116: TRUE | AU116: 1.104498055 | AV116: 30.1937658 | AW116: 26.69755434 | AX116: 6.663460501 | AY116: 7.451452657 | AZ116: 75.3 | BA116: 6.667046194 | BB116: 1.338643045 | BC116: -1.561055465 | BD116: 34.73355716 | BE116: 25.86208734 | BF116: 0.8185786185 | BG116: 0.0401635358 | BH116: 20.87848733 | BI116: 21.00209123 | BJ116: 21.28925567
A117: 5 | B117: 16 | C117: 0 | D117: 80.69999765 | E117: 227.500004 | F117: 49 | G117: 49 | H117: 0 | I117: 1 | J117: 9.360009766 | K117: 205.9953 | L117: 215.3545 | M117: 213.55624 | N117: 0.0019311 | O117: 0.0002085 | P117: 9.392999268 | Q117: 180.4938 | R117: 188.3553 | S117: 186.77396 | T117: 0.001931 | U117: 0 | V117: 9.353997803 | W117: 208.33209 | X117: 217.8298 | Y117: 216.24745 | Z117: 0.0019325 | AA117: 0.0002261 | AB117: 9.359002686 | AC117: 205.1063 | AD117: 214.4146 | AE117: 213.03316 | AF117: 0.0019295 | AG117: 0.0002028 | AH117: 9.363000488 | AI117: 207.493 | AJ117: 216.9381 | AK117: 215.50603 | AL117: 0.00193 | AM117: 0.0002217 | AN117: 9.317010498 | AO117: 198.9344 | AP117: 207.9076 | AQ117: 206.504 | AR117: 0.001927 | AS117: 0.0001551 | AT117: TRUE | AU117: 0.8350231827 | AV117: 30.66066066 | AW117: 27.16216216 | AX117: 11.48915187 | AY117: 7.784166298 | AZ117: 75.3 | BA117: 10.2618705 | BB117: 0.8395516346 | BC117: -0.04647038689 | BD117: 38.33333333 | BE117: 28.33333333 | BF117: 0.1554806945 | BG117: 0.0724450194 | BH117: 14.12874016 | BI117: 14.33418651 | BJ117: 14.33940791
A118: 5 | B118: 17 | C118: 0 | D118: 89.59999764 | E118: 238.3000036 | F118: 3 | G118: 3 | H118: 0 | I118: 1 | AT118: FALSE
A119: 5 | B119: 18 | C119: 0 | D119: 90.00000266 | E119: 248.1000197 | F119: 0 | G119: 0 | H119: 0 | AT119: FALSE
A120: 5 | B120: 19 | C120: 0 | D120: 90.00000266 | E120: 257.2000028 | F120: 0 | G120: 0 | H120: 0 | AT120: FALSE
A121: 5 | B121: 20 | C121: 0 | D121: 90.00000266 | E121: 266.2999858 | F121: 0 | G121: 0 | H121: 0 | AT121: FALSE
A122: 5 | B122: 21 | C122: 0 | D122: 90.00000266 | E122: 276.4999875 | F122: 0 | G122: 0 | H122: 0 | AT122: FALSE
A123: 5 | B123: 22 | C123: 0 | D123: 90.00000266 | E123: 289.4000086 | F123: 0 | G123: 0 | H123: 0 | AT123: FALSE
A124: 5 | B124: 23 | C124: 0 | D124: 90.00000266 | E124: 308.2999884 | F124: 0 | G124: 0 | H124: 0 | AT124: FALSE
A125: 6 | B125: 0 | C125: 0 | D125: 90.00000266 | E125: 339.2999597 | F125: 0 | G125: 0 | H125: 0 | AT125: FALSE
A126: 6 | B126: 1 | C126: 0 | D126: 90.00000266 | E126: 20.60000596 | F126: 0 | G126: 0 | H126: 0 | AT126: FALSE
A127: 6 | B127: 2 | C127: 0 | D127: 90.00000266 | E127: 51.60000644 | F127: 0 | G127: 0 | H127: 0 | AT127: FALSE
A128: 6 | B128: 3 | C128: 0 | D128: 90.00000266 | E128: 70.49999593 | F128: 0 | G128: 0 | H128: 0 | AT128: FALSE
A129: 6 | B129: 4 | C129: 0 | D129: 90.00000266 | E129: 83.40000725 | F129: 0 | G129: 0 | H129: 0 | AT129: FALSE
A130: 6 | B130: 5 | C130: 0 | D130: 90.00000266 | E130: 93.59999927 | F130: 0 | G130: 0 | H130: 0 | AT130: FALSE
A131: 6 | B131: 6 | C131: 0 | D131: 90.00000266 | E131: 102.7999982 | F131: 0 | G131: 0 | H131: 0 | AT131: FALSE
A132: 6 | B132: 7 | C132: 0 | D132: 90.00000266 | E132: 111.9000006 | F132: 0 | G132: 0 | H132: 0 | AT132: FALSE
A133: 6 | B133: 8 | C133: 0 | D133: 89.59999764 | E133: 121.6999974 | F133: 2 | G133: 2 | H133: 0 | I133: 1 | AT133: FALSE
A134: 6 | B134: 9 | C134: 0 | D134: 80.5999964 | E134: 132.3999908 | F134: 13 | G134: 13 | H134: 0 | I134: 1 | J134: 7.325006104 | K134: 24.627 | L134: 24.3088 | M134: 24.274115 | N134: 0.0005121 | O134: 5.5e-05 | P134: 7.329980469 | Q134: 20.105 | R134: 19.8386 | S134: 19.809525 | T134: 0.0005123 | U134: 0 | V134: 7.325006104 | W134: 25.091099 | X134: 24.7686 | Y134: 24.734848 | Z134: 0.0005129 | AA134: 5.98e-05 | AB134: 7.325006104 | AC134: 24.4767 | AD134: 24.16 | AE134: 24.127844 | AF134: 0.0005118 | AG134: 5.38e-05 | AH134: 7.325006104 | AI134: 24.925 | AJ134: 24.6039 | AK134: 24.57067 | AL134: 0.0005116 | AM134: 5.87e-05 | AN134: 7.314996338 | AO134: 23.3659 | AP134: 23.0607 | AQ134: 23.03056 | AR134: 0.0005112 | AS134: 4.14e-05 | AT134: TRUE | AU134: 0.1426849536 | AV134: 30.63583815 | AW134: 27.16763006 | AX134: 11.15241636 | AY134: 8.026755853 | AZ134: 75.3 | BA134: 10.31090909 | BB134: 0.1465577208 | BC134: -0.03993175063 | BD134: 62.5 | BE134: 35 | BF134: 0.2149277061 | BG134: 0.1559758237 | BH134: 22.49191743 | BI134: 22.53284002 | BJ134: 22.5375924
A135: 6 | B135: 10 | C135: 0 | D135: 73.09999942 | E135: 144.3999957 | F135: 23 | G135: 23 | H135: 0 | I135: 1 | J135: 7.940026855 | K135: 57.9224 | L135: 58.6362 | M135: 58.328526 | N135: 0.0007549 | O135: 0.000137 | P135: 7.959985352 | Q135: 42.8363 | R135: 42.7798 | S135: 42.61042 | T135: 0.00075330003 | U135: 0 | V135: 7.940026855 | W135: 59.1594 | X135: 59.943798 | Y135: 59.58761 | Z135: 0.000755 | AA135: 0.0001481 | AB135: 7.940026855 | AC135: 57.4778 | AD135: 58.1677 | AE135: 57.82736 | AF135: 0.000749 | AG135: 0.0001389 | AH135: 7.941003418 | AI135: 58.9173 | AJ135: 59.6898 | AK135: 59.33824 | AL135: 0.0007524 | AM135: 0.00014830001 | AN135: 7.920007324 | AO135: 55.113102 | AP135: 55.6708 | AQ135: 55.34681 | AR135: 0.00074449996 | AS135: 0.0001221 | AT135: =IF(ISNUMBER(O135),IF(O135>0,TRUE,FALSE),FALSE) -> TRUE | AU135: =100 * IF(AT135,(L135-M135)/L135,NA()) -> 0.5247168132 | AV135: =100 * IF(AT135, $AS$4 + (AA135 - AS135) * ($AM$4 - $AS$4) /(AM135 - AS135),NA()) -> 29.92366033 | AW135: =100 * (IF(AT135, $AS$4 + (AG135 - AS135) * ($AM$4 - $AS$4) /(AM135 - AS135),NA()) ) -> 26.41221129 | AX135: =100 * (IF(AT135,AA135/AG135-1,NA())) -> 6.623470122 | AY135: =100 * (IF(AT135,1-O135/AA135,NA())) -> 7.494935854 | AZ135: =IF(AT135,$AZ$5,NA()) -> 75.3 | BA135: 6.510218978 | BB135: =100 * IF(AT135,(R135-S135)/R135,NA()) -> 0.3959345298 | BC135: =(AU135-BB135)*BA135 -> 0.8384008649 | BD135: =100 * (IF(AT135, $AS$4 + (Z135 - AR135) * ($AM$4 - $AS$4) /(AL135 - AR135),NA())) -> 33.29112258 | BE135: =100 * (IF(AT135, $AS$4 + (AF135 - AR135) * ($AM$4 - $AS$4) /(AL135 - AR135),NA())) -> 25.69622432 | BF135: =100 * (IF(AT135,Z135/AF135-1,NA())) -> 0.8010680908 | BG135: =100 * (IF(AT135,1-N135/Z135,NA())) -> 0.01324503311 | BH135: =100 * IF(AT135,(K135-Q135)/Q135,NA()) -> 35.2180277 | BI135: 37.06515692 | BJ135: 36.88793962
A136: 6 | B136: 11 | C136: 0 | D136: 67.69999479 | E136: 157.6999926 | F136: 33 | G136: 33 | H136: 0 | I136: 1 | J136: 8.481011963 | K136: 103.1466 | L136: 106.6174 | M136: 105.7905 | N136: 0.0010957001 | O136: 0.00018999999 | P136: 8.510003662 | Q136: 80.9576 | R136: 83.0333 | S136: 82.37323 | T136: 0.0010955001 | U136: 0 | V136: 8.480004883 | W136: 105.1409 | X136: 108.7381 | Y136: 107.94356 | Z136: 0.0010968 | AA136: 0.0002059 | AB136: 8.482995605 | AC136: 102.5592 | AD136: 105.9929 | AE136: 105.22055 | AF136: 0.0010887 | AG136: 0.0001919 | AH136: 8.482019043 | AI136: 104.8003 | AJ136: 108.3752 | AK136: 107.62215 | AL136: 0.0010927999 | AM136: 0.000207 | AN136: 8.454003906 | AO136: 99.043396 | AP136: 102.2616 | AQ136: 101.52148 | AR136: 0.0010826 | AS136: 0.000168 | AT136: TRUE | AU136: 0.7755769696 | AV136: 29.71794872 | AW136: 26.12820513 | AX136: 7.295466389 | AY136: 7.722200097 | AZ136: 75.3 | BA136: =IF($AZ$2, 1, AZ136/100) * (1 + N136/O136) -> 6.766842935 | BB136: 0.794946124 | BC136: -0.1310680257 | BD136: 33.92170511 | BE136: 25.98045079 | BF136: 0.7440066134 | BG136: 0.1002826404 | BH136: 27.40817416 | BI136: 28.40318282 | BJ136: 28.42825272
A137: 6 | B137: 12 | C137: 0 | D137: 64.80000696 | E137: 172.5999999 | F137: 42 | G137: 42 | H137: 0 | I137: 1 | J137: 9.047998047 | K137: 166.5211 | L137: 173.726 | M137: 172.82858 | N137: 0.0016421 | O137: 0.0001741 | P137: 9.073999023 | Q137: 145.4708 | R137: 151.3996 | S137: 150.59506 | T137: 0.0016416 | U137: 0 | V137: 9.042993164 | W137: 168.307 | X137: 175.6199 | Y137: 174.78671 | Z137: 0.0016423 | AA137: 0.0001887 | AB137: 9.046014404 | AC137: 165.8456 | AD137: 173.0112 | AE137: 172.2825 | AF137: 0.0016412 | AG137: 0.00016930001 | AH137: 9.050012207 | AI137: 168.43109 | AJ137: 175.7487 | AK137: 174.98795 | AL137: 0.0016414 | AM137: 0.0001905 | AN137: 9.011010742 | AO137: 161.4662 | AP137: 168.3831 | AQ137: 167.59482 | AR137: 0.00164 | AS137: 0.0001341 | AT137: TRUE | AU137: 0.5165720733 | AV137: 29.68085106 | AW137: 26.24113652 | AX137: 11.45894203 | AY137: 7.737148914 | AZ137: 75.3 | BA137: 10.43193567 | BB137: 0.5314016682 | BC137: -0.15470138 | BD137: 36.42857143 | BE137: 28.57142857 | BF137: 0.06702412869 | BG137: 0.01217804299 | BH137: 14.47046418 | BI137: 14.7466704 | BJ137: 14.76377778
A138: 6 | B138: 13 | C138: 0 | D138: 64.80000696 | E138: 187.3999913 | F138: 42 | G138: 42 | H138: 0 | I138: 1 | J138: 9.214990234 | K138: 166.5336 | L138: 173.6665 | M138: 172.84314 | N138: 0.0016423 | O138: 0.0001739 | P138: 9.240991211 | Q138: 145.6392 | R138: 151.5184 | S138: 150.62079 | T138: 0.0016429999 | U138: 0 | V138: 9.211999512 | W138: 168.4934 | X138: 175.7431 | Y138: 174.87051 | Z138: 0.0016439001 | AA138: 0.0001884 | AB138: 9.214013672 | AC138: 165.9765 | AD138: 173.07701 | AE138: 172.36325 | AF138: 0.0016426 | AG138: 0.000169 | AH138: 9.218011475 | AI138: 168.4014 | AJ138: 175.6435 | AK138: 174.86432 | AL138: 0.0016408 | AM138: 0.0001907 | AN138: 9.18001709 | AO138: 161.4348 | AP138: 168.28061 | AQ138: 167.57672 | AR138: 0.0016398 | AS138: 0.0001342 | AT138: TRUE | AU138: 0.4741041018 | AV138: 29.59292035 | AW138: 26.15929204 | AX138: 11.47928994 | AY138: 7.696390658 | AZ138: 75.3 | BA138: 10.44393329 | BB138: 0.5924098987 | BC138: -1.235577851 | BD138: 61.001 | BE138: 48 | BF138: 0.07914891026 | BG138: 0.09733559843 | BH138: 14.34668688 | BI138: 14.6174326 | BJ138: 14.75383976
A139: 6 | B139: 14 | C139: 0 | D139: 67.69999479 | E139: 202.2999986 | F139: 328 | G139: 162 | H139: 437.4681 | I139: 0.49390244 | J139: 19.58797607 | K139: 2139.5957 | L139: 2178.223 | M139: 2169.604 | N139: 0.0159974 | O139: 0.0010665 | P139: 19.74099121 | Q139: 1999.4031 | R139: 2034.5518 | S139: 2026.4685 | T139: 0.0159938 | U139: 0 | V139: 19.56697998 | W139: 2154.1711 | X139: 2193.202 | Y139: 2184.6914 | Z139: 0.0160155 | AA139: 0.0011594 | AB139: 19.60100708 | AC139: 2124.4473 | AD139: 2162.7056 | AE139: 2154.3843 | AF139: 0.015961401 | AG139: 0.0009869 | AH139: 19.60198364 | AI139: 2144.6929 | AJ139: 2183.3047 | AK139: 2175.334 | AL139: 0.0160022 | AM139: 0.0011006 | AN139: 19.41600952 | AO139: 2104.4785 | AP139: 2143.681 | AQ139: 2136.2285 | AR139: 0.0159255 | AS139: 0.0008705 | AT139: TRUE | AU139: 0.3956895139 | AV139: 32.55541069 | AW139: 25.05867014 | AX139: 17.47897457 | AY139: 8.012765223 | AZ139: 75.3 | BA139: 15.99990624 | BB139: 0.3973012631 | BC139: -0.02578783648 | BD139: 31.73402868 | BE139: 24.68070404 | BF139: 0.3389364129 | BG139: 0.1130155162 | BH139: 7.011722649 | BI139: 7.061565107 | BJ139: 7.063297554
A140: 6 | B140: 15 | C140: 0 | D140: 73.09999942 | E140: 215.6000052 | F140: 237 | G140: 69 | H140: 577.91095 | I140: 0.29113925 | J140: 21.43099365 | K140: 2366.1577 | L140: 2394.3027 | M140: 2385.9358 | N140: 0.0182733 | O140: 0.0005199 | P140: 21.51699219 | Q140: 2296.9922 | R140: 2323.6917 | S140: 2315.1082 | T140: 0.0182654 | U140: 0 | V140: 21.42299805 | W140: 2373.6904 | X140: 2401.983 | Y140: 2393.331 | Z140: 0.0182817 | AA140: 0.0005688 | AB140: 21.45198975 | AC140: 2349.3386 | AD140: 2377.123 | AE140: 2369.4229 | AF140: 0.0182504 | AG140: 0.0004145 | AH140: 21.45101318 | AI140: 2357.6252 | AJ140: 2385.4963 | AK140: 2377.4495 | AL140: 0.0182571 | AM140: 0.0004711 | AN140: 21.41201172 | AO140: 2346.3225 | AP140: 2374.3975 | AQ140: 2366.65 | AR140: 0.0182313 | AS140: 0.0004105 | AT140: TRUE | AU140: 0.3494503849 | AV140: 46.12211221 | AW140: 20.66006601 | AX140: 37.22557298 | AY140: 8.597046414 | AZ140: 75.3 | BA140: 36.14772072 | BB140: 0.3693906554 | BC140: -0.7207953301 | BD140: 39.53488372 | BE140: 27.40310078 | BF140: 0.1715030903 | BG140: 0.04594758693 | BH140: 3.011133429 | BI140: 3.038742188 | BJ140: 3.059364569
A141: 6 | B141: 16 | C141: 0 | D141: 80.5999964 | E141: 227.6000004 | F141: 117 | G141: 45 | H141: 440.83603 | I141: 0.3846154 | J141: 17.07000122 | K141: 985.6131 | L141: 1012.0377 | M141: 1003.6101 | N141: 0.00801 | O141: 0.0002341 | P141: 17.09798584 | Q141: 954.7906 | R141: 980.305 | S141: 973.4542 | T141: 0.0080072 | U141: 0 | V141: 17.05898438 | W141: 991.0557 | X141: 1017.6666 | Y141: 1010.04504 | Z141: 0.0080099 | AA141: 0.0002759 | AB141: 17.07198486 | AC141: 978.57153 | AD141: 1004.8048 | AE141: 997.8291 | AF141: 0.0080069 | AG141: 0.0001832 | AH141: 17.07198486 | AI141: 984.8068 | AJ141: 1011.2114 | AK141: 1003.9708 | AL141: 0.0080068 | AM141: 0.0002311 | AN141: 17.05700073 | AO141: 977.1728 | AP141: 1003.4249 | AQ141: 995.7644 | AR141: 0.0080028 | AS141: 0.0001765 | AT141: TRUE | AU141: 0.8327357765 | AV141: 38.20512821 | AW141: 21.22710623 | AX141: 50.60043668 | AY141: 15.15041682 | AZ141: 75.3 | BA141: 35.21614695 | BB141: 0.6988437272 | BC141: 4.715162084 | BD141: 37.75 | BE141: 30.25 | BF141: 0.03746768412 | BG141: -0.001248455037 | BH141: 3.228194748 | BI141: 3.237023171 | BJ141: 3.097824222
A142: 6 | B142: 17 | C142: 0 | D142: 89.59999764 | E142: 238.3000036 | F142: 3 | G142: 3 | H142: 0 | I142: 1 | AT142: FALSE
A143: 6 | B143: 18 | C143: 0 | D143: 90.00000266 | E143: 248.1000197 | F143: 0 | G143: 0 | H143: 0 | AT143: FALSE
A144: 6 | B144: 19 | C144: 0 | D144: 90.00000266 | E144: 257.2000028 | F144: 0 | G144: 0 | H144: 0 | AT144: FALSE
A145: 6 | B145: 20 | C145: 0 | D145: 90.00000266 | E145: 266.4000016 | F145: 0 | G145: 0 | H145: 0 | AT145: FALSE
A146: 6 | B146: 21 | C146: 0 | D146: 90.00000266 | E146: 276.6000034 | F146: 0 | G146: 0 | H146: 0 | AT146: FALSE
A147: 6 | B147: 22 | C147: 0 | D147: 90.00000266 | E147: 289.500005 | F147: 0 | G147: 0 | H147: 0 | AT147: FALSE
A148: 6 | B148: 23 | C148: 0 | D148: 90.00000266 | E148: 308.4000042 | F148: 0 | G148: 0 | H148: 0 | AT148: FALSE
A149: 7 | B149: 0 | C149: 0 | D149: 90.00000266 | E149: 339.4000144 | F149: 0 | G149: 0 | H149: 0 | AT149: FALSE
A150: 7 | B150: 1 | C150: 0 | D150: 90.00000266 | E150: 20.60000596 | F150: 0 | G150: 0 | H150: 0 | AT150: FALSE
A151: 7 | B151: 2 | C151: 0 | D151: 90.00000266 | E151: 51.50000033 | F151: 0 | G151: 0 | H151: 0 | AT151: FALSE
A152: 7 | B152: 3 | C152: 0 | D152: 90.00000266 | E152: 69.99999937 | F152: 0 | G152: 0 | H152: 0 | AT152: FALSE
A153: 7 | B153: 4 | C153: 0 | D153: 90.00000266 | E153: 83.00000223 | F153: 0 | G153: 0 | H153: 0 | AT153: FALSE
A154: 7 | B154: 5 | C154: 0 | D154: 90.00000266 | E154: 93.50000287 | F154: 0 | G154: 0 | H154: 0 | AT154: FALSE
A155: 7 | B155: 6 | C155: 0 | D155: 90.00000266 | E155: 102.699992 | F155: 0 | G155: 0 | H155: 0 | AT155: FALSE
A156: 7 | B156: 7 | C156: 0 | D156: 90.00000266 | E156: 111.8000042 | F156: 0 | G156: 0 | H156: 0 | AT156: FALSE
A157: 7 | B157: 8 | C157: 0 | D157: 89.50000124 | E157: 121.600001 | F157: 4 | G157: 4 | H157: 0 | I157: 1 | AT157: FALSE
A158: 7 | B158: 9 | C158: 0 | D158: 80.5 | E158: 132.0000052 | F158: 123 | G158: 43 | H158: 484.7087 | I158: 0.3495935 | J158: 7.902001953 | K158: 1059.1621 | L158: 1119.9425 | M158: 1110.6752 | N158: 0.0085652 | O158: 0.0002438 | P158: 7.935998535 | Q158: 1028.0582 | R158: 1086.9459 | S158: 1078.7229 | T158: 0.0085701 | U158: 0 | V158: 7.881005859 | W158: 1065.5654 | X158: 1126.7843 | Y158: 1117.3181 | Z158: 0.0085695 | AA158: 0.0002889 | AB158: 7.905999756 | AC158: 1051.7944 | AD158: 1112.1418 | AE158: 1103.3805 | AF158: 0.0085663 | AG158: 0.00018629999 | AH158: 7.912988281 | AI158: 1057.4998 | AJ158: 1118.1482 | AK158: 1108.6517 | AL158: 0.0085677 | AM158: 0.0002288 | AN158: 7.876000977 | AO158: 1049.9789 | AP158: 1110.32 | AQ158: 1101.3025 | AR158: 0.0085615 | AS158: 0.000177 | AT158: TRUE | AU158: 0.8274799822 | AV158: 41.6023166 | AW158: 21.79536486 | AX158: 55.07247209 | AY158: 15.61093804 | AZ158: 75.3 | BA158: 36.13207547 | BB158: 0.7565233927 | BC158: 2.563808846 | BD158: 32.90322581 | BE158: 27.74193548 | BF158: 0.03735568448 | BG158: 0.05017795671 | BH158: 3.025499918 | BI158: 3.035716865 | BJ158: 2.962048919
A159: 7 | B159: 10 | C159: 0 | D159: 73.00000302 | E159: 144.0000004 | F159: 249 | G159: 56 | H159: 660.1187 | I159: 0.2248996 | J159: 15.83800659 | K159: 2587.1924 | L159: 2665.7656 | M159: 2655.3438 | N159: 0.0199691 | O159: 0.0005117 | P159: 15.92400513 | Q159: 2519.266 | R159: 2595.1257 | S159: 2585.5762 | T159: 0.0199619 | U159: 0 | V159: 15.82000122 | W159: 2594.5027 | X159: 2673.429 | Y159: 2662.9841 | Z159: 0.0199766 | AA159: 0.00056 | AB159: 15.84499512 | AC159: 2567.843 | AD159: 2645.775 | AE159: 2636.3237 | AF159: 0.0199459 | AG159: 0.000387 | AH159: 15.86998901 | AI159: 2574.1216 | AJ159: 2652.026 | AK159: 2641.2515 | AL159: 0.0199484 | AM159: 0.0004322 | AN159: 15.82900391 | AO159: 2564.435 | AP159: 2642.406 | AQ159: 2632.892 | AR159: 0.019928299 | AS159: 0.0003783 | AT159: TRUE | AU159: 0.3909496019 | AV159: 53.71057514 | AW159: 21.61410019 | AX159: 44.70284238 | AY159: 8.625 | AZ159: 75.3 | BA159: 40.02501466 | BB159: 0.3679783218 | BC159: 0.9194258207 | BD159: 44.02915278 | BE159: 28.75628078 | BF159: 0.1539163437 | BG159: 0.03754392639 | BH159: 2.696277408 | BI159: 2.72202229 | BJ159: 2.698338575
A160: 7 | B160: 11 | C160: 0 | D160: 67.50000199 | E160: 157.6999926 | F160: 355 | G160: 61 | H160: 768.25903 | I160: 0.17183098 | J160: 17.42800293 | K160: 2567.8381 | L160: 2632.3567 | M160: 2616.361 | N160: 0.0194783 | O160: 0.0008546 | P160: 17.56600342 | Q160: 2455.0188 | R160: 2515.666 | S160: 2503.161 | T160: 0.0194713 | U160: 0 | V160: 17.39598999 | W160: 2579.3164 | X160: 2644.3962 | Y160: 2629.331 | Z160: 0.0194821 | AA160: 0.0009384 | AB160: 17.44500122 | AC160: 2547.7502 | AD160: 2611.6504 | AE160: 2597.2456 | AF160: 0.0194561 | AG160: 0.0007234 | AH160: 17.45800171 | AI160: 2559.9277 | AJ160: 2624.0042 | AK160: 2608.0647 | AL160: 0.0194758 | AM160: 0.0007966 | AN160: 17.25100098 | AO160: 2525.9634 | AP160: 2590.954 | AQ160: 2578.3298 | AR160: 0.019403301 | AS160: 0.0006096 | AT160: TRUE | AU160: 0.6076570094 | AV160: 37.5828877 | AW160: 26.0855615 | AX160: 29.72076306 | AY160: 8.930093777 | AZ160: 75.3 | BA160: 23.79230049 | BB160: 0.4970850661 | BC160: 2.6307609 | BD160: 30.8689775 | BE160: 27.28272114 | BF160: 0.1336341816 | BG160: 0.01950508415 | BH160: 4.595455644 | BI160: 4.638560922 | BJ160: 4.522282027
A161: 7 | B161: 12 | C161: 0 | D161: 64.5999996 | E161: 172.5999999 | F161: 399 | G161: 71 | H161: 764.6843 | I161: 0.17794487 | J161: 17.33098755 | K161: 2229.5254 | L161: 2286.4553 | M161: 2269.902 | N161: 0.0165189 | O161: 0.0012317 | P161: 17.51699219 | Q161: 2068.9822 | R161: 2120.6287 | S161: 2106.2244 | T161: 0.016525 | U161: 0 | V161: 17.27999268 | W161: 2248.2144 | X161: 2306.0022 | Y161: 2288.6108 | Z161: 0.0165266 | AA161: 0.0013665 | AB161: 17.33300171 | AC161: 2215.3672 | AD161: 2271.9294 | AE161: 2256.832 | AF161: 0.0165205 | AG161: 0.001122 | AH161: 17.36800537 | AI161: 2234.947 | AJ161: 2291.7415 | AK161: 2275.7175 | AL161: 0.0165323 | AM161: 0.0012595 | AN161: 17.04500732 | AO161: 2180.7231 | AP161: 2238.487 | AQ161: 2223.08 | AR161: 0.016508799 | AS161: 0.0008688 | AT161: TRUE | AU161: 0.7239721677 | AV161: 32.73867417 | AW161: 26.48067571 | AX161: 21.79144385 | AY161: 9.864617636 | AZ161: 75.3 | BA161: 14.41146383 | BB161: 0.6792466781 | BC161: 0.6445597761 | BD161: 27.57457129 | BE161: 24.97893707 | BF161: 0.03692382192 | BG161: 0.04659155543 | BH161: 7.759525432 | BI161: 7.819690453 | BJ161: 7.771137776
A162: 7 | B162: 13 | C162: 0 | D162: 64.5999996 | E162: 187.3999913 | F162: 402 | G162: 69 | H162: 776.34106 | I162: 0.1716418 | J162: 18.34499512 | K162: 2249.6318 | L162: 2299.5078 | M162: 2281.4746 | N162: 0.0166646 | O162: 0.0012395 | P162: 18.53200684 | Q162: 2088.831 | R162: 2133.9155 | S162: 2119.6743 | T162: 0.0166764 | U162: 0 | V162: 18.30800781 | W162: 2268.4143 | X162: 2318.9778 | Y162: 2299.8928 | Z162: 0.0166732 | AA162: 0.0013742 | AB162: 18.3460022 | AC162: 2235.8667 | AD162: 2285.4343 | AE162: 2268.995 | AF162: 0.0166701 | AG162: 0.0011287 | AH162: 18.36098633 | AI162: 2254.432 | AJ162: 2304.2952 | AK162: 2288.9128 | AL162: 0.0166739 | AM162: 0.0012667 | AN162: 18.06398926 | AO162: 2199.5103 | AP162: 2250.3308 | AQ162: 2232.9778 | AR162: 0.016647 | AS162: 0.0008743 | AT162: TRUE | AU162: 0.784219997 | AV162: 32.73955148 | AW162: 26.48318043 | AX162: 21.75068663 | AY162: 9.802066657 | AZ162: 75.3 | BA162: 14.44461476 | BB162: 0.6673741299 | BC162: 1.687793538 | BD162: 29.73977695 | BE162: 28.58736059 | BF162: 0.01859616919 | BG162: 0.05157978073 | BH162: 7.698123975 | BI162: 7.760021425 | BJ162: 7.633262337
A163: 7 | B163: 14 | C163: 0 | D163: 67.50000199 | E163: 202.2999986 | F163: 353 | G163: 61 | H163: 763.0328 | I163: 0.17280453 | J163: 19.14800415 | K163: 2551.7925 | L163: 2601.44 | M163: 2586.1338 | N163: 0.0193591 | O163: 0.000851 | P163: 19.29000244 | Q163: 2439.6602 | R163: 2486 | S163: 2472.934 | T163: 0.019354 | U163: 0 | V163: 19.12099609 | W163: 2565.163 | X163: 2615.2817 | Y163: 2600.5208 | Z163: 0.0193808 | AA163: 0.0009318 | AB163: 19.15599976 | AC163: 2531.125 | AD163: 2580.2925 | AE163: 2566.5261 | AF163: 0.0193334 | AG163: 0.0007188 | AH163: 19.16698608 | AI163: 2544.6636 | AJ163: 2593.9917 | AK163: 2581.0405 | AL163: 0.0193625 | AM163: 0.0007934 | AN163: 18.9789978 | AO163: 2510.8167 | AP163: 2561.0657 | AQ163: 2548.2812 | AR163: 0.0192898 | AS163: 0.0006078 | AT163: TRUE | AU163: 0.5883741313 | AV163: 37.45689655 | AW163: 25.98060345 | AX163: 29.6327212 | AY163: 8.67138871 | AZ163: 75.3 | BA163: 23.74864865 | BB163: 0.5255832663 | BC163: 1.49119819 | BD163: 32.51719395 | BE163: 25.99724897 | BF163: 0.2451715684 | BG163: 0.1119664823 | BH163: 4.596226147 | BI163: 4.643604183 | BJ163: 4.577550392
A164: 7 | B164: 15 | C164: 0 | D164: 73.00000302 | E164: 216.0000103 | F164: 258 | G164: 51 | H164: 708.003 | I164: 0.19767442 | J164: 19.32000122 | K164: 2725.9414 | L164: 2777.291 | M164: 2766.3398 | N164: 0.021028 | O164: 0.000513 | P164: 19.42501221 | Q164: 2657.731 | R164: 2706.9104 | S164: 2695.7104 | T164: 0.0210196 | U164: 0 | V164: 19.30999146 | W164: 2733.969 | X164: 2785.5662 | Y164: 2774.2124 | Z164: 0.0210387 | AA164: 0.0005639 | AB164: 19.34099731 | AC164: 2705.937 | AD164: 2756.7202 | AE164: 2746.7878 | AF164: 0.0210067 | AG164: 0.0003815 | AH164: 19.35598145 | AI164: 2710.8074 | AJ164: 2761.547 | AK164: 2750.9033 | AL164: 0.0210052 | AM164: 0.0004202 | AN164: 19.31398926 | AO164: 2701.567 | AP164: 2752.5137 | AQ164: 2742.4097 | AR164: 0.020981 | AS164: 0.0003735 | AT164: TRUE | AU164: 0.3943122993 | AV164: 60.77087794 | AW164: 21.7130621 | AX164: 47.8112713 | AY164: 9.026423125 | AZ164: 75.3 | BA164: 41.99025341 | BB164: 0.413755845 | BC164: -0.8164394134 | BD164: 43.84297521 | BE164: 30.61983471 | BF164: 0.1523323511 | BG164: 0.05085865572 | BH164: 2.566489987 | BI164: 2.600034342 | BJ164: 2.62006631
A165: 7 | B165: 16 | C165: 0 | D165: 80.5 | E165: 228.0000054 | F165: 135 | G165: 47 | H165: 533.17957 | I165: 0.34814814 | J165: 12.5289856 | K165: 1180.6042 | L165: 1230.1472 | M165: 1218.9882 | N165: 0.0094759 | O165: 0.0002643 | P165: 12.56398926 | Q165: 1145.6567 | R165: 1193.6104 | S165: 1184.7035 | T165: 0.0094725005 | U165: 0 | V165: 12.51000366 | W165: 1186.9144 | X165: 1236.794 | Y165: 1226.7324 | Z165: 0.0094759 | AA165: 0.0003129 | AB165: 12.52999268 | AC165: 1171.852 | AD165: 1221.0239 | AE165: 1211.6748 | AF165: 0.0094726 | AG165: 0.0002008 | AH165: 12.52800903 | AI165: 1177.533 | AJ165: 1226.9453 | AK165: 1217.2544 | AL165: 0.0094718 | AM165: 0.0002451 | AN165: 12.51400146 | AO165: 1169.7451 | AP165: 1218.8918 | AQ165: 1208.5426 | AR165: 0.0094672 | AS165: 0.00018989999 | AT165: TRUE | AU165: 0.9071272121 | AV165: 42.28260647 | AW165: 21.97463914 | AX165: 55.82669323 | AY165: 15.53211889 | AZ165: 75.3 | BA165: 36.85281877 | BB165: 0.7462150129 | BC165: 5.930068115 | BD165: 38.91304348 | BE165: 31.73913043 | BF165: 0.03483732027 | BG165: 0 | BH165: 3.050433869 | BI165: 3.06103231 | BJ165: 2.893947726
A166: 7 | B166: 17 | C166: 0 | D166: 89.50000124 | E166: 238.4 | F166: 4 | G166: 4 | H166: 0 | I166: 1 | AT166: FALSE
A167: 7 | B167: 18 | C167: 0 | D167: 90.00000266 | E167: 248.1999967 | F167: 0 | G167: 0 | H167: 0 | AT167: FALSE
A168: 7 | B168: 19 | C168: 0 | D168: 90.00000266 | E168: 257.2999797 | F168: 0 | G168: 0 | H168: 0 | AT168: FALSE
A169: 7 | B169: 20 | C169: 0 | D169: 90.00000266 | E169: 266.499998 | F169: 0 | G169: 0 | H169: 0 | AT169: FALSE
A170: 7 | B170: 21 | C170: 0 | D170: 90.00000266 | E170: 276.999989 | F170: 0 | G170: 0 | H170: 0 | AT170: FALSE
A171: 7 | B171: 22 | C171: 0 | D171: 90.00000266 | E171: 290.0000064 | F171: 0 | G171: 0 | H171: 0 | AT171: FALSE
A172: 7 | B172: 23 | C172: 0 | D172: 90.00000266 | E172: 308.5000006 | F172: 0 | G172: 0 | H172: 0 | AT172: FALSE
A173: 8 | B173: 0 | C173: 0 | D173: 90.00000266 | E173: 339.4000144 | F173: 0 | G173: 0 | H173: 0 | AT173: FALSE
A174: 8 | B174: 1 | C174: 0 | D174: 90.00000266 | E174: 20.49999985 | F174: 0 | G174: 0 | H174: 0 | AT174: FALSE
A175: 8 | B175: 2 | C175: 0 | D175: 90.00000266 | E175: 51.00000377 | F175: 0 | G175: 0 | H175: 0 | AT175: FALSE
A176: 8 | B176: 3 | C176: 0 | D176: 90.00000266 | E176: 69.89999811 | F176: 0 | G176: 0 | H176: 0 | AT176: FALSE
A177: 8 | B177: 4 | C177: 0 | D177: 90.00000266 | E177: 82.89999612 | F177: 0 | G177: 0 | H177: 0 | AT177: FALSE
A178: 8 | B178: 5 | C178: 0 | D178: 90.00000266 | E178: 93.50000287 | F178: 0 | G178: 0 | H178: 0 | AT178: FALSE
A179: 8 | B179: 6 | C179: 0 | D179: 90.00000266 | E179: 102.699992 | F179: 0 | G179: 0 | H179: 0 | AT179: FALSE
A180: 8 | B180: 7 | C180: 0 | D180: 90.00000266 | E180: 111.8000042 | F180: 0 | G180: 0 | H180: 0 | AT180: FALSE
A181: 8 | B181: 8 | C181: 0 | D181: 89.40000484 | E181: 121.600001 | F181: 4 | G181: 4 | H181: 0 | I181: 1 | AT181: FALSE
A182: 8 | B182: 9 | C182: 0 | D182: 80.39999875 | E182: 131.8999991 | F182: 141 | G182: 34 | H182: 641.60706 | I182: 0.24113475 | J182: 7.171990967 | K182: 1304.2614 | L182: 1382.0868 | M182: 1368.815 | N182: 0.0104182 | O182: 0.0002685 | P182: 7.205010986 | Q182: 1269.9436 | R182: 1345.6047 | S182: 1334.0209 | T182: 0.0104243 | U182: 0 | V182: 7.141015625 | W182: 1311.9844 | X182: 1390.3914 | Y182: 1377.0854 | Z182: 0.0104229 | AA182: 0.00032279998 | AB182: 7.172998047 | AC182: 1294.7147 | AD182: 1371.9684 | AE182: 1359.5211 | AF182: 0.0104199 | AG182: 0.0001937 | AH182: 7.188989258 | AI182: 1298.2922 | AJ182: 1375.6985 | AK182: 1362.097 | AL182: 0.0104208 | AM182: 0.0002202 | AN182: 7.158990479 | AO182: 1291.6505 | AP182: 1368.7843 | AQ182: 1355.8995 | AR182: 0.0104142 | AS182: 0.000176 | AT182: TRUE | AU182: 0.9602725386 | AV182: 53.21266516 | AW182: 24.00452489 | AX182: 66.6494476 | AY182: 16.82155618 | AZ182: 75.3 | BA182: 39.80148976 | BB182: 0.8608620347 | BC182: 3.956686151 | BD182: 33.18181818 | BE182: 28.63636364 | BF182: 0.02879106325 | BG182: 0.04509301634 | BH182: 2.702308984 | BI182: 2.711204858 | BJ182: 2.60821251
A183: 8 | B183: 10 | C183: 0 | D183: 72.90000176 | E183: 143.8999943 | F183: 286 | G183: 49 | H183: 806.012 | I183: 0.17132868 | J183: 16.6960083 | K183: 3078.1191 | L183: 3162.4883 | M183: 3149.5972 | N183: 0.0236819 | O183: 0.0005556 | P183: 16.78600464 | Q183: 3004.63 | R183: 3086.1453 | S183: 3074.285 | T183: 0.0236743 | U183: 0 | V183: 16.67501221 | W183: 3086.3423 | X183: 3171.1313 | Y183: 3158.2795 | Z183: 0.0236912 | AA183: 0.0006095 | AB183: 16.70400391 | AC183: 3054.9983 | AD183: 3138.6484 | AE183: 3126.9424 | AF183: 0.0236575 | AG183: 0.0004028 | AH183: 16.73699341 | AI183: 3058.9246 | AJ183: 3142.354 | AK183: 3128.9058 | AL183: 0.0236536 | AM183: 0.0004365 | AN183: 16.70299683 | AO183: 3049.872 | AP183: 3133.4028 | AQ183: 3121.6458 | AR183: 0.023634 | AS183: 0.0003869 | AT183: TRUE | AU183: 0.4076252235 | AV183: 64.87903226 | AW183: 23.20564516 | AX183: 51.31578947 | AY183: 8.843314192 | AZ183: 75.3 | BA183: 43.62401008 | BB183: 0.3843078937 | BC183: 1.017195427 | BD183: 49.18367347 | BE183: 31.98979592 | BF183: 0.1424495403 | BG183: 0.03925508206 | BH183: 2.445861886 | BI183: 2.473733171 | BJ183: 2.449746852
A184: 8 | B184: 11 | C184: 0 | D184: 67.40000074 | E184: 157.6999926 | F184: 398 | G184: 57 | H184: 887.3384 | I184: 0.14321607 | J184: 17.87301025 | K184: 2918.3022 | L184: 2987.105 | M184: 2968.625 | N184: 0.0220643 | O184: 0.0009485 | P184: 18.01900635 | Q184: 2793.3994 | R184: 2857.9863 | S184: 2843.4922 | T184: 0.0220569 | U184: 0 | V184: 17.83599243 | W184: 2931.1948 | X184: 3000.6365 | Y184: 2983.1685 | Z184: 0.022069 | AA184: 0.0010426 | AB184: 17.88900146 | AC184: 2895.26 | AD184: 2963.3735 | AE184: 2946.6543 | AF184: 0.022041399 | AG184: 0.0007951 | AH184: 17.90801392 | AI184: 2905.7268 | AJ184: 2973.9011 | AK184: 2955.457 | AL184: 0.0220575 | AM184: 0.0008591 | AN184: 17.69100342 | AO184: 2868.4836 | AP184: 2937.8599 | AQ184: 2923.1401 | AR184: 0.021977201 | AS184: 0.0006544 | AT184: TRUE | AU184: 0.6186592035 | AV184: 38.96433806 | AW184: 26.87347338 | AX184: 31.12815998 | AY184: 9.02551314 | AZ184: 75.3 | BA184: 24.26230891 | BB184: 0.5071437886 | BC184: 2.705621443 | BD184: 31.43214735 | BE184: 27.99486918 | BF184: 0.1252234488 | BG184: 0.02129684172 | BH184: 4.471354866 | BI184: 4.517820817 | BJ184: 4.400673229
A185: 8 | B185: 12 | C185: 0 | D185: 64.49999834 | E185: 172.5999999 | F185: 457 | G185: 59 | H185: 924.4824 | I185: 0.12910284 | J185: 18.38198242 | K185: 2586.4836 | L185: 2643.324 | M185: 2622.9739 | N185: 0.0190339 | O185: 0.0014412 | P185: 18.58400879 | Q185: 2398.7258 | R185: 2449.9448 | S185: 2432.5703 | T185: 0.0190419 | U185: 0 | V185: 18.32299194 | W185: 2608.6458 | X185: 2666.4478 | Y185: 2644.9734 | Z185: 0.0190434 | AA185: 0.0016009 | AB185: 18.38201294 | AC185: 2569.653 | AD185: 2626.1191 | AE185: 2607.4712 | AF185: 0.0190367 | AG185: 0.0013098 | AH185: 18.42800293 | AI185: 2586.8445 | AJ185: 2643.2905 | AK185: 2623.5266 | AL185: 0.019049 | AM185: 0.0014290999 | AN185: 18.08098755 | AO185: 2525.104 | AP185: 2583.124 | AQ185: 2564.222 | AR185: 0.0190216 | AS185: 0.0009849 | AT185: TRUE | AU185: 0.7698677877 | AV185: 33.86763032 | AW185: 27.3142745 | AX185: 22.22476714 | AY185: 9.975638703 | AZ185: 75.3 | BA185: 14.20698029 | BB185: 0.7091792435 | BC185: 0.8622009505 | BD185: 27.95620438 | BE185: 25.51094891 | BF185: 0.03519517563 | BG185: 0.04988604976 | BH185: 7.827397362 | BI185: 7.89320641 | BJ185: 7.827259915
A186: 8 | B186: 13 | C186: 0 | D186: 64.49999834 | E186: 187.3999913 | F186: 460 | G186: 61 | H186: 926.80524 | I186: 0.1326087 | J186: 19.11699829 | K186: 2603.4958 | L186: 2654.381 | M186: 2632.4233 | N186: 0.0191588 | O186: 0.0014463 | P186: 19.30800781 | Q186: 2415.8284 | R186: 2461.5867 | S186: 2444.484 | T186: 0.0191722 | U186: 0 | V186: 19.07601318 | W186: 2625.5083 | X186: 2677.1558 | Y186: 2653.9941 | Z186: 0.0191688 | AA186: 0.0016047 | AB186: 19.11599121 | AC186: 2587.1133 | AD186: 2637.6814 | AE186: 2617.6746 | AF186: 0.0191655 | AG186: 0.0013144 | AH186: 19.13601074 | AI186: 2603.5742 | AJ186: 2654.2756 | AK186: 2635.5166 | AL186: 0.0191688 | AM186: 0.001437 | AN186: 18.83699951 | AO186: 2541.0923 | AP186: 2593.1338 | AQ186: 2572.0493 | AR186: 0.019137701 | AS186: 0.0009909 | AT186: TRUE | AU186: 0.8272248784 | AV186: 33.75924681 | AW186: 27.25173728 | AX186: 22.08612295 | AY186: 9.871003926 | AZ186: 75.3 | BA186: 14.24676761 | BB186: 0.6947835719 | BC186: 1.886860516 | BD186: 30 | BE186: 28.93887263 | BF186: 0.01721843938 | BG186: 0.05216810651 | BH186: 7.768242148 | BI186: 7.832114953 | BJ186: 7.688301498
A187: 8 | B187: 14 | C187: 0 | D187: 67.40000074 | E187: 202.2999986 | F187: 402 | G187: 60 | H187: 889.94055 | I187: 0.14925373 | J187: 19.67800293 | K187: 2945.7163 | L187: 2997.636 | M187: 2979.549 | N187: 0.0222672 | O187: 0.0009557 | P187: 19.81798706 | Q187: 2820.157 | R187: 2868.6086 | S187: 2853.2334 | T187: 0.022261601 | U187: 0 | V187: 19.65200195 | W187: 2960.8743 | X187: 3013.2935 | Y187: 2995.8484 | Z187: 0.0222921 | AA187: 0.0010469 | AB187: 19.6880127 | AC187: 2921.7617 | AD187: 2973.1675 | AE187: 2956.9492 | AF187: 0.0222396 | AG187: 0.0007997 | AH187: 19.70101318 | AI187: 2934.7168 | AJ187: 2986.2021 | AK187: 2970.9004 | AL187: 0.0222682 | AM187: 0.0008703 | AN187: 19.52098999 | AO187: 2897.011 | AP187: 2949.5698 | AQ187: 2934.416 | AR187: 0.0221864 | AS187: 0.0006635 | AT187: TRUE | AU187: 0.6033754599 | AV187: 38.53965184 | AW187: 26.5860735 | AX187: 30.91159185 | AY187: 8.711433757 | AZ187: 75.3 | BA187: 24.29936172 | BB187: 0.5359811025 | BC187: 1.637639868 | BD187: 32.92176039 | BE187: 26.50366748 | BF187: 0.2360653969 | BG187: 0.1116987632 | BH187: 4.452209576 | BI187: 4.497908847 | BJ187: 4.42710365
A188: 8 | B188: 15 | C188: 0 | D188: 72.90000176 | E188: 216.1000067 | F188: 293 | G188: 54 | H188: 812.8138 | I188: 0.18430035 | J188: 20.57399902 | K188: 3142.7512 | L188: 3188.738 | M188: 3176.1438 | N188: 0.0241655 | O188: 0.0005681 | P188: 20.67901001 | Q188: 3067.5093 | R188: 3111.3728 | S188: 3098.3506 | T188: 0.0241561 | U188: 0 | V188: 20.5630127 | W188: 3151.7927 | X188: 3198.0286 | Y188: 3184.905 | Z188: 0.024178099 | AA188: 0.0006246 | AB188: 20.59301147 | AC188: 3119.7507 | AD188: 3165.1902 | AE188: 3153.6758 | AF188: 0.024142701 | AG188: 0.0004142 | AH188: 20.61300049 | AI188: 3123.8113 | AJ188: 3169.1243 | AK188: 3156.8618 | AL188: 0.0241379 | AM188: 0.0004502 | AN188: 20.5750061 | AO188: 3114.151 | AP188: 3159.716 | AQ188: 3147.9536 | AR188: 0.0241114 | AS188: 0.0004025 | AT188: TRUE | AU188: 0.394958758 | AV188: 66.56184486 | AW188: 22.45283019 | AX188: 50.79671656 | AY188: 9.045789305 | AZ188: 75.3 | BA188: 43.53740539 | BB188: 0.4185355095 | BC188: -1.026470587 | BD188: 45.16943396 | BE188: 31.81169811 | BF188: 0.1466198832 | BG188: 0.05210914224 | BH188: 2.452866239 | BI188: 2.486529419 | BJ188: 2.510793969
A189: 8 | B189: 16 | C189: 0 | D189: 80.39999875 | E189: 228.1000018 | F189: 148 | G189: 39 | H189: 653.59973 | I189: 0.2635135 | J189: 13.475 | K189: 1365.4633 | L189: 1418.3381 | M189: 1404.3422 | N189: 0.0108732 | O189: 0.0002815 | P189: 13.5079895 | Q189: 1328.1086 | R189: 1379.4133 | S189: 1368.4205 | T189: 0.0108692 | U189: 0 | V189: 13.45101318 | W189: 1372.6888 | X189: 1425.9373 | Y189: 1413.357 | Z189: 0.010873 | AA189: 0.0003372 | AB189: 13.475 | AC189: 1354.8967 | AD189: 1407.3602 | AE189: 1395.5095 | AF189: 0.0108696 | AG189: 0.0002045 | AH189: 13.47701416 | AI189: 1358.642 | AJ189: 1411.2435 | AK189: 1398.9686 | AL189: 0.0108676 | AM189: 0.0002351 | AN189: 13.47200928 | AO189: 1351.7 | AP189: 1404.0493 | AQ189: 1390.7769 | AR189: 0.0108627 | AS189: 0.0001868 | AT189: TRUE | AU189: 0.9867816425 | AV189: 51.13871636 | AW189: 23.66459627 | AX189: 64.88997555 | AY189: 16.51838671 | AZ189: 75.3 | BA189: 39.6259325 | BB189: 0.796918516 | BC189: 7.523503437 | BD189: 41.02040816 | BE189: 34.08163265 | BF189: 0.0312798999 | BG189: -0.001839418744 | BH189: 2.812623907 | BI189: 2.821837371 | BJ189: 2.625048368
A190: 8 | B190: 17 | C190: 0 | D190: 89.40000484 | E190: 238.4 | F190: 4 | G190: 4 | H190: 0 | I190: 1 | AT190: FALSE
A191: 8 | B191: 18 | C191: 0 | D191: 90.00000266 | E191: 248.1999967 | F191: 0 | G191: 0 | H191: 0 | AT191: FALSE
A192: 8 | B192: 19 | C192: 0 | D192: 90.00000266 | E192: 257.2999797 | F192: 0 | G192: 0 | H192: 0 | AT192: FALSE
A193: 8 | B193: 20 | C193: 0 | D193: 90.00000266 | E193: 266.499998 | F193: 0 | G193: 0 | H193: 0 | AT193: FALSE
A194: 8 | B194: 21 | C194: 0 | D194: 90.00000266 | E194: 277.1000048 | F194: 0 | G194: 0 | H194: 0 | AT194: FALSE
A195: 8 | B195: 22 | C195: 0 | D195: 90.00000266 | E195: 290.1000222 | F195: 0 | G195: 0 | H195: 0 | AT195: FALSE
A196: 8 | B196: 23 | C196: 0 | D196: 90.00000266 | E196: 309.000002 | F196: 0 | G196: 0 | H196: 0 | AT196: FALSE
A197: 9 | B197: 0 | C197: 0 | D197: 90.00000266 | E197: 339.4999913 | F197: 0 | G197: 0 | H197: 0 | AT197: FALSE
A198: 9 | B198: 1 | C198: 0 | D198: 90.00000266 | E198: 20.39999374 | F198: 0 | G198: 0 | H198: 0 | AT198: FALSE
A199: 9 | B199: 2 | C199: 0 | D199: 90.00000266 | E199: 50.8999928 | F199: 0 | G199: 0 | H199: 0 | AT199: =IF(ISNUMBER(O199),IF(O199>0,TRUE,FALSE),FALSE) -> FALSE | AU199: =100 * IF(AT199,(L199-M199)/L199,NA()) ->  | AV199: =100 * IF(AT199, $AS$4 + (AA199 - AS199) * ($AM$4 - $AS$4) /(AM199 - AS199),NA()) ->  | AW199: =100 * (IF(AT199, $AS$4 + (AG199 - AS199) * ($AM$4 - $AS$4) /(AM199 - AS199),NA()) ) ->  | AX199: =100 * (IF(AT199,AA199/AG199-1,NA())) ->  | AY199: =100 * (IF(AT199,1-O199/AA199,NA())) ->  | AZ199: =IF(AT199,$AZ$5,NA()) ->  | BB199: =100 * IF(AT199,(R199-S199)/R199,NA()) ->  | BC199: =(AU199-BB199)*BA199 ->  | BD199: =100 * (IF(AT199, $AS$4 + (Z199 - AR199) * ($AM$4 - $AS$4) /(AL199 - AR199),NA())) ->  | BE199: =100 * (IF(AT199, $AS$4 + (AF199 - AR199) * ($AM$4 - $AS$4) /(AL199 - AR199),NA())) ->  | BF199: =100 * (IF(AT199,Z199/AF199-1,NA())) ->  | BG199: =100 * (IF(AT199,1-N199/Z199,NA())) ->  | BH199: =100 * IF(AT199,(K199-Q199)/Q199,NA()) -> 
A200: 9 | B200: 3 | C200: 0 | D200: 90.00000266 | E200: 69.80000657 | F200: 0 | G200: 0 | H200: 0 | AT200: FALSE | BA200: =IF($AZ$2, 1, AZ200/100) * (1 + N200/O200) -> 
... 925 more rows

Sheet Graphs - all data
L1: Bifacial gain. Requires simulations 1 & 2

Sheet Graphs - daily
A1: Energy-weighted PVSyst factors by day
B2: DifFraction | C2: Simulation 1 | G2: Sim 2 | I2: Sim 3 | J2: Sim 4 | K2: Sim 5 | L2: Sim 6 | M2: PVSyst factors | U2: ="Solving fMR for PVSYst" & IF(Data!BF2," Version 7.4.6 or later", " versions prior to 7.4.6") -> Solving fMR for PVSYst versions prior to 7.4.6 | X2: Weighted average for year
A3: Include IR | C3: Yes | G3: No | I3: Yes | J3: Yes | K3: Yes | L3: Yes
A4: Albedo: | C4: Desired | G4: Desired | I4: Desired | J4: Desired | K4: =Data!AM4 -> 0.3 | L4: =Data!AS4 -> 0.2
A5: Day of year | C5: =Data!L6 -> PMP - noMM (W) | D5: =Data!M6 -> PMP (W) | E5: =Data!N6 -> JF (A/cm2) | F5: =Data!O6 -> JR (A/cm2) | G5: =Data!R6 -> PMP - noMM (W) | H5: =Data!S6 -> PMP (W) | I5: =Data!AA6 -> JR (A/cm2) | J5: =Data!AG6 -> JR (A/cm2) | K5: =Data!AM6 -> JR (A/cm2) | L5: =Data!AS6 -> JR (A/cm2) | M5: fM | N5: fAT | O5: fA | P5: fT | Q5: fS | R5: fB | S5: fMR mult | T5: fMF | U5: fMR | V5: gB | X5: DOY | Y5: fAT | Z5: fA | AA5: fT | AB5: fS | AC5: fB | AD5: fM | AE5: fMF | AF5: fMR | AG5: gB
A6: 1 | B6: =SUMIF(Data!$A:$A,$A6,Data!G:G)/ SUMIF(Data!$A:$A,$A6,Data!F:F) -> 0.4953886693 | C6: =SUMIFS(Data!L:L,Data!$A:$A,$A6,Data!L:L,">="&0) -> 8823.536101 | D6: =SUMIFS(Data!M:M,Data!$A:$A,$A6,Data!M:M,">="&0) -> 8769.528452 | E6: =SUMIFS(Data!N:N,Data!$A:$A,$A6,Data!N:N,">="&0)*1000 -> 64.1348 | F6: =SUMIFS(Data!O:O,Data!$A:$A,$A6,Data!O:O,">="&0)*1000 -> 5.4689 | G6: =SUMIFS(Data!R:R,Data!$A:$A,$A6,Data!R:R,">="&0) -> 8082.593802 | H6: =SUMIFS(Data!S:S,Data!$A:$A,$A6,Data!S:S,">="&0) -> 8035.40417 | I6: =SUMIFS(Data!AA:AA,Data!$A:$A,$A6,Data!AA:AA,">="&0)*1000 -> 5.9933 | J6: =SUMIFS(Data!AG:AG,Data!$A:$A,$A6,Data!AG:AG,">="&0)*1000 -> 5.15410011 | K6: =SUMIFS(Data!AM:AM,Data!$A:$A,$A6,Data!AM:AM,">="&0)*1000 -> 5.6622001 | L6: =SUMIFS(Data!AS:AS,Data!$A:$A,$A6,Data!AS:AS,">="&0)*1000 -> 4.2187001 | M6: =100*(C6-D6)/C6 -> 0.6120862246 | N6: =100* ($L$4 + (I6 - L6) * ($K$4 - $L$4) /(K6 - L6)) -> 32.29372982 | O6: =100* ($L$4 + (J6 - L6) * ($K$4 - $L$4) /(K6 - L6)) -> 26.4800832 | P6: =100* (I6/J6 - 1) -> 16.28218063 | Q6: =100 * (1-F6/I6) -> 8.749770577 | R6: =Data!$AZ$5 -> 75.3 | S6: =IF(Data!$AZ$2,1,R6) * (1 + E6/F6) -> 12.72718463 | T6: =100*(G6-H6)/G6 -> 0.5838426767 | U6: =(M6-T6)*S6 -> 0.3594608491 | V6: =100 * (D6/H6-1) -> 9.136121425 | X6: 0 | Y6: =Data!AV$5 -> 31.88413761 | Z6: =Data!AW$5 -> 25.50574222 | AA6: =Data!AX$5 -> 17.81257305 | AB6: =Data!AY$5 -> 8.090956198 | AC6: =Data!AZ$5 -> 75.3 | AD6: =Data!AU$5 -> 0.326662037 | AE6: =Data!BB$5 -> 0.3256739293 | AF6: =Data!BC$5 -> 0.01516440616 | AG6: =Data!BH$5 -> 6.72164679
A7: =A6+1 -> 2 | B7: =SUMIF(Data!$A:$A,$A7,Data!G:G)/ SUMIF(Data!$A:$A,$A7,Data!F:F) -> 0.9987654321 | C7: =SUMIFS(Data!L:L,Data!$A:$A,$A7,Data!L:L,">="&0) -> 3906.4781 | D7: =SUMIFS(Data!M:M,Data!$A:$A,$A7,Data!M:M,">="&0) -> 3874.74397 | E7: =SUMIFS(Data!N:N,Data!$A:$A,$A7,Data!N:N,">="&0)*1000 -> 28.9683 | F7: =SUMIFS(Data!O:O,Data!$A:$A,$A7,Data!O:O,">="&0)*1000 -> 4.1644 | G7: =SUMIFS(Data!R:R,Data!$A:$A,$A7,Data!R:R,">="&0) -> 3339.07208 | H7: =SUMIFS(Data!S:S,Data!$A:$A,$A7,Data!S:S,">="&0) -> 3307.28037 | I7: =SUMIFS(Data!AA:AA,Data!$A:$A,$A7,Data!AA:AA,">="&0)*1000 -> 4.5067 | J7: =SUMIFS(Data!AG:AG,Data!$A:$A,$A7,Data!AG:AG,">="&0)*1000 -> 4.1505 | K7: =SUMIFS(Data!AM:AM,Data!$A:$A,$A7,Data!AM:AM,">="&0)*1000 -> 4.446 | L7: =SUMIFS(Data!AS:AS,Data!$A:$A,$A7,Data!AS:AS,">="&0)*1000 -> 3.43650003 | M7: =100*(C7-D7)/C7 -> 0.8123462922 | N7: =100* ($L$4 + (I7 - L7) * ($K$4 - $L$4) /(K7 - L7)) -> 30.60128778 | O7: =100* ($L$4 + (J7 - L7) * ($K$4 - $L$4) /(K7 - L7)) -> 27.07280823 | P7: =100* (I7/J7 - 1) -> 8.582098542 | Q7: =100 * (1-F7/I7) -> 7.595358022 | R7: =Data!$AZ$5 -> 75.3 | S7: =IF(Data!$AZ$2,1,R7) * (1 + E7/F7) -> 7.95617616 | T7: =100*(G7-H7)/G7 -> 0.9521121209 | U7: =(M7-T7)*S7 -> -1.112001555 | V7: =100 * (D7/H7-1) -> 17.15801313 | X7: 365 | Y7: =Data!AV$5 -> 31.88413761 | Z7: =Data!AW$5 -> 25.50574222 | AA7: =Data!AX$5 -> 17.81257305 | AB7: =Data!AY$5 -> 8.090956198 | AC7: =Data!AZ$5 -> 75.3 | AD7: =Data!AU$5 -> 0.326662037 | AE7: =Data!BB$5 -> 0.3256739293 | AF7: =Data!BC$5 -> 0.01516440616 | AG7: =Data!BH$5 -> 6.72164679
A8: =A7+1 -> 3 | B8: =SUMIF(Data!$A:$A,$A8,Data!G:G)/ SUMIF(Data!$A:$A,$A8,Data!F:F) -> 0.8605546995 | C8: =SUMIFS(Data!L:L,Data!$A:$A,$A8,Data!L:L,">="&0) -> 7362.2211 | D8: =SUMIFS(Data!M:M,Data!$A:$A,$A8,Data!M:M,">="&0) -> 7326.75537 | E8: =SUMIFS(Data!N:N,Data!$A:$A,$A8,Data!N:N,">="&0)*1000 -> 52.8957988 | F8: =SUMIFS(Data!O:O,Data!$A:$A,$A8,Data!O:O,">="&0)*1000 -> 5.9375 | G8: =SUMIFS(Data!R:R,Data!$A:$A,$A8,Data!R:R,">="&0) -> 6544.9143 | H8: =SUMIFS(Data!S:S,Data!$A:$A,$A8,Data!S:S,">="&0) -> 6508.93134 | I8: =SUMIFS(Data!AA:AA,Data!$A:$A,$A8,Data!AA:AA,">="&0)*1000 -> 6.4436 | J8: =SUMIFS(Data!AG:AG,Data!$A:$A,$A8,Data!AG:AG,">="&0)*1000 -> 5.81329994 | K8: =SUMIFS(Data!AM:AM,Data!$A:$A,$A8,Data!AM:AM,">="&0)*1000 -> 6.2738 | L8: =SUMIFS(Data!AS:AS,Data!$A:$A,$A8,Data!AS:AS,">="&0)*1000 -> 4.8399 | M8: 0.4817259563 | N8: 31.184183 | O8: 26.78847855 | P8: 10.84237983 | Q8: 7.854305047 | R8: =Data!$AZ$5 -> 75.3 | S8: =IF(Data!$AZ$2,1,R8) * (1 + E8/F8) -> 9.908766114 | T8: 0.5497850445 | U8: -0.6743815872 | V8: 12.56464368
A9: 4 | B9: =SUMIF(Data!$A:$A,$A9,Data!G:G)/ SUMIF(Data!$A:$A,$A9,Data!F:F) -> 0.9389623601 | C9: =SUMIFS(Data!L:L,Data!$A:$A,$A9,Data!L:L,">="&0) -> 4972.63873 | D9: =SUMIFS(Data!M:M,Data!$A:$A,$A9,Data!M:M,">="&0) -> 4942.261532 | E9: =SUMIFS(Data!N:N,Data!$A:$A,$A9,Data!N:N,">="&0)*1000 -> 36.598 | F9: =SUMIFS(Data!O:O,Data!$A:$A,$A9,Data!O:O,">="&0)*1000 -> 4.741600003 | G9: =SUMIFS(Data!R:R,Data!$A:$A,$A9,Data!R:R,">="&0) -> 4333.7217 | H9: =SUMIFS(Data!S:S,Data!$A:$A,$A9,Data!S:S,">="&0) -> 4302.794627 | I9: =SUMIFS(Data!AA:AA,Data!$A:$A,$A9,Data!AA:AA,">="&0)*1000 -> 5.13749995 | J9: =SUMIFS(Data!AG:AG,Data!$A:$A,$A9,Data!AG:AG,">="&0)*1000 -> 4.6931 | K9: =SUMIFS(Data!AM:AM,Data!$A:$A,$A9,Data!AM:AM,">="&0)*1000 -> 5.09790003 | L9: =SUMIFS(Data!AS:AS,Data!$A:$A,$A9,Data!AS:AS,">="&0)*1000 -> 3.91579997 | M9: 0.6108868882 | N9: 30.33499635 | O9: 26.57558574 | P9: 9.469219706 | Q9: 7.706081768 | R9: =Data!$AZ$5 -> 75.3 | S9: =IF(Data!$AZ$2,1,R9) * (1 + E9/F9) -> 8.718491644 | T9: 0.7136377262 | U9: -0.8958323224 | V9: 14.86166458
A10: 5 | B10: =SUMIF(Data!$A:$A,$A10,Data!G:G)/ SUMIF(Data!$A:$A,$A10,Data!F:F) -> 0.9897260274 | C10: =SUMIFS(Data!L:L,Data!$A:$A,$A10,Data!L:L,">="&0) -> 4204.8497 | D10: =SUMIFS(Data!M:M,Data!$A:$A,$A10,Data!M:M,">="&0) -> 4173.29081 | E10: =SUMIFS(Data!N:N,Data!$A:$A,$A10,Data!N:N,">="&0)*1000 -> 31.4813 | F10: =SUMIFS(Data!O:O,Data!$A:$A,$A10,Data!O:O,">="&0)*1000 -> 4.4007 | G10: =SUMIFS(Data!R:R,Data!$A:$A,$A10,Data!R:R,">="&0) -> 3614.80378 | H10: =SUMIFS(Data!S:S,Data!$A:$A,$A10,Data!S:S,">="&0) -> 3582.91079 | I10: =SUMIFS(Data!AA:AA,Data!$A:$A,$A10,Data!AA:AA,">="&0)*1000 -> 4.76220006 | J10: =SUMIFS(Data!AG:AG,Data!$A:$A,$A10,Data!AG:AG,">="&0)*1000 -> 4.38249996 | K10: =SUMIFS(Data!AM:AM,Data!$A:$A,$A10,Data!AM:AM,">="&0)*1000 -> 4.758 | L10: =SUMIFS(Data!AS:AS,Data!$A:$A,$A10,Data!AS:AS,">="&0)*1000 -> 3.6729 | M10: 0.7505355067 | N10: 30.03870666 | O10: 26.53948908 | P10: 8.664006924 | Q10: 7.59103052 | R10: =Data!$AZ$5 -> 75.3 | S10: =IF(Data!$AZ$2,1,R10) * (1 + E10/F10) -> 8.15370282 | T10: 0.8822882773 | U10: -1.074272938 | V10: 16.47766452
A11: 6 | B11: =SUMIF(Data!$A:$A,$A11,Data!G:G)/ SUMIF(Data!$A:$A,$A11,Data!F:F) -> 0.5166666667 | C11: =SUMIFS(Data!L:L,Data!$A:$A,$A11,Data!L:L,">="&0) -> 6121.5183 | D11: =SUMIFS(Data!M:M,Data!$A:$A,$A11,Data!M:M,">="&0) -> 6093.214761 | E11: =SUMIFS(Data!N:N,Data!$A:$A,$A11,Data!N:N,">="&0)*1000 -> 47.9278001 | F11: =SUMIFS(Data!O:O,Data!$A:$A,$A11,Data!O:O,">="&0)*1000 -> 2.55049999 | G11: =SUMIFS(Data!R:R,Data!$A:$A,$A11,Data!R:R,">="&0) -> 5787.1182 | H11: =SUMIFS(Data!S:S,Data!$A:$A,$A11,Data!S:S,">="&0) -> 5761.039925 | I11: =SUMIFS(Data!AA:AA,Data!$A:$A,$A11,Data!AA:AA,">="&0)*1000 -> 2.795 | J11: =SUMIFS(Data!AG:AG,Data!$A:$A,$A11,Data!AG:AG,">="&0)*1000 -> 2.30750001 | K11: =SUMIFS(Data!AM:AM,Data!$A:$A,$A11,Data!AM:AM,">="&0)*1000 -> 2.59800001 | L11: =SUMIFS(Data!AS:AS,Data!$A:$A,$A11,Data!AS:AS,">="&0)*1000 -> 2.0573 | M11: 0.462361421 | N11: 33.64342494 | O11: 24.62733504 | P11: 21.12676004 | Q11: 8.747764222 | R11: =Data!$AZ$5 -> 75.3 | S11: =IF(Data!$AZ$2,1,R11) * (1 + E11/F11) -> 19.79153119 | T11: 0.450626272 | U11: 0.2322565681 | V11: 5.765883249 | X11: Bifacial gain. Requires simulations 1 & 2.
A12: 7 | B12: =SUMIF(Data!$A:$A,$A12,Data!G:G)/ SUMIF(Data!$A:$A,$A12,Data!F:F) -> 0.2046450482 | C12: =SUMIFS(Data!L:L,Data!$A:$A,$A12,Data!L:L,">="&0) -> 17612.9061 | D12: =SUMIFS(Data!M:M,Data!$A:$A,$A12,Data!M:M,">="&0) -> 17505.2184 | E12: =SUMIFS(Data!N:N,Data!$A:$A,$A12,Data!N:N,">="&0)*1000 -> 131.0591 | F12: =SUMIFS(Data!O:O,Data!$A:$A,$A12,Data!O:O,">="&0)*1000 -> 5.7096 | G12: =SUMIFS(Data!R:R,Data!$A:$A,$A12,Data!R:R,">="&0) -> 16838.8026 | H12: =SUMIFS(Data!S:S,Data!$A:$A,$A12,Data!S:S,">="&0) -> 16746.7067 | I12: =SUMIFS(Data!AA:AA,Data!$A:$A,$A12,Data!AA:AA,">="&0)*1000 -> 6.3366 | J12: =SUMIFS(Data!AG:AG,Data!$A:$A,$A12,Data!AG:AG,">="&0)*1000 -> 4.84849999 | K12: =SUMIFS(Data!AM:AM,Data!$A:$A,$A12,Data!AM:AM,">="&0)*1000 -> 5.4425 | L12: =SUMIFS(Data!AS:AS,Data!$A:$A,$A12,Data!AS:AS,">="&0)*1000 -> 4.07919999 | M12: 0.6114135815 | N12: 36.55835101 | O12: 25.64292521 | P12: 30.69196686 | Q12: 9.894896317 | R12: =Data!$AZ$5 -> 75.3 | S12: =IF(Data!$AZ$2,1,R12) * (1 + E12/F12) -> 23.95416492 | T12: 0.5469266562 | U12: 1.544730445 | V12: 4.529318591
A13: 8 | B13: =SUMIF(Data!$A:$A,$A13,Data!G:G)/ SUMIF(Data!$A:$A,$A13,Data!F:F) -> 0.1623602005 | C13: =SUMIFS(Data!L:L,Data!$A:$A,$A13,Data!L:L,">="&0) -> 20434.0972 | D13: =SUMIFS(Data!M:M,Data!$A:$A,$A13,Data!M:M,">="&0) -> 20302.4694 | E13: =SUMIFS(Data!N:N,Data!$A:$A,$A13,Data!N:N,">="&0)*1000 -> 151.663 | F13: =SUMIFS(Data!O:O,Data!$A:$A,$A13,Data!O:O,">="&0)*1000 -> 6.4654 | G13: =SUMIFS(Data!R:R,Data!$A:$A,$A13,Data!R:R,">="&0) -> 19560.6625 | H13: =SUMIFS(Data!S:S,Data!$A:$A,$A13,Data!S:S,">="&0) -> 19448.8569 | I13: =SUMIFS(Data!AA:AA,Data!$A:$A,$A13,Data!AA:AA,">="&0)*1000 -> 7.18919998 | J13: =SUMIFS(Data!AG:AG,Data!$A:$A,$A13,Data!AG:AG,">="&0)*1000 -> 5.4342 | K13: =SUMIFS(Data!AM:AM,Data!$A:$A,$A13,Data!AM:AM,">="&0)*1000 -> 5.9374999 | L13: =SUMIFS(Data!AS:AS,Data!$A:$A,$A13,Data!AS:AS,">="&0)*1000 -> 4.4459 | M13: 0.6441576484 | N13: 38.39166106 | O13: 26.62577143 | P13: 32.29546171 | Q13: 10.06787935 | R13: =Data!$AZ$5 -> 75.3 | S13: =IF(Data!$AZ$2,1,R13) * (1 + E13/F13) -> 24.45763603 | T13: 0.5715839124 | U13: 1.774982022 | V13: 4.389011161
A14: 9 | B14: =SUMIF(Data!$A:$A,$A14,Data!G:G)/ SUMIF(Data!$A:$A,$A14,Data!F:F) -> 0.570773639 | C14: =SUMIFS(Data!L:L,Data!$A:$A,$A14,Data!L:L,">="&0) -> 12327.8091 | D14: =SUMIFS(Data!M:M,Data!$A:$A,$A14,Data!M:M,">="&0) -> 12281.9068 | E14: =SUMIFS(Data!N:N,Data!$A:$A,$A14,Data!N:N,">="&0)*1000 -> 90.633399 | F14: =SUMIFS(Data!O:O,Data!$A:$A,$A14,Data!O:O,">="&0)*1000 -> 5.9467 | G14: =SUMIFS(Data!R:R,Data!$A:$A,$A14,Data!R:R,">="&0) -> 11516.04204 | H14: =SUMIFS(Data!S:S,Data!$A:$A,$A14,Data!S:S,">="&0) -> 11473.79784 | I14: =SUMIFS(Data!AA:AA,Data!$A:$A,$A14,Data!AA:AA,">="&0)*1000 -> 6.5051 | J14: =SUMIFS(Data!AG:AG,Data!$A:$A,$A14,Data!AG:AG,">="&0)*1000 -> 5.492 | K14: =SUMIFS(Data!AM:AM,Data!$A:$A,$A14,Data!AM:AM,">="&0)*1000 -> 6.02360003 | L14: =SUMIFS(Data!AS:AS,Data!$A:$A,$A14,Data!AS:AS,">="&0)*1000 -> 4.61210002 | M14: 0.3723475893 | N14: 33.41126438 | O14: 26.23379365 | P14: 18.44683176 | Q14: 8.584034066 | R14: =Data!$AZ$5 -> 75.3 | S14: =IF(Data!$AZ$2,1,R14) * (1 + E14/F14) -> 16.240957 | T14: 0.3668291576 | U14: 0.08962461289 | V14: 7.043081735
A15: 10 | B15: =SUMIF(Data!$A:$A,$A15,Data!G:G)/ SUMIF(Data!$A:$A,$A15,Data!F:F) -> 0.6419836957 | C15: =SUMIFS(Data!L:L,Data!$A:$A,$A15,Data!L:L,">="&0) -> 9681.26976 | D15: =SUMIFS(Data!M:M,Data!$A:$A,$A15,Data!M:M,">="&0) -> 9640.622384 | E15: =SUMIFS(Data!N:N,Data!$A:$A,$A15,Data!N:N,">="&0)*1000 -> 69.81569996 | F15: =SUMIFS(Data!O:O,Data!$A:$A,$A15,Data!O:O,">="&0)*1000 -> 5.4063 | G15: =SUMIFS(Data!R:R,Data!$A:$A,$A15,Data!R:R,">="&0) -> 8932.45027 | H15: =SUMIFS(Data!S:S,Data!$A:$A,$A15,Data!S:S,">="&0) -> 8894.615255 | I15: =SUMIFS(Data!AA:AA,Data!$A:$A,$A15,Data!AA:AA,">="&0)*1000 -> 5.90809997 | J15: =SUMIFS(Data!AG:AG,Data!$A:$A,$A15,Data!AG:AG,">="&0)*1000 -> 5.0839 | K15: =SUMIFS(Data!AM:AM,Data!$A:$A,$A15,Data!AM:AM,">="&0)*1000 -> 5.53390001 | L15: =SUMIFS(Data!AS:AS,Data!$A:$A,$A15,Data!AS:AS,">="&0)*1000 -> 4.19060001 | M15: 0.4198558351 | N15: 32.78567677 | O15: 26.65004087 | P15: 16.21196267 | Q15: 8.493423817 | R15: =Data!$AZ$5 -> 75.3 | S15: =IF(Data!$AZ$2,1,R15) * (1 + E15/F15) -> 13.91376726 | T15: 0.4235681572 | U15: -0.05165238536 | V15: 8.387177046
A16: 11 | B16: =SUMIF(Data!$A:$A,$A16,Data!G:G)/ SUMIF(Data!$A:$A,$A16,Data!F:F) -> 0.147001176 | C16: =SUMIFS(Data!L:L,Data!$A:$A,$A16,Data!L:L,">="&0) -> 20358.4225 | D16: =SUMIFS(Data!M:M,Data!$A:$A,$A16,Data!M:M,">="&0) -> 20228.8926 | E16: =SUMIFS(Data!N:N,Data!$A:$A,$A16,Data!N:N,">="&0)*1000 -> 148.991001 | F16: =SUMIFS(Data!O:O,Data!$A:$A,$A16,Data!O:O,">="&0)*1000 -> 6.422 | G16: =SUMIFS(Data!R:R,Data!$A:$A,$A16,Data!R:R,">="&0) -> 19480.3105 | H16: =SUMIFS(Data!S:S,Data!$A:$A,$A16,Data!S:S,">="&0) -> 19371.2283 | I16: =SUMIFS(Data!AA:AA,Data!$A:$A,$A16,Data!AA:AA,">="&0)*1000 -> 7.14120002 | J16: =SUMIFS(Data!AG:AG,Data!$A:$A,$A16,Data!AG:AG,">="&0)*1000 -> 5.39549999 | K16: =SUMIFS(Data!AM:AM,Data!$A:$A,$A16,Data!AM:AM,">="&0)*1000 -> 5.83010002 | L16: =SUMIFS(Data!AS:AS,Data!$A:$A,$A16,Data!AS:AS,">="&0)*1000 -> 4.3598 | M16: 0.6362472338 | N16: 38.91722766 | O16: 27.04414049 | P16: 32.35474068 | Q16: 10.07113676 | R16: =Data!$AZ$5 -> 75.3 | S16: =IF(Data!$AZ$2,1,R16) * (1 + E16/F16) -> 24.20009358 | T16: 0.5599613004 | U16: 1.846126727 | V16: 4.427516349
A17: 12 | B17: =SUMIF(Data!$A:$A,$A17,Data!G:G)/ SUMIF(Data!$A:$A,$A17,Data!F:F) -> 0.1494071146 | C17: =SUMIFS(Data!L:L,Data!$A:$A,$A17,Data!L:L,">="&0) -> 20174.5322 | D17: =SUMIFS(Data!M:M,Data!$A:$A,$A17,Data!M:M,">="&0) -> 20048.758 | E17: =SUMIFS(Data!N:N,Data!$A:$A,$A17,Data!N:N,">="&0)*1000 -> 147.3757 | F17: =SUMIFS(Data!O:O,Data!$A:$A,$A17,Data!O:O,">="&0)*1000 -> 6.3724 | G17: =SUMIFS(Data!R:R,Data!$A:$A,$A17,Data!R:R,">="&0) -> 19300.5366 | H17: =SUMIFS(Data!S:S,Data!$A:$A,$A17,Data!S:S,">="&0) -> 19194.6306 | I17: =SUMIFS(Data!AA:AA,Data!$A:$A,$A17,Data!AA:AA,">="&0)*1000 -> 7.0815 | J17: =SUMIFS(Data!AG:AG,Data!$A:$A,$A17,Data!AG:AG,">="&0)*1000 -> 5.36 | K17: =SUMIFS(Data!AM:AM,Data!$A:$A,$A17,Data!AM:AM,">="&0)*1000 -> 5.81229997 | L17: =SUMIFS(Data!AS:AS,Data!$A:$A,$A17,Data!AS:AS,">="&0)*1000 -> 4.34529998 | M17: 0.6234305646 | N17: 38.65167034 | O17: 26.91683727 | P17: 32.11753731 | Q17: 10.01341524 | R17: =Data!$AZ$5 -> 75.3 | S17: =IF(Data!$AZ$2,1,R17) * (1 + E17/F17) -> 24.12718913 | T17: 0.5487204952 | U17: 1.802543975 | V17: 4.44982463
A18: 13 | B18: =SUMIF(Data!$A:$A,$A18,Data!G:G)/ SUMIF(Data!$A:$A,$A18,Data!F:F) -> 0.7075971731 | C18: =SUMIFS(Data!L:L,Data!$A:$A,$A18,Data!L:L,">="&0) -> 7984.4124 | D18: =SUMIFS(Data!M:M,Data!$A:$A,$A18,Data!M:M,">="&0) -> 7946.652401 | E18: =SUMIFS(Data!N:N,Data!$A:$A,$A18,Data!N:N,">="&0)*1000 -> 58.41470051 | F18: =SUMIFS(Data!O:O,Data!$A:$A,$A18,Data!O:O,">="&0)*1000 -> 4.47429997 | G18: =SUMIFS(Data!R:R,Data!$A:$A,$A18,Data!R:R,">="&0) -> 7364.39117 | H18: =SUMIFS(Data!S:S,Data!$A:$A,$A18,Data!S:S,">="&0) -> 7328.74554 | I18: =SUMIFS(Data!AA:AA,Data!$A:$A,$A18,Data!AA:AA,">="&0)*1000 -> 4.8843 | J18: =SUMIFS(Data!AG:AG,Data!$A:$A,$A18,Data!AG:AG,">="&0)*1000 -> 4.2454 | K18: =SUMIFS(Data!AM:AM,Data!$A:$A,$A18,Data!AM:AM,">="&0)*1000 -> 4.5906 | L18: =SUMIFS(Data!AS:AS,Data!$A:$A,$A18,Data!AS:AS,">="&0)*1000 -> 3.6367 | M18: 0.4729214538 | N18: 33.07893909 | O18: 26.38117203 | P18: 15.04922975 | Q18: 8.394243392 | R18: =Data!$AZ$5 -> 75.3 | S18: =IF(Data!$AZ$2,1,R18) * (1 + E18/F18) -> 14.05560667 | T18: 0.4840268456 | U18: -0.1560930192 | V18: 8.431277326
A19: 14 | B19: =SUMIF(Data!$A:$A,$A19,Data!G:G)/ SUMIF(Data!$A:$A,$A19,Data!F:F) -> 0.7765538946 | C19: =SUMIFS(Data!L:L,Data!$A:$A,$A19,Data!L:L,">="&0) -> 8230.979 | D19: =SUMIFS(Data!M:M,Data!$A:$A,$A19,Data!M:M,">="&0) -> 8196.819277 | E19: =SUMIFS(Data!N:N,Data!$A:$A,$A19,Data!N:N,">="&0)*1000 -> 59.63740002 | F19: =SUMIFS(Data!O:O,Data!$A:$A,$A19,Data!O:O,">="&0)*1000 -> 5.37079997 | G19: =SUMIFS(Data!R:R,Data!$A:$A,$A19,Data!R:R,">="&0) -> 7486.0581 | H19: =SUMIFS(Data!S:S,Data!$A:$A,$A19,Data!S:S,">="&0) -> 7452.74565 | I19: =SUMIFS(Data!AA:AA,Data!$A:$A,$A19,Data!AA:AA,">="&0)*1000 -> 5.84130002 | J19: =SUMIFS(Data!AG:AG,Data!$A:$A,$A19,Data!AG:AG,">="&0)*1000 -> 5.15890002 | K19: =SUMIFS(Data!AM:AM,Data!$A:$A,$A19,Data!AM:AM,">="&0)*1000 -> 5.492000001 | L19: =SUMIFS(Data!AS:AS,Data!$A:$A,$A19,Data!AS:AS,">="&0)*1000 -> 4.27829995 | M19: 0.4150140998 | N19: 32.87797647 | O19: 27.25549998 | P19: 13.22762599 | Q19: 8.054714676 | R19: =Data!$AZ$5 -> 75.3 | S19: =IF(Data!$AZ$2,1,R19) * (1 + E19/F19) -> 12.10400692 | T19: 0.4449932014 | U19: -0.3628672537 | V19: 9.983885954
A20: 15 | B20: =SUMIF(Data!$A:$A,$A20,Data!G:G)/ SUMIF(Data!$A:$A,$A20,Data!F:F) -> 0.9706161137 | C20: =SUMIFS(Data!L:L,Data!$A:$A,$A20,Data!L:L,">="&0) -> 5489.2372 | D20: =SUMIFS(Data!M:M,Data!$A:$A,$A20,Data!M:M,">="&0) -> 5453.261927 | E20: =SUMIFS(Data!N:N,Data!$A:$A,$A20,Data!N:N,">="&0)*1000 -> 38.3946001 | F20: =SUMIFS(Data!O:O,Data!$A:$A,$A20,Data!O:O,">="&0)*1000 -> 5.407300031 | G20: =SUMIFS(Data!R:R,Data!$A:$A,$A20,Data!R:R,">="&0) -> 4725.3171 | H20: =SUMIFS(Data!S:S,Data!$A:$A,$A20,Data!S:S,">="&0) -> 4689.619709 | I20: =SUMIFS(Data!AA:AA,Data!$A:$A,$A20,Data!AA:AA,">="&0)*1000 -> 5.8558001 | J20: =SUMIFS(Data!AG:AG,Data!$A:$A,$A20,Data!AG:AG,">="&0)*1000 -> 5.36900004 | K20: =SUMIFS(Data!AM:AM,Data!$A:$A,$A20,Data!AM:AM,">="&0)*1000 -> 5.64429995 | L20: =SUMIFS(Data!AS:AS,Data!$A:$A,$A20,Data!AS:AS,">="&0)*1000 -> 4.35010003 | M20: 0.6553783622 | N20: 31.63421545 | O20: 27.87281775 | P20: 9.066866388 | Q20: 7.659074103 | R20: =Data!$AZ$5 -> 75.3 | S20: =IF(Data!$AZ$2,1,R20) * (1 + E20/F20) -> 8.100512248 | T20: 0.7554496381 | U20: -0.8106285957 | V20: 16.28367043
A21: 16 | B21: =SUMIF(Data!$A:$A,$A21,Data!G:G)/ SUMIF(Data!$A:$A,$A21,Data!F:F) -> 0.4014766959 | C21: =SUMIFS(Data!L:L,Data!$A:$A,$A21,Data!L:L,">="&0) -> 16093.908 | D21: =SUMIFS(Data!M:M,Data!$A:$A,$A21,Data!M:M,">="&0) -> 16008.26844 | E21: =SUMIFS(Data!N:N,Data!$A:$A,$A21,Data!N:N,">="&0)*1000 -> 111.8410005 | F21: =SUMIFS(Data!O:O,Data!$A:$A,$A21,Data!O:O,">="&0)*1000 -> 6.999299997 | G21: =SUMIFS(Data!R:R,Data!$A:$A,$A21,Data!R:R,">="&0) -> 15090.6277 | H21: =SUMIFS(Data!S:S,Data!$A:$A,$A21,Data!S:S,">="&0) -> 15017.64141 | I21: =SUMIFS(Data!AA:AA,Data!$A:$A,$A21,Data!AA:AA,">="&0)*1000 -> 7.699700001 | J21: =SUMIFS(Data!AG:AG,Data!$A:$A,$A21,Data!AG:AG,">="&0)*1000 -> 6.333199997 | K21: =SUMIFS(Data!AM:AM,Data!$A:$A,$A21,Data!AM:AM,">="&0)*1000 -> 6.742199998 | L21: =SUMIFS(Data!AS:AS,Data!$A:$A,$A21,Data!AS:AS,">="&0)*1000 -> 5.09970001 | M21: 0.5321240745 | N21: 35.82952822 | O21: 27.50989343 | P21: 21.57677011 | Q21: 9.096458354 | R21: =Data!$AZ$5 -> 75.3 | S21: =IF(Data!$AZ$2,1,R21) * (1 + E21/F21) -> 16.97888368 | T21: 0.4836531174 | U21: 0.8229827437 | V21: 6.596422203
A22: 17 | B22: =SUMIF(Data!$A:$A,$A22,Data!G:G)/ SUMIF(Data!$A:$A,$A22,Data!F:F) -> 1 | C22: =SUMIFS(Data!L:L,Data!$A:$A,$A22,Data!L:L,">="&0) -> 2761.2369 | D22: =SUMIFS(Data!M:M,Data!$A:$A,$A22,Data!M:M,">="&0) -> 2741.731293 | E22: =SUMIFS(Data!N:N,Data!$A:$A,$A22,Data!N:N,">="&0)*1000 -> 21.0884999 | F22: =SUMIFS(Data!O:O,Data!$A:$A,$A22,Data!O:O,">="&0)*1000 -> 3.0477 | G22: =SUMIFS(Data!R:R,Data!$A:$A,$A22,Data!R:R,">="&0) -> 2337.3609 | H22: =SUMIFS(Data!S:S,Data!$A:$A,$A22,Data!S:S,">="&0) -> 2318.592586 | I22: =SUMIFS(Data!AA:AA,Data!$A:$A,$A22,Data!AA:AA,">="&0)*1000 -> 3.29840001 | J22: =SUMIFS(Data!AG:AG,Data!$A:$A,$A22,Data!AG:AG,">="&0)*1000 -> 3.0349 | K22: =SUMIFS(Data!AM:AM,Data!$A:$A,$A22,Data!AM:AM,">="&0)*1000 -> 3.21470001 | L22: =SUMIFS(Data!AS:AS,Data!$A:$A,$A22,Data!AS:AS,">="&0)*1000 -> 2.4801 | M22: 0.7064083165 | N22: 31.13939558 | O22: 27.55240937 | P22: 8.682329253 | Q22: 7.600655157 | R22: =Data!$AZ$5 -> 75.3 | S22: =IF(Data!$AZ$2,1,R22) * (1 + E22/F22) -> 7.919480231 | T22: 0.8029702978 | U22: -0.7647207022 | V22: 18.24980849
A23: 18 | B23: =SUMIF(Data!$A:$A,$A23,Data!G:G)/ SUMIF(Data!$A:$A,$A23,Data!F:F) -> 0.6753782669 | C23: =SUMIFS(Data!L:L,Data!$A:$A,$A23,Data!L:L,">="&0) -> 10408.19612 | D23: =SUMIFS(Data!M:M,Data!$A:$A,$A23,Data!M:M,">="&0) -> 10364.41302 | E23: =SUMIFS(Data!N:N,Data!$A:$A,$A23,Data!N:N,">="&0)*1000 -> 74.7121002 | F23: =SUMIFS(Data!O:O,Data!$A:$A,$A23,Data!O:O,">="&0)*1000 -> 5.4425 | G23: =SUMIFS(Data!R:R,Data!$A:$A,$A23,Data!R:R,">="&0) -> 9643.848 | H23: =SUMIFS(Data!S:S,Data!$A:$A,$A23,Data!S:S,">="&0) -> 9601.892812 | I23: =SUMIFS(Data!AA:AA,Data!$A:$A,$A23,Data!AA:AA,">="&0)*1000 -> 5.93459997 | J23: =SUMIFS(Data!AG:AG,Data!$A:$A,$A23,Data!AG:AG,">="&0)*1000 -> 5.113499991 | K23: =SUMIFS(Data!AM:AM,Data!$A:$A,$A23,Data!AM:AM,">="&0)*1000 -> 5.5077 | L23: =SUMIFS(Data!AS:AS,Data!$A:$A,$A23,Data!AS:AS,">="&0)*1000 -> 4.30500002 | M23: 0.4206598655 | N23: 33.5495134 | O23: 26.72237453 | P23: 16.05749448 | Q23: 8.292049548 | R23: =Data!$AZ$5 -> 75.3 | S23: =IF(Data!$AZ$2,1,R23) * (1 + E23/F23) -> 14.72753334 | T23: 0.4350461372 | U23: -0.2118742958 | V23: 7.941353016
A24: 19 | B24: =SUMIF(Data!$A:$A,$A24,Data!G:G)/ SUMIF(Data!$A:$A,$A24,Data!F:F) -> 0.8989675516 | C24: =SUMIFS(Data!L:L,Data!$A:$A,$A24,Data!L:L,">="&0) -> 7433.0565 | D24: =SUMIFS(Data!M:M,Data!$A:$A,$A24,Data!M:M,">="&0) -> 7397.041246 | E24: =SUMIFS(Data!N:N,Data!$A:$A,$A24,Data!N:N,">="&0)*1000 -> 52.199499 | F24: =SUMIFS(Data!O:O,Data!$A:$A,$A24,Data!O:O,">="&0)*1000 -> 6.54450004 | G24: =SUMIFS(Data!R:R,Data!$A:$A,$A24,Data!R:R,">="&0) -> 6522.20369 | H24: =SUMIFS(Data!S:S,Data!$A:$A,$A24,Data!S:S,">="&0) -> 6486.138822 | I24: =SUMIFS(Data!AA:AA,Data!$A:$A,$A24,Data!AA:AA,">="&0)*1000 -> 7.093900001 | J24: =SUMIFS(Data!AG:AG,Data!$A:$A,$A24,Data!AG:AG,">="&0)*1000 -> 6.447199999 | K24: =SUMIFS(Data!AM:AM,Data!$A:$A,$A24,Data!AM:AM,">="&0)*1000 -> 6.8464 | L24: =SUMIFS(Data!AS:AS,Data!$A:$A,$A24,Data!AS:AS,">="&0)*1000 -> 5.27190001 | M24: 0.4845281911 | N24: 31.57192761 | O24: 27.46459191 | P24: 10.03071104 | Q24: 7.7446815 | R24: =Data!$AZ$5 -> 75.3 | S24: =IF(Data!$AZ$2,1,R24) * (1 + E24/F24) -> 8.976086589 | T24: 0.5529552543 | U24: -0.6142072446 | V24: 14.04383176
A25: 20 | B25: =SUMIF(Data!$A:$A,$A25,Data!G:G)/ SUMIF(Data!$A:$A,$A25,Data!F:F) -> 0.5304937076 | C25: =SUMIFS(Data!L:L,Data!$A:$A,$A25,Data!L:L,">="&0) -> 15295.3244 | D25: =SUMIFS(Data!M:M,Data!$A:$A,$A25,Data!M:M,">="&0) -> 15237.16597 | E25: =SUMIFS(Data!N:N,Data!$A:$A,$A25,Data!N:N,">="&0)*1000 -> 110.9654 | F25: =SUMIFS(Data!O:O,Data!$A:$A,$A25,Data!O:O,">="&0)*1000 -> 6.687400141 | G25: =SUMIFS(Data!R:R,Data!$A:$A,$A25,Data!R:R,">="&0) -> 14375.5332 | H25: =SUMIFS(Data!S:S,Data!$A:$A,$A25,Data!S:S,">="&0) -> 14323.4855 | I25: =SUMIFS(Data!AA:AA,Data!$A:$A,$A25,Data!AA:AA,">="&0)*1000 -> 7.326799999 | J25: =SUMIFS(Data!AG:AG,Data!$A:$A,$A25,Data!AG:AG,">="&0)*1000 -> 6.09939998 | K25: =SUMIFS(Data!AM:AM,Data!$A:$A,$A25,Data!AM:AM,">="&0)*1000 -> 6.685700022 | L25: =SUMIFS(Data!AS:AS,Data!$A:$A,$A25,Data!AS:AS,">="&0)*1000 -> 5.1106 | M25: 0.3802366323 | N25: 34.07021756 | O25: 26.27769644 | P25: 20.12329119 | Q25: 8.726863816 | R25: =Data!$AZ$5 -> 75.3 | S25: =IF(Data!$AZ$2,1,R25) * (1 + E25/F25) -> 17.59320478 | T25: 0.3620575256 | U25: 0.3198287467 | V25: 6.378897604
A26: 21 | B26: =SUMIF(Data!$A:$A,$A26,Data!G:G)/ SUMIF(Data!$A:$A,$A26,Data!F:F) -> 0.9330677291 | C26: =SUMIFS(Data!L:L,Data!$A:$A,$A26,Data!L:L,">="&0) -> 6642.7853 | D26: =SUMIFS(Data!M:M,Data!$A:$A,$A26,Data!M:M,">="&0) -> 6605.865038 | E26: =SUMIFS(Data!N:N,Data!$A:$A,$A26,Data!N:N,">="&0)*1000 -> 46.74610001 | F26: =SUMIFS(Data!O:O,Data!$A:$A,$A26,Data!O:O,">="&0)*1000 -> 6.17279998 | G26: =SUMIFS(Data!R:R,Data!$A:$A,$A26,Data!R:R,">="&0) -> 5784.08843 | H26: =SUMIFS(Data!S:S,Data!$A:$A,$A26,Data!S:S,">="&0) -> 5747.06998 | I26: =SUMIFS(Data!AA:AA,Data!$A:$A,$A26,Data!AA:AA,">="&0)*1000 -> 6.688799999 | J26: =SUMIFS(Data!AG:AG,Data!$A:$A,$A26,Data!AG:AG,">="&0)*1000 -> 6.1048 | K26: =SUMIFS(Data!AM:AM,Data!$A:$A,$A26,Data!AM:AM,">="&0)*1000 -> 6.504200021 | L26: =SUMIFS(Data!AS:AS,Data!$A:$A,$A26,Data!AS:AS,">="&0)*1000 -> 4.9922 | M26: 0.5557948998 | N26: 31.22089931 | O26: 27.35846551 | P26: 9.56624294 | Q26: 7.714388516 | R26: =Data!$AZ$5 -> 75.3 | S26: =IF(Data!$AZ$2,1,R26) * (1 + E26/F26) -> 8.572916692 | T26: 0.6400049126 | U26: -0.7219254245 | V26: 14.94318081
A27: 22 | B27: =SUMIF(Data!$A:$A,$A27,Data!G:G)/ SUMIF(Data!$A:$A,$A27,Data!F:F) -> 0.333474756 | C27: =SUMIFS(Data!L:L,Data!$A:$A,$A27,Data!L:L,">="&0) -> 17773.0647 | D27: =SUMIFS(Data!M:M,Data!$A:$A,$A27,Data!M:M,">="&0) -> 17692.41685 | E27: =SUMIFS(Data!N:N,Data!$A:$A,$A27,Data!N:N,">="&0)*1000 -> 125.9405998 | F27: =SUMIFS(Data!O:O,Data!$A:$A,$A27,Data!O:O,">="&0)*1000 -> 7.0878 | G27: =SUMIFS(Data!R:R,Data!$A:$A,$A27,Data!R:R,">="&0) -> 16778.3554 | H27: =SUMIFS(Data!S:S,Data!$A:$A,$A27,Data!S:S,">="&0) -> 16710.64777 | I27: =SUMIFS(Data!AA:AA,Data!$A:$A,$A27,Data!AA:AA,">="&0)*1000 -> 7.8074001 | J27: =SUMIFS(Data!AG:AG,Data!$A:$A,$A27,Data!AG:AG,">="&0)*1000 -> 6.2915 | K27: =SUMIFS(Data!AM:AM,Data!$A:$A,$A27,Data!AM:AM,">="&0)*1000 -> 6.74740002 | L27: =SUMIFS(Data!AS:AS,Data!$A:$A,$A27,Data!AS:AS,">="&0)*1000 -> 5.07659995 | M27: 0.4537644557 | N27: 36.34426643 | O27: 27.271367 | P27: 24.09441469 | Q27: 9.216897953 | R27: =Data!$AZ$5 -> 75.3 | S27: =IF(Data!$AZ$2,1,R27) * (1 + E27/F27) -> 18.76864469 | T27: 0.4035414979 | U27: 0.9426168508 | V27: 5.875110826
A28: 23 | B28: =SUMIF(Data!$A:$A,$A28,Data!G:G)/ SUMIF(Data!$A:$A,$A28,Data!F:F) -> 0.1556586933 | C28: =SUMIFS(Data!L:L,Data!$A:$A,$A28,Data!L:L,">="&0) -> 23314.7271 | D28: =SUMIFS(Data!M:M,Data!$A:$A,$A28,Data!M:M,">="&0) -> 23180.40453 | E28: =SUMIFS(Data!N:N,Data!$A:$A,$A28,Data!N:N,">="&0)*1000 -> 162.8585 | F28: =SUMIFS(Data!O:O,Data!$A:$A,$A28,Data!O:O,">="&0)*1000 -> 7.1988 | G28: =SUMIFS(Data!R:R,Data!$A:$A,$A28,Data!R:R,">="&0) -> 22290.72 | H28: =SUMIFS(Data!S:S,Data!$A:$A,$A28,Data!S:S,">="&0) -> 22177.26165 | I28: =SUMIFS(Data!AA:AA,Data!$A:$A,$A28,Data!AA:AA,">="&0)*1000 -> 7.984799997 | J28: =SUMIFS(Data!AG:AG,Data!$A:$A,$A28,Data!AG:AG,">="&0)*1000 -> 6.05089997 | K28: =SUMIFS(Data!AM:AM,Data!$A:$A,$A28,Data!AM:AM,">="&0)*1000 -> 6.454299952 | L28: =SUMIFS(Data!AS:AS,Data!$A:$A,$A28,Data!AS:AS,">="&0)*1000 -> 4.8216 | M28: 0.5761275542 | N28: 39.37404355 | O28: 27.52924607 | P28: 31.9605354 | Q28: 9.843703002 | R28: =Data!$AZ$5 -> 75.3 | S28: =IF(Data!$AZ$2,1,R28) * (1 + E28/F28) -> 23.62300661 | T28: 0.5089936395 | U28: 1.58590491 | V28: 4.523294606
A29: 24 | B29: =SUMIF(Data!$A:$A,$A29,Data!G:G)/ SUMIF(Data!$A:$A,$A29,Data!F:F) -> 0.1518807665 | C29: =SUMIFS(Data!L:L,Data!$A:$A,$A29,Data!L:L,">="&0) -> 23107.5055 | D29: =SUMIFS(Data!M:M,Data!$A:$A,$A29,Data!M:M,">="&0) -> 22982.85978 | E29: =SUMIFS(Data!N:N,Data!$A:$A,$A29,Data!N:N,">="&0)*1000 -> 164.2056995 | F29: =SUMIFS(Data!O:O,Data!$A:$A,$A29,Data!O:O,">="&0)*1000 -> 7.246400098 | G29: =SUMIFS(Data!R:R,Data!$A:$A,$A29,Data!R:R,">="&0) -> 22092.6852 | H29: =SUMIFS(Data!S:S,Data!$A:$A,$A29,Data!S:S,">="&0) -> 21987.15515 | I29: =SUMIFS(Data!AA:AA,Data!$A:$A,$A29,Data!AA:AA,">="&0)*1000 -> 8.03629999 | J29: =SUMIFS(Data!AG:AG,Data!$A:$A,$A29,Data!AG:AG,">="&0)*1000 -> 6.08870012 | K29: =SUMIFS(Data!AM:AM,Data!$A:$A,$A29,Data!AM:AM,">="&0)*1000 -> 6.4826 | L29: =SUMIFS(Data!AS:AS,Data!$A:$A,$A29,Data!AS:AS,">="&0)*1000 -> 4.84370005 | M29: 0.5394165848 | N29: 39.48013935 | O29: 27.59655933 | P29: 31.98712092 | Q29: 9.829148899 | R29: =Data!$AZ$5 -> 75.3 | S29: =IF(Data!$AZ$2,1,R29) * (1 + E29/F29) -> 23.66031371 | T29: 0.4776696361 | U29: 1.460952177 | V29: 4.528574184
A30: 25 | B30: =SUMIF(Data!$A:$A,$A30,Data!G:G)/ SUMIF(Data!$A:$A,$A30,Data!F:F) -> 0.1956117516 | C30: =SUMIFS(Data!L:L,Data!$A:$A,$A30,Data!L:L,">="&0) -> 21341.7305 | D30: =SUMIFS(Data!M:M,Data!$A:$A,$A30,Data!M:M,">="&0) -> 21235.31666 | E30: =SUMIFS(Data!N:N,Data!$A:$A,$A30,Data!N:N,">="&0)*1000 -> 153.133301 | F30: =SUMIFS(Data!O:O,Data!$A:$A,$A30,Data!O:O,">="&0)*1000 -> 6.999500017 | G30: =SUMIFS(Data!R:R,Data!$A:$A,$A30,Data!R:R,">="&0) -> 20369.8032 | H30: =SUMIFS(Data!S:S,Data!$A:$A,$A30,Data!S:S,">="&0) -> 20278.97034 | I30: =SUMIFS(Data!AA:AA,Data!$A:$A,$A30,Data!AA:AA,">="&0)*1000 -> 7.742199998 | J30: =SUMIFS(Data!AG:AG,Data!$A:$A,$A30,Data!AG:AG,">="&0)*1000 -> 5.95020003 | K30: =SUMIFS(Data!AM:AM,Data!$A:$A,$A30,Data!AM:AM,">="&0)*1000 -> 6.4700001 | L30: =SUMIFS(Data!AS:AS,Data!$A:$A,$A30,Data!AS:AS,">="&0)*1000 -> 4.83480011 | M30: 0.4986186242 | N30: 37.78008749 | O30: 26.82118351 | P30: 30.11663405 | Q30: 9.592880334 | R30: =Data!$AZ$5 -> 75.3 | S30: =IF(Data!$AZ$2,1,R30) * (1 + E30/F30) -> 22.8777485 | T30: 0.4459191879 | U30: 1.205644451 | V30: 4.715951067
A31: 26 | B31: =SUMIF(Data!$A:$A,$A31,Data!G:G)/ SUMIF(Data!$A:$A,$A31,Data!F:F) -> 0.1799132948 | C31: =SUMIFS(Data!L:L,Data!$A:$A,$A31,Data!L:L,">="&0) -> 21928.2711 | D31: =SUMIFS(Data!M:M,Data!$A:$A,$A31,Data!M:M,">="&0) -> 21821.58686 | E31: =SUMIFS(Data!N:N,Data!$A:$A,$A31,Data!N:N,">="&0)*1000 -> 158.6437 | F31: =SUMIFS(Data!O:O,Data!$A:$A,$A31,Data!O:O,">="&0)*1000 -> 7.1631 | G31: =SUMIFS(Data!R:R,Data!$A:$A,$A31,Data!R:R,">="&0) -> 20942.2368 | H31: =SUMIFS(Data!S:S,Data!$A:$A,$A31,Data!S:S,">="&0) -> 20851.25173 | I31: =SUMIFS(Data!AA:AA,Data!$A:$A,$A31,Data!AA:AA,">="&0)*1000 -> 7.92410002 | J31: =SUMIFS(Data!AG:AG,Data!$A:$A,$A31,Data!AG:AG,">="&0)*1000 -> 6.0707 | K31: =SUMIFS(Data!AM:AM,Data!$A:$A,$A31,Data!AM:AM,">="&0)*1000 -> 6.58329997 | L31: =SUMIFS(Data!AS:AS,Data!$A:$A,$A31,Data!AS:AS,">="&0)*1000 -> 4.915099996 | M31: 0.4865146208 | N31: 38.03740601 | O31: 26.92722708 | P31: 30.53025219 | Q31: 9.603614519 | R31: =Data!$AZ$5 -> 75.3 | S31: =IF(Data!$AZ$2,1,R31) * (1 + E31/F31) -> 23.1473524 | T31: 0.4344572496 | U31: 1.204990318 | V31: 4.653606092
A32: 27 | B32: =SUMIF(Data!$A:$A,$A32,Data!G:G)/ SUMIF(Data!$A:$A,$A32,Data!F:F) -> 0.3759094584 | C32: =SUMIFS(Data!L:L,Data!$A:$A,$A32,Data!L:L,">="&0) -> 18909.9384 | D32: =SUMIFS(Data!M:M,Data!$A:$A,$A32,Data!M:M,">="&0) -> 18836.6802 | E32: =SUMIFS(Data!N:N,Data!$A:$A,$A32,Data!N:N,">="&0)*1000 -> 134.7331 | F32: =SUMIFS(Data!O:O,Data!$A:$A,$A32,Data!O:O,">="&0)*1000 -> 7.318599992 | G32: =SUMIFS(Data!R:R,Data!$A:$A,$A32,Data!R:R,">="&0) -> 17888.363 | H32: =SUMIFS(Data!S:S,Data!$A:$A,$A32,Data!S:S,">="&0) -> 17824.80532 | I32: =SUMIFS(Data!AA:AA,Data!$A:$A,$A32,Data!AA:AA,">="&0)*1000 -> 8.045300004 | J32: =SUMIFS(Data!AG:AG,Data!$A:$A,$A32,Data!AG:AG,">="&0)*1000 -> 6.49010001 | K32: =SUMIFS(Data!AM:AM,Data!$A:$A,$A32,Data!AM:AM,">="&0)*1000 -> 7.0591999 | L32: =SUMIFS(Data!AS:AS,Data!$A:$A,$A32,Data!AS:AS,">="&0)*1000 -> 5.3215 | M32: 0.387405831 | N32: 35.6747434 | O32: 26.72498174 | P32: 23.96265068 | Q32: 9.032603031 | R32: =Data!$AZ$5 -> 75.3 | S32: =IF(Data!$AZ$2,1,R32) * (1 + E32/F32) -> 19.4096822 | T32: 0.3553018015 | U32: 0.6231290093 | V32: 5.676779379
A33: 28 | B33: =SUMIF(Data!$A:$A,$A33,Data!G:G)/ SUMIF(Data!$A:$A,$A33,Data!F:F) -> 0.5941114616 | C33: =SUMIFS(Data!L:L,Data!$A:$A,$A33,Data!L:L,">="&0) -> 6764.6873 | D33: =SUMIFS(Data!M:M,Data!$A:$A,$A33,Data!M:M,">="&0) -> 6742.795981 | E33: =SUMIFS(Data!N:N,Data!$A:$A,$A33,Data!N:N,">="&0)*1000 -> 50.34789887 | F33: =SUMIFS(Data!O:O,Data!$A:$A,$A33,Data!O:O,">="&0)*1000 -> 3.35590001 | G33: =SUMIFS(Data!R:R,Data!$A:$A,$A33,Data!R:R,">="&0) -> 6307.24209 | H33: =SUMIFS(Data!S:S,Data!$A:$A,$A33,Data!S:S,">="&0) -> 6286.531623 | I33: =SUMIFS(Data!AA:AA,Data!$A:$A,$A33,Data!AA:AA,">="&0)*1000 -> 3.659900004 | J33: =SUMIFS(Data!AG:AG,Data!$A:$A,$A33,Data!AG:AG,">="&0)*1000 -> 3.11339993 | K33: =SUMIFS(Data!AM:AM,Data!$A:$A,$A33,Data!AM:AM,">="&0)*1000 -> 3.35799998 | L33: =SUMIFS(Data!AS:AS,Data!$A:$A,$A33,Data!AS:AS,">="&0)*1000 -> 2.635999995 | M33: 0.3236116856 | N33: 34.18144086 | O33: 26.6121876 | P33: 17.55316009 | Q33: 8.306237702 | R33: =Data!$AZ$5 -> 75.3 | S33: =IF(Data!$AZ$2,1,R33) * (1 + E33/F33) -> 16.00280066 | T33: 0.3283601106 | U33: -0.07598809737 | V33: 7.257807419
A34: 29 | B34: =SUMIF(Data!$A:$A,$A34,Data!G:G)/ SUMIF(Data!$A:$A,$A34,Data!F:F) -> 0.6819620253 | C34: =SUMIFS(Data!L:L,Data!$A:$A,$A34,Data!L:L,">="&0) -> 12084.55353 | D34: =SUMIFS(Data!M:M,Data!$A:$A,$A34,Data!M:M,">="&0) -> 12040.72584 | E34: =SUMIFS(Data!N:N,Data!$A:$A,$A34,Data!N:N,">="&0)*1000 -> 86.8217995 | F34: =SUMIFS(Data!O:O,Data!$A:$A,$A34,Data!O:O,">="&0)*1000 -> 7.508900003 | G34: =SUMIFS(Data!R:R,Data!$A:$A,$A34,Data!R:R,">="&0) -> 11055.7 | H34: =SUMIFS(Data!S:S,Data!$A:$A,$A34,Data!S:S,">="&0) -> 11013.62989 | I34: =SUMIFS(Data!AA:AA,Data!$A:$A,$A34,Data!AA:AA,">="&0)*1000 -> 8.172700076 | J34: =SUMIFS(Data!AG:AG,Data!$A:$A,$A34,Data!AG:AG,">="&0)*1000 -> 7.154800002 | K34: =SUMIFS(Data!AM:AM,Data!$A:$A,$A34,Data!AM:AM,">="&0)*1000 -> 7.7222001 | L34: =SUMIFS(Data!AS:AS,Data!$A:$A,$A34,Data!AS:AS,">="&0)*1000 -> 5.90909997 | M34: 0.3626752771 | N34: 32.48469441 | O34: 26.87055288 | P34: 14.2268138 | Q34: 8.122163628 | R34: =Data!$AZ$5 -> 75.3 | S34: =IF(Data!$AZ$2,1,R34) * (1 + E34/F34) -> 12.56251907 | T34: 0.3805286739 | U34: -0.2242836379 | V34: 9.325680641
A35: 30 | B35: =SUMIF(Data!$A:$A,$A35,Data!G:G)/ SUMIF(Data!$A:$A,$A35,Data!F:F) -> 0.5850307911 | C35: =SUMIFS(Data!L:L,Data!$A:$A,$A35,Data!L:L,">="&0) -> 14430.1744 | D35: =SUMIFS(Data!M:M,Data!$A:$A,$A35,Data!M:M,">="&0) -> 14374.30846 | E35: =SUMIFS(Data!N:N,Data!$A:$A,$A35,Data!N:N,">="&0)*1000 -> 104.2799997 | F35: =SUMIFS(Data!O:O,Data!$A:$A,$A35,Data!O:O,">="&0)*1000 -> 7.455299999 | G35: =SUMIFS(Data!R:R,Data!$A:$A,$A35,Data!R:R,">="&0) -> 13407.69049 | H35: =SUMIFS(Data!S:S,Data!$A:$A,$A35,Data!S:S,">="&0) -> 13355.94896 | I35: =SUMIFS(Data!AA:AA,Data!$A:$A,$A35,Data!AA:AA,">="&0)*1000 -> 8.13289992 | J35: =SUMIFS(Data!AG:AG,Data!$A:$A,$A35,Data!AG:AG,">="&0)*1000 -> 6.9537 | K35: =SUMIFS(Data!AM:AM,Data!$A:$A,$A35,Data!AM:AM,">="&0)*1000 -> 7.572399979 | L35: =SUMIFS(Data!AS:AS,Data!$A:$A,$A35,Data!AS:AS,">="&0)*1000 -> 5.7562 | M35: 0.3871467 | N35: 33.08611357 | O35: 26.59343692 | P35: 16.95787739 | Q35: 8.331590548 | R35: =Data!$AZ$5 -> 75.3 | S35: =IF(Data!$AZ$2,1,R35) * (1 + E35/F35) -> 14.98736466 | T35: 0.3859093767 | U35: 0.01854421611 | V35: 7.624763349
A36: 31 | B36: =SUMIF(Data!$A:$A,$A36,Data!G:G)/ SUMIF(Data!$A:$A,$A36,Data!F:F) -> 0.5236254296 | C36: =SUMIFS(Data!L:L,Data!$A:$A,$A36,Data!L:L,">="&0) -> 16331.6878 | D36: =SUMIFS(Data!M:M,Data!$A:$A,$A36,Data!M:M,">="&0) -> 16273.48606 | E36: =SUMIFS(Data!N:N,Data!$A:$A,$A36,Data!N:N,">="&0)*1000 -> 117.3427 | F36: =SUMIFS(Data!O:O,Data!$A:$A,$A36,Data!O:O,">="&0)*1000 -> 7.931499999 | G36: =SUMIFS(Data!R:R,Data!$A:$A,$A36,Data!R:R,">="&0) -> 15237.0097 | H36: =SUMIFS(Data!S:S,Data!$A:$A,$A36,Data!S:S,">="&0) -> 15183.88711 | I36: =SUMIFS(Data!AA:AA,Data!$A:$A,$A36,Data!AA:AA,">="&0)*1000 -> 8.6648 | J36: =SUMIFS(Data!AG:AG,Data!$A:$A,$A36,Data!AG:AG,">="&0)*1000 -> 7.3174 | K36: =SUMIFS(Data!AM:AM,Data!$A:$A,$A36,Data!AM:AM,">="&0)*1000 -> 7.95979997 | L36: =SUMIFS(Data!AS:AS,Data!$A:$A,$A36,Data!AS:AS,">="&0)*1000 -> 6.053300042 | M36: 0.3563730566 | N36: 33.69787599 | O36: 26.63047472 | P36: 18.41364419 | Q36: 8.462976653 | R36: =Data!$AZ$5 -> 75.3 | S36: =IF(Data!$AZ$2,1,R36) * (1 + E36/F36) -> 15.79451554 | T36: 0.3486418467 | U36: 0.1221107142 | V36: 7.176021194
A37: 32 | B37: =SUMIF(Data!$A:$A,$A37,Data!G:G)/ SUMIF(Data!$A:$A,$A37,Data!F:F) -> 0.9989528796 | C37: =SUMIFS(Data!L:L,Data!$A:$A,$A37,Data!L:L,">="&0) -> 4614.73378 | D37: =SUMIFS(Data!M:M,Data!$A:$A,$A37,Data!M:M,">="&0) -> 4580.456058 | E37: =SUMIFS(Data!N:N,Data!$A:$A,$A37,Data!N:N,">="&0)*1000 -> 34.25759999 | F37: =SUMIFS(Data!O:O,Data!$A:$A,$A37,Data!O:O,">="&0)*1000 -> 4.839099998 | G37: =SUMIFS(Data!R:R,Data!$A:$A,$A37,Data!R:R,">="&0) -> 3961.60974 | H37: =SUMIFS(Data!S:S,Data!$A:$A,$A37,Data!S:S,">="&0) -> 3927.403309 | I37: =SUMIFS(Data!AA:AA,Data!$A:$A,$A37,Data!AA:AA,">="&0)*1000 -> 5.237800002 | J37: =SUMIFS(Data!AG:AG,Data!$A:$A,$A37,Data!AG:AG,">="&0)*1000 -> 4.82099998 | K37: =SUMIFS(Data!AM:AM,Data!$A:$A,$A37,Data!AM:AM,">="&0)*1000 -> 5.2238 | L37: =SUMIFS(Data!AS:AS,Data!$A:$A,$A37,Data!AS:AS,">="&0)*1000 -> 4.030899988 | M37: 0.742788727 | N37: 30.11736107 | O37: 26.62335472 | P37: 8.645509723 | Q37: 7.611974567 | R37: =Data!$AZ$5 -> 75.3 | S37: =IF(Data!$AZ$2,1,R37) * (1 + E37/F37) -> 8.079332935 | T37: 0.8634477711 | U37: -0.9748445887 | V37: 16.62810507
A38: 33 | B38: =SUMIF(Data!$A:$A,$A38,Data!G:G)/ SUMIF(Data!$A:$A,$A38,Data!F:F) -> 0.926183844 | C38: =SUMIFS(Data!L:L,Data!$A:$A,$A38,Data!L:L,">="&0) -> 7624.49928 | D38: =SUMIFS(Data!M:M,Data!$A:$A,$A38,Data!M:M,">="&0) -> 7579.844376 | E38: =SUMIFS(Data!N:N,Data!$A:$A,$A38,Data!N:N,">="&0)*1000 -> 53.74329999 | F38: =SUMIFS(Data!O:O,Data!$A:$A,$A38,Data!O:O,">="&0)*1000 -> 6.987700029 | G38: =SUMIFS(Data!R:R,Data!$A:$A,$A38,Data!R:R,">="&0) -> 6658.93767 | H38: =SUMIFS(Data!S:S,Data!$A:$A,$A38,Data!S:S,">="&0) -> 6614.109228 | I38: =SUMIFS(Data!AA:AA,Data!$A:$A,$A38,Data!AA:AA,">="&0)*1000 -> 7.57160002 | J38: =SUMIFS(Data!AG:AG,Data!$A:$A,$A38,Data!AG:AG,">="&0)*1000 -> 6.9103998 | K38: =SUMIFS(Data!AM:AM,Data!$A:$A,$A38,Data!AM:AM,">="&0)*1000 -> 7.4294 | L38: =SUMIFS(Data!AS:AS,Data!$A:$A,$A38,Data!AS:AS,">="&0)*1000 -> 5.716299979 | M38: 0.5856765456 | N38: 30.83007424 | O38: 26.9704034 | P38: 9.568190541 | Q38: 7.711712048 | R38: =Data!$AZ$5 -> 75.3 | S38: =IF(Data!$AZ$2,1,R38) * (1 + E38/F38) -> 8.691128664 | T38: 0.6732071123 | U38: -0.7607394178 | V38: 14.60113697
A39: 34 | B39: =SUMIF(Data!$A:$A,$A39,Data!G:G)/ SUMIF(Data!$A:$A,$A39,Data!F:F) -> 0.9256373938 | C39: =SUMIFS(Data!L:L,Data!$A:$A,$A39,Data!L:L,">="&0) -> 7557.9045 | D39: =SUMIFS(Data!M:M,Data!$A:$A,$A39,Data!M:M,">="&0) -> 7521.190551 | E39: =SUMIFS(Data!N:N,Data!$A:$A,$A39,Data!N:N,">="&0)*1000 -> 54.073 | F39: =SUMIFS(Data!O:O,Data!$A:$A,$A39,Data!O:O,">="&0)*1000 -> 6.76790009 | G39: =SUMIFS(Data!R:R,Data!$A:$A,$A39,Data!R:R,">="&0) -> 6632.0006 | H39: =SUMIFS(Data!S:S,Data!$A:$A,$A39,Data!S:S,">="&0) -> 6595.114153 | I39: =SUMIFS(Data!AA:AA,Data!$A:$A,$A39,Data!AA:AA,">="&0)*1000 -> 7.3328 | J39: =SUMIFS(Data!AG:AG,Data!$A:$A,$A39,Data!AG:AG,">="&0)*1000 -> 6.68139991 | K39: =SUMIFS(Data!AM:AM,Data!$A:$A,$A39,Data!AM:AM,">="&0)*1000 -> 7.2035 | L39: =SUMIFS(Data!AS:AS,Data!$A:$A,$A39,Data!AS:AS,">="&0)*1000 -> 5.53749996 | M39: 0.4857688993 | N39: 30.77611043 | O39: 26.86614599 | P39: 9.749455186 | Q39: 7.703740863 | R39: =Data!$AZ$5 -> 75.3 | S39: =IF(Data!$AZ$2,1,R39) * (1 + E39/F39) -> 8.9896274 | T39: 0.5561888309 | U39: -0.6330489463 | V39: 14.04185546
A40: 35 | B40: =SUMIF(Data!$A:$A,$A40,Data!G:G)/ SUMIF(Data!$A:$A,$A40,Data!F:F) -> 0.2981959675 | C40: =SUMIFS(Data!L:L,Data!$A:$A,$A40,Data!L:L,">="&0) -> 21257.8749 | D40: =SUMIFS(Data!M:M,Data!$A:$A,$A40,Data!M:M,">="&0) -> 21183.81469 | E40: =SUMIFS(Data!N:N,Data!$A:$A,$A40,Data!N:N,">="&0)*1000 -> 155.4667 | F40: =SUMIFS(Data!O:O,Data!$A:$A,$A40,Data!O:O,">="&0)*1000 -> 7.93279997 | G40: =SUMIFS(Data!R:R,Data!$A:$A,$A40,Data!R:R,">="&0) -> 20176.5587 | H40: =SUMIFS(Data!S:S,Data!$A:$A,$A40,Data!S:S,">="&0) -> 20112.1848 | I40: =SUMIFS(Data!AA:AA,Data!$A:$A,$A40,Data!AA:AA,">="&0)*1000 -> 8.71819988 | J40: =SUMIFS(Data!AG:AG,Data!$A:$A,$A40,Data!AG:AG,">="&0)*1000 -> 6.94829988 | K40: =SUMIFS(Data!AM:AM,Data!$A:$A,$A40,Data!AM:AM,">="&0)*1000 -> 7.647899975 | L40: =SUMIFS(Data!AS:AS,Data!$A:$A,$A40,Data!AS:AS,">="&0)*1000 -> 5.73080012 | M40: 0.3483895373 | N40: 35.58291162 | O40: 26.35073732 | P40: 25.47241815 | Q40: 9.008739428 | R40: =Data!$AZ$5 -> 75.3 | S40: =IF(Data!$AZ$2,1,R40) * (1 + E40/F40) -> 20.59796044 | T40: 0.3190529364 | U40: 0.604274144 | V40: 5.328261956
A41: 36 | B41: =SUMIF(Data!$A:$A,$A41,Data!G:G)/ SUMIF(Data!$A:$A,$A41,Data!F:F) -> 0.5535841022 | C41: =SUMIFS(Data!L:L,Data!$A:$A,$A41,Data!L:L,">="&0) -> 10048.2523 | D41: =SUMIFS(Data!M:M,Data!$A:$A,$A41,Data!M:M,">="&0) -> 10012.27999 | E41: =SUMIFS(Data!N:N,Data!$A:$A,$A41,Data!N:N,">="&0)*1000 -> 75.5670001 | F41: =SUMIFS(Data!O:O,Data!$A:$A,$A41,Data!O:O,">="&0)*1000 -> 4.568000014 | G41: =SUMIFS(Data!R:R,Data!$A:$A,$A41,Data!R:R,">="&0) -> 9430.5114 | H41: =SUMIFS(Data!S:S,Data!$A:$A,$A41,Data!S:S,">="&0) -> 9396.30958 | I41: =SUMIFS(Data!AA:AA,Data!$A:$A,$A41,Data!AA:AA,">="&0)*1000 -> 4.9824 | J41: =SUMIFS(Data!AG:AG,Data!$A:$A,$A41,Data!AG:AG,">="&0)*1000 -> 4.18910002 | K41: =SUMIFS(Data!AM:AM,Data!$A:$A,$A41,Data!AM:AM,">="&0)*1000 -> 4.6188 | L41: =SUMIFS(Data!AS:AS,Data!$A:$A,$A41,Data!AS:AS,">="&0)*1000 -> 3.5793 | M41: 0.3579956885 | N41: 33.4978355 | O41: 25.86628206 | P41: 18.93724132 | Q41: 8.317276533 | R41: =Data!$AZ$5 -> 75.3 | S41: =IF(Data!$AZ$2,1,R41) * (1 + E41/F41) -> 17.54268824 | T41: 0.3626719544 | U41: -0.08203427463 | V41: 6.555450358
A42: 37 | B42: =SUMIF(Data!$A:$A,$A42,Data!G:G)/ SUMIF(Data!$A:$A,$A42,Data!F:F) -> 0.42 | C42: =SUMIFS(Data!L:L,Data!$A:$A,$A42,Data!L:L,">="&0) -> 19421.4076 | D42: =SUMIFS(Data!M:M,Data!$A:$A,$A42,Data!M:M,">="&0) -> 19349.47162 | E42: =SUMIFS(Data!N:N,Data!$A:$A,$A42,Data!N:N,">="&0)*1000 -> 140.3020999 | F42: =SUMIFS(Data!O:O,Data!$A:$A,$A42,Data!O:O,">="&0)*1000 -> 8.70450015 | G42: =SUMIFS(Data!R:R,Data!$A:$A,$A42,Data!R:R,">="&0) -> 18223.30116 | H42: =SUMIFS(Data!S:S,Data!$A:$A,$A42,Data!S:S,">="&0) -> 18160.27498 | I42: =SUMIFS(Data!AA:AA,Data!$A:$A,$A42,Data!AA:AA,">="&0)*1000 -> 9.5415 | J42: =SUMIFS(Data!AG:AG,Data!$A:$A,$A42,Data!AG:AG,">="&0)*1000 -> 7.8870999 | K42: =SUMIFS(Data!AM:AM,Data!$A:$A,$A42,Data!AM:AM,">="&0)*1000 -> 8.64539998 | L42: =SUMIFS(Data!AS:AS,Data!$A:$A,$A42,Data!AS:AS,">="&0)*1000 -> 6.524100004 | M42: 0.3703952951 | N42: 34.22429656 | O42: 26.42530482 | P42: 20.97602567 | Q42: 8.772204056 | R42: =Data!$AZ$5 -> 75.3 | S42: =IF(Data!$AZ$2,1,R42) * (1 + E42/F42) -> 17.1183408 | T42: 0.3458549 | U42: 0.4200908476 | V42: 6.548340492
A43: 38 | B43: =SUMIF(Data!$A:$A,$A43,Data!G:G)/ SUMIF(Data!$A:$A,$A43,Data!F:F) -> 0.7417551705 | C43: =SUMIFS(Data!L:L,Data!$A:$A,$A43,Data!L:L,">="&0) -> 11237.4105 | D43: =SUMIFS(Data!M:M,Data!$A:$A,$A43,Data!M:M,">="&0) -> 11199.43362 | E43: =SUMIFS(Data!N:N,Data!$A:$A,$A43,Data!N:N,">="&0)*1000 -> 80.8981997 | F43: =SUMIFS(Data!O:O,Data!$A:$A,$A43,Data!O:O,">="&0)*1000 -> 7.26589985 | G43: =SUMIFS(Data!R:R,Data!$A:$A,$A43,Data!R:R,">="&0) -> 10236.3147 | H43: =SUMIFS(Data!S:S,Data!$A:$A,$A43,Data!S:S,">="&0) -> 10199.32027 | I43: =SUMIFS(Data!AA:AA,Data!$A:$A,$A43,Data!AA:AA,">="&0)*1000 -> 7.8887 | J43: =SUMIFS(Data!AG:AG,Data!$A:$A,$A43,Data!AG:AG,">="&0)*1000 -> 6.966400104 | K43: =SUMIFS(Data!AM:AM,Data!$A:$A,$A43,Data!AM:AM,">="&0)*1000 -> 7.4993 | L43: =SUMIFS(Data!AS:AS,Data!$A:$A,$A43,Data!AS:AS,">="&0)*1000 -> 5.7495 | M43: 0.3379504736 | N43: 32.22539719 | O43: 26.95450968 | P43: 13.23926106 | Q43: 7.89483882 | R43: =Data!$AZ$5 -> 75.3 | S43: =IF(Data!$AZ$2,1,R43) * (1 + E43/F43) -> 12.13395469 | T43: 0.361403797 | U43: -0.2845815641 | V43: 9.805686276
A44: 39 | B44: =SUMIF(Data!$A:$A,$A44,Data!G:G)/ SUMIF(Data!$A:$A,$A44,Data!F:F) -> 0.2071187481 | C44: =SUMIFS(Data!L:L,Data!$A:$A,$A44,Data!L:L,">="&0) -> 24990.3845 | D44: =SUMIFS(Data!M:M,Data!$A:$A,$A44,Data!M:M,">="&0) -> 24881.74504 | E44: =SUMIFS(Data!N:N,Data!$A:$A,$A44,Data!N:N,">="&0)*1000 -> 183.324001 | F44: =SUMIFS(Data!O:O,Data!$A:$A,$A44,Data!O:O,">="&0)*1000 -> 8.3905999 | G44: =SUMIFS(Data!R:R,Data!$A:$A,$A44,Data!R:R,">="&0) -> 23848.5843 | H44: =SUMIFS(Data!S:S,Data!$A:$A,$A44,Data!S:S,">="&0) -> 23752.45234 | I44: =SUMIFS(Data!AA:AA,Data!$A:$A,$A44,Data!AA:AA,">="&0)*1000 -> 9.2550001 | J44: =SUMIFS(Data!AG:AG,Data!$A:$A,$A44,Data!AG:AG,">="&0)*1000 -> 7.1529 | K44: =SUMIFS(Data!AM:AM,Data!$A:$A,$A44,Data!AM:AM,">="&0)*1000 -> 7.94529977 | L44: =SUMIFS(Data!AS:AS,Data!$A:$A,$A44,Data!AS:AS,">="&0)*1000 -> 5.91979997 | M44: 0.4347250439 | N44: 36.46606003 | O44: 26.08788029 | P44: 29.38808176 | Q44: 9.339818376 | R44: =Data!$AZ$5 -> 75.3 | S44: =IF(Data!$AZ$2,1,R44) * (1 + E44/F44) -> 22.84873587 | T44: 0.4030929417 | U44: 0.72275355 | V44: 4.754425707
A45: 40 | B45: =SUMIF(Data!$A:$A,$A45,Data!G:G)/ SUMIF(Data!$A:$A,$A45,Data!F:F) -> 1 | C45: =SUMIFS(Data!L:L,Data!$A:$A,$A45,Data!L:L,">="&0) -> 1420.2445 | D45: =SUMIFS(Data!M:M,Data!$A:$A,$A45,Data!M:M,">="&0) -> 1411.967463 | E45: =SUMIFS(Data!N:N,Data!$A:$A,$A45,Data!N:N,">="&0)*1000 -> 13.0069 | F45: =SUMIFS(Data!O:O,Data!$A:$A,$A45,Data!O:O,">="&0)*1000 -> 1.8265 | G45: =SUMIFS(Data!R:R,Data!$A:$A,$A45,Data!R:R,">="&0) -> 1183.2785 | H45: =SUMIFS(Data!S:S,Data!$A:$A,$A45,Data!S:S,">="&0) -> 1175.797118 | I45: =SUMIFS(Data!AA:AA,Data!$A:$A,$A45,Data!AA:AA,">="&0)*1000 -> 1.97720002 | J45: =SUMIFS(Data!AG:AG,Data!$A:$A,$A45,Data!AG:AG,">="&0)*1000 -> 1.817800001 | K45: =SUMIFS(Data!AM:AM,Data!$A:$A,$A45,Data!AM:AM,">="&0)*1000 -> 1.950300024 | L45: =SUMIFS(Data!AS:AS,Data!$A:$A,$A45,Data!AS:AS,">="&0)*1000 -> 1.498099998 | M45: 0.5827896252 | N45: 30.5948694 | O45: 27.06988024 | P45: 8.768842497 | Q45: 7.621890475 | R45: =Data!$AZ$5 -> 75.3 | S45: =IF(Data!$AZ$2,1,R45) * (1 + E45/F45) -> 8.121215439 | T45: 0.6322587371 | U45: -0.4017493151 | V45: 20.08597748
A46: 41 | B46: =SUMIF(Data!$A:$A,$A46,Data!G:G)/ SUMIF(Data!$A:$A,$A46,Data!F:F) -> 0.296237749 | C46: =SUMIFS(Data!L:L,Data!$A:$A,$A46,Data!L:L,">="&0) -> 23681.4645 | D46: =SUMIFS(Data!M:M,Data!$A:$A,$A46,Data!M:M,">="&0) -> 23588.72434 | E46: =SUMIFS(Data!N:N,Data!$A:$A,$A46,Data!N:N,">="&0)*1000 -> 170.8965 | F46: =SUMIFS(Data!O:O,Data!$A:$A,$A46,Data!O:O,">="&0)*1000 -> 8.94939999 | G46: =SUMIFS(Data!R:R,Data!$A:$A,$A46,Data!R:R,">="&0) -> 22448.6754 | H46: =SUMIFS(Data!S:S,Data!$A:$A,$A46,Data!S:S,">="&0) -> 22367.11055 | I46: =SUMIFS(Data!AA:AA,Data!$A:$A,$A46,Data!AA:AA,">="&0)*1000 -> 9.8359 | J46: =SUMIFS(Data!AG:AG,Data!$A:$A,$A46,Data!AG:AG,">="&0)*1000 -> 7.84129997 | K46: =SUMIFS(Data!AM:AM,Data!$A:$A,$A46,Data!AM:AM,">="&0)*1000 -> 8.5993 | L46: =SUMIFS(Data!AS:AS,Data!$A:$A,$A46,Data!AS:AS,">="&0)*1000 -> 6.424700035 | M46: 0.3916149696 | N46: 35.68656314 | O46: 26.51430129 | P46: 25.43710912 | Q46: 9.012901819 | R46: =Data!$AZ$5 -> 75.3 | S46: =IF(Data!$AZ$2,1,R46) * (1 + E46/F46) -> 20.0958612 | T46: 0.3633392552 | U46: 0.5682248317 | V46: 5.46165222
A47: 42 | B47: =SUMIF(Data!$A:$A,$A47,Data!G:G)/ SUMIF(Data!$A:$A,$A47,Data!F:F) -> 0.2048192771 | C47: =SUMIFS(Data!L:L,Data!$A:$A,$A47,Data!L:L,">="&0) -> 26307.5622 | D47: =SUMIFS(Data!M:M,Data!$A:$A,$A47,Data!M:M,">="&0) -> 26192.3985 | E47: =SUMIFS(Data!N:N,Data!$A:$A,$A47,Data!N:N,">="&0)*1000 -> 191.5856 | F47: =SUMIFS(Data!O:O,Data!$A:$A,$A47,Data!O:O,">="&0)*1000 -> 8.8679 | G47: =SUMIFS(Data!R:R,Data!$A:$A,$A47,Data!R:R,">="&0) -> 25097.0104 | H47: =SUMIFS(Data!S:S,Data!$A:$A,$A47,Data!S:S,">="&0) -> 24995.07874 | I47: =SUMIFS(Data!AA:AA,Data!$A:$A,$A47,Data!AA:AA,">="&0)*1000 -> 9.76950012 | J47: =SUMIFS(Data!AG:AG,Data!$A:$A,$A47,Data!AG:AG,">="&0)*1000 -> 7.5497 | K47: =SUMIFS(Data!AM:AM,Data!$A:$A,$A47,Data!AM:AM,">="&0)*1000 -> 8.28129999 | L47: =SUMIFS(Data!AS:AS,Data!$A:$A,$A47,Data!AS:AS,">="&0)*1000 -> 6.1676 | M47: 0.4377589194 | N47: 37.04073491 | O47: 26.53877091 | P47: 29.4024944 | Q47: 9.228723158 | R47: =Data!$AZ$5 -> 75.3 | S47: =IF(Data!$AZ$2,1,R47) * (1 + E47/F47) -> 22.60439337 | T47: 0.4061506067 | U47: 0.7144867338 | V47: 4.790221997
A48: 43 | B48: =SUMIF(Data!$A:$A,$A48,Data!G:G)/ SUMIF(Data!$A:$A,$A48,Data!F:F) -> 0.5153571429 | C48: =SUMIFS(Data!L:L,Data!$A:$A,$A48,Data!L:L,">="&0) -> 19620.8341 | D48: =SUMIFS(Data!M:M,Data!$A:$A,$A48,Data!M:M,">="&0) -> 19554.88767 | E48: =SUMIFS(Data!N:N,Data!$A:$A,$A48,Data!N:N,">="&0)*1000 -> 137.439501 | F48: =SUMIFS(Data!O:O,Data!$A:$A,$A48,Data!O:O,">="&0)*1000 -> 9.8383001 | G48: =SUMIFS(Data!R:R,Data!$A:$A,$A48,Data!R:R,">="&0) -> 18237.1532 | H48: =SUMIFS(Data!S:S,Data!$A:$A,$A48,Data!S:S,">="&0) -> 18177.62313 | I48: =SUMIFS(Data!AA:AA,Data!$A:$A,$A48,Data!AA:AA,">="&0)*1000 -> 10.7454999 | J48: =SUMIFS(Data!AG:AG,Data!$A:$A,$A48,Data!AG:AG,">="&0)*1000 -> 9.09369998 | K48: =SUMIFS(Data!AM:AM,Data!$A:$A,$A48,Data!AM:AM,">="&0)*1000 -> 9.7787 | L48: =SUMIFS(Data!AS:AS,Data!$A:$A,$A48,Data!AS:AS,">="&0)*1000 -> 7.4208 | M48: 0.3361041109 | N48: 34.10025828 | O48: 27.09487247 | P48: 18.16422274 | Q48: 8.442602098 | R48: =Data!$AZ$5 -> 75.3 | S48: =IF(Data!$AZ$2,1,R48) * (1 + E48/F48) -> 14.96984231 | T48: 0.326421944 | U48: 0.144940512 | V48: 7.576703126
A49: 44 | B49: =SUMIF(Data!$A:$A,$A49,Data!G:G)/ SUMIF(Data!$A:$A,$A49,Data!F:F) -> 0.6900038895 | C49: =SUMIFS(Data!L:L,Data!$A:$A,$A49,Data!L:L,">="&0) -> 16902.9529 | D49: =SUMIFS(Data!M:M,Data!$A:$A,$A49,Data!M:M,">="&0) -> 16842.12807 | E49: =SUMIFS(Data!N:N,Data!$A:$A,$A49,Data!N:N,">="&0)*1000 -> 117.9669 | F49: =SUMIFS(Data!O:O,Data!$A:$A,$A49,Data!O:O,">="&0)*1000 -> 10.2865001 | G49: =SUMIFS(Data!R:R,Data!$A:$A,$A49,Data!R:R,">="&0) -> 15459.9498 | H49: =SUMIFS(Data!S:S,Data!$A:$A,$A49,Data!S:S,">="&0) -> 15400.65438 | I49: =SUMIFS(Data!AA:AA,Data!$A:$A,$A49,Data!AA:AA,">="&0)*1000 -> 11.2021999 | J49: =SUMIFS(Data!AG:AG,Data!$A:$A,$A49,Data!AG:AG,">="&0)*1000 -> 9.7759999 | K49: =SUMIFS(Data!AM:AM,Data!$A:$A,$A49,Data!AM:AM,">="&0)*1000 -> 10.4553 | L49: =SUMIFS(Data!AS:AS,Data!$A:$A,$A49,Data!AS:AS,">="&0)*1000 -> 8.0139001 | M49: 0.3598473613 | N49: 33.05930995 | O49: 27.21757955 | P49: 14.58878902 | Q49: 8.174285481 | R49: =Data!$AZ$5 -> 75.3 | S49: =IF(Data!$AZ$2,1,R49) * (1 + E49/F49) -> 12.46812802 | T49: 0.3835421251 | U49: -0.2954293477 | V49: 9.359821047
A50: 45 | B50: =SUMIF(Data!$A:$A,$A50,Data!G:G)/ SUMIF(Data!$A:$A,$A50,Data!F:F) -> 0.9407294833 | C50: =SUMIFS(Data!L:L,Data!$A:$A,$A50,Data!L:L,">="&0) -> 7283.38634 | D50: =SUMIFS(Data!M:M,Data!$A:$A,$A50,Data!M:M,">="&0) -> 7236.999162 | E50: =SUMIFS(Data!N:N,Data!$A:$A,$A50,Data!N:N,">="&0)*1000 -> 50.51909932 | F50: =SUMIFS(Data!O:O,Data!$A:$A,$A50,Data!O:O,">="&0)*1000 -> 6.4377 | G50: =SUMIFS(Data!R:R,Data!$A:$A,$A50,Data!R:R,">="&0) -> 6368.6617 | H50: =SUMIFS(Data!S:S,Data!$A:$A,$A50,Data!S:S,">="&0) -> 6323.87904 | I50: =SUMIFS(Data!AA:AA,Data!$A:$A,$A50,Data!AA:AA,">="&0)*1000 -> 6.977900004 | J50: =SUMIFS(Data!AG:AG,Data!$A:$A,$A50,Data!AG:AG,">="&0)*1000 -> 6.349600039 | K50: =SUMIFS(Data!AM:AM,Data!$A:$A,$A50,Data!AM:AM,">="&0)*1000 -> 6.7438 | L50: =SUMIFS(Data!AS:AS,Data!$A:$A,$A50,Data!AS:AS,">="&0)*1000 -> 5.1882 | M50: 0.6368902532 | N50: 31.5048856 | O50: 27.4659298 | P50: 9.895110891 | Q50: 7.741584197 | R50: =Data!$AZ$5 -> 75.3 | S50: =IF(Data!$AZ$2,1,R50) * (1 + E50/F50) -> 8.847383277 | T50: 0.7031722222 | U50: -0.5864219843 | V50: 14.4392408
A51: 46 | B51: =SUMIF(Data!$A:$A,$A51,Data!G:G)/ SUMIF(Data!$A:$A,$A51,Data!F:F) -> 0.4851337958 | C51: =SUMIFS(Data!L:L,Data!$A:$A,$A51,Data!L:L,">="&0) -> 12044.0661 | D51: =SUMIFS(Data!M:M,Data!$A:$A,$A51,Data!M:M,">="&0) -> 11990.1666 | E51: =SUMIFS(Data!N:N,Data!$A:$A,$A51,Data!N:N,">="&0)*1000 -> 84.8327003 | F51: =SUMIFS(Data!O:O,Data!$A:$A,$A51,Data!O:O,">="&0)*1000 -> 7.36790001 | G51: =SUMIFS(Data!R:R,Data!$A:$A,$A51,Data!R:R,">="&0) -> 11025.1172 | H51: =SUMIFS(Data!S:S,Data!$A:$A,$A51,Data!S:S,">="&0) -> 10977.99332 | I51: =SUMIFS(Data!AA:AA,Data!$A:$A,$A51,Data!AA:AA,">="&0)*1000 -> 8.04529998 | J51: =SUMIFS(Data!AG:AG,Data!$A:$A,$A51,Data!AG:AG,">="&0)*1000 -> 6.917700122 | K51: =SUMIFS(Data!AM:AM,Data!$A:$A,$A51,Data!AM:AM,">="&0)*1000 -> 7.5098 | L51: =SUMIFS(Data!AS:AS,Data!$A:$A,$A51,Data!AS:AS,">="&0)*1000 -> 5.5134999 | M51: 0.4475191522 | N51: 32.68246232 | O51: 27.03401368 | P51: 16.30021305 | Q51: 8.419822402 | R51: =Data!$AZ$5 -> 75.3 | S51: =IF(Data!$AZ$2,1,R51) * (1 + E51/F51) -> 12.5138235 | T51: 0.4274229339 | U51: 0.251480529 | V51: 9.220020885
A52: 47 | B52: =SUMIF(Data!$A:$A,$A52,Data!G:G)/ SUMIF(Data!$A:$A,$A52,Data!F:F) -> 0.5441676104 | C52: =SUMIFS(Data!L:L,Data!$A:$A,$A52,Data!L:L,">="&0) -> 12946.24312 | D52: =SUMIFS(Data!M:M,Data!$A:$A,$A52,Data!M:M,">="&0) -> 12892.16251 | E52: =SUMIFS(Data!N:N,Data!$A:$A,$A52,Data!N:N,">="&0)*1000 -> 93.1010992 | F52: =SUMIFS(Data!O:O,Data!$A:$A,$A52,Data!O:O,">="&0)*1000 -> 5.82020005 | G52: =SUMIFS(Data!R:R,Data!$A:$A,$A52,Data!R:R,">="&0) -> 12139.7061 | H52: =SUMIFS(Data!S:S,Data!$A:$A,$A52,Data!S:S,">="&0) -> 12088.09809 | I52: =SUMIFS(Data!AA:AA,Data!$A:$A,$A52,Data!AA:AA,">="&0)*1000 -> 6.3358999 | J52: =SUMIFS(Data!AG:AG,Data!$A:$A,$A52,Data!AG:AG,">="&0)*1000 -> 5.31050002 | K52: =SUMIFS(Data!AM:AM,Data!$A:$A,$A52,Data!AM:AM,">="&0)*1000 -> 5.73470003 | L52: =SUMIFS(Data!AS:AS,Data!$A:$A,$A52,Data!AS:AS,">="&0)*1000 -> 4.42770001 | M52: 0.4177320748 | N52: 34.59984591 | O52: 26.75439936 | P52: 19.30891397 | Q52: 8.139330768 | R52: =Data!$AZ$5 -> 75.3 | S52: =IF(Data!$AZ$2,1,R52) * (1 + E52/F52) -> 16.9962026 | T52: 0.4251174911 | U52: -0.1255240311 | V52: 6.651703339
A53: 48 | B53: =SUMIF(Data!$A:$A,$A53,Data!G:G)/ SUMIF(Data!$A:$A,$A53,Data!F:F) -> 0.1647368421 | C53: =SUMIFS(Data!L:L,Data!$A:$A,$A53,Data!L:L,">="&0) -> 31194.8263 | D53: =SUMIFS(Data!M:M,Data!$A:$A,$A53,Data!M:M,">="&0) -> 31030.37632 | E53: =SUMIFS(Data!N:N,Data!$A:$A,$A53,Data!N:N,">="&0)*1000 -> 217.2769 | F53: =SUMIFS(Data!O:O,Data!$A:$A,$A53,Data!O:O,">="&0)*1000 -> 9.7109999 | G53: =SUMIFS(Data!R:R,Data!$A:$A,$A53,Data!R:R,">="&0) -> 29815.6558 | H53: =SUMIFS(Data!S:S,Data!$A:$A,$A53,Data!S:S,">="&0) -> 29667.8536 | I53: =SUMIFS(Data!AA:AA,Data!$A:$A,$A53,Data!AA:AA,">="&0)*1000 -> 10.67130023 | J53: =SUMIFS(Data!AG:AG,Data!$A:$A,$A53,Data!AG:AG,">="&0)*1000 -> 8.1563 | K53: =SUMIFS(Data!AM:AM,Data!$A:$A,$A53,Data!AM:AM,">="&0)*1000 -> 8.8669 | L53: =SUMIFS(Data!AS:AS,Data!$A:$A,$A53,Data!AS:AS,">="&0)*1000 -> 6.60010003 | M53: 0.5271706866 | N53: 37.96012111 | O53: 26.86518436 | P53: 30.83506283 | Q53: 8.9989065 | R53: =Data!$AZ$5 -> 75.3 | S53: =IF(Data!$AZ$2,1,R53) * (1 + E53/F53) -> 23.37430772 | T53: 0.4957201042 | U53: 0.7351355917 | V53: 4.592589469
A54: 49 | B54: =SUMIF(Data!$A:$A,$A54,Data!G:G)/ SUMIF(Data!$A:$A,$A54,Data!F:F) -> 0.4254534276 | C54: =SUMIFS(Data!L:L,Data!$A:$A,$A54,Data!L:L,">="&0) -> 24515.8547 | D54: =SUMIFS(Data!M:M,Data!$A:$A,$A54,Data!M:M,">="&0) -> 24421.19305 | E54: =SUMIFS(Data!N:N,Data!$A:$A,$A54,Data!N:N,">="&0)*1000 -> 169.8483 | F54: =SUMIFS(Data!O:O,Data!$A:$A,$A54,Data!O:O,">="&0)*1000 -> 10.3158 | G54: =SUMIFS(Data!R:R,Data!$A:$A,$A54,Data!R:R,">="&0) -> 23048.4125 | H54: =SUMIFS(Data!S:S,Data!$A:$A,$A54,Data!S:S,">="&0) -> 22961.90705 | I54: =SUMIFS(Data!AA:AA,Data!$A:$A,$A54,Data!AA:AA,">="&0)*1000 -> 11.26980015 | J54: =SUMIFS(Data!AG:AG,Data!$A:$A,$A54,Data!AG:AG,">="&0)*1000 -> 9.26519988 | K54: =SUMIFS(Data!AM:AM,Data!$A:$A,$A54,Data!AM:AM,">="&0)*1000 -> 9.93690003 | L54: =SUMIFS(Data!AS:AS,Data!$A:$A,$A54,Data!AS:AS,">="&0)*1000 -> 7.4972001 | M54: 0.3861242088 | N54: 35.46337729 | O54: 27.24679194 | P54: 21.63580167 | Q54: 8.46510264 | R54: =Data!$AZ$5 -> 75.3 | S54: =IF(Data!$AZ$2,1,R54) * (1 + E54/F54) -> 17.46486942 | T54: 0.375320643 | U54: 0.1886828664 | V54: 6.355247397
A55: 50 | B55: =SUMIF(Data!$A:$A,$A55,Data!G:G)/ SUMIF(Data!$A:$A,$A55,Data!F:F) -> 0.3078664403 | C55: =SUMIFS(Data!L:L,Data!$A:$A,$A55,Data!L:L,">="&0) -> 26725.001 | D55: =SUMIFS(Data!M:M,Data!$A:$A,$A55,Data!M:M,">="&0) -> 26610.8071 | E55: =SUMIFS(Data!N:N,Data!$A:$A,$A55,Data!N:N,">="&0)*1000 -> 191.059601 | F55: =SUMIFS(Data!O:O,Data!$A:$A,$A55,Data!O:O,">="&0)*1000 -> 10.25539999 | G55: =SUMIFS(Data!R:R,Data!$A:$A,$A55,Data!R:R,">="&0) -> 25307.9636 | H55: =SUMIFS(Data!S:S,Data!$A:$A,$A55,Data!S:S,">="&0) -> 25205.0749 | I55: =SUMIFS(Data!AA:AA,Data!$A:$A,$A55,Data!AA:AA,">="&0)*1000 -> 11.2222 | J55: =SUMIFS(Data!AG:AG,Data!$A:$A,$A55,Data!AG:AG,">="&0)*1000 -> 8.9835999 | K55: =SUMIFS(Data!AM:AM,Data!$A:$A,$A55,Data!AM:AM,">="&0)*1000 -> 9.737 | L55: =SUMIFS(Data!AS:AS,Data!$A:$A,$A55,Data!AS:AS,">="&0)*1000 -> 7.29930003 | M55: 0.4272924068 | N55: 36.09262837 | O55: 26.90938135 | P55: 24.91874221 | Q55: 8.615066654 | R55: =Data!$AZ$5 -> 75.3 | S55: =IF(Data!$AZ$2,1,R55) * (1 + E55/F55) -> 19.63014619 | T55: 0.4065467361 | U55: 0.4072405484 | V55: 5.577179221
A56: 51 | B56: =SUMIF(Data!$A:$A,$A56,Data!G:G)/ SUMIF(Data!$A:$A,$A56,Data!F:F) -> 0.1494224008 | C56: =SUMIFS(Data!L:L,Data!$A:$A,$A56,Data!L:L,">="&0) -> 31593.8842 | D56: =SUMIFS(Data!M:M,Data!$A:$A,$A56,Data!M:M,">="&0) -> 31432.33815 | E56: =SUMIFS(Data!N:N,Data!$A:$A,$A56,Data!N:N,">="&0)*1000 -> 229.0544 | F56: =SUMIFS(Data!O:O,Data!$A:$A,$A56,Data!O:O,">="&0)*1000 -> 10.11789996 | G56: =SUMIFS(Data!R:R,Data!$A:$A,$A56,Data!R:R,">="&0) -> 30212.5895 | H56: =SUMIFS(Data!S:S,Data!$A:$A,$A56,Data!S:S,">="&0) -> 30066.9431 | I56: =SUMIFS(Data!AA:AA,Data!$A:$A,$A56,Data!AA:AA,">="&0)*1000 -> 11.0881001 | J56: =SUMIFS(Data!AG:AG,Data!$A:$A,$A56,Data!AG:AG,">="&0)*1000 -> 8.4757 | K56: =SUMIFS(Data!AM:AM,Data!$A:$A,$A56,Data!AM:AM,">="&0)*1000 -> 9.25339997 | L56: =SUMIFS(Data!AS:AS,Data!$A:$A,$A56,Data!AS:AS,">="&0)*1000 -> 6.87500002 | M56: 0.5113206372 | N56: 37.71401013 | O56: 26.73015478 | P56: 30.82223415 | Q56: 8.74992227 | R56: =Data!$AZ$5 -> 75.3 | S56: =IF(Data!$AZ$2,1,R56) * (1 + E56/F56) -> 23.6385318 | T56: 0.482071886 | U56: 0.6913975357 | V56: 4.54118347
A57: 52 | B57: =SUMIF(Data!$A:$A,$A57,Data!G:G)/ SUMIF(Data!$A:$A,$A57,Data!F:F) -> 0.5725611858 | C57: =SUMIFS(Data!L:L,Data!$A:$A,$A57,Data!L:L,">="&0) -> 21221.1988 | D57: =SUMIFS(Data!M:M,Data!$A:$A,$A57,Data!M:M,">="&0) -> 21145.35155 | E57: =SUMIFS(Data!N:N,Data!$A:$A,$A57,Data!N:N,">="&0)*1000 -> 151.2693995 | F57: =SUMIFS(Data!O:O,Data!$A:$A,$A57,Data!O:O,">="&0)*1000 -> 9.7324 | G57: =SUMIFS(Data!R:R,Data!$A:$A,$A57,Data!R:R,">="&0) -> 19870.8168 | H57: =SUMIFS(Data!S:S,Data!$A:$A,$A57,Data!S:S,">="&0) -> 19796.4569 | I57: =SUMIFS(Data!AA:AA,Data!$A:$A,$A57,Data!AA:AA,">="&0)*1000 -> 10.57840003 | J57: =SUMIFS(Data!AG:AG,Data!$A:$A,$A57,Data!AG:AG,">="&0)*1000 -> 8.9141999 | K57: =SUMIFS(Data!AM:AM,Data!$A:$A,$A57,Data!AM:AM,">="&0)*1000 -> 9.66180002 | L57: =SUMIFS(Data!AS:AS,Data!$A:$A,$A57,Data!AS:AS,">="&0)*1000 -> 7.3694999 | M57: 0.3574126547 | N57: 33.99860386 | O57: 26.73864642 | P57: 18.66909143 | Q57: 7.997428984 | R57: =Data!$AZ$5 -> 75.3 | S57: =IF(Data!$AZ$2,1,R57) * (1 + E57/F57) -> 16.54286707 | T57: 0.3742166251 | U57: -0.2779858471 | V57: 6.813818537
A58: 53 | B58: =SUMIF(Data!$A:$A,$A58,Data!G:G)/ SUMIF(Data!$A:$A,$A58,Data!F:F) -> 0.3948275862 | C58: =SUMIFS(Data!L:L,Data!$A:$A,$A58,Data!L:L,">="&0) -> 25652.2917 | D58: =SUMIFS(Data!M:M,Data!$A:$A,$A58,Data!M:M,">="&0) -> 25560.07547 | E58: =SUMIFS(Data!N:N,Data!$A:$A,$A58,Data!N:N,">="&0)*1000 -> 187.0989 | F58: =SUMIFS(Data!O:O,Data!$A:$A,$A58,Data!O:O,">="&0)*1000 -> 10.3936 | G58: =SUMIFS(Data!R:R,Data!$A:$A,$A58,Data!R:R,">="&0) -> 24239.9382 | H58: =SUMIFS(Data!S:S,Data!$A:$A,$A58,Data!S:S,">="&0) -> 24154.9163 | I58: =SUMIFS(Data!AA:AA,Data!$A:$A,$A58,Data!AA:AA,">="&0)*1000 -> 11.3395999 | J58: =SUMIFS(Data!AG:AG,Data!$A:$A,$A58,Data!AG:AG,">="&0)*1000 -> 9.2310999 | K58: =SUMIFS(Data!AM:AM,Data!$A:$A,$A58,Data!AM:AM,">="&0)*1000 -> 10.097 | L58: =SUMIFS(Data!AS:AS,Data!$A:$A,$A58,Data!AS:AS,">="&0)*1000 -> 7.5978 | M58: 0.3594853477 | N58: 34.97199064 | O58: 26.53529089 | P58: 22.8412651 | Q58: 8.342445133 | R58: =Data!$AZ$5 -> 75.3 | S58: =IF(Data!$AZ$2,1,R58) * (1 + E58/F58) -> 19.0013566 | T58: 0.3507513068 | U58: 0.1659586253 | V58: 5.817280228
A59: 54 | B59: =SUMIF(Data!$A:$A,$A59,Data!G:G)/ SUMIF(Data!$A:$A,$A59,Data!F:F) -> 0.2876272094 | C59: =SUMIFS(Data!L:L,Data!$A:$A,$A59,Data!L:L,">="&0) -> 27646.8429 | D59: =SUMIFS(Data!M:M,Data!$A:$A,$A59,Data!M:M,">="&0) -> 27544.5017 | E59: =SUMIFS(Data!N:N,Data!$A:$A,$A59,Data!N:N,">="&0)*1000 -> 202.5089 | F59: =SUMIFS(Data!O:O,Data!$A:$A,$A59,Data!O:O,">="&0)*1000 -> 10.37809993 | G59: =SUMIFS(Data!R:R,Data!$A:$A,$A59,Data!R:R,">="&0) -> 26248.36213 | H59: =SUMIFS(Data!S:S,Data!$A:$A,$A59,Data!S:S,">="&0) -> 26155.72016 | I59: =SUMIFS(Data!AA:AA,Data!$A:$A,$A59,Data!AA:AA,">="&0)*1000 -> 11.33870007 | J59: =SUMIFS(Data!AG:AG,Data!$A:$A,$A59,Data!AG:AG,">="&0)*1000 -> 9.0663001 | K59: =SUMIFS(Data!AM:AM,Data!$A:$A,$A59,Data!AM:AM,">="&0)*1000 -> 10.0932001 | L59: =SUMIFS(Data!AS:AS,Data!$A:$A,$A59,Data!AS:AS,">="&0)*1000 -> 7.5305 | M59: 0.3701731889 | N59: 34.86010817 | O59: 25.99289827 | P59: 25.06424831 | Q59: 8.471871855 | R59: =Data!$AZ$5 -> 75.3 | S59: =IF(Data!$AZ$2,1,R59) * (1 + E59/F59) -> 20.51309983 | T59: 0.3529438124 | U59: 0.3534279202 | V59: 5.30966661
A60: 55 | B60: =SUMIF(Data!$A:$A,$A60,Data!G:G)/ SUMIF(Data!$A:$A,$A60,Data!F:F) -> 0.1893432466 | C60: =SUMIFS(Data!L:L,Data!$A:$A,$A60,Data!L:L,">="&0) -> 30768.0588 | D60: =SUMIFS(Data!M:M,Data!$A:$A,$A60,Data!M:M,">="&0) -> 30646.1225 | E60: =SUMIFS(Data!N:N,Data!$A:$A,$A60,Data!N:N,">="&0)*1000 -> 227.5147005 | F60: =SUMIFS(Data!O:O,Data!$A:$A,$A60,Data!O:O,">="&0)*1000 -> 10.23809999 | G60: =SUMIFS(Data!R:R,Data!$A:$A,$A60,Data!R:R,">="&0) -> 29399.8869 | H60: =SUMIFS(Data!S:S,Data!$A:$A,$A60,Data!S:S,">="&0) -> 29290.5172 | I60: =SUMIFS(Data!AA:AA,Data!$A:$A,$A60,Data!AA:AA,">="&0)*1000 -> 11.20039997 | J60: =SUMIFS(Data!AG:AG,Data!$A:$A,$A60,Data!AG:AG,">="&0)*1000 -> 8.6851 | K60: =SUMIFS(Data!AM:AM,Data!$A:$A,$A60,Data!AM:AM,">="&0)*1000 -> 9.75390001 | L60: =SUMIFS(Data!AS:AS,Data!$A:$A,$A60,Data!AS:AS,">="&0)*1000 -> 7.2465 | M60: 0.39630807 | N60: 35.7689238 | O60: 25.73741722 | P60: 28.96109394 | Q60: 8.591657285 | R60: =Data!$AZ$5 -> 75.3 | S60: =IF(Data!$AZ$2,1,R60) * (1 + E60/F60) -> 23.22235578 | T60: 0.3720072134 | U60: 0.5643231372 | V60: 4.628137123
A61: 56 | B61: =SUMIF(Data!$A:$A,$A61,Data!G:G)/ SUMIF(Data!$A:$A,$A61,Data!F:F) -> 0.6921416235 | C61: =SUMIFS(Data!L:L,Data!$A:$A,$A61,Data!L:L,">="&0) -> 15606.7904 | D61: =SUMIFS(Data!M:M,Data!$A:$A,$A61,Data!M:M,">="&0) -> 15544.84484 | E61: =SUMIFS(Data!N:N,Data!$A:$A,$A61,Data!N:N,">="&0)*1000 -> 113.9466 | F61: =SUMIFS(Data!O:O,Data!$A:$A,$A61,Data!O:O,">="&0)*1000 -> 8.5634001 | G61: =SUMIFS(Data!R:R,Data!$A:$A,$A61,Data!R:R,">="&0) -> 14442.0396 | H61: =SUMIFS(Data!S:S,Data!$A:$A,$A61,Data!S:S,">="&0) -> 14379.83138 | I61: =SUMIFS(Data!AA:AA,Data!$A:$A,$A61,Data!AA:AA,">="&0)*1000 -> 9.2933 | J61: =SUMIFS(Data!AG:AG,Data!$A:$A,$A61,Data!AG:AG,">="&0)*1000 -> 8.0648 | K61: =SUMIFS(Data!AM:AM,Data!$A:$A,$A61,Data!AM:AM,">="&0)*1000 -> 8.8901 | L61: =SUMIFS(Data!AS:AS,Data!$A:$A,$A61,Data!AS:AS,">="&0)*1000 -> 6.832999998 | M61: 0.3969141535 | N61: 31.96004083 | O61: 25.98804142 | P61: 15.2328638 | Q61: 7.854044311 | R61: =Data!$AZ$5 -> 75.3 | S61: =IF(Data!$AZ$2,1,R61) * (1 + E61/F61) -> 14.30623335 | T61: 0.4307439581 | U61: -0.4839770797 | V61: 8.101718468
A62: 57 | B62: =SUMIF(Data!$A:$A,$A62,Data!G:G)/ SUMIF(Data!$A:$A,$A62,Data!F:F) -> 0.8681655595 | C62: =SUMIFS(Data!L:L,Data!$A:$A,$A62,Data!L:L,">="&0) -> 11222.22479 | D62: =SUMIFS(Data!M:M,Data!$A:$A,$A62,Data!M:M,">="&0) -> 11169.58069 | E62: =SUMIFS(Data!N:N,Data!$A:$A,$A62,Data!N:N,">="&0)*1000 -> 81.5241005 | F62: =SUMIFS(Data!O:O,Data!$A:$A,$A62,Data!O:O,">="&0)*1000 -> 8.5742 | G62: =SUMIFS(Data!R:R,Data!$A:$A,$A62,Data!R:R,">="&0) -> 10063.2422 | H62: =SUMIFS(Data!S:S,Data!$A:$A,$A62,Data!S:S,">="&0) -> 10011.23192 | I62: =SUMIFS(Data!AA:AA,Data!$A:$A,$A62,Data!AA:AA,">="&0)*1000 -> 9.2962 | J62: =SUMIFS(Data!AG:AG,Data!$A:$A,$A62,Data!AG:AG,">="&0)*1000 -> 8.36230008 | K62: =SUMIFS(Data!AM:AM,Data!$A:$A,$A62,Data!AM:AM,">="&0)*1000 -> 9.24260002 | L62: =SUMIFS(Data!AS:AS,Data!$A:$A,$A62,Data!AS:AS,">="&0)*1000 -> 7.088299995 | M62: 0.4691057342 | N62: 30.24880462 | O62: 25.91375421 | P62: 11.16797904 | Q62: 7.766614316 | R62: =Data!$AZ$5 -> 75.3 | S62: =IF(Data!$AZ$2,1,R62) * (1 + E62/F62) -> 10.50807078 | T62: 0.5168342266 | U62: -0.5015343765 | V62: 11.57049182
A63: 58 | B63: =SUMIF(Data!$A:$A,$A63,Data!G:G)/ SUMIF(Data!$A:$A,$A63,Data!F:F) -> 0.6912408759 | C63: =SUMIFS(Data!L:L,Data!$A:$A,$A63,Data!L:L,">="&0) -> 8546.33989 | D63: =SUMIFS(Data!M:M,Data!$A:$A,$A63,Data!M:M,">="&0) -> 8522.726194 | E63: =SUMIFS(Data!N:N,Data!$A:$A,$A63,Data!N:N,">="&0)*1000 -> 65.0856 | F63: =SUMIFS(Data!O:O,Data!$A:$A,$A63,Data!O:O,">="&0)*1000 -> 5.23099989 | G63: =SUMIFS(Data!R:R,Data!$A:$A,$A63,Data!R:R,">="&0) -> 7857.784 | H63: =SUMIFS(Data!S:S,Data!$A:$A,$A63,Data!S:S,">="&0) -> 7834.08334 | I63: =SUMIFS(Data!AA:AA,Data!$A:$A,$A63,Data!AA:AA,">="&0)*1000 -> 5.6706 | J63: =SUMIFS(Data!AG:AG,Data!$A:$A,$A63,Data!AG:AG,">="&0)*1000 -> 4.9762 | K63: =SUMIFS(Data!AM:AM,Data!$A:$A,$A63,Data!AM:AM,">="&0)*1000 -> 5.4984 | L63: =SUMIFS(Data!AS:AS,Data!$A:$A,$A63,Data!AS:AS,">="&0)*1000 -> 4.2874 | M63: 0.2763018591 | N63: 31.42196532 | O63: 25.68786127 | P63: 13.95442305 | Q63: 7.752268014 | R63: =Data!$AZ$5 -> 75.3 | S63: =IF(Data!$AZ$2,1,R63) * (1 + E63/F63) -> 13.44228663 | T63: 0.3016201514 | U63: -0.3403357427 | V63: 8.790343734
A64: 59 | B64: =SUMIF(Data!$A:$A,$A64,Data!G:G)/ SUMIF(Data!$A:$A,$A64,Data!F:F) -> 0.7765709853 | C64: =SUMIFS(Data!L:L,Data!$A:$A,$A64,Data!L:L,">="&0) -> 15360.5873 | D64: =SUMIFS(Data!M:M,Data!$A:$A,$A64,Data!M:M,">="&0) -> 15304.74217 | E64: =SUMIFS(Data!N:N,Data!$A:$A,$A64,Data!N:N,">="&0)*1000 -> 109.916399 | F64: =SUMIFS(Data!O:O,Data!$A:$A,$A64,Data!O:O,">="&0)*1000 -> 10.927 | G64: =SUMIFS(Data!R:R,Data!$A:$A,$A64,Data!R:R,">="&0) -> 13874.10238 | H64: =SUMIFS(Data!S:S,Data!$A:$A,$A64,Data!S:S,">="&0) -> 13819.963 | I64: =SUMIFS(Data!AA:AA,Data!$A:$A,$A64,Data!AA:AA,">="&0)*1000 -> 11.8609999 | J64: =SUMIFS(Data!AG:AG,Data!$A:$A,$A64,Data!AG:AG,">="&0)*1000 -> 10.5586999 | K64: =SUMIFS(Data!AM:AM,Data!$A:$A,$A64,Data!AM:AM,">="&0)*1000 -> 11.5237999 | L64: =SUMIFS(Data!AS:AS,Data!$A:$A,$A64,Data!AS:AS,">="&0)*1000 -> 8.8217 | M64: 0.3635611641 | N64: 31.24791833 | O64: 26.42833339 | P64: 12.33390486 | Q64: 7.874546057 | R64: =Data!$AZ$5 -> 75.3 | S64: =IF(Data!$AZ$2,1,R64) * (1 + E64/F64) -> 11.05915613 | T64: 0.3902189743 | U64: -0.294812885 | V64: 10.74372753
A65: 60 | B65: =SUMIF(Data!$A:$A,$A65,Data!G:G)/ SUMIF(Data!$A:$A,$A65,Data!F:F) -> 0.803913738 | C65: =SUMIFS(Data!L:L,Data!$A:$A,$A65,Data!L:L,">="&0) -> 13820.7629 | D65: =SUMIFS(Data!M:M,Data!$A:$A,$A65,Data!M:M,">="&0) -> 13768.41191 | E65: =SUMIFS(Data!N:N,Data!$A:$A,$A65,Data!N:N,">="&0)*1000 -> 98.7764998 | F65: =SUMIFS(Data!O:O,Data!$A:$A,$A65,Data!O:O,">="&0)*1000 -> 11.10090003 | G65: =SUMIFS(Data!R:R,Data!$A:$A,$A65,Data!R:R,">="&0) -> 12322.3596 | H65: =SUMIFS(Data!S:S,Data!$A:$A,$A65,Data!S:S,">="&0) -> 12274.36685 | I65: =SUMIFS(Data!AA:AA,Data!$A:$A,$A65,Data!AA:AA,">="&0)*1000 -> 12.0418001 | J65: =SUMIFS(Data!AG:AG,Data!$A:$A,$A65,Data!AG:AG,">="&0)*1000 -> 10.8281 | K65: =SUMIFS(Data!AM:AM,Data!$A:$A,$A65,Data!AM:AM,">="&0)*1000 -> 11.7299 | L65: =SUMIFS(Data!AS:AS,Data!$A:$A,$A65,Data!AS:AS,">="&0)*1000 -> 8.9491999 | M65: 0.3787850959 | N65: 31.12166033 | O65: 26.75693182 | P65: 11.20880025 | Q65: 7.813616421 | R65: =Data!$AZ$5 -> 75.3 | S65: =IF(Data!$AZ$2,1,R65) * (1 + E65/F65) -> 9.898062277 | T65: 0.3894769473 | U65: -0.1058286109 | V65: 12.17207436
A66: 61 | B66: =SUMIF(Data!$A:$A,$A66,Data!G:G)/ SUMIF(Data!$A:$A,$A66,Data!F:F) -> 0.8341085271 | C66: =SUMIFS(Data!L:L,Data!$A:$A,$A66,Data!L:L,">="&0) -> 15334.96848 | D66: =SUMIFS(Data!M:M,Data!$A:$A,$A66,Data!M:M,">="&0) -> 15278.46692 | E66: =SUMIFS(Data!N:N,Data!$A:$A,$A66,Data!N:N,">="&0)*1000 -> 107.9122 | F66: =SUMIFS(Data!O:O,Data!$A:$A,$A66,Data!O:O,">="&0)*1000 -> 11.4610001 | G66: =SUMIFS(Data!R:R,Data!$A:$A,$A66,Data!R:R,">="&0) -> 13760.2245 | H66: =SUMIFS(Data!S:S,Data!$A:$A,$A66,Data!S:S,">="&0) -> 13706.13603 | I66: =SUMIFS(Data!AA:AA,Data!$A:$A,$A66,Data!AA:AA,">="&0)*1000 -> 12.4236999 | J66: =SUMIFS(Data!AG:AG,Data!$A:$A,$A66,Data!AG:AG,">="&0)*1000 -> 11.165 | K66: =SUMIFS(Data!AM:AM,Data!$A:$A,$A66,Data!AM:AM,">="&0)*1000 -> 12.09030005 | L66: =SUMIFS(Data!AS:AS,Data!$A:$A,$A66,Data!AS:AS,">="&0)*1000 -> 9.3372 | M66: 0.3684491434 | N66: 31.21099794 | O66: 26.6390613 | P66: 11.27362203 | Q66: 7.748897734 | R66: =Data!$AZ$5 -> 75.3 | S66: =IF(Data!$AZ$2,1,R66) * (1 + E66/F66) -> 10.41560065 | T66: 0.3930783978 | U66: -0.2565284786 | V66: 11.47172979
A67: 62 | B67: =SUMIF(Data!$A:$A,$A67,Data!G:G)/ SUMIF(Data!$A:$A,$A67,Data!F:F) -> 0.7122040073 | C67: =SUMIFS(Data!L:L,Data!$A:$A,$A67,Data!L:L,">="&0) -> 16638.56637 | D67: =SUMIFS(Data!M:M,Data!$A:$A,$A67,Data!M:M,">="&0) -> 16585.52393 | E67: =SUMIFS(Data!N:N,Data!$A:$A,$A67,Data!N:N,">="&0)*1000 -> 118.1464995 | F67: =SUMIFS(Data!O:O,Data!$A:$A,$A67,Data!O:O,">="&0)*1000 -> 11.3027 | G67: =SUMIFS(Data!R:R,Data!$A:$A,$A67,Data!R:R,">="&0) -> 15094.3263 | H67: =SUMIFS(Data!S:S,Data!$A:$A,$A67,Data!S:S,">="&0) -> 15044.72083 | I67: =SUMIFS(Data!AA:AA,Data!$A:$A,$A67,Data!AA:AA,">="&0)*1000 -> 12.27280009 | J67: =SUMIFS(Data!AG:AG,Data!$A:$A,$A67,Data!AG:AG,">="&0)*1000 -> 10.86109997 | K67: =SUMIFS(Data!AM:AM,Data!$A:$A,$A67,Data!AM:AM,">="&0)*1000 -> 11.7768 | L67: =SUMIFS(Data!AS:AS,Data!$A:$A,$A67,Data!AS:AS,">="&0)*1000 -> 9.02290004 | M67: 0.3187921292 | N67: 31.80108245 | O67: 26.67489726 | P67: 12.9977638 | Q67: 7.904472353 | R67: =Data!$AZ$5 -> 75.3 | S67: =IF(Data!$AZ$2,1,R67) * (1 + E67/F67) -> 11.45294483 | T67: 0.3286365288 | U67: -0.1127473656 | V67: 10.24148681
A68: 63 | B68: =SUMIF(Data!$A:$A,$A68,Data!G:G)/ SUMIF(Data!$A:$A,$A68,Data!F:F) -> 0.2799905168 | C68: =SUMIFS(Data!L:L,Data!$A:$A,$A68,Data!L:L,">="&0) -> 31517.2547 | D68: =SUMIFS(Data!M:M,Data!$A:$A,$A68,Data!M:M,">="&0) -> 31425.66051 | E68: =SUMIFS(Data!N:N,Data!$A:$A,$A68,Data!N:N,">="&0)*1000 -> 232.068201 | F68: =SUMIFS(Data!O:O,Data!$A:$A,$A68,Data!O:O,">="&0)*1000 -> 11.658 | G68: =SUMIFS(Data!R:R,Data!$A:$A,$A68,Data!R:R,">="&0) -> 29962.6954 | H68: =SUMIFS(Data!S:S,Data!$A:$A,$A68,Data!S:S,">="&0) -> 29880.1007 | I68: =SUMIFS(Data!AA:AA,Data!$A:$A,$A68,Data!AA:AA,">="&0)*1000 -> 12.72609994 | J68: =SUMIFS(Data!AG:AG,Data!$A:$A,$A68,Data!AG:AG,">="&0)*1000 -> 10.1414999 | K68: =SUMIFS(Data!AM:AM,Data!$A:$A,$A68,Data!AM:AM,">="&0)*1000 -> 11.2067 | L68: =SUMIFS(Data!AS:AS,Data!$A:$A,$A68,Data!AS:AS,">="&0)*1000 -> 8.3578 | M68: 0.290616025 | N68: 35.33328632 | O68: 26.26101267 | P68: 25.48538249 | Q68: 8.392987208 | R68: =Data!$AZ$5 -> 75.3 | S68: =IF(Data!$AZ$2,1,R68) * (1 + E68/F68) -> 20.90634766 | T68: 0.2756584449 | U68: 0.3127083691 | V68: 5.172538817
A69: 64 | B69: =SUMIF(Data!$A:$A,$A69,Data!G:G)/ SUMIF(Data!$A:$A,$A69,Data!F:F) -> 0.3192713327 | C69: =SUMIFS(Data!L:L,Data!$A:$A,$A69,Data!L:L,">="&0) -> 30853.9139 | D69: =SUMIFS(Data!M:M,Data!$A:$A,$A69,Data!M:M,">="&0) -> 30771.65201 | E69: =SUMIFS(Data!N:N,Data!$A:$A,$A69,Data!N:N,">="&0)*1000 -> 226.7007 | F69: =SUMIFS(Data!O:O,Data!$A:$A,$A69,Data!O:O,">="&0)*1000 -> 11.8858 | G69: =SUMIFS(Data!R:R,Data!$A:$A,$A69,Data!R:R,">="&0) -> 29262.1444 | H69: =SUMIFS(Data!S:S,Data!$A:$A,$A69,Data!S:S,">="&0) -> 29189.31364 | I69: =SUMIFS(Data!AA:AA,Data!$A:$A,$A69,Data!AA:AA,">="&0)*1000 -> 12.9662 | J69: =SUMIFS(Data!AG:AG,Data!$A:$A,$A69,Data!AG:AG,">="&0)*1000 -> 10.4304 | K69: =SUMIFS(Data!AM:AM,Data!$A:$A,$A69,Data!AM:AM,">="&0)*1000 -> 11.4997999 | L69: =SUMIFS(Data!AS:AS,Data!$A:$A,$A69,Data!AS:AS,">="&0)*1000 -> 8.5961999 | M69: 0.2666173496 | N69: 35.05028275 | O69: 26.31698615 | P69: 24.31162756 | Q69: 8.332433565 | R69: =Data!$AZ$5 -> 75.3 | S69: =IF(Data!$AZ$2,1,R69) * (1 + E69/F69) -> 20.07323865 | T69: 0.2488907122 | U69: 0.355831024 | V69: 5.42095094
A70: 65 | B70: =SUMIF(Data!$A:$A,$A70,Data!G:G)/ SUMIF(Data!$A:$A,$A70,Data!F:F) -> 0.847826087 | C70: =SUMIFS(Data!L:L,Data!$A:$A,$A70,Data!L:L,">="&0) -> 12418.23667 | D70: =SUMIFS(Data!M:M,Data!$A:$A,$A70,Data!M:M,">="&0) -> 12372.40075 | E70: =SUMIFS(Data!N:N,Data!$A:$A,$A70,Data!N:N,">="&0)*1000 -> 87.0383998 | F70: =SUMIFS(Data!O:O,Data!$A:$A,$A70,Data!O:O,">="&0)*1000 -> 9.492599999 | G70: =SUMIFS(Data!R:R,Data!$A:$A,$A70,Data!R:R,">="&0) -> 11101.6607 | H70: =SUMIFS(Data!S:S,Data!$A:$A,$A70,Data!S:S,">="&0) -> 11057.31033 | I70: =SUMIFS(Data!AA:AA,Data!$A:$A,$A70,Data!AA:AA,">="&0)*1000 -> 10.3026999 | J70: =SUMIFS(Data!AG:AG,Data!$A:$A,$A70,Data!AG:AG,">="&0)*1000 -> 9.2349 | K70: =SUMIFS(Data!AM:AM,Data!$A:$A,$A70,Data!AM:AM,">="&0)*1000 -> 10.0072 | L70: =SUMIFS(Data!AS:AS,Data!$A:$A,$A70,Data!AS:AS,">="&0)*1000 -> 7.5393 | M70: 0.3691016617 | N70: 31.19737388 | O70: 26.87061874 | P70: 11.56265796 | Q70: 7.862986488 | R70: =Data!$AZ$5 -> 75.3 | S70: =IF(Data!$AZ$2,1,R70) * (1 + E70/F70) -> 10.16907905 | T70: 0.3994930975 | U70: -0.3090529129 | V70: 11.89340247
A71: 66 | B71: =SUMIF(Data!$A:$A,$A71,Data!G:G)/ SUMIF(Data!$A:$A,$A71,Data!F:F) -> 0.6156369601 | C71: =SUMIFS(Data!L:L,Data!$A:$A,$A71,Data!L:L,">="&0) -> 12507.7074 | D71: =SUMIFS(Data!M:M,Data!$A:$A,$A71,Data!M:M,">="&0) -> 12474.02739 | E71: =SUMIFS(Data!N:N,Data!$A:$A,$A71,Data!N:N,">="&0)*1000 -> 92.131 | F71: =SUMIFS(Data!O:O,Data!$A:$A,$A71,Data!O:O,">="&0)*1000 -> 6.519600119 | G71: =SUMIFS(Data!R:R,Data!$A:$A,$A71,Data!R:R,">="&0) -> 11625.0997 | H71: =SUMIFS(Data!S:S,Data!$A:$A,$A71,Data!S:S,">="&0) -> 11593.13142 | I71: =SUMIFS(Data!AA:AA,Data!$A:$A,$A71,Data!AA:AA,">="&0)*1000 -> 7.074400074 | J71: =SUMIFS(Data!AG:AG,Data!$A:$A,$A71,Data!AG:AG,">="&0)*1000 -> 6.0829 | K71: =SUMIFS(Data!AM:AM,Data!$A:$A,$A71,Data!AM:AM,">="&0)*1000 -> 6.6222 | L71: =SUMIFS(Data!AS:AS,Data!$A:$A,$A71,Data!AS:AS,">="&0)*1000 -> 5.10589998 | M71: =100*(C71-D71)/C71 -> 0.2692740424 | N71: =100* ($L$4 + (I71 - L71) * ($K$4 - $L$4) /(K71 - L71)) -> 32.9822599 | O71: =100* ($L$4 + (J71 - L71) * ($K$4 - $L$4) /(K71 - L71)) -> 26.44331601 | P71: =100* (I71/J71 - 1) -> 16.29979243 | Q71: =100 * (1-F71/I71) -> 7.842360472 | R71: =Data!$AZ$5 -> 75.3 | S71: =IF(Data!$AZ$2,1,R71) * (1 + E71/F71) -> 15.13138817 | T71: =100*(G71-H71)/G71 -> 0.2749936063 | U71: =(M71-T71)*S71 -> -0.08654494115 | V71: =100 * (D71/H71-1) -> 7.598429965
A72: =A71+1 -> 67 | B72: =SUMIF(Data!$A:$A,$A72,Data!G:G)/ SUMIF(Data!$A:$A,$A72,Data!F:F) -> 0.7956254272 | C72: =SUMIFS(Data!L:L,Data!$A:$A,$A72,Data!L:L,">="&0) -> 17109.5935 | D72: =SUMIFS(Data!M:M,Data!$A:$A,$A72,Data!M:M,">="&0) -> 17059.83993 | E72: =SUMIFS(Data!N:N,Data!$A:$A,$A72,Data!N:N,">="&0)*1000 -> 120.040498 | F72: =SUMIFS(Data!O:O,Data!$A:$A,$A72,Data!O:O,">="&0)*1000 -> 12.8351 | G72: =SUMIFS(Data!R:R,Data!$A:$A,$A72,Data!R:R,">="&0) -> 15349.4155 | H72: =SUMIFS(Data!S:S,Data!$A:$A,$A72,Data!S:S,">="&0) -> 15301.65699 | I72: =SUMIFS(Data!AA:AA,Data!$A:$A,$A72,Data!AA:AA,">="&0)*1000 -> 13.9215 | J72: =SUMIFS(Data!AG:AG,Data!$A:$A,$A72,Data!AG:AG,">="&0)*1000 -> 12.4818003 | K72: =SUMIFS(Data!AM:AM,Data!$A:$A,$A72,Data!AM:AM,">="&0)*1000 -> 13.49710002 | L72: =SUMIFS(Data!AS:AS,Data!$A:$A,$A72,Data!AS:AS,">="&0)*1000 -> 10.3178 | M72: 0.290793385 | N72: 31.33488497 | O72: 26.80653064 | P72: 11.5343914 | Q72: 7.803756779 | R72: =Data!$AZ$5 -> 75.3 | S72: =IF(Data!$AZ$2,1,R72) * (1 + E72/F72) -> 10.35251755 | T72: 0.3111421989 | U72: -0.2106614526 | V72: 11.4901474
A73: 68 | B73: =SUMIF(Data!$A:$A,$A73,Data!G:G)/ SUMIF(Data!$A:$A,$A73,Data!F:F) -> 1 | C73: =SUMIFS(Data!L:L,Data!$A:$A,$A73,Data!L:L,">="&0) -> 4455.88708 | D73: =SUMIFS(Data!M:M,Data!$A:$A,$A73,Data!M:M,">="&0) -> 4427.763978 | E73: =SUMIFS(Data!N:N,Data!$A:$A,$A73,Data!N:N,">="&0)*1000 -> 33.7825995 | F73: =SUMIFS(Data!O:O,Data!$A:$A,$A73,Data!O:O,">="&0)*1000 -> 4.736800001 | G73: =SUMIFS(Data!R:R,Data!$A:$A,$A73,Data!R:R,">="&0) -> 3815.29173 | H73: =SUMIFS(Data!S:S,Data!$A:$A,$A73,Data!S:S,">="&0) -> 3788.079964 | I73: =SUMIFS(Data!AA:AA,Data!$A:$A,$A73,Data!AA:AA,">="&0)*1000 -> 5.12859999 | J73: =SUMIFS(Data!AG:AG,Data!$A:$A,$A73,Data!AG:AG,">="&0)*1000 -> 4.71990003 | K73: =SUMIFS(Data!AM:AM,Data!$A:$A,$A73,Data!AM:AM,">="&0)*1000 -> 5.121999992 | L73: =SUMIFS(Data!AS:AS,Data!$A:$A,$A73,Data!AS:AS,">="&0)*1000 -> 3.94570003 | M73: 0.6311448606 | N73: 30.05610812 | O73: 26.58165455 | P73: 8.659080858 | Q73: 7.639511558 | R73: =Data!$AZ$5 -> 75.3 | S73: =IF(Data!$AZ$2,1,R73) * (1 + E73/F73) -> 8.13194551 | T73: 0.7132289619 | U73: -0.6675034391 | V73: 16.88676109
A74: 69 | B74: =SUMIF(Data!$A:$A,$A74,Data!G:G)/ SUMIF(Data!$A:$A,$A74,Data!F:F) -> 1 | C74: =SUMIFS(Data!L:L,Data!$A:$A,$A74,Data!L:L,">="&0) -> 2911.74519 | D74: =SUMIFS(Data!M:M,Data!$A:$A,$A74,Data!M:M,">="&0) -> 2893.189433 | E74: =SUMIFS(Data!N:N,Data!$A:$A,$A74,Data!N:N,">="&0)*1000 -> 23.5551002 | F74: =SUMIFS(Data!O:O,Data!$A:$A,$A74,Data!O:O,">="&0)*1000 -> 3.314199964 | G74: =SUMIFS(Data!R:R,Data!$A:$A,$A74,Data!R:R,">="&0) -> 2468.30751 | H74: =SUMIFS(Data!S:S,Data!$A:$A,$A74,Data!S:S,">="&0) -> 2450.771202 | I74: =SUMIFS(Data!AA:AA,Data!$A:$A,$A74,Data!AA:AA,">="&0)*1000 -> 3.5878 | J74: =SUMIFS(Data!AG:AG,Data!$A:$A,$A74,Data!AG:AG,">="&0)*1000 -> 3.3021 | K74: =SUMIFS(Data!AM:AM,Data!$A:$A,$A74,Data!AM:AM,">="&0)*1000 -> 3.572500011 | L74: =SUMIFS(Data!AS:AS,Data!$A:$A,$A74,Data!AS:AS,">="&0)*1000 -> 2.75209997 | M74: 0.6372726832 | N74: 30.18649425 | O74: 26.70404684 | P74: 8.652069895 | Q74: 7.625844138 | R74: =Data!$AZ$5 -> 75.3 | S74: =IF(Data!$AZ$2,1,R74) * (1 + E74/F74) -> 8.107326189 | T74: 0.7104587872 | U74: -0.5933436177 | V74: 18.05220457
A75: 70 | B75: =SUMIF(Data!$A:$A,$A75,Data!G:G)/ SUMIF(Data!$A:$A,$A75,Data!F:F) -> 0.2385321101 | C75: =SUMIFS(Data!L:L,Data!$A:$A,$A75,Data!L:L,">="&0) -> 35019.6815 | D75: =SUMIFS(Data!M:M,Data!$A:$A,$A75,Data!M:M,">="&0) -> 34922.09931 | E75: =SUMIFS(Data!N:N,Data!$A:$A,$A75,Data!N:N,">="&0)*1000 -> 258.835599 | F75: =SUMIFS(Data!O:O,Data!$A:$A,$A75,Data!O:O,">="&0)*1000 -> 12.6147001 | G75: =SUMIFS(Data!R:R,Data!$A:$A,$A75,Data!R:R,">="&0) -> 33341.5153 | H75: =SUMIFS(Data!S:S,Data!$A:$A,$A75,Data!S:S,">="&0) -> 33254.32305 | I75: =SUMIFS(Data!AA:AA,Data!$A:$A,$A75,Data!AA:AA,">="&0)*1000 -> 13.7594 | J75: =SUMIFS(Data!AG:AG,Data!$A:$A,$A75,Data!AG:AG,">="&0)*1000 -> 10.89559993 | K75: =SUMIFS(Data!AM:AM,Data!$A:$A,$A75,Data!AM:AM,">="&0)*1000 -> 12.0483 | L75: =SUMIFS(Data!AS:AS,Data!$A:$A,$A75,Data!AS:AS,">="&0)*1000 -> 8.9373001 | M75: 0.2786495531 | N75: 35.5001609 | O75: 26.29476018 | P75: 26.28400536 | Q75: 8.319402736 | R75: =Data!$AZ$5 -> 75.3 | S75: =IF(Data!$AZ$2,1,R75) * (1 + E75/F75) -> 21.51856936 | T75: 0.2615125684 | U75: 0.3687633944 | V75: 5.015216412
A76: 71 | B76: =SUMIF(Data!$A:$A,$A76,Data!G:G)/ SUMIF(Data!$A:$A,$A76,Data!F:F) -> 0.3304231028 | C76: =SUMIFS(Data!L:L,Data!$A:$A,$A76,Data!L:L,">="&0) -> 33144.0052 | D76: =SUMIFS(Data!M:M,Data!$A:$A,$A76,Data!M:M,">="&0) -> 33058.66406 | E76: =SUMIFS(Data!N:N,Data!$A:$A,$A76,Data!N:N,">="&0)*1000 -> 241.667399 | F76: =SUMIFS(Data!O:O,Data!$A:$A,$A76,Data!O:O,">="&0)*1000 -> 12.95309991 | G76: =SUMIFS(Data!R:R,Data!$A:$A,$A76,Data!R:R,">="&0) -> 31398.6666 | H76: =SUMIFS(Data!S:S,Data!$A:$A,$A76,Data!S:S,">="&0) -> 31321.71854 | I76: =SUMIFS(Data!AA:AA,Data!$A:$A,$A76,Data!AA:AA,">="&0)*1000 -> 14.1142 | J76: =SUMIFS(Data!AG:AG,Data!$A:$A,$A76,Data!AG:AG,">="&0)*1000 -> 11.4101001 | K76: =SUMIFS(Data!AM:AM,Data!$A:$A,$A76,Data!AM:AM,">="&0)*1000 -> 12.45710021 | L76: =SUMIFS(Data!AS:AS,Data!$A:$A,$A76,Data!AS:AS,">="&0)*1000 -> 9.302900028 | M76: 0.2574858997 | N76: 35.25362914 | O76: 26.68061617 | P76: 23.69917773 | Q76: 8.226467648 | R76: =Data!$AZ$5 -> 75.3 | S76: =IF(Data!$AZ$2,1,R76) * (1 + E76/F76) -> 19.65710917 | T76: 0.2450679227 | U76: 0.2441015299 | V76: 5.545498782
A77: 72 | B77: =SUMIF(Data!$A:$A,$A77,Data!G:G)/ SUMIF(Data!$A:$A,$A77,Data!F:F) -> 0.9819976771 | C77: =SUMIFS(Data!L:L,Data!$A:$A,$A77,Data!L:L,">="&0) -> 8961.57072 | D77: =SUMIFS(Data!M:M,Data!$A:$A,$A77,Data!M:M,">="&0) -> 8909.95405 | E77: =SUMIFS(Data!N:N,Data!$A:$A,$A77,Data!N:N,">="&0)*1000 -> 62.2532 | F77: =SUMIFS(Data!O:O,Data!$A:$A,$A77,Data!O:O,">="&0)*1000 -> 8.6142 | G77: =SUMIFS(Data!R:R,Data!$A:$A,$A77,Data!R:R,">="&0) -> 7758.4776 | H77: =SUMIFS(Data!S:S,Data!$A:$A,$A77,Data!S:S,">="&0) -> 7708.554158 | I77: =SUMIFS(Data!AA:AA,Data!$A:$A,$A77,Data!AA:AA,">="&0)*1000 -> 9.3267 | J77: =SUMIFS(Data!AG:AG,Data!$A:$A,$A77,Data!AG:AG,">="&0)*1000 -> 8.55849998 | K77: =SUMIFS(Data!AM:AM,Data!$A:$A,$A77,Data!AM:AM,">="&0)*1000 -> 9.148299999 | L77: =SUMIFS(Data!AS:AS,Data!$A:$A,$A77,Data!AS:AS,">="&0)*1000 -> 7.01029996 | M77: 0.5759779408 | N77: 30.83442469 | O77: 27.24134701 | P77: 8.975872195 | Q77: 7.639357972 | R77: =Data!$AZ$5 -> 75.3 | S77: =IF(Data!$AZ$2,1,R77) * (1 + E77/F77) -> 8.226811544 | T77: 0.6434695629 | U77: -0.5552408554 | V77: 15.58528184
A78: 73 | B78: =SUMIF(Data!$A:$A,$A78,Data!G:G)/ SUMIF(Data!$A:$A,$A78,Data!F:F) -> 0.9849537037 | C78: =SUMIFS(Data!L:L,Data!$A:$A,$A78,Data!L:L,">="&0) -> 9035.5173 | D78: =SUMIFS(Data!M:M,Data!$A:$A,$A78,Data!M:M,">="&0) -> 8980.84149 | E78: =SUMIFS(Data!N:N,Data!$A:$A,$A78,Data!N:N,">="&0)*1000 -> 62.2225 | F78: =SUMIFS(Data!O:O,Data!$A:$A,$A78,Data!O:O,">="&0)*1000 -> 8.7141 | G78: =SUMIFS(Data!R:R,Data!$A:$A,$A78,Data!R:R,">="&0) -> 7809.38212 | H78: =SUMIFS(Data!S:S,Data!$A:$A,$A78,Data!S:S,">="&0) -> 7756.40947 | I78: =SUMIFS(Data!AA:AA,Data!$A:$A,$A78,Data!AA:AA,">="&0)*1000 -> 9.43419989 | J78: =SUMIFS(Data!AG:AG,Data!$A:$A,$A78,Data!AG:AG,">="&0)*1000 -> 8.66980001 | K78: =SUMIFS(Data!AM:AM,Data!$A:$A,$A78,Data!AM:AM,">="&0)*1000 -> 9.282800039 | L78: =SUMIFS(Data!AS:AS,Data!$A:$A,$A78,Data!AS:AS,">="&0)*1000 -> 7.14279999 | M78: 0.6051209686 | N78: 30.70747592 | O78: 27.13551395 | P78: 8.816810989 | Q78: 7.632866575 | R78: =Data!$AZ$5 -> 75.3 | S78: =IF(Data!$AZ$2,1,R78) * (1 + E78/F78) -> 8.140439059 | T78: 0.6783206339 | U78: -0.5958774148 | V78: 15.78606732
A79: 74 | B79: =SUMIF(Data!$A:$A,$A79,Data!G:G)/ SUMIF(Data!$A:$A,$A79,Data!F:F) -> 0.5616328709 | C79: =SUMIFS(Data!L:L,Data!$A:$A,$A79,Data!L:L,">="&0) -> 25724.4452 | D79: =SUMIFS(Data!M:M,Data!$A:$A,$A79,Data!M:M,">="&0) -> 25651.06914 | E79: =SUMIFS(Data!N:N,Data!$A:$A,$A79,Data!N:N,">="&0)*1000 -> 185.4384 | F79: =SUMIFS(Data!O:O,Data!$A:$A,$A79,Data!O:O,">="&0)*1000 -> 13.0111 | G79: =SUMIFS(Data!R:R,Data!$A:$A,$A79,Data!R:R,">="&0) -> 23944.6991 | H79: =SUMIFS(Data!S:S,Data!$A:$A,$A79,Data!S:S,">="&0) -> 23878.03462 | I79: =SUMIFS(Data!AA:AA,Data!$A:$A,$A79,Data!AA:AA,">="&0)*1000 -> 14.12329997 | J79: =SUMIFS(Data!AG:AG,Data!$A:$A,$A79,Data!AG:AG,">="&0)*1000 -> 12.0788001 | K79: =SUMIFS(Data!AM:AM,Data!$A:$A,$A79,Data!AM:AM,">="&0)*1000 -> 13.13799987 | L79: =SUMIFS(Data!AS:AS,Data!$A:$A,$A79,Data!AS:AS,">="&0)*1000 -> 9.92800001 | M79: 0.2852386492 | N79: 33.06947083 | O79: 26.70031209 | P79: 16.92634908 | Q79: 7.874929884 | R79: =Data!$AZ$5 -> 75.3 | S79: =IF(Data!$AZ$2,1,R79) * (1 + E79/F79) -> 15.25232302 | T79: 0.2784101847 | U79: 0.1041499455 | V79: 7.425378802
A80: 75 | B80: =SUMIF(Data!$A:$A,$A80,Data!G:G)/ SUMIF(Data!$A:$A,$A80,Data!F:F) -> 0.8244097107 | C80: =SUMIFS(Data!L:L,Data!$A:$A,$A80,Data!L:L,">="&0) -> 17484.0895 | D80: =SUMIFS(Data!M:M,Data!$A:$A,$A80,Data!M:M,">="&0) -> 17426.81128 | E80: =SUMIFS(Data!N:N,Data!$A:$A,$A80,Data!N:N,">="&0)*1000 -> 121.6238 | F80: =SUMIFS(Data!O:O,Data!$A:$A,$A80,Data!O:O,">="&0)*1000 -> 13.4135 | G80: =SUMIFS(Data!R:R,Data!$A:$A,$A80,Data!R:R,">="&0) -> 15636.3265 | H80: =SUMIFS(Data!S:S,Data!$A:$A,$A80,Data!S:S,">="&0) -> 15580.31094 | I80: =SUMIFS(Data!AA:AA,Data!$A:$A,$A80,Data!AA:AA,">="&0)*1000 -> 14.5386999 | J80: =SUMIFS(Data!AG:AG,Data!$A:$A,$A80,Data!AG:AG,">="&0)*1000 -> 13.0876002 | K80: =SUMIFS(Data!AM:AM,Data!$A:$A,$A80,Data!AM:AM,">="&0)*1000 -> 14.1407999 | L80: =SUMIFS(Data!AS:AS,Data!$A:$A,$A80,Data!AS:AS,">="&0)*1000 -> 10.8159999 | M80: 0.3276019835 | N80: 31.19676369 | O80: 26.83229156 | P80: 11.08759187 | Q80: 7.739343298 | R80: =Data!$AZ$5 -> 75.3 | S80: =IF(Data!$AZ$2,1,R80) * (1 + E80/F80) -> 10.06726805 | T80: 0.3582399274 | U80: -0.3084403936 | V80: 11.85149865
A81: 76 | B81: =SUMIF(Data!$A:$A,$A81,Data!G:G)/ SUMIF(Data!$A:$A,$A81,Data!F:F) -> 0.779969651 | C81: =SUMIFS(Data!L:L,Data!$A:$A,$A81,Data!L:L,">="&0) -> 15716.7019 | D81: =SUMIFS(Data!M:M,Data!$A:$A,$A81,Data!M:M,">="&0) -> 15667.34662 | E81: =SUMIFS(Data!N:N,Data!$A:$A,$A81,Data!N:N,">="&0)*1000 -> 113.5988 | F81: =SUMIFS(Data!O:O,Data!$A:$A,$A81,Data!O:O,">="&0)*1000 -> 10.80089999 | G81: =SUMIFS(Data!R:R,Data!$A:$A,$A81,Data!R:R,">="&0) -> 14254.8658 | H81: =SUMIFS(Data!S:S,Data!$A:$A,$A81,Data!S:S,">="&0) -> 14206.79062 | I81: =SUMIFS(Data!AA:AA,Data!$A:$A,$A81,Data!AA:AA,">="&0)*1000 -> 11.70919991 | J81: =SUMIFS(Data!AG:AG,Data!$A:$A,$A81,Data!AG:AG,">="&0)*1000 -> 10.4117001 | K81: =SUMIFS(Data!AM:AM,Data!$A:$A,$A81,Data!AM:AM,">="&0)*1000 -> 11.4078999 | L81: =SUMIFS(Data!AS:AS,Data!$A:$A,$A81,Data!AS:AS,">="&0)*1000 -> 8.62959997 | M81: 0.3140307509 | N81: 31.0844762 | O81: 26.41435474 | P81: 12.46193991 | Q81: 7.757147602 | R81: =Data!$AZ$5 -> 75.3 | S81: =IF(Data!$AZ$2,1,R81) * (1 + E81/F81) -> 11.51753096 | T81: 0.3372545464 | U81: -0.2674807836 | V81: 10.28068932
A82: 77 | B82: =SUMIF(Data!$A:$A,$A82,Data!G:G)/ SUMIF(Data!$A:$A,$A82,Data!F:F) -> 0.7660951148 | C82: =SUMIFS(Data!L:L,Data!$A:$A,$A82,Data!L:L,">="&0) -> 16775.0807 | D82: =SUMIFS(Data!M:M,Data!$A:$A,$A82,Data!M:M,">="&0) -> 16714.42896 | E82: =SUMIFS(Data!N:N,Data!$A:$A,$A82,Data!N:N,">="&0)*1000 -> 121.259199 | F82: =SUMIFS(Data!O:O,Data!$A:$A,$A82,Data!O:O,">="&0)*1000 -> 13.33799997 | G82: =SUMIFS(Data!R:R,Data!$A:$A,$A82,Data!R:R,">="&0) -> 14999.8622 | H82: =SUMIFS(Data!S:S,Data!$A:$A,$A82,Data!S:S,">="&0) -> 14942.34441 | I82: =SUMIFS(Data!AA:AA,Data!$A:$A,$A82,Data!AA:AA,">="&0)*1000 -> 14.4648 | J82: =SUMIFS(Data!AG:AG,Data!$A:$A,$A82,Data!AG:AG,">="&0)*1000 -> 12.9901002 | K82: =SUMIFS(Data!AM:AM,Data!$A:$A,$A82,Data!AM:AM,">="&0)*1000 -> 14.3018001 | L82: =SUMIFS(Data!AS:AS,Data!$A:$A,$A82,Data!AS:AS,">="&0)*1000 -> 10.8423001 | M82: 0.3615585676 | N82: 30.47116606 | O82: 26.20841191 | P82: 11.3524898 | Q82: 7.789945433 | R82: =Data!$AZ$5 -> 75.3 | S82: =IF(Data!$AZ$2,1,R82) * (1 + E82/F82) -> 10.091258 | T82: 0.383455488 | U82: -0.2209674729 | V82: 11.85948139
A83: 78 | B83: =SUMIF(Data!$A:$A,$A83,Data!G:G)/ SUMIF(Data!$A:$A,$A83,Data!F:F) -> 0.2401168452 | C83: =SUMIFS(Data!L:L,Data!$A:$A,$A83,Data!L:L,">="&0) -> 36237.8594 | D83: =SUMIFS(Data!M:M,Data!$A:$A,$A83,Data!M:M,">="&0) -> 36141.95521 | E83: =SUMIFS(Data!N:N,Data!$A:$A,$A83,Data!N:N,">="&0)*1000 -> 281.4532 | F83: =SUMIFS(Data!O:O,Data!$A:$A,$A83,Data!O:O,">="&0)*1000 -> 13.591 | G83: =SUMIFS(Data!R:R,Data!$A:$A,$A83,Data!R:R,">="&0) -> 34517.0893 | H83: =SUMIFS(Data!S:S,Data!$A:$A,$A83,Data!S:S,">="&0) -> 34426.84096 | I83: =SUMIFS(Data!AA:AA,Data!$A:$A,$A83,Data!AA:AA,">="&0)*1000 -> 14.7972 | J83: =SUMIFS(Data!AG:AG,Data!$A:$A,$A83,Data!AG:AG,">="&0)*1000 -> 11.8136999 | K83: =SUMIFS(Data!AM:AM,Data!$A:$A,$A83,Data!AM:AM,">="&0)*1000 -> 13.3479 | L83: =SUMIFS(Data!AS:AS,Data!$A:$A,$A83,Data!AS:AS,">="&0)*1000 -> 9.857400024 | M83: 0.2646519182 | N83: 34.1521272 | O83: 25.60464085 | P83: 25.25457834 | Q83: 8.151542159 | R83: =Data!$AZ$5 -> 75.3 | S83: =IF(Data!$AZ$2,1,R83) * (1 + E83/F83) -> 21.70879258 | T83: 0.2614598793 | U83: 0.06929531043 | V83: 4.981910057
A84: 79 | B84: =SUMIF(Data!$A:$A,$A84,Data!G:G)/ SUMIF(Data!$A:$A,$A84,Data!F:F) -> 0.6382450331 | C84: =SUMIFS(Data!L:L,Data!$A:$A,$A84,Data!L:L,">="&0) -> 23264.9109 | D84: =SUMIFS(Data!M:M,Data!$A:$A,$A84,Data!M:M,">="&0) -> 23199.91637 | E84: =SUMIFS(Data!N:N,Data!$A:$A,$A84,Data!N:N,">="&0)*1000 -> 170.5140989 | F84: =SUMIFS(Data!O:O,Data!$A:$A,$A84,Data!O:O,">="&0)*1000 -> 13.2766 | G84: =SUMIFS(Data!R:R,Data!$A:$A,$A84,Data!R:R,">="&0) -> 21491.0341 | H84: =SUMIFS(Data!S:S,Data!$A:$A,$A84,Data!S:S,">="&0) -> 21429.66947 | I84: =SUMIFS(Data!AA:AA,Data!$A:$A,$A84,Data!AA:AA,">="&0)*1000 -> 14.411 | J84: =SUMIFS(Data!AG:AG,Data!$A:$A,$A84,Data!AG:AG,">="&0)*1000 -> 12.5178002 | K84: =SUMIFS(Data!AM:AM,Data!$A:$A,$A84,Data!AM:AM,">="&0)*1000 -> 13.8416999 | L84: =SUMIFS(Data!AS:AS,Data!$A:$A,$A84,Data!AS:AS,">="&0)*1000 -> 10.45080007 | M84: 0.2793671821 | N84: 31.67890569 | O84: 26.09572749 | P84: 15.12406149 | Q84: 7.871764624 | R84: =Data!$AZ$5 -> 75.3 | S84: =IF(Data!$AZ$2,1,R84) * (1 + E84/F84) -> 13.84320526 | T84: 0.2855359575 | U84: -0.08539562457 | V84: 8.260728928
A85: 80 | B85: =SUMIF(Data!$A:$A,$A85,Data!G:G)/ SUMIF(Data!$A:$A,$A85,Data!F:F) -> 0.123007623 | C85: =SUMIFS(Data!L:L,Data!$A:$A,$A85,Data!L:L,">="&0) -> 41787.4281 | D85: =SUMIFS(Data!M:M,Data!$A:$A,$A85,Data!M:M,">="&0) -> 41627.52034 | E85: =SUMIFS(Data!N:N,Data!$A:$A,$A85,Data!N:N,">="&0)*1000 -> 330.086902 | F85: =SUMIFS(Data!O:O,Data!$A:$A,$A85,Data!O:O,">="&0)*1000 -> 14.31430007 | G85: =SUMIFS(Data!R:R,Data!$A:$A,$A85,Data!R:R,">="&0) -> 40010.8987 | H85: =SUMIFS(Data!S:S,Data!$A:$A,$A85,Data!S:S,">="&0) -> 39859.93766 | I85: =SUMIFS(Data!AA:AA,Data!$A:$A,$A85,Data!AA:AA,">="&0)*1000 -> 15.62949997 | J85: =SUMIFS(Data!AG:AG,Data!$A:$A,$A85,Data!AG:AG,">="&0)*1000 -> 12.1063 | K85: =SUMIFS(Data!AM:AM,Data!$A:$A,$A85,Data!AM:AM,">="&0)*1000 -> 13.58050021 | L85: =SUMIFS(Data!AS:AS,Data!$A:$A,$A85,Data!AS:AS,">="&0)*1000 -> 10.0081 | M85: 0.3826695427 | N85: 35.7356389 | O85: 25.8733621 | P85: 29.10220274 | Q85: 8.414855898 | R85: =Data!$AZ$5 -> 75.3 | S85: =IF(Data!$AZ$2,1,R85) * (1 + E85/F85) -> 24.05994009 | T85: 0.3772997981 | U85: 0.1291957332 | V85: 4.434484306
A86: 81 | B86: =SUMIF(Data!$A:$A,$A86,Data!G:G)/ SUMIF(Data!$A:$A,$A86,Data!F:F) -> 0.4832859952 | C86: =SUMIFS(Data!L:L,Data!$A:$A,$A86,Data!L:L,">="&0) -> 31766.0943 | D86: =SUMIFS(Data!M:M,Data!$A:$A,$A86,Data!M:M,">="&0) -> 31641.82686 | E86: =SUMIFS(Data!N:N,Data!$A:$A,$A86,Data!N:N,">="&0)*1000 -> 230.6457 | F86: =SUMIFS(Data!O:O,Data!$A:$A,$A86,Data!O:O,">="&0)*1000 -> 14.98549983 | G86: =SUMIFS(Data!R:R,Data!$A:$A,$A86,Data!R:R,">="&0) -> 29743.0868 | H86: =SUMIFS(Data!S:S,Data!$A:$A,$A86,Data!S:S,">="&0) -> 29624.11644 | I86: =SUMIFS(Data!AA:AA,Data!$A:$A,$A86,Data!AA:AA,">="&0)*1000 -> 16.3056 | J86: =SUMIFS(Data!AG:AG,Data!$A:$A,$A86,Data!AG:AG,">="&0)*1000 -> 13.72040004 | K86: =SUMIFS(Data!AM:AM,Data!$A:$A,$A86,Data!AM:AM,">="&0)*1000 -> 15.1376 | L86: =SUMIFS(Data!AS:AS,Data!$A:$A,$A86,Data!AS:AS,">="&0)*1000 -> 11.4291 | M86: 0.3911952122 | N86: 33.14952137 | O86: 26.17850894 | P86: 18.84201592 | Q86: 8.095992604 | R86: =Data!$AZ$5 -> 75.3 | S86: =IF(Data!$AZ$2,1,R86) * (1 + E86/F86) -> 16.39125839 | T86: 0.3999933188 | U86: -0.1442120386 | V86: 6.811039999
A87: 82 | B87: =SUMIF(Data!$A:$A,$A87,Data!G:G)/ SUMIF(Data!$A:$A,$A87,Data!F:F) -> 0.9788571429 | C87: =SUMIFS(Data!L:L,Data!$A:$A,$A87,Data!L:L,">="&0) -> 8887.792 | D87: =SUMIFS(Data!M:M,Data!$A:$A,$A87,Data!M:M,">="&0) -> 8820.889494 | E87: =SUMIFS(Data!N:N,Data!$A:$A,$A87,Data!N:N,">="&0)*1000 -> 64.0357002 | F87: =SUMIFS(Data!O:O,Data!$A:$A,$A87,Data!O:O,">="&0)*1000 -> 8.349 | G87: =SUMIFS(Data!R:R,Data!$A:$A,$A87,Data!R:R,">="&0) -> 7752.401002 | H87: =SUMIFS(Data!S:S,Data!$A:$A,$A87,Data!S:S,">="&0) -> 7686.564311 | I87: =SUMIFS(Data!AA:AA,Data!$A:$A,$A87,Data!AA:AA,">="&0)*1000 -> 9.042099995 | J87: =SUMIFS(Data!AG:AG,Data!$A:$A,$A87,Data!AG:AG,">="&0)*1000 -> 8.28000003 | K87: =SUMIFS(Data!AM:AM,Data!$A:$A,$A87,Data!AM:AM,">="&0)*1000 -> 9.08050001 | L87: =SUMIFS(Data!AS:AS,Data!$A:$A,$A87,Data!AS:AS,">="&0)*1000 -> 6.89349993 | M87: 0.7527460814 | N87: 29.82441695 | O87: 26.33973502 | P87: 9.204105824 | Q87: 7.665254702 | R87: =Data!$AZ$5 -> 75.3 | S87: =IF(Data!$AZ$2,1,R87) * (1 + E87/F87) -> 8.669864678 | T87: 0.8492425893 | U87: -0.8366116655 | V87: 14.75724572
A88: 83 | B88: =SUMIF(Data!$A:$A,$A88,Data!G:G)/ SUMIF(Data!$A:$A,$A88,Data!F:F) -> 0.2770856927 | C88: =SUMIFS(Data!L:L,Data!$A:$A,$A88,Data!L:L,">="&0) -> 38666.52488 | D88: =SUMIFS(Data!M:M,Data!$A:$A,$A88,Data!M:M,">="&0) -> 38530.0449 | E88: =SUMIFS(Data!N:N,Data!$A:$A,$A88,Data!N:N,">="&0)*1000 -> 289.6324 | F88: =SUMIFS(Data!O:O,Data!$A:$A,$A88,Data!O:O,">="&0)*1000 -> 14.4745999 | G88: =SUMIFS(Data!R:R,Data!$A:$A,$A88,Data!R:R,">="&0) -> 36773.4953 | H88: =SUMIFS(Data!S:S,Data!$A:$A,$A88,Data!S:S,">="&0) -> 36643.3052 | I88: =SUMIFS(Data!AA:AA,Data!$A:$A,$A88,Data!AA:AA,">="&0)*1000 -> 15.7771 | J88: =SUMIFS(Data!AG:AG,Data!$A:$A,$A88,Data!AG:AG,">="&0)*1000 -> 12.6475 | K88: =SUMIFS(Data!AM:AM,Data!$A:$A,$A88,Data!AM:AM,">="&0)*1000 -> 14.11220006 | L88: =SUMIFS(Data!AS:AS,Data!$A:$A,$A88,Data!AS:AS,">="&0)*1000 -> 10.4707 | M88: 0.3529667598 | N88: 34.57201679 | O88: 25.97775632 | P88: 24.74481123 | Q88: 8.255636968 | R88: =Data!$AZ$5 -> 75.3 | S88: =IF(Data!$AZ$2,1,R88) * (1 + E88/F88) -> 21.00969989 | T88: 0.3540324327 | U88: -0.02238946763 | V88: 5.148934272
A89: 84 | B89: =SUMIF(Data!$A:$A,$A89,Data!G:G)/ SUMIF(Data!$A:$A,$A89,Data!F:F) -> 0.5433927332 | C89: =SUMIFS(Data!L:L,Data!$A:$A,$A89,Data!L:L,">="&0) -> 27681.72766 | D89: =SUMIFS(Data!M:M,Data!$A:$A,$A89,Data!M:M,">="&0) -> 27607.55099 | E89: =SUMIFS(Data!N:N,Data!$A:$A,$A89,Data!N:N,">="&0)*1000 -> 201.128701 | F89: =SUMIFS(Data!O:O,Data!$A:$A,$A89,Data!O:O,">="&0)*1000 -> 15.656 | G89: =SUMIFS(Data!R:R,Data!$A:$A,$A89,Data!R:R,">="&0) -> 25594.10559 | H89: =SUMIFS(Data!S:S,Data!$A:$A,$A89,Data!S:S,">="&0) -> 25521.75416 | I89: =SUMIFS(Data!AA:AA,Data!$A:$A,$A89,Data!AA:AA,">="&0)*1000 -> 17.0003001 | J89: =SUMIFS(Data!AG:AG,Data!$A:$A,$A89,Data!AG:AG,">="&0)*1000 -> 14.7117 | K89: =SUMIFS(Data!AM:AM,Data!$A:$A,$A89,Data!AM:AM,">="&0)*1000 -> 16.0357 | L89: =SUMIFS(Data!AS:AS,Data!$A:$A,$A89,Data!AS:AS,">="&0)*1000 -> 12.0953999 | M89: 0.2679625597 | N89: 32.44803714 | O89: 26.63984984 | P89: 15.5563266 | Q89: 7.907508056 | R89: =Data!$AZ$5 -> 75.3 | S89: =IF(Data!$AZ$2,1,R89) * (1 + E89/F89) -> 13.84674891 | T89: 0.2826878468 | U89: -0.2038973535 | V89: 8.17262331
A90: 85 | B90: =SUMIF(Data!$A:$A,$A90,Data!G:G)/ SUMIF(Data!$A:$A,$A90,Data!F:F) -> 0.9690618762 | C90: =SUMIFS(Data!L:L,Data!$A:$A,$A90,Data!L:L,">="&0) -> 10181.6027 | D90: =SUMIFS(Data!M:M,Data!$A:$A,$A90,Data!M:M,">="&0) -> 10120.78713 | E90: =SUMIFS(Data!N:N,Data!$A:$A,$A90,Data!N:N,">="&0)*1000 -> 73.1561 | F90: =SUMIFS(Data!O:O,Data!$A:$A,$A90,Data!O:O,">="&0)*1000 -> 9.74409995 | G90: =SUMIFS(Data!R:R,Data!$A:$A,$A90,Data!R:R,">="&0) -> 8867.67383 | H90: =SUMIFS(Data!S:S,Data!$A:$A,$A90,Data!S:S,">="&0) -> 8808.043382 | I90: =SUMIFS(Data!AA:AA,Data!$A:$A,$A90,Data!AA:AA,">="&0)*1000 -> 10.5465 | J90: =SUMIFS(Data!AG:AG,Data!$A:$A,$A90,Data!AG:AG,">="&0)*1000 -> 9.6844 | K90: =SUMIFS(Data!AM:AM,Data!$A:$A,$A90,Data!AM:AM,">="&0)*1000 -> 10.62310005 | L90: =SUMIFS(Data!AS:AS,Data!$A:$A,$A90,Data!AS:AS,">="&0)*1000 -> 8.16620001 | M90: 0.5973084571 | N90: 29.6882248 | O90: 26.17933154 | P90: 8.901945397 | Q90: 7.608211729 | R90: =Data!$AZ$5 -> 75.3 | S90: =IF(Data!$AZ$2,1,R90) * (1 + E90/F90) -> 8.507732923 | T90: 0.6724474664 | U90: -0.639262623 | V90: 14.90392005
A91: 86 | B91: =SUMIF(Data!$A:$A,$A91,Data!G:G)/ SUMIF(Data!$A:$A,$A91,Data!F:F) -> 0.4067830624 | C91: =SUMIFS(Data!L:L,Data!$A:$A,$A91,Data!L:L,">="&0) -> 34258.9576 | D91: =SUMIFS(Data!M:M,Data!$A:$A,$A91,Data!M:M,">="&0) -> 34162.66833 | E91: =SUMIFS(Data!N:N,Data!$A:$A,$A91,Data!N:N,">="&0)*1000 -> 259.103502 | F91: =SUMIFS(Data!O:O,Data!$A:$A,$A91,Data!O:O,">="&0)*1000 -> 15.2152 | G91: =SUMIFS(Data!R:R,Data!$A:$A,$A91,Data!R:R,">="&0) -> 32287.656 | H91: =SUMIFS(Data!S:S,Data!$A:$A,$A91,Data!S:S,">="&0) -> 32197.57922 | I91: =SUMIFS(Data!AA:AA,Data!$A:$A,$A91,Data!AA:AA,">="&0)*1000 -> 16.5626 | J91: =SUMIFS(Data!AG:AG,Data!$A:$A,$A91,Data!AG:AG,">="&0)*1000 -> 13.7528001 | K91: =SUMIFS(Data!AM:AM,Data!$A:$A,$A91,Data!AM:AM,">="&0)*1000 -> 15.30740001 | L91: =SUMIFS(Data!AS:AS,Data!$A:$A,$A91,Data!AS:AS,">="&0)*1000 -> 11.47630009 | M91: 0.2810630467 | N91: 33.27634365 | O91: 25.94215776 | P91: 20.43074777 | Q91: 8.135196165 | R91: =Data!$AZ$5 -> 75.3 | S91: =IF(Data!$AZ$2,1,R91) * (1 + E91/F91) -> 18.02925377 | T91: 0.2789820977 | U91: 0.03751795809 | V91: 6.103220048
A92: 87 | B92: =SUMIF(Data!$A:$A,$A92,Data!G:G)/ SUMIF(Data!$A:$A,$A92,Data!F:F) -> 0.5760266371 | C92: =SUMIFS(Data!L:L,Data!$A:$A,$A92,Data!L:L,">="&0) -> 30521.1311 | D92: =SUMIFS(Data!M:M,Data!$A:$A,$A92,Data!M:M,">="&0) -> 30451.84742 | E92: =SUMIFS(Data!N:N,Data!$A:$A,$A92,Data!N:N,">="&0)*1000 -> 221.8610002 | F92: =SUMIFS(Data!O:O,Data!$A:$A,$A92,Data!O:O,">="&0)*1000 -> 15.52249997 | G92: =SUMIFS(Data!R:R,Data!$A:$A,$A92,Data!R:R,">="&0) -> 28442.1106 | H92: =SUMIFS(Data!S:S,Data!$A:$A,$A92,Data!S:S,">="&0) -> 28376.78807 | I92: =SUMIFS(Data!AA:AA,Data!$A:$A,$A92,Data!AA:AA,">="&0)*1000 -> 16.8504 | J92: =SUMIFS(Data!AG:AG,Data!$A:$A,$A92,Data!AG:AG,">="&0)*1000 -> 14.49480011 | K92: =SUMIFS(Data!AM:AM,Data!$A:$A,$A92,Data!AM:AM,">="&0)*1000 -> 15.94400001 | L92: =SUMIFS(Data!AS:AS,Data!$A:$A,$A92,Data!AS:AS,">="&0)*1000 -> 12.0199 | M92: 0.2270023341 | N92: 32.30982897 | O92: 26.30692414 | P92: 16.25134443 | Q92: 7.880525269 | R92: =Data!$AZ$5 -> 75.3 | S92: =IF(Data!$AZ$2,1,R92) * (1 + E92/F92) -> 15.29286524 | T92: 0.2296683636 | U92: -0.04077123002 | V92: 7.31252369
A93: 88 | B93: =SUMIF(Data!$A:$A,$A93,Data!G:G)/ SUMIF(Data!$A:$A,$A93,Data!F:F) -> 0.2347046414 | C93: =SUMIFS(Data!L:L,Data!$A:$A,$A93,Data!L:L,">="&0) -> 39767.6013 | D93: =SUMIFS(Data!M:M,Data!$A:$A,$A93,Data!M:M,">="&0) -> 39653.11368 | E93: =SUMIFS(Data!N:N,Data!$A:$A,$A93,Data!N:N,">="&0)*1000 -> 310.204502 | F93: =SUMIFS(Data!O:O,Data!$A:$A,$A93,Data!O:O,">="&0)*1000 -> 14.87679999 | G93: =SUMIFS(Data!R:R,Data!$A:$A,$A93,Data!R:R,">="&0) -> 37903.637 | H93: =SUMIFS(Data!S:S,Data!$A:$A,$A93,Data!S:S,">="&0) -> 37798.94362 | I93: =SUMIFS(Data!AA:AA,Data!$A:$A,$A93,Data!AA:AA,">="&0)*1000 -> 16.21699999 | J93: =SUMIFS(Data!AG:AG,Data!$A:$A,$A93,Data!AG:AG,">="&0)*1000 -> 12.9692 | K93: =SUMIFS(Data!AM:AM,Data!$A:$A,$A93,Data!AM:AM,">="&0)*1000 -> 14.8049 | L93: =SUMIFS(Data!AS:AS,Data!$A:$A,$A93,Data!AS:AS,">="&0)*1000 -> 10.9437999 | M93: 0.2878916914 | N93: 33.65724781 | O93: 25.24565551 | P93: 25.04240809 | Q93: 8.264167237 | R93: =Data!$AZ$5 -> 75.3 | S93: =IF(Data!$AZ$2,1,R93) * (1 + E93/F93) -> 21.85156097 | T93: 0.2762093252 | U93: 0.2552779357 | V93: 4.905348887
A94: 89 | B94: =SUMIF(Data!$A:$A,$A94,Data!G:G)/ SUMIF(Data!$A:$A,$A94,Data!F:F) -> 0.299800977 | C94: =SUMIFS(Data!L:L,Data!$A:$A,$A94,Data!L:L,">="&0) -> 39617.7147 | D94: =SUMIFS(Data!M:M,Data!$A:$A,$A94,Data!M:M,">="&0) -> 39502.28695 | E94: =SUMIFS(Data!N:N,Data!$A:$A,$A94,Data!N:N,">="&0)*1000 -> 299.281599 | F94: =SUMIFS(Data!O:O,Data!$A:$A,$A94,Data!O:O,">="&0)*1000 -> 15.33930013 | G94: =SUMIFS(Data!R:R,Data!$A:$A,$A94,Data!R:R,">="&0) -> 37634.163 | H94: =SUMIFS(Data!S:S,Data!$A:$A,$A94,Data!S:S,">="&0) -> 37529.33327 | I94: =SUMIFS(Data!AA:AA,Data!$A:$A,$A94,Data!AA:AA,">="&0)*1000 -> 16.7199001 | J94: =SUMIFS(Data!AG:AG,Data!$A:$A,$A94,Data!AG:AG,">="&0)*1000 -> 13.5236001 | K94: =SUMIFS(Data!AM:AM,Data!$A:$A,$A94,Data!AM:AM,">="&0)*1000 -> 15.1011 | L94: =SUMIFS(Data!AS:AS,Data!$A:$A,$A94,Data!AS:AS,">="&0)*1000 -> 11.21499998 | M94: 0.2913538827 | N94: 34.16561615 | O94: 25.94066058 | P94: 23.63497868 | Q94: 8.25722619 | R94: =Data!$AZ$5 -> 75.3 | S94: =IF(Data!$AZ$2,1,R94) * (1 + E94/F94) -> 20.51077275 | T94: 0.2785493861 | U94: 0.2626301192 | V94: 5.257097604
A95: 90 | B95: =SUMIF(Data!$A:$A,$A95,Data!G:G)/ SUMIF(Data!$A:$A,$A95,Data!F:F) -> 0.6490458999 | C95: =SUMIFS(Data!L:L,Data!$A:$A,$A95,Data!L:L,">="&0) -> 25810.5882 | D95: =SUMIFS(Data!M:M,Data!$A:$A,$A95,Data!M:M,">="&0) -> 25723.39364 | E95: =SUMIFS(Data!N:N,Data!$A:$A,$A95,Data!N:N,">="&0)*1000 -> 191.3646 | F95: =SUMIFS(Data!O:O,Data!$A:$A,$A95,Data!O:O,">="&0)*1000 -> 13.8832 | G95: =SUMIFS(Data!R:R,Data!$A:$A,$A95,Data!R:R,">="&0) -> 23961.46677 | H95: =SUMIFS(Data!S:S,Data!$A:$A,$A95,Data!S:S,">="&0) -> 23878.46379 | I95: =SUMIFS(Data!AA:AA,Data!$A:$A,$A95,Data!AA:AA,">="&0)*1000 -> 15.06889998 | J95: =SUMIFS(Data!AG:AG,Data!$A:$A,$A95,Data!AG:AG,">="&0)*1000 -> 13.0824 | K95: =SUMIFS(Data!AM:AM,Data!$A:$A,$A95,Data!AM:AM,">="&0)*1000 -> 14.49020006 | L95: =SUMIFS(Data!AS:AS,Data!$A:$A,$A95,Data!AS:AS,">="&0)*1000 -> 11.15420001 | M95: 0.3378247691 | N95: 31.73471196 | O95: 25.7799759 | P95: 15.18452256 | Q95: 7.868523791 | R95: =Data!$AZ$5 -> 75.3 | S95: =IF(Data!$AZ$2,1,R95) * (1 + E95/F95) -> 14.78389708 | T95: 0.346401916 | U95: -0.1268036569 | V95: 7.726333931
A96: 91 | B96: =SUMIF(Data!$A:$A,$A96,Data!G:G)/ SUMIF(Data!$A:$A,$A96,Data!F:F) -> 0.1432936636 | C96: =SUMIFS(Data!L:L,Data!$A:$A,$A96,Data!L:L,">="&0) -> 46151.52046 | D96: =SUMIFS(Data!M:M,Data!$A:$A,$A96,Data!M:M,">="&0) -> 45986.86975 | E96: =SUMIFS(Data!N:N,Data!$A:$A,$A96,Data!N:N,">="&0)*1000 -> 350.0155003 | F96: =SUMIFS(Data!O:O,Data!$A:$A,$A96,Data!O:O,">="&0)*1000 -> 15.5674 | G96: =SUMIFS(Data!R:R,Data!$A:$A,$A96,Data!R:R,">="&0) -> 44147.8797 | H96: =SUMIFS(Data!S:S,Data!$A:$A,$A96,Data!S:S,">="&0) -> 43999.3157 | I96: =SUMIFS(Data!AA:AA,Data!$A:$A,$A96,Data!AA:AA,">="&0)*1000 -> 17.0035999 | J96: =SUMIFS(Data!AG:AG,Data!$A:$A,$A96,Data!AG:AG,">="&0)*1000 -> 13.3036002 | K96: =SUMIFS(Data!AM:AM,Data!$A:$A,$A96,Data!AM:AM,">="&0)*1000 -> 14.93189999 | L96: =SUMIFS(Data!AS:AS,Data!$A:$A,$A96,Data!AS:AS,">="&0)*1000 -> 10.99420001 | M96: 0.3567611822 | N96: 35.26119288 | O96: 25.86484547 | P96: 27.81201813 | Q96: 8.446446096 | R96: =Data!$AZ$5 -> 75.3 | S96: =IF(Data!$AZ$2,1,R96) * (1 + E96/F96) -> 23.48387658 | T96: 0.3365144623 | U96: 0.4754714709 | V96: 4.517238549
A97: 92 | B97: =SUMIF(Data!$A:$A,$A97,Data!G:G)/ SUMIF(Data!$A:$A,$A97,Data!F:F) -> 0.9222423146 | C97: =SUMIFS(Data!L:L,Data!$A:$A,$A97,Data!L:L,">="&0) -> 11256.0064 | D97: =SUMIFS(Data!M:M,Data!$A:$A,$A97,Data!M:M,">="&0) -> 11207.83555 | E97: =SUMIFS(Data!N:N,Data!$A:$A,$A97,Data!N:N,">="&0)*1000 -> 82.4172987 | F97: =SUMIFS(Data!O:O,Data!$A:$A,$A97,Data!O:O,">="&0)*1000 -> 10.30499998 | G97: =SUMIFS(Data!R:R,Data!$A:$A,$A97,Data!R:R,">="&0) -> 9891.40458 | H97: =SUMIFS(Data!S:S,Data!$A:$A,$A97,Data!S:S,">="&0) -> 9845.64414 | I97: =SUMIFS(Data!AA:AA,Data!$A:$A,$A97,Data!AA:AA,">="&0)*1000 -> 11.1653999 | J97: =SUMIFS(Data!AG:AG,Data!$A:$A,$A97,Data!AG:AG,">="&0)*1000 -> 10.1747 | K97: =SUMIFS(Data!AM:AM,Data!$A:$A,$A97,Data!AM:AM,">="&0)*1000 -> 11.19609977 | L97: =SUMIFS(Data!AS:AS,Data!$A:$A,$A97,Data!AS:AS,">="&0)*1000 -> 8.50750006 | M97: 0.4279568462 | N97: 29.88581465 | O97: 26.20099725 | P97: 9.736895437 | Q97: 7.705948087 | R97: =Data!$AZ$5 -> 75.3 | S97: =IF(Data!$AZ$2,1,R97) * (1 + E97/F97) -> 8.997797075 | T97: 0.4626283318 | U97: -0.3119669915 | V97: 13.83547273
A98: 93 | B98: =SUMIF(Data!$A:$A,$A98,Data!G:G)/ SUMIF(Data!$A:$A,$A98,Data!F:F) -> 0.7176201373 | C98: =SUMIFS(Data!L:L,Data!$A:$A,$A98,Data!L:L,">="&0) -> 26239.4348 | D98: =SUMIFS(Data!M:M,Data!$A:$A,$A98,Data!M:M,">="&0) -> 26179.91672 | E98: =SUMIFS(Data!N:N,Data!$A:$A,$A98,Data!N:N,">="&0)*1000 -> 190.578801 | F98: =SUMIFS(Data!O:O,Data!$A:$A,$A98,Data!O:O,">="&0)*1000 -> 17.47440003 | G98: =SUMIFS(Data!R:R,Data!$A:$A,$A98,Data!R:R,">="&0) -> 23924.47288 | H98: =SUMIFS(Data!S:S,Data!$A:$A,$A98,Data!S:S,">="&0) -> 23868.7042 | I98: =SUMIFS(Data!AA:AA,Data!$A:$A,$A98,Data!AA:AA,">="&0)*1000 -> 18.96349992 | J98: =SUMIFS(Data!AG:AG,Data!$A:$A,$A98,Data!AG:AG,">="&0)*1000 -> 16.784 | K98: =SUMIFS(Data!AM:AM,Data!$A:$A,$A98,Data!AM:AM,">="&0)*1000 -> 18.45229997 | L98: =SUMIFS(Data!AS:AS,Data!$A:$A,$A98,Data!AS:AS,">="&0)*1000 -> 14.0533001 | M98: 0.226826837 | N98: 31.16208221 | O98: 26.20754713 | P98: 12.98558103 | Q98: 7.85245285 | R98: =Data!$AZ$5 -> 75.3 | S98: =IF(Data!$AZ$2,1,R98) * (1 + E98/F98) -> 11.90617135 | T98: 0.2331030668 | U98: -0.07472586765 | V98: 9.683024686
A99: 94 | B99: =SUMIF(Data!$A:$A,$A99,Data!G:G)/ SUMIF(Data!$A:$A,$A99,Data!F:F) -> 0.7590735435 | C99: =SUMIFS(Data!L:L,Data!$A:$A,$A99,Data!L:L,">="&0) -> 25127.1237 | D99: =SUMIFS(Data!M:M,Data!$A:$A,$A99,Data!M:M,">="&0) -> 25069.44055 | E99: =SUMIFS(Data!N:N,Data!$A:$A,$A99,Data!N:N,">="&0)*1000 -> 179.609502 | F99: =SUMIFS(Data!O:O,Data!$A:$A,$A99,Data!O:O,">="&0)*1000 -> 17.46379993 | G99: =SUMIFS(Data!R:R,Data!$A:$A,$A99,Data!R:R,">="&0) -> 22780.1098 | H99: =SUMIFS(Data!S:S,Data!$A:$A,$A99,Data!S:S,">="&0) -> 22726.01938 | I99: =SUMIFS(Data!AA:AA,Data!$A:$A,$A99,Data!AA:AA,">="&0)*1000 -> 18.94309991 | J99: =SUMIFS(Data!AG:AG,Data!$A:$A,$A99,Data!AG:AG,">="&0)*1000 -> 16.85939996 | K99: =SUMIFS(Data!AM:AM,Data!$A:$A,$A99,Data!AM:AM,">="&0)*1000 -> 18.26450002 | L99: =SUMIFS(Data!AS:AS,Data!$A:$A,$A99,Data!AS:AS,">="&0)*1000 -> 13.94839989 | M99: 0.2295652725 | N99: 31.57225243 | O99: 26.74451468 | P99: 12.35927705 | Q99: 7.809175832 | R99: =Data!$AZ$5 -> 75.3 | S99: =IF(Data!$AZ$2,1,R99) * (1 + E99/F99) -> 11.28467474 | T99: 0.2374458265 | U99: -0.08892948874 | V99: 10.31162181
A100: 95 | B100: =SUMIF(Data!$A:$A,$A100,Data!G:G)/ SUMIF(Data!$A:$A,$A100,Data!F:F) -> 0.1326060234 | C100: =SUMIFS(Data!L:L,Data!$A:$A,$A100,Data!L:L,">="&0) -> 48291.2141 | D100: =SUMIFS(Data!M:M,Data!$A:$A,$A100,Data!M:M,">="&0) -> 48109.68257 | E100: =SUMIFS(Data!N:N,Data!$A:$A,$A100,Data!N:N,">="&0)*1000 -> 367.225598 | F100: =SUMIFS(Data!O:O,Data!$A:$A,$A100,Data!O:O,">="&0)*1000 -> 16.29380002 | G100: =SUMIFS(Data!R:R,Data!$A:$A,$A100,Data!R:R,">="&0) -> 46202.4088 | H100: =SUMIFS(Data!S:S,Data!$A:$A,$A100,Data!S:S,">="&0) -> 46037.9561 | I100: =SUMIFS(Data!AA:AA,Data!$A:$A,$A100,Data!AA:AA,">="&0)*1000 -> 17.8105 | J100: =SUMIFS(Data!AG:AG,Data!$A:$A,$A100,Data!AG:AG,">="&0)*1000 -> 13.8561 | K100: =SUMIFS(Data!AM:AM,Data!$A:$A,$A100,Data!AM:AM,">="&0)*1000 -> 15.3712 | L100: =SUMIFS(Data!AS:AS,Data!$A:$A,$A100,Data!AS:AS,">="&0)*1000 -> 11.3113 | M100: 0.3759100561 | N100: 36.00827607 | O100: 26.26813468 | P100: 28.539055 | Q100: 8.515763061 | R100: =Data!$AZ$5 -> 75.3 | S100: =IF(Data!$AZ$2,1,R100) * (1 + E100/F100) -> 23.53775041 | T100: 0.3559396669 | U100: 0.4700580349 | V100: 4.500040066
A101: 96 | B101: =SUMIF(Data!$A:$A,$A101,Data!G:G)/ SUMIF(Data!$A:$A,$A101,Data!F:F) -> 0.3664353088 | C101: =SUMIFS(Data!L:L,Data!$A:$A,$A101,Data!L:L,">="&0) -> 38816.2736 | D101: =SUMIFS(Data!M:M,Data!$A:$A,$A101,Data!M:M,">="&0) -> 38726.14955 | E101: =SUMIFS(Data!N:N,Data!$A:$A,$A101,Data!N:N,">="&0)*1000 -> 295.1657 | F101: =SUMIFS(Data!O:O,Data!$A:$A,$A101,Data!O:O,">="&0)*1000 -> 16.66629999 | G101: =SUMIFS(Data!R:R,Data!$A:$A,$A101,Data!R:R,">="&0) -> 36681.4816 | H101: =SUMIFS(Data!S:S,Data!$A:$A,$A101,Data!S:S,">="&0) -> 36601.25006 | I101: =SUMIFS(Data!AA:AA,Data!$A:$A,$A101,Data!AA:AA,">="&0)*1000 -> 18.15360002 | J101: =SUMIFS(Data!AG:AG,Data!$A:$A,$A101,Data!AG:AG,">="&0)*1000 -> 14.92449996 | K101: =SUMIFS(Data!AM:AM,Data!$A:$A,$A101,Data!AM:AM,">="&0)*1000 -> 16.4491 | L101: =SUMIFS(Data!AS:AS,Data!$A:$A,$A101,Data!AS:AS,">="&0)*1000 -> 12.2576999 | M101: 0.2321810974 | N101: 34.06666026 | O101: 26.36255188 | P101: 21.63623618 | Q101: 8.192865483 | R101: =Data!$AZ$5 -> 75.3 | S101: =IF(Data!$AZ$2,1,R101) * (1 + E101/F101) -> 18.71033164 | T101: 0.2187249165 | U101: 0.2517696066 | V101: 5.805538025
A102: 97 | B102: =SUMIF(Data!$A:$A,$A102,Data!G:G)/ SUMIF(Data!$A:$A,$A102,Data!F:F) -> 0.8454198473 | C102: =SUMIFS(Data!L:L,Data!$A:$A,$A102,Data!L:L,">="&0) -> 20806.0197 | D102: =SUMIFS(Data!M:M,Data!$A:$A,$A102,Data!M:M,">="&0) -> 20747.29668 | E102: =SUMIFS(Data!N:N,Data!$A:$A,$A102,Data!N:N,">="&0)*1000 -> 147.8114 | F102: =SUMIFS(Data!O:O,Data!$A:$A,$A102,Data!O:O,">="&0)*1000 -> 16.4325 | G102: =SUMIFS(Data!R:R,Data!$A:$A,$A102,Data!R:R,">="&0) -> 18596.3937 | H102: =SUMIFS(Data!S:S,Data!$A:$A,$A102,Data!S:S,">="&0) -> 18540.23968 | I102: =SUMIFS(Data!AA:AA,Data!$A:$A,$A102,Data!AA:AA,">="&0)*1000 -> 17.81 | J102: =SUMIFS(Data!AG:AG,Data!$A:$A,$A102,Data!AG:AG,">="&0)*1000 -> 16.0784999 | K102: =SUMIFS(Data!AM:AM,Data!$A:$A,$A102,Data!AM:AM,">="&0)*1000 -> 17.41879998 | L102: =SUMIFS(Data!AS:AS,Data!$A:$A,$A102,Data!AS:AS,">="&0)*1000 -> 13.3360999 | M102: 0.2822405287 | N102: 30.95818946 | O102: 26.71712334 | P102: 10.76904009 | Q102: 7.734418866 | R102: =Data!$AZ$5 -> 75.3 | S102: =IF(Data!$AZ$2,1,R102) * (1 + E102/F102) -> 9.995064658 | T102: 0.3019618798 | U102: -0.19711618 | V102: 11.90414492
A103: 98 | B103: =SUMIF(Data!$A:$A,$A103,Data!G:G)/ SUMIF(Data!$A:$A,$A103,Data!F:F) -> 0.8599875544 | C103: =SUMIFS(Data!L:L,Data!$A:$A,$A103,Data!L:L,">="&0) -> 18637.72453 | D103: =SUMIFS(Data!M:M,Data!$A:$A,$A103,Data!M:M,">="&0) -> 18573.18721 | E103: =SUMIFS(Data!N:N,Data!$A:$A,$A103,Data!N:N,">="&0)*1000 -> 133.7900005 | F103: =SUMIFS(Data!O:O,Data!$A:$A,$A103,Data!O:O,">="&0)*1000 -> 14.20049997 | G103: =SUMIFS(Data!R:R,Data!$A:$A,$A103,Data!R:R,">="&0) -> 16730.39663 | H103: =SUMIFS(Data!S:S,Data!$A:$A,$A103,Data!S:S,">="&0) -> 16669.6227 | I103: =SUMIFS(Data!AA:AA,Data!$A:$A,$A103,Data!AA:AA,">="&0)*1000 -> 15.40749999 | J103: =SUMIFS(Data!AG:AG,Data!$A:$A,$A103,Data!AG:AG,">="&0)*1000 -> 13.8637999 | K103: =SUMIFS(Data!AM:AM,Data!$A:$A,$A103,Data!AM:AM,">="&0)*1000 -> 15.10900005 | L103: =SUMIFS(Data!AS:AS,Data!$A:$A,$A103,Data!AS:AS,">="&0)*1000 -> 11.59359993 | M103: 0.3462725286 | N103: 30.84912081 | O103: 26.45787078 | P103: 11.13475455 | Q103: 7.833847287 | R103: =Data!$AZ$5 -> 75.3 | S103: =IF(Data!$AZ$2,1,R103) * (1 + E103/F103) -> 10.4214993 | T103: 0.363254568 | U103: -0.1769783117 | V103: 11.4193617
A104: 99 | B104: =SUMIF(Data!$A:$A,$A104,Data!G:G)/ SUMIF(Data!$A:$A,$A104,Data!F:F) -> 0.9357469015 | C104: =SUMIFS(Data!L:L,Data!$A:$A,$A104,Data!L:L,">="&0) -> 16156.1041 | D104: =SUMIFS(Data!M:M,Data!$A:$A,$A104,Data!M:M,">="&0) -> 16090.14858 | E104: =SUMIFS(Data!N:N,Data!$A:$A,$A104,Data!N:N,">="&0)*1000 -> 114.2754 | F104: =SUMIFS(Data!O:O,Data!$A:$A,$A104,Data!O:O,">="&0)*1000 -> 14.4889 | G104: =SUMIFS(Data!R:R,Data!$A:$A,$A104,Data!R:R,">="&0) -> 14207.371 | H104: =SUMIFS(Data!S:S,Data!$A:$A,$A104,Data!S:S,">="&0) -> 14144.28138 | I104: =SUMIFS(Data!AA:AA,Data!$A:$A,$A104,Data!AA:AA,">="&0)*1000 -> 15.69139997 | J104: =SUMIFS(Data!AG:AG,Data!$A:$A,$A104,Data!AG:AG,">="&0)*1000 -> 14.3375 | K104: =SUMIFS(Data!AM:AM,Data!$A:$A,$A104,Data!AM:AM,">="&0)*1000 -> 15.6960002 | L104: =SUMIFS(Data!AS:AS,Data!$A:$A,$A104,Data!AS:AS,">="&0)*1000 -> 12.0086999 | M104: 0.4082390135 | N104: 29.98752412 | O104: 26.31573214 | P104: 9.443068666 | Q104: 7.663433297 | R104: =Data!$AZ$5 -> 75.3 | S104: =IF(Data!$AZ$2,1,R104) * (1 + E104/F104) -> 8.88709978 | T104: 0.4440625926 | U104: -0.3183677216 | V104: 13.75727156
A105: 100 | B105: =SUMIF(Data!$A:$A,$A105,Data!G:G)/ SUMIF(Data!$A:$A,$A105,Data!F:F) -> 0.8819284065 | C105: =SUMIFS(Data!L:L,Data!$A:$A,$A105,Data!L:L,">="&0) -> 18496.5916 | D105: =SUMIFS(Data!M:M,Data!$A:$A,$A105,Data!M:M,">="&0) -> 18433.78285 | E105: =SUMIFS(Data!N:N,Data!$A:$A,$A105,Data!N:N,">="&0)*1000 -> 132.6980995 | F105: =SUMIFS(Data!O:O,Data!$A:$A,$A105,Data!O:O,">="&0)*1000 -> 15.8612 | G105: =SUMIFS(Data!R:R,Data!$A:$A,$A105,Data!R:R,">="&0) -> 16392.6921 | H105: =SUMIFS(Data!S:S,Data!$A:$A,$A105,Data!S:S,">="&0) -> 16333.7489 | I105: =SUMIFS(Data!AA:AA,Data!$A:$A,$A105,Data!AA:AA,">="&0)*1000 -> 17.18290007 | J105: =SUMIFS(Data!AG:AG,Data!$A:$A,$A105,Data!AG:AG,">="&0)*1000 -> 15.61420004 | K105: =SUMIFS(Data!AM:AM,Data!$A:$A,$A105,Data!AM:AM,">="&0)*1000 -> 17.1210001 | L105: =SUMIFS(Data!AS:AS,Data!$A:$A,$A105,Data!AS:AS,">="&0)*1000 -> 13.07819999 | M105: 0.3395693183 | N105: 30.15311163 | O105: 26.27288014 | P105: 10.04662439 | Q105: 7.691949931 | R105: =Data!$AZ$5 -> 75.3 | S105: =IF(Data!$AZ$2,1,R105) * (1 + E105/F105) -> 9.366208074 | T105: 0.3595699818 | U105: -0.1873303762 | V105: 12.85702359
A106: 101 | B106: =SUMIF(Data!$A:$A,$A106,Data!G:G)/ SUMIF(Data!$A:$A,$A106,Data!F:F) -> 0.4529883382 | C106: =SUMIFS(Data!L:L,Data!$A:$A,$A106,Data!L:L,">="&0) -> 36409.4053 | D106: =SUMIFS(Data!M:M,Data!$A:$A,$A106,Data!M:M,">="&0) -> 36329.6031 | E106: =SUMIFS(Data!N:N,Data!$A:$A,$A106,Data!N:N,">="&0)*1000 -> 273.5795978 | F106: =SUMIFS(Data!O:O,Data!$A:$A,$A106,Data!O:O,">="&0)*1000 -> 17.6334999 | G106: =SUMIFS(Data!R:R,Data!$A:$A,$A106,Data!R:R,">="&0) -> 34134.1577 | H106: =SUMIFS(Data!S:S,Data!$A:$A,$A106,Data!S:S,">="&0) -> 34062.67744 | I106: =SUMIFS(Data!AA:AA,Data!$A:$A,$A106,Data!AA:AA,">="&0)*1000 -> 19.18469996 | J106: =SUMIFS(Data!AG:AG,Data!$A:$A,$A106,Data!AG:AG,">="&0)*1000 -> 16.1966999 | K106: =SUMIFS(Data!AM:AM,Data!$A:$A,$A106,Data!AM:AM,">="&0)*1000 -> 17.9831 | L106: =SUMIFS(Data!AS:AS,Data!$A:$A,$A106,Data!AS:AS,">="&0)*1000 -> 13.4846 | M106: 0.2191801798 | N106: 32.6711125 | O106: 26.0288983 | P106: 18.4482029 | Q106: 8.085610217 | R106: =Data!$AZ$5 -> 75.3 | S106: =IF(Data!$AZ$2,1,R106) * (1 + E106/F106) -> 16.51476447 | T106: 0.2094097667 | U106: 0.1613560714 | V106: 6.65515993
A107: 102 | B107: =SUMIF(Data!$A:$A,$A107,Data!G:G)/ SUMIF(Data!$A:$A,$A107,Data!F:F) -> 0.4559905101 | C107: =SUMIFS(Data!L:L,Data!$A:$A,$A107,Data!L:L,">="&0) -> 29938.6456 | D107: =SUMIFS(Data!M:M,Data!$A:$A,$A107,Data!M:M,">="&0) -> 29872.30984 | E107: =SUMIFS(Data!N:N,Data!$A:$A,$A107,Data!N:N,">="&0)*1000 -> 231.1095981 | F107: =SUMIFS(Data!O:O,Data!$A:$A,$A107,Data!O:O,">="&0)*1000 -> 12.2756 | G107: =SUMIFS(Data!R:R,Data!$A:$A,$A107,Data!R:R,">="&0) -> 28361.8908 | H107: =SUMIFS(Data!S:S,Data!$A:$A,$A107,Data!S:S,">="&0) -> 28300.93577 | I107: =SUMIFS(Data!AA:AA,Data!$A:$A,$A107,Data!AA:AA,">="&0)*1000 -> 13.3293 | J107: =SUMIFS(Data!AG:AG,Data!$A:$A,$A107,Data!AG:AG,">="&0)*1000 -> 11.0806 | K107: =SUMIFS(Data!AM:AM,Data!$A:$A,$A107,Data!AM:AM,">="&0)*1000 -> 12.48429998 | L107: =SUMIFS(Data!AS:AS,Data!$A:$A,$A107,Data!AS:AS,">="&0)*1000 -> 9.48610005 | M107: 0.2215723479 | N107: 32.81835781 | O107: 25.31819087 | P107: 20.2940274 | Q107: 7.905141305 | R107: =Data!$AZ$5 -> 75.3 | S107: =IF(Data!$AZ$2,1,R107) * (1 + E107/F107) -> 19.82674558 | T107: 0.2149187811 | U107: 0.1319185774 | V107: 5.552374956
A108: 103 | B108: =SUMIF(Data!$A:$A,$A108,Data!G:G)/ SUMIF(Data!$A:$A,$A108,Data!F:F) -> 0.9547808077 | C108: =SUMIFS(Data!L:L,Data!$A:$A,$A108,Data!L:L,">="&0) -> 15107.43386 | D108: =SUMIFS(Data!M:M,Data!$A:$A,$A108,Data!M:M,">="&0) -> 15035.11412 | E108: =SUMIFS(Data!N:N,Data!$A:$A,$A108,Data!N:N,">="&0)*1000 -> 107.1511999 | F108: =SUMIFS(Data!O:O,Data!$A:$A,$A108,Data!O:O,">="&0)*1000 -> 13.94869999 | G108: =SUMIFS(Data!R:R,Data!$A:$A,$A108,Data!R:R,">="&0) -> 13234.04 | H108: =SUMIFS(Data!S:S,Data!$A:$A,$A108,Data!S:S,">="&0) -> 13164.43602 | I108: =SUMIFS(Data!AA:AA,Data!$A:$A,$A108,Data!AA:AA,">="&0)*1000 -> 15.1055998 | J108: =SUMIFS(Data!AG:AG,Data!$A:$A,$A108,Data!AG:AG,">="&0)*1000 -> 13.8226999 | K108: =SUMIFS(Data!AM:AM,Data!$A:$A,$A108,Data!AM:AM,">="&0)*1000 -> 14.99390002 | L108: =SUMIFS(Data!AS:AS,Data!$A:$A,$A108,Data!AS:AS,">="&0)*1000 -> 11.4857999 | M108: 0.4787030059 | N108: 30.31840534 | O108: 26.66144044 | P108: 9.281109402 | Q108: 7.658747917 | R108: =Data!$AZ$5 -> 75.3 | S108: =IF(Data!$AZ$2,1,R108) * (1 + E108/F108) -> 8.681805471 | T108: 0.5259465741 | U108: -0.4101594693 | V108: 14.21008919
A109: 104 | B109: =SUMIF(Data!$A:$A,$A109,Data!G:G)/ SUMIF(Data!$A:$A,$A109,Data!F:F) -> 0.9406220547 | C109: =SUMIFS(Data!L:L,Data!$A:$A,$A109,Data!L:L,">="&0) -> 17270.89008 | D109: =SUMIFS(Data!M:M,Data!$A:$A,$A109,Data!M:M,">="&0) -> 17182.06338 | E109: =SUMIFS(Data!N:N,Data!$A:$A,$A109,Data!N:N,">="&0)*1000 -> 118.5097004 | F109: =SUMIFS(Data!O:O,Data!$A:$A,$A109,Data!O:O,">="&0)*1000 -> 15.1976001 | G109: =SUMIFS(Data!R:R,Data!$A:$A,$A109,Data!R:R,">="&0) -> 15172.54345 | H109: =SUMIFS(Data!S:S,Data!$A:$A,$A109,Data!S:S,">="&0) -> 15087.01899 | I109: =SUMIFS(Data!AA:AA,Data!$A:$A,$A109,Data!AA:AA,">="&0)*1000 -> 16.4595999 | J109: =SUMIFS(Data!AG:AG,Data!$A:$A,$A109,Data!AG:AG,">="&0)*1000 -> 15.03760002 | K109: =SUMIFS(Data!AM:AM,Data!$A:$A,$A109,Data!AM:AM,">="&0)*1000 -> 16.2942 | L109: =SUMIFS(Data!AS:AS,Data!$A:$A,$A109,Data!AS:AS,">="&0)*1000 -> 12.47039997 | M109: 0.5143145465 | N109: 30.43255374 | O109: 26.71374034 | P109: 9.456295407 | Q109: 7.667256845 | R109: =Data!$AZ$5 -> 75.3 | S109: =IF(Data!$AZ$2,1,R109) * (1 + E109/F109) -> 8.797922015 | T109: 0.563679124 | U109: -0.4343057023 | V109: 13.88640388
A110: 105 | B110: =SUMIF(Data!$A:$A,$A110,Data!G:G)/ SUMIF(Data!$A:$A,$A110,Data!F:F) -> 0.1874161324 | C110: =SUMIFS(Data!L:L,Data!$A:$A,$A110,Data!L:L,">="&0) -> 49706.5745 | D110: =SUMIFS(Data!M:M,Data!$A:$A,$A110,Data!M:M,">="&0) -> 49560.0254 | E110: =SUMIFS(Data!N:N,Data!$A:$A,$A110,Data!N:N,">="&0)*1000 -> 374.0814 | F110: =SUMIFS(Data!O:O,Data!$A:$A,$A110,Data!O:O,">="&0)*1000 -> 17.0543998 | G110: =SUMIFS(Data!R:R,Data!$A:$A,$A110,Data!R:R,">="&0) -> 47512.847 | H110: =SUMIFS(Data!S:S,Data!$A:$A,$A110,Data!S:S,">="&0) -> 47383.5119 | I110: =SUMIFS(Data!AA:AA,Data!$A:$A,$A110,Data!AA:AA,">="&0)*1000 -> 18.63170007 | J110: =SUMIFS(Data!AG:AG,Data!$A:$A,$A110,Data!AG:AG,">="&0)*1000 -> 14.6787 | K110: =SUMIFS(Data!AM:AM,Data!$A:$A,$A110,Data!AM:AM,">="&0)*1000 -> 16.4425 | L110: =SUMIFS(Data!AS:AS,Data!$A:$A,$A110,Data!AS:AS,">="&0)*1000 -> 12.1015001 | M110: 0.2948284034 | N110: 35.04307791 | O110: 25.93688081 | P110: 26.93017822 | Q110: 8.465680878 | R110: =Data!$AZ$5 -> 75.3 | S110: =IF(Data!$AZ$2,1,R110) * (1 + E110/F110) -> 22.93459778 | T110: 0.2722107981 | U110: 0.518725682 | V110: 4.593398448
A111: 106 | B111: =SUMIF(Data!$A:$A,$A111,Data!G:G)/ SUMIF(Data!$A:$A,$A111,Data!F:F) -> 0.319980695 | C111: =SUMIFS(Data!L:L,Data!$A:$A,$A111,Data!L:L,">="&0) -> 44767.6553 | D111: =SUMIFS(Data!M:M,Data!$A:$A,$A111,Data!M:M,">="&0) -> 44650.00136 | E111: =SUMIFS(Data!N:N,Data!$A:$A,$A111,Data!N:N,">="&0)*1000 -> 336.0424015 | F111: =SUMIFS(Data!O:O,Data!$A:$A,$A111,Data!O:O,">="&0)*1000 -> 17.3689001 | G111: =SUMIFS(Data!R:R,Data!$A:$A,$A111,Data!R:R,">="&0) -> 42520.8675 | H111: =SUMIFS(Data!S:S,Data!$A:$A,$A111,Data!S:S,">="&0) -> 42416.81258 | I111: =SUMIFS(Data!AA:AA,Data!$A:$A,$A111,Data!AA:AA,">="&0)*1000 -> 18.9423001 | J111: =SUMIFS(Data!AG:AG,Data!$A:$A,$A111,Data!AG:AG,">="&0)*1000 -> 15.3651999 | K111: =SUMIFS(Data!AM:AM,Data!$A:$A,$A111,Data!AM:AM,">="&0)*1000 -> 17.1159003 | L111: =SUMIFS(Data!AS:AS,Data!$A:$A,$A111,Data!AS:AS,">="&0)*1000 -> 12.6931 | M111: 0.262810141 | N111: 34.12950998 | O111: 26.04164719 | P111: 23.28053148 | Q111: 8.306277446 | R111: =Data!$AZ$5 -> 75.3 | S111: =IF(Data!$AZ$2,1,R111) * (1 + E111/F111) -> 20.34736221 | T111: 0.244714944 | U111: 0.3681895265 | V111: 5.264867026
A112: 107 | B112: =SUMIF(Data!$A:$A,$A112,Data!G:G)/ SUMIF(Data!$A:$A,$A112,Data!F:F) -> 0.408208073 | C112: =SUMIFS(Data!L:L,Data!$A:$A,$A112,Data!L:L,">="&0) -> 39444.366 | D112: =SUMIFS(Data!M:M,Data!$A:$A,$A112,Data!M:M,">="&0) -> 39347.48926 | E112: =SUMIFS(Data!N:N,Data!$A:$A,$A112,Data!N:N,">="&0)*1000 -> 299.840102 | F112: =SUMIFS(Data!O:O,Data!$A:$A,$A112,Data!O:O,">="&0)*1000 -> 18.4922 | G112: =SUMIFS(Data!R:R,Data!$A:$A,$A112,Data!R:R,">="&0) -> 37087.4825 | H112: =SUMIFS(Data!S:S,Data!$A:$A,$A112,Data!S:S,">="&0) -> 36999.86791 | I112: =SUMIFS(Data!AA:AA,Data!$A:$A,$A112,Data!AA:AA,">="&0)*1000 -> 20.12929992 | J112: =SUMIFS(Data!AG:AG,Data!$A:$A,$A112,Data!AG:AG,">="&0)*1000 -> 16.8282 | K112: =SUMIFS(Data!AM:AM,Data!$A:$A,$A112,Data!AM:AM,">="&0)*1000 -> 18.61970017 | L112: =SUMIFS(Data!AS:AS,Data!$A:$A,$A112,Data!AS:AS,">="&0)*1000 -> 13.92520003 | M112: 0.2456035022 | N112: 33.21567729 | O112: 26.1838319 | P112: 19.61647663 | Q112: 8.132920303 | R112: =Data!$AZ$5 -> 75.3 | S112: =IF(Data!$AZ$2,1,R112) * (1 + E112/F112) -> 17.21440943 | T112: 0.2362376392 | U112: 0.1612277994 | V112: 6.344945216
A113: 108 | B113: =SUMIF(Data!$A:$A,$A113,Data!G:G)/ SUMIF(Data!$A:$A,$A113,Data!F:F) -> 0.9787234043 | C113: =SUMIFS(Data!L:L,Data!$A:$A,$A113,Data!L:L,">="&0) -> 11990.4942 | D113: =SUMIFS(Data!M:M,Data!$A:$A,$A113,Data!M:M,">="&0) -> 11909.95242 | E113: =SUMIFS(Data!N:N,Data!$A:$A,$A113,Data!N:N,">="&0)*1000 -> 85.3071002 | F113: =SUMIFS(Data!O:O,Data!$A:$A,$A113,Data!O:O,">="&0)*1000 -> 11.3763998 | G113: =SUMIFS(Data!R:R,Data!$A:$A,$A113,Data!R:R,">="&0) -> 10452.01622 | H113: =SUMIFS(Data!S:S,Data!$A:$A,$A113,Data!S:S,">="&0) -> 10372.82244 | I113: =SUMIFS(Data!AA:AA,Data!$A:$A,$A113,Data!AA:AA,">="&0)*1000 -> 12.3189001 | J113: =SUMIFS(Data!AG:AG,Data!$A:$A,$A113,Data!AG:AG,">="&0)*1000 -> 11.3016001 | K113: =SUMIFS(Data!AM:AM,Data!$A:$A,$A113,Data!AM:AM,">="&0)*1000 -> 12.3609 | L113: =SUMIFS(Data!AS:AS,Data!$A:$A,$A113,Data!AS:AS,">="&0)*1000 -> 9.4592 | M113: 0.6717135704 | N113: 29.85525761 | O113: 26.34938174 | P113: 9.001380256 | Q113: 7.65084782 | R113: =Data!$AZ$5 -> 75.3 | S113: =IF(Data!$AZ$2,1,R113) * (1 + E113/F113) -> 8.498602519 | T113: 0.7576890029 | U113: -0.7306710272 | V113: 14.81882091
A114: 109 | B114: =SUMIF(Data!$A:$A,$A114,Data!G:G)/ SUMIF(Data!$A:$A,$A114,Data!F:F) -> 0.8673765731 | C114: =SUMIFS(Data!L:L,Data!$A:$A,$A114,Data!L:L,">="&0) -> 17213.4243 | D114: =SUMIFS(Data!M:M,Data!$A:$A,$A114,Data!M:M,">="&0) -> 17141.42763 | E114: =SUMIFS(Data!N:N,Data!$A:$A,$A114,Data!N:N,">="&0)*1000 -> 123.6147 | F114: =SUMIFS(Data!O:O,Data!$A:$A,$A114,Data!O:O,">="&0)*1000 -> 14.0929 | G114: =SUMIFS(Data!R:R,Data!$A:$A,$A114,Data!R:R,">="&0) -> 15330.9932 | H114: =SUMIFS(Data!S:S,Data!$A:$A,$A114,Data!S:S,">="&0) -> 15260.20483 | I114: =SUMIFS(Data!AA:AA,Data!$A:$A,$A114,Data!AA:AA,">="&0)*1000 -> 15.2647999 | J114: =SUMIFS(Data!AG:AG,Data!$A:$A,$A114,Data!AG:AG,">="&0)*1000 -> 13.8523998 | K114: =SUMIFS(Data!AM:AM,Data!$A:$A,$A114,Data!AM:AM,">="&0)*1000 -> 15.0403001 | L114: =SUMIFS(Data!AS:AS,Data!$A:$A,$A114,Data!AS:AS,">="&0)*1000 -> 11.5975 | M114: 0.4182588452 | N114: 30.65208491 | O114: 26.54961001 | P114: 10.19606798 | Q114: 7.677138965 | R114: =Data!$AZ$5 -> 75.3 | S114: =IF(Data!$AZ$2,1,R114) * (1 + E114/F114) -> 9.771416813 | T114: 0.4617337688 | U114: -0.4248115994 | V114: 12.32763796
A115: 110 | B115: =SUMIF(Data!$A:$A,$A115,Data!G:G)/ SUMIF(Data!$A:$A,$A115,Data!F:F) -> 0.9631748302 | C115: =SUMIFS(Data!L:L,Data!$A:$A,$A115,Data!L:L,">="&0) -> 14569.51 | D115: =SUMIFS(Data!M:M,Data!$A:$A,$A115,Data!M:M,">="&0) -> 14470.13557 | E115: =SUMIFS(Data!N:N,Data!$A:$A,$A115,Data!N:N,">="&0)*1000 -> 102.6729002 | F115: =SUMIFS(Data!O:O,Data!$A:$A,$A115,Data!O:O,">="&0)*1000 -> 13.47439999 | G115: =SUMIFS(Data!R:R,Data!$A:$A,$A115,Data!R:R,">="&0) -> 12746.4498 | H115: =SUMIFS(Data!S:S,Data!$A:$A,$A115,Data!S:S,">="&0) -> 12647.44317 | I115: =SUMIFS(Data!AA:AA,Data!$A:$A,$A115,Data!AA:AA,">="&0)*1000 -> 14.59289999 | J115: =SUMIFS(Data!AG:AG,Data!$A:$A,$A115,Data!AG:AG,">="&0)*1000 -> 13.3597999 | K115: =SUMIFS(Data!AM:AM,Data!$A:$A,$A115,Data!AM:AM,">="&0)*1000 -> 14.5153001 | L115: =SUMIFS(Data!AS:AS,Data!$A:$A,$A115,Data!AS:AS,">="&0)*1000 -> 11.10029997 | M115: 0.6820711575 | N115: 30.22723247 | O115: 26.61639779 | P115: 9.229929326 | Q115: 7.664686257 | R115: =Data!$AZ$5 -> 75.3 | S115: =IF(Data!$AZ$2,1,R115) * (1 + E115/F115) -> 8.619849514 | T115: 0.776738861 | U115: -0.8160213583 | V115: 14.41154848
A116: 111 | B116: =SUMIF(Data!$A:$A,$A116,Data!G:G)/ SUMIF(Data!$A:$A,$A116,Data!F:F) -> 0.9108796296 | C116: =SUMIFS(Data!L:L,Data!$A:$A,$A116,Data!L:L,">="&0) -> 19114.8877 | D116: =SUMIFS(Data!M:M,Data!$A:$A,$A116,Data!M:M,">="&0) -> 19006.0642 | E116: =SUMIFS(Data!N:N,Data!$A:$A,$A116,Data!N:N,">="&0)*1000 -> 132.8962999 | F116: =SUMIFS(Data!O:O,Data!$A:$A,$A116,Data!O:O,">="&0)*1000 -> 16.08169988 | G116: =SUMIFS(Data!R:R,Data!$A:$A,$A116,Data!R:R,">="&0) -> 16918.2531 | H116: =SUMIFS(Data!S:S,Data!$A:$A,$A116,Data!S:S,">="&0) -> 16808.94017 | I116: =SUMIFS(Data!AA:AA,Data!$A:$A,$A116,Data!AA:AA,">="&0)*1000 -> 17.42219991 | J116: =SUMIFS(Data!AG:AG,Data!$A:$A,$A116,Data!AG:AG,">="&0)*1000 -> 15.8371999 | K116: =SUMIFS(Data!AM:AM,Data!$A:$A,$A116,Data!AM:AM,">="&0)*1000 -> 17.06130008 | L116: =SUMIFS(Data!AS:AS,Data!$A:$A,$A116,Data!AS:AS,">="&0)*1000 -> 13.0246 | M116: 0.5693127849 | N116: 30.89404668 | O116: 26.96757214 | P116: 10.00808236 | Q116: 7.694206449 | R116: =Data!$AZ$5 -> 75.3 | S116: =IF(Data!$AZ$2,1,R116) * (1 + E116/F116) -> 9.263821666 | T116: 0.6461242 | U116: -0.7115672514 | V116: 13.07116335
A117: 112 | B117: =SUMIF(Data!$A:$A,$A117,Data!G:G)/ SUMIF(Data!$A:$A,$A117,Data!F:F) -> 0.9895931883 | C117: =SUMIFS(Data!L:L,Data!$A:$A,$A117,Data!L:L,">="&0) -> 10478.9851 | D117: =SUMIFS(Data!M:M,Data!$A:$A,$A117,Data!M:M,">="&0) -> 10396.42577 | E117: =SUMIFS(Data!N:N,Data!$A:$A,$A117,Data!N:N,">="&0)*1000 -> 76.4373 | F117: =SUMIFS(Data!O:O,Data!$A:$A,$A117,Data!O:O,">="&0)*1000 -> 10.1759 | G117: =SUMIFS(Data!R:R,Data!$A:$A,$A117,Data!R:R,">="&0) -> 9127.89863 | H117: =SUMIFS(Data!S:S,Data!$A:$A,$A117,Data!S:S,">="&0) -> 9045.692094 | I117: =SUMIFS(Data!AA:AA,Data!$A:$A,$A117,Data!AA:AA,">="&0)*1000 -> 11.01689989 | J117: =SUMIFS(Data!AG:AG,Data!$A:$A,$A117,Data!AG:AG,">="&0)*1000 -> 10.11529999 | K117: =SUMIFS(Data!AM:AM,Data!$A:$A,$A117,Data!AM:AM,">="&0)*1000 -> 11.15579993 | L117: =SUMIFS(Data!AS:AS,Data!$A:$A,$A117,Data!AS:AS,">="&0)*1000 -> 8.52869998 | M117: 0.7878561637 | N117: 29.47127995 | O117: 26.03935914 | P117: 8.913229483 | Q117: 7.633725452 | R117: =Data!$AZ$5 -> 75.3 | S117: =IF(Data!$AZ$2,1,R117) * (1 + E117/F117) -> 8.51160094 | T117: 0.9006074567 | U117: -0.9596940116 | V117: 14.93234195
A118: 113 | B118: =SUMIF(Data!$A:$A,$A118,Data!G:G)/ SUMIF(Data!$A:$A,$A118,Data!F:F) -> 0.6274900398 | C118: =SUMIFS(Data!L:L,Data!$A:$A,$A118,Data!L:L,">="&0) -> 28229.9927 | D118: =SUMIFS(Data!M:M,Data!$A:$A,$A118,Data!M:M,">="&0) -> 28127.78762 | E118: =SUMIFS(Data!N:N,Data!$A:$A,$A118,Data!N:N,">="&0)*1000 -> 210.9501 | F118: =SUMIFS(Data!O:O,Data!$A:$A,$A118,Data!O:O,">="&0)*1000 -> 16.5485 | G118: =SUMIFS(Data!R:R,Data!$A:$A,$A118,Data!R:R,">="&0) -> 26076.4553 | H118: =SUMIFS(Data!S:S,Data!$A:$A,$A118,Data!S:S,">="&0) -> 25978.87652 | I118: =SUMIFS(Data!AA:AA,Data!$A:$A,$A118,Data!AA:AA,">="&0)*1000 -> 17.9782999 | J118: =SUMIFS(Data!AG:AG,Data!$A:$A,$A118,Data!AG:AG,">="&0)*1000 -> 15.6852 | K118: =SUMIFS(Data!AM:AM,Data!$A:$A,$A118,Data!AM:AM,">="&0)*1000 -> 17.4857001 | L118: =SUMIFS(Data!AS:AS,Data!$A:$A,$A118,Data!AS:AS,">="&0)*1000 -> 13.2325999 | M118: 0.3620443069 | N118: 31.15821349 | O118: 25.76661725 | P118: 14.61951331 | Q118: 7.952920526 | R118: =Data!$AZ$5 -> 75.3 | S118: =IF(Data!$AZ$2,1,R118) * (1 + E118/F118) -> 13.74738496 | T118: 0.3742026072 | U118: -0.1671448352 | V118: 8.271762992
A119: 114 | B119: =SUMIF(Data!$A:$A,$A119,Data!G:G)/ SUMIF(Data!$A:$A,$A119,Data!F:F) -> 0.5544496487 | C119: =SUMIFS(Data!L:L,Data!$A:$A,$A119,Data!L:L,">="&0) -> 32774.4348 | D119: =SUMIFS(Data!M:M,Data!$A:$A,$A119,Data!M:M,">="&0) -> 32673.82604 | E119: =SUMIFS(Data!N:N,Data!$A:$A,$A119,Data!N:N,">="&0)*1000 -> 254.9818 | F119: =SUMIFS(Data!O:O,Data!$A:$A,$A119,Data!O:O,">="&0)*1000 -> 16.6867998 | G119: =SUMIFS(Data!R:R,Data!$A:$A,$A119,Data!R:R,">="&0) -> 30680.21898 | H119: =SUMIFS(Data!S:S,Data!$A:$A,$A119,Data!S:S,">="&0) -> 30586.17481 | I119: =SUMIFS(Data!AA:AA,Data!$A:$A,$A119,Data!AA:AA,">="&0)*1000 -> 18.12570002 | J119: =SUMIFS(Data!AG:AG,Data!$A:$A,$A119,Data!AG:AG,">="&0)*1000 -> 15.53730011 | K119: =SUMIFS(Data!AM:AM,Data!$A:$A,$A119,Data!AM:AM,">="&0)*1000 -> 17.6749001 | L119: =SUMIFS(Data!AS:AS,Data!$A:$A,$A119,Data!AS:AS,">="&0)*1000 -> 13.30169997 | M119: 0.3069732922 | N119: 31.0308239 | O119: 25.11204627 | P119: 16.65926442 | Q119: 7.938453237 | R119: =Data!$AZ$5 -> 75.3 | S119: =IF(Data!$AZ$2,1,R119) * (1 + E119/F119) -> 16.2804494 | T119: 0.3065303023 | U119: 0.007212073696 | V119: 6.8254734
A120: 115 | B120: =SUMIF(Data!$A:$A,$A120,Data!G:G)/ SUMIF(Data!$A:$A,$A120,Data!F:F) -> 0.7888135593 | C120: =SUMIFS(Data!L:L,Data!$A:$A,$A120,Data!L:L,">="&0) -> 18019.4087 | D120: =SUMIFS(Data!M:M,Data!$A:$A,$A120,Data!M:M,">="&0) -> 17952.18626 | E120: =SUMIFS(Data!N:N,Data!$A:$A,$A120,Data!N:N,">="&0)*1000 -> 136.0842995 | F120: =SUMIFS(Data!O:O,Data!$A:$A,$A120,Data!O:O,">="&0)*1000 -> 12.0077999 | G120: =SUMIFS(Data!R:R,Data!$A:$A,$A120,Data!R:R,">="&0) -> 16462.4902 | H120: =SUMIFS(Data!S:S,Data!$A:$A,$A120,Data!S:S,">="&0) -> 16395.52917 | I120: =SUMIFS(Data!AA:AA,Data!$A:$A,$A120,Data!AA:AA,">="&0)*1000 -> 13.0270999 | J120: =SUMIFS(Data!AG:AG,Data!$A:$A,$A120,Data!AG:AG,">="&0)*1000 -> 11.63640003 | K120: =SUMIFS(Data!AM:AM,Data!$A:$A,$A120,Data!AM:AM,">="&0)*1000 -> 13.03940011 | L120: =SUMIFS(Data!AS:AS,Data!$A:$A,$A120,Data!AS:AS,">="&0)*1000 -> 10.228 | M120: 0.3730557463 | N120: 29.95624881 | O120: 25.00960367 | P120: 11.95128964 | Q120: 7.824458312 | R120: =Data!$AZ$5 -> 75.3 | S120: =IF(Data!$AZ$2,1,R120) * (1 + E120/F120) -> 12.33299194 | T120: 0.4067490622 | U120: -0.4155393938 | V120: 9.49439978
A121: 116 | B121: =SUMIF(Data!$A:$A,$A121,Data!G:G)/ SUMIF(Data!$A:$A,$A121,Data!F:F) -> 0.3358570563 | C121: =SUMIFS(Data!L:L,Data!$A:$A,$A121,Data!L:L,">="&0) -> 45087.6717 | D121: =SUMIFS(Data!M:M,Data!$A:$A,$A121,Data!M:M,">="&0) -> 44974.08675 | E121: =SUMIFS(Data!N:N,Data!$A:$A,$A121,Data!N:N,">="&0)*1000 -> 350.268898 | F121: =SUMIFS(Data!O:O,Data!$A:$A,$A121,Data!O:O,">="&0)*1000 -> 18.4858999 | G121: =SUMIFS(Data!R:R,Data!$A:$A,$A121,Data!R:R,">="&0) -> 42783.9755 | H121: =SUMIFS(Data!S:S,Data!$A:$A,$A121,Data!S:S,">="&0) -> 42682.05543 | I121: =SUMIFS(Data!AA:AA,Data!$A:$A,$A121,Data!AA:AA,">="&0)*1000 -> 20.1394999 | J121: =SUMIFS(Data!AG:AG,Data!$A:$A,$A121,Data!AG:AG,">="&0)*1000 -> 16.468 | K121: =SUMIFS(Data!AM:AM,Data!$A:$A,$A121,Data!AM:AM,">="&0)*1000 -> 18.6247 | L121: =SUMIFS(Data!AS:AS,Data!$A:$A,$A121,Data!AS:AS,">="&0)*1000 -> 13.7855 | M121: 0.2519201895 | N121: 33.13026926 | O121: 25.54327162 | P121: 22.29475285 | Q121: 8.210730198 | R121: =Data!$AZ$5 -> 75.3 | S121: =IF(Data!$AZ$2,1,R121) * (1 + E121/F121) -> 19.94789542 | T121: 0.2382201906 | U121: 0.2732861449 | V121: 5.370011584
A122: 117 | B122: =SUMIF(Data!$A:$A,$A122,Data!G:G)/ SUMIF(Data!$A:$A,$A122,Data!F:F) -> 0.6228682171 | C122: =SUMIFS(Data!L:L,Data!$A:$A,$A122,Data!L:L,">="&0) -> 33815.6391 | D122: =SUMIFS(Data!M:M,Data!$A:$A,$A122,Data!M:M,">="&0) -> 33737.33407 | E122: =SUMIFS(Data!N:N,Data!$A:$A,$A122,Data!N:N,">="&0)*1000 -> 255.3965 | F122: =SUMIFS(Data!O:O,Data!$A:$A,$A122,Data!O:O,">="&0)*1000 -> 17.8047 | G122: =SUMIFS(Data!R:R,Data!$A:$A,$A122,Data!R:R,">="&0) -> 31524.47793 | H122: =SUMIFS(Data!S:S,Data!$A:$A,$A122,Data!S:S,">="&0) -> 31450.49117 | I122: =SUMIFS(Data!AA:AA,Data!$A:$A,$A122,Data!AA:AA,">="&0)*1000 -> 19.3392 | J122: =SUMIFS(Data!AG:AG,Data!$A:$A,$A122,Data!AG:AG,">="&0)*1000 -> 16.6871001 | K122: =SUMIFS(Data!AM:AM,Data!$A:$A,$A122,Data!AM:AM,">="&0)*1000 -> 18.5282001 | L122: =SUMIFS(Data!AS:AS,Data!$A:$A,$A122,Data!AS:AS,">="&0)*1000 -> 14.0175001 | M122: 0.2315645574 | N122: 31.79794688 | O122: 25.91837187 | P122: 15.89311433 | Q122: 7.934661197 | R122: =Data!$AZ$5 -> 75.3 | S122: =IF(Data!$AZ$2,1,R122) * (1 + E122/F122) -> 15.34433043 | T122: 0.2346962134 | U122: -0.04805316529 | V122: 7.271246984
A123: 118 | B123: =SUMIF(Data!$A:$A,$A123,Data!G:G)/ SUMIF(Data!$A:$A,$A123,Data!F:F) -> 0.9376890502 | C123: =SUMIFS(Data!L:L,Data!$A:$A,$A123,Data!L:L,">="&0) -> 17189.3525 | D123: =SUMIFS(Data!M:M,Data!$A:$A,$A123,Data!M:M,">="&0) -> 17105.74869 | E123: =SUMIFS(Data!N:N,Data!$A:$A,$A123,Data!N:N,">="&0)*1000 -> 123.7408 | F123: =SUMIFS(Data!O:O,Data!$A:$A,$A123,Data!O:O,">="&0)*1000 -> 15.3535 | G123: =SUMIFS(Data!R:R,Data!$A:$A,$A123,Data!R:R,">="&0) -> 15161.5605 | H123: =SUMIFS(Data!S:S,Data!$A:$A,$A123,Data!S:S,">="&0) -> 15077.73011 | I123: =SUMIFS(Data!AA:AA,Data!$A:$A,$A123,Data!AA:AA,">="&0)*1000 -> 16.62840001 | J123: =SUMIFS(Data!AG:AG,Data!$A:$A,$A123,Data!AG:AG,">="&0)*1000 -> 15.1794 | K123: =SUMIFS(Data!AM:AM,Data!$A:$A,$A123,Data!AM:AM,">="&0)*1000 -> 16.704 | L123: =SUMIFS(Data!AS:AS,Data!$A:$A,$A123,Data!AS:AS,">="&0)*1000 -> 12.73340003 | M123: 0.4863697187 | N123: 29.80960059 | O123: 26.16027802 | P123: 9.545831903 | Q123: 7.667003495 | R123: =Data!$AZ$5 -> 75.3 | S123: =IF(Data!$AZ$2,1,R123) * (1 + E123/F123) -> 9.059452242 | T123: 0.5529139649 | U123: -0.6028544204 | V123: 13.45042367
A124: 119 | B124: =SUMIF(Data!$A:$A,$A124,Data!G:G)/ SUMIF(Data!$A:$A,$A124,Data!F:F) -> 0.3391330433 | C124: =SUMIFS(Data!L:L,Data!$A:$A,$A124,Data!L:L,">="&0) -> 43164.3231 | D124: =SUMIFS(Data!M:M,Data!$A:$A,$A124,Data!M:M,">="&0) -> 43066.98505 | E124: =SUMIFS(Data!N:N,Data!$A:$A,$A124,Data!N:N,">="&0)*1000 -> 344.526001 | F124: =SUMIFS(Data!O:O,Data!$A:$A,$A124,Data!O:O,">="&0)*1000 -> 19.1093 | G124: =SUMIFS(Data!R:R,Data!$A:$A,$A124,Data!R:R,">="&0) -> 40842.0987 | H124: =SUMIFS(Data!S:S,Data!$A:$A,$A124,Data!S:S,">="&0) -> 40754.70435 | I124: =SUMIFS(Data!AA:AA,Data!$A:$A,$A124,Data!AA:AA,">="&0)*1000 -> 20.80349992 | J124: =SUMIFS(Data!AG:AG,Data!$A:$A,$A124,Data!AG:AG,">="&0)*1000 -> 17.1495999 | K124: =SUMIFS(Data!AM:AM,Data!$A:$A,$A124,Data!AM:AM,">="&0)*1000 -> 19.4696999 | L124: =SUMIFS(Data!AS:AS,Data!$A:$A,$A124,Data!AS:AS,">="&0)*1000 -> 14.40470007 | M124: 0.2255057928 | N124: 32.63336637 | O124: 25.41934832 | P124: 21.30603653 | Q124: 8.1438216 | R124: =Data!$AZ$5 -> 75.3 | S124: =IF(Data!$AZ$2,1,R124) * (1 + E124/F124) -> 19.02923189 | T124: 0.2139810558 | U124: 0.2193068927 | V124: 5.673653489
A125: 120 | B125: =SUMIF(Data!$A:$A,$A125,Data!G:G)/ SUMIF(Data!$A:$A,$A125,Data!F:F) -> 0.3280509479 | C125: =SUMIFS(Data!L:L,Data!$A:$A,$A125,Data!L:L,">="&0) -> 45972.8101 | D125: =SUMIFS(Data!M:M,Data!$A:$A,$A125,Data!M:M,">="&0) -> 45866.52337 | E125: =SUMIFS(Data!N:N,Data!$A:$A,$A125,Data!N:N,">="&0)*1000 -> 356.1872 | F125: =SUMIFS(Data!O:O,Data!$A:$A,$A125,Data!O:O,">="&0)*1000 -> 19.0698999 | G125: =SUMIFS(Data!R:R,Data!$A:$A,$A125,Data!R:R,">="&0) -> 43586.4845 | H125: =SUMIFS(Data!S:S,Data!$A:$A,$A125,Data!S:S,">="&0) -> 43492.6887 | I125: =SUMIFS(Data!AA:AA,Data!$A:$A,$A125,Data!AA:AA,">="&0)*1000 -> 20.7719999 | J125: =SUMIFS(Data!AG:AG,Data!$A:$A,$A125,Data!AG:AG,">="&0)*1000 -> 16.9758996 | K125: =SUMIFS(Data!AM:AM,Data!$A:$A,$A125,Data!AM:AM,">="&0)*1000 -> 19.01130004 | L125: =SUMIFS(Data!AS:AS,Data!$A:$A,$A125,Data!AS:AS,">="&0)*1000 -> 14.0359 | M125: 0.2311947753 | N125: 33.53881063 | O125: 25.90907179 | P125: 22.36170324 | Q125: 8.194203758 | R125: =Data!$AZ$5 -> 75.3 | S125: =IF(Data!$AZ$2,1,R125) * (1 + E125/F125) -> 19.67797953 | T125: 0.2151946849 | U125: 0.31484945 | V125: 5.458008539
A126: 121 | B126: =SUMIF(Data!$A:$A,$A126,Data!G:G)/ SUMIF(Data!$A:$A,$A126,Data!F:F) -> 0.5001970055 | C126: =SUMIFS(Data!L:L,Data!$A:$A,$A126,Data!L:L,">="&0) -> 33766.1305 | D126: =SUMIFS(Data!M:M,Data!$A:$A,$A126,Data!M:M,">="&0) -> 33661.85236 | E126: =SUMIFS(Data!N:N,Data!$A:$A,$A126,Data!N:N,">="&0)*1000 -> 256.0956999 | F126: =SUMIFS(Data!O:O,Data!$A:$A,$A126,Data!O:O,">="&0)*1000 -> 16.0824 | G126: =SUMIFS(Data!R:R,Data!$A:$A,$A126,Data!R:R,">="&0) -> 31685.0221 | H126: =SUMIFS(Data!S:S,Data!$A:$A,$A126,Data!S:S,">="&0) -> 31589.11739 | I126: =SUMIFS(Data!AA:AA,Data!$A:$A,$A126,Data!AA:AA,">="&0)*1000 -> 17.4761 | J126: =SUMIFS(Data!AG:AG,Data!$A:$A,$A126,Data!AG:AG,">="&0)*1000 -> 14.8267001 | K126: =SUMIFS(Data!AM:AM,Data!$A:$A,$A126,Data!AM:AM,">="&0)*1000 -> 16.6167001 | L126: =SUMIFS(Data!AS:AS,Data!$A:$A,$A126,Data!AS:AS,">="&0)*1000 -> 12.432 | M126: 0.3088246771 | N126: 32.05367142 | O126: 25.72251307 | P126: 17.86911371 | Q126: 7.974891423 | R126: =Data!$AZ$5 -> 75.3 | S126: =IF(Data!$AZ$2,1,R126) * (1 + E126/F126) -> 16.92397278 | T126: 0.3026815209 | U126: 0.1039666085 | V126: 6.561547566
A127: 122 | B127: =SUMIF(Data!$A:$A,$A127,Data!G:G)/ SUMIF(Data!$A:$A,$A127,Data!F:F) -> 0.427811669 | C127: =SUMIFS(Data!L:L,Data!$A:$A,$A127,Data!L:L,">="&0) -> 42421.8197 | D127: =SUMIFS(Data!M:M,Data!$A:$A,$A127,Data!M:M,">="&0) -> 42329.28947 | E127: =SUMIFS(Data!N:N,Data!$A:$A,$A127,Data!N:N,">="&0)*1000 -> 320.557801 | F127: =SUMIFS(Data!O:O,Data!$A:$A,$A127,Data!O:O,">="&0)*1000 -> 19.8466 | G127: =SUMIFS(Data!R:R,Data!$A:$A,$A127,Data!R:R,">="&0) -> 39878.9563 | H127: =SUMIFS(Data!S:S,Data!$A:$A,$A127,Data!S:S,">="&0) -> 39796.77223 | I127: =SUMIFS(Data!AA:AA,Data!$A:$A,$A127,Data!AA:AA,">="&0)*1000 -> 21.5862 | J127: =SUMIFS(Data!AG:AG,Data!$A:$A,$A127,Data!AG:AG,">="&0)*1000 -> 18.08479989 | K127: =SUMIFS(Data!AM:AM,Data!$A:$A,$A127,Data!AM:AM,">="&0)*1000 -> 20.07680002 | L127: =SUMIFS(Data!AS:AS,Data!$A:$A,$A127,Data!AS:AS,">="&0)*1000 -> 14.91109997 | M127: 0.2181194269 | N127: 32.92196599 | O127: 26.14379444 | P127: 19.36101106 | Q127: 8.058852433 | R127: =Data!$AZ$5 -> 75.3 | S127: =IF(Data!$AZ$2,1,R127) * (1 + E127/F127) -> 17.15177416 | T127: 0.2060838087 | U127: 0.2064322054 | V127: 6.363624737
A128: 123 | B128: =SUMIF(Data!$A:$A,$A128,Data!G:G)/ SUMIF(Data!$A:$A,$A128,Data!F:F) -> 0.2957386364 | C128: =SUMIFS(Data!L:L,Data!$A:$A,$A128,Data!L:L,">="&0) -> 47741.0907 | D128: =SUMIFS(Data!M:M,Data!$A:$A,$A128,Data!M:M,">="&0) -> 47634.96935 | E128: =SUMIFS(Data!N:N,Data!$A:$A,$A128,Data!N:N,">="&0)*1000 -> 376.695098 | F128: =SUMIFS(Data!O:O,Data!$A:$A,$A128,Data!O:O,">="&0)*1000 -> 18.9978 | G128: =SUMIFS(Data!R:R,Data!$A:$A,$A128,Data!R:R,">="&0) -> 45395.9096 | H128: =SUMIFS(Data!S:S,Data!$A:$A,$A128,Data!S:S,">="&0) -> 45302.13978 | I128: =SUMIFS(Data!AA:AA,Data!$A:$A,$A128,Data!AA:AA,">="&0)*1000 -> 20.69170014 | J128: =SUMIFS(Data!AG:AG,Data!$A:$A,$A128,Data!AG:AG,">="&0)*1000 -> 16.77450001 | K128: =SUMIFS(Data!AM:AM,Data!$A:$A,$A128,Data!AM:AM,">="&0)*1000 -> 19.03859994 | L128: =SUMIFS(Data!AS:AS,Data!$A:$A,$A128,Data!AS:AS,">="&0)*1000 -> 14.0058999 | M128: 0.2222851394 | N128: 33.28471832 | O128: 25.50122218 | P128: 23.35211261 | Q128: 8.186374849 | R128: =Data!$AZ$5 -> 75.3 | S128: =IF(Data!$AZ$2,1,R128) * (1 + E128/F128) -> 20.8283537 | T128: 0.2065600686 | U128: 0.3275273365 | V128: 5.149490915
A129: 124 | B129: =SUMIF(Data!$A:$A,$A129,Data!G:G)/ SUMIF(Data!$A:$A,$A129,Data!F:F) -> 0.2290647091 | C129: =SUMIFS(Data!L:L,Data!$A:$A,$A129,Data!L:L,">="&0) -> 50294.5691 | D129: =SUMIFS(Data!M:M,Data!$A:$A,$A129,Data!M:M,">="&0) -> 50180.03388 | E129: =SUMIFS(Data!N:N,Data!$A:$A,$A129,Data!N:N,">="&0)*1000 -> 400.439801 | F129: =SUMIFS(Data!O:O,Data!$A:$A,$A129,Data!O:O,">="&0)*1000 -> 18.99989997 | G129: =SUMIFS(Data!R:R,Data!$A:$A,$A129,Data!R:R,">="&0) -> 47973.5685 | H129: =SUMIFS(Data!S:S,Data!$A:$A,$A129,Data!S:S,">="&0) -> 47873.59935 | I129: =SUMIFS(Data!AA:AA,Data!$A:$A,$A129,Data!AA:AA,">="&0)*1000 -> 20.7051 | J129: =SUMIFS(Data!AG:AG,Data!$A:$A,$A129,Data!AG:AG,">="&0)*1000 -> 16.5533999 | K129: =SUMIFS(Data!AM:AM,Data!$A:$A,$A129,Data!AM:AM,">="&0)*1000 -> 18.80250003 | L129: =SUMIFS(Data!AS:AS,Data!$A:$A,$A129,Data!AS:AS,">="&0)*1000 -> 13.7764 | M129: 0.2277288026 | N129: 33.78543992 | O129: 25.52515844 | P129: 25.08064884 | Q129: 8.235652231 | R129: =Data!$AZ$5 -> 75.3 | S129: =IF(Data!$AZ$2,1,R129) * (1 + E129/F129) -> 22.07588996 | T129: 0.2083838103 | U129: 0.4270579209 | V129: 4.817758767
A130: 125 | B130: =SUMIF(Data!$A:$A,$A130,Data!G:G)/ SUMIF(Data!$A:$A,$A130,Data!F:F) -> 0.1572408438 | C130: =SUMIFS(Data!L:L,Data!$A:$A,$A130,Data!L:L,">="&0) -> 53273.2803 | D130: =SUMIFS(Data!M:M,Data!$A:$A,$A130,Data!M:M,">="&0) -> 53132.34714 | E130: =SUMIFS(Data!N:N,Data!$A:$A,$A130,Data!N:N,">="&0)*1000 -> 425.341 | F130: =SUMIFS(Data!O:O,Data!$A:$A,$A130,Data!O:O,">="&0)*1000 -> 19.20239999 | G130: =SUMIFS(Data!R:R,Data!$A:$A,$A130,Data!R:R,">="&0) -> 50933.1131 | H130: =SUMIFS(Data!S:S,Data!$A:$A,$A130,Data!S:S,">="&0) -> 50809.88195 | I130: =SUMIFS(Data!AA:AA,Data!$A:$A,$A130,Data!AA:AA,">="&0)*1000 -> 20.9618 | J130: =SUMIFS(Data!AG:AG,Data!$A:$A,$A130,Data!AG:AG,">="&0)*1000 -> 16.5097999 | K130: =SUMIFS(Data!AM:AM,Data!$A:$A,$A130,Data!AM:AM,">="&0)*1000 -> 18.79080013 | L130: =SUMIFS(Data!AS:AS,Data!$A:$A,$A130,Data!AS:AS,">="&0)*1000 -> 13.7348001 | M130: 0.2645475541 | N130: 34.29390795 | O130: 25.48852806 | P130: 26.96580287 | Q130: 8.393363213 | R130: =Data!$AZ$5 -> 75.3 | S130: =IF(Data!$AZ$2,1,R130) * (1 + E130/F130) -> 23.15040829 | T130: 0.2419470213 | U130: 0.523211561 | V130: 4.57089271
A131: 126 | B131: =SUMIF(Data!$A:$A,$A131,Data!G:G)/ SUMIF(Data!$A:$A,$A131,Data!F:F) -> 0.1329377604 | C131: =SUMIFS(Data!L:L,Data!$A:$A,$A131,Data!L:L,">="&0) -> 55833.89388 | D131: =SUMIFS(Data!M:M,Data!$A:$A,$A131,Data!M:M,">="&0) -> 55671.77374 | E131: =SUMIFS(Data!N:N,Data!$A:$A,$A131,Data!N:N,">="&0)*1000 -> 440.5422 | F131: =SUMIFS(Data!O:O,Data!$A:$A,$A131,Data!O:O,">="&0)*1000 -> 19.5427001 | G131: =SUMIFS(Data!R:R,Data!$A:$A,$A131,Data!R:R,">="&0) -> 53429.3815 | H131: =SUMIFS(Data!S:S,Data!$A:$A,$A131,Data!S:S,">="&0) -> 53287.16916 | I131: =SUMIFS(Data!AA:AA,Data!$A:$A,$A131,Data!AA:AA,">="&0)*1000 -> 21.34219988 | J131: =SUMIFS(Data!AG:AG,Data!$A:$A,$A131,Data!AG:AG,">="&0)*1000 -> 16.7249001 | K131: =SUMIFS(Data!AM:AM,Data!$A:$A,$A131,Data!AM:AM,">="&0)*1000 -> 18.95269989 | L131: =SUMIFS(Data!AS:AS,Data!$A:$A,$A131,Data!AS:AS,">="&0)*1000 -> 13.85090003 | M131: 0.2903615147 | N131: 34.68364118 | O131: 25.63330618 | P131: 27.60733847 | Q131: 8.431650861 | R131: =Data!$AZ$5 -> 75.3 | S131: =IF(Data!$AZ$2,1,R131) * (1 + E131/F131) -> 23.54254518 | T131: 0.2661687933 | U131: 0.5695582375 | V131: 4.475007056
A132: 127 | B132: =SUMIF(Data!$A:$A,$A132,Data!G:G)/ SUMIF(Data!$A:$A,$A132,Data!F:F) -> 0.4470460537 | C132: =SUMIFS(Data!L:L,Data!$A:$A,$A132,Data!L:L,">="&0) -> 42599.5256 | D132: =SUMIFS(Data!M:M,Data!$A:$A,$A132,Data!M:M,">="&0) -> 42506.75867 | E132: =SUMIFS(Data!N:N,Data!$A:$A,$A132,Data!N:N,">="&0)*1000 -> 328.774001 | F132: =SUMIFS(Data!O:O,Data!$A:$A,$A132,Data!O:O,">="&0)*1000 -> 19.7256999 | G132: =SUMIFS(Data!R:R,Data!$A:$A,$A132,Data!R:R,">="&0) -> 40118.53551 | H132: =SUMIFS(Data!S:S,Data!$A:$A,$A132,Data!S:S,">="&0) -> 40033.87699 | I132: =SUMIFS(Data!AA:AA,Data!$A:$A,$A132,Data!AA:AA,">="&0)*1000 -> 21.4685999 | J132: =SUMIFS(Data!AG:AG,Data!$A:$A,$A132,Data!AG:AG,">="&0)*1000 -> 17.973 | K132: =SUMIFS(Data!AM:AM,Data!$A:$A,$A132,Data!AM:AM,">="&0)*1000 -> 20.16759992 | L132: =SUMIFS(Data!AS:AS,Data!$A:$A,$A132,Data!AS:AS,">="&0)*1000 -> 15.0180001 | M132: 0.2177651715 | N132: 32.52640987 | O132: 25.73830978 | P132: 19.4491732 | Q132: 8.118368259 | R132: =Data!$AZ$5 -> 75.3 | S132: =IF(Data!$AZ$2,1,R132) * (1 + E132/F132) -> 17.66729204 | T132: 0.2110209631 | U132: 0.1191519008 | V132: 6.176972769
A133: 128 | B133: =SUMIF(Data!$A:$A,$A133,Data!G:G)/ SUMIF(Data!$A:$A,$A133,Data!F:F) -> 0.5485950413 | C133: =SUMIFS(Data!L:L,Data!$A:$A,$A133,Data!L:L,">="&0) -> 37611.44694 | D133: =SUMIFS(Data!M:M,Data!$A:$A,$A133,Data!M:M,">="&0) -> 37538.71822 | E133: =SUMIFS(Data!N:N,Data!$A:$A,$A133,Data!N:N,">="&0)*1000 -> 284.754 | F133: =SUMIFS(Data!O:O,Data!$A:$A,$A133,Data!O:O,">="&0)*1000 -> 20.8242 | G133: =SUMIFS(Data!R:R,Data!$A:$A,$A133,Data!R:R,">="&0) -> 34948.62741 | H133: =SUMIFS(Data!S:S,Data!$A:$A,$A133,Data!S:S,">="&0) -> 34881.32016 | I133: =SUMIFS(Data!AA:AA,Data!$A:$A,$A133,Data!AA:AA,">="&0)*1000 -> 22.6207 | J133: =SUMIFS(Data!AG:AG,Data!$A:$A,$A133,Data!AG:AG,">="&0)*1000 -> 19.49130011 | K133: =SUMIFS(Data!AM:AM,Data!$A:$A,$A133,Data!AM:AM,">="&0)*1000 -> 21.7842002 | L133: =SUMIFS(Data!AS:AS,Data!$A:$A,$A133,Data!AS:AS,">="&0)*1000 -> 16.3332 | M133: 0.1933685777 | N133: 31.53458039 | O133: 25.79361584 | P133: 16.05536764 | Q133: 7.94184088 | R133: =Data!$AZ$5 -> 75.3 | S133: =IF(Data!$AZ$2,1,R133) * (1 + E133/F133) -> 14.67418676 | T133: 0.1925891086 | U133: 0.01143807501 | V133: 7.618398753
A134: 129 | B134: =SUMIF(Data!$A:$A,$A134,Data!G:G)/ SUMIF(Data!$A:$A,$A134,Data!F:F) -> 0.163513168 | C134: =SUMIFS(Data!L:L,Data!$A:$A,$A134,Data!L:L,">="&0) -> 54907.9484 | D134: =SUMIFS(Data!M:M,Data!$A:$A,$A134,Data!M:M,">="&0) -> 54757.5239 | E134: =SUMIFS(Data!N:N,Data!$A:$A,$A134,Data!N:N,">="&0)*1000 -> 427.8849039 | F134: =SUMIFS(Data!O:O,Data!$A:$A,$A134,Data!O:O,">="&0)*1000 -> 19.3256 | G134: =SUMIFS(Data!R:R,Data!$A:$A,$A134,Data!R:R,">="&0) -> 52502.73068 | H134: =SUMIFS(Data!S:S,Data!$A:$A,$A134,Data!S:S,">="&0) -> 52369.38346 | I134: =SUMIFS(Data!AA:AA,Data!$A:$A,$A134,Data!AA:AA,">="&0)*1000 -> 21.0822 | J134: =SUMIFS(Data!AG:AG,Data!$A:$A,$A134,Data!AG:AG,">="&0)*1000 -> 16.6686 | K134: =SUMIFS(Data!AM:AM,Data!$A:$A,$A134,Data!AM:AM,">="&0)*1000 -> 19.22030002 | L134: =SUMIFS(Data!AS:AS,Data!$A:$A,$A134,Data!AS:AS,">="&0)*1000 -> 14.0505001 | M134: 0.2739576043 | N134: 33.6014933 | O134: 25.064219 | P134: 26.47852849 | Q134: 8.332147499 | R134: =Data!$AZ$5 -> 75.3 | S134: =IF(Data!$AZ$2,1,R134) * (1 + E134/F134) -> 23.14083412 | T134: 0.2539814944 | U134: 0.4622638445 | V134: 4.560184372
A135: 130 | B135: =SUMIF(Data!$A:$A,$A135,Data!G:G)/ SUMIF(Data!$A:$A,$A135,Data!F:F) -> 0.6613250419 | C135: =SUMIFS(Data!L:L,Data!$A:$A,$A135,Data!L:L,">="&0) -> 27218.2675 | D135: =SUMIFS(Data!M:M,Data!$A:$A,$A135,Data!M:M,">="&0) -> 27149.11917 | E135: =SUMIFS(Data!N:N,Data!$A:$A,$A135,Data!N:N,">="&0)*1000 -> 204.5585997 | F135: =SUMIFS(Data!O:O,Data!$A:$A,$A135,Data!O:O,">="&0)*1000 -> 14.7678 | G135: =SUMIFS(Data!R:R,Data!$A:$A,$A135,Data!R:R,">="&0) -> 25294.6533 | H135: =SUMIFS(Data!S:S,Data!$A:$A,$A135,Data!S:S,">="&0) -> 25227.75364 | I135: =SUMIFS(Data!AA:AA,Data!$A:$A,$A135,Data!AA:AA,">="&0)*1000 -> 16.016 | J135: =SUMIFS(Data!AG:AG,Data!$A:$A,$A135,Data!AG:AG,">="&0)*1000 -> 13.9654 | K135: =SUMIFS(Data!AM:AM,Data!$A:$A,$A135,Data!AM:AM,">="&0)*1000 -> 15.6843001 | L135: =SUMIFS(Data!AS:AS,Data!$A:$A,$A135,Data!AS:AS,">="&0)*1000 -> 12.0796 | M135: =100*(C135-D135)/C135 -> 0.2540511809 | N135: =100* ($L$4 + (I135 - L135) * ($K$4 - $L$4) /(K135 - L135)) -> 30.92018723 | O135: =100* ($L$4 + (J135 - L135) * ($K$4 - $L$4) /(K135 - L135)) -> 25.23150317 | P135: =100* (I135/J135 - 1) -> 14.68343191 | Q135: =100 * (1-F135/I135) -> 7.793456543 | R135: =Data!$AZ$5 -> 75.3 | S135: =IF(Data!$AZ$2,1,R135) * (1 + E135/F135) -> 14.85166373 | T135: =100*(G135-H135)/G135 -> 0.2644814151 | U135: =(M135-T135)*S135 -> -0.1549063317 | V135: =100 * (D135/H135-1) -> 7.616078523
A136: =A135+1 -> 131 | B136: =SUMIF(Data!$A:$A,$A136,Data!G:G)/ SUMIF(Data!$A:$A,$A136,Data!F:F) -> 0.8579411765 | C136: =SUMIFS(Data!L:L,Data!$A:$A,$A136,Data!L:L,">="&0) -> 18881.47139 | D136: =SUMIFS(Data!M:M,Data!$A:$A,$A136,Data!M:M,">="&0) -> 18816.63719 | E136: =SUMIFS(Data!N:N,Data!$A:$A,$A136,Data!N:N,">="&0)*1000 -> 137.8704 | F136: =SUMIFS(Data!O:O,Data!$A:$A,$A136,Data!O:O,">="&0)*1000 -> 14.3997999 | G136: =SUMIFS(Data!R:R,Data!$A:$A,$A136,Data!R:R,">="&0) -> 16973.1895 | H136: =SUMIFS(Data!S:S,Data!$A:$A,$A136,Data!S:S,">="&0) -> 16908.36774 | I136: =SUMIFS(Data!AA:AA,Data!$A:$A,$A136,Data!AA:AA,">="&0)*1000 -> 15.6061 | J136: =SUMIFS(Data!AG:AG,Data!$A:$A,$A136,Data!AG:AG,">="&0)*1000 -> 14.07669999 | K136: =SUMIFS(Data!AM:AM,Data!$A:$A,$A136,Data!AM:AM,">="&0)*1000 -> 15.72240011 | L136: =SUMIFS(Data!AS:AS,Data!$A:$A,$A136,Data!AS:AS,">="&0)*1000 -> 11.94750007 | M136: 0.3433747226 | N136: 29.69191208 | O136: 25.64041404 | P136: 10.86476242 | Q136: 7.729670449 | R136: =Data!$AZ$5 -> 75.3 | S136: =IF(Data!$AZ$2,1,R136) * (1 + E136/F136) -> 10.57446638 | T136: 0.3819067713 | U136: -0.4074558536 | V136: 11.28594717
A137: 132 | B137: =SUMIF(Data!$A:$A,$A137,Data!G:G)/ SUMIF(Data!$A:$A,$A137,Data!F:F) -> 0.7985010089 | C137: =SUMIFS(Data!L:L,Data!$A:$A,$A137,Data!L:L,">="&0) -> 19184.5427 | D137: =SUMIFS(Data!M:M,Data!$A:$A,$A137,Data!M:M,">="&0) -> 19129.07072 | E137: =SUMIFS(Data!N:N,Data!$A:$A,$A137,Data!N:N,">="&0)*1000 -> 139.6587 | F137: =SUMIFS(Data!O:O,Data!$A:$A,$A137,Data!O:O,">="&0)*1000 -> 14.4744999 | G137: =SUMIFS(Data!R:R,Data!$A:$A,$A137,Data!R:R,">="&0) -> 17268.8943 | H137: =SUMIFS(Data!S:S,Data!$A:$A,$A137,Data!S:S,">="&0) -> 17214.51739 | I137: =SUMIFS(Data!AA:AA,Data!$A:$A,$A137,Data!AA:AA,">="&0)*1000 -> 15.694 | J137: =SUMIFS(Data!AG:AG,Data!$A:$A,$A137,Data!AG:AG,">="&0)*1000 -> 14.0620002 | K137: =SUMIFS(Data!AM:AM,Data!$A:$A,$A137,Data!AM:AM,">="&0)*1000 -> 15.5475999 | L137: =SUMIFS(Data!AS:AS,Data!$A:$A,$A137,Data!AS:AS,">="&0)*1000 -> 11.6564 | M137: 0.2891493353 | N137: 30.37623381 | O137: 26.18215527 | P137: 11.60574437 | Q137: 7.770486143 | R137: =Data!$AZ$5 -> 75.3 | S137: =IF(Data!$AZ$2,1,R137) * (1 + E137/F137) -> 10.64860278 | T137: 0.3148835881 | U137: -0.2740338359 | V137: 11.12173692
A138: 133 | B138: =SUMIF(Data!$A:$A,$A138,Data!G:G)/ SUMIF(Data!$A:$A,$A138,Data!F:F) -> 0.5070826307 | C138: =SUMIFS(Data!L:L,Data!$A:$A,$A138,Data!L:L,">="&0) -> 39953.7456 | D138: =SUMIFS(Data!M:M,Data!$A:$A,$A138,Data!M:M,">="&0) -> 39852.38219 | E138: =SUMIFS(Data!N:N,Data!$A:$A,$A138,Data!N:N,">="&0)*1000 -> 296.0470002 | F138: =SUMIFS(Data!O:O,Data!$A:$A,$A138,Data!O:O,">="&0)*1000 -> 19.227 | G138: =SUMIFS(Data!R:R,Data!$A:$A,$A138,Data!R:R,">="&0) -> 37425.8332 | H138: =SUMIFS(Data!S:S,Data!$A:$A,$A138,Data!S:S,">="&0) -> 37331.94446 | I138: =SUMIFS(Data!AA:AA,Data!$A:$A,$A138,Data!AA:AA,">="&0)*1000 -> 20.9074 | J138: =SUMIFS(Data!AG:AG,Data!$A:$A,$A138,Data!AG:AG,">="&0)*1000 -> 17.74649998 | K138: =SUMIFS(Data!AM:AM,Data!$A:$A,$A138,Data!AM:AM,">="&0)*1000 -> 19.67 | L138: =SUMIFS(Data!AS:AS,Data!$A:$A,$A138,Data!AS:AS,">="&0)*1000 -> 14.7846001 | M138: 0.2537018957 | N138: 32.53285304 | O138: 26.0627583 | P138: 17.81139956 | Q138: 8.037345629 | R138: =Data!$AZ$5 -> 75.3 | S138: =IF(Data!$AZ$2,1,R138) * (1 + E138/F138) -> 16.39746191 | T138: 0.2508661317 | U138: 0.04649933281 | V138: 6.751423657
A139: 134 | B139: =SUMIF(Data!$A:$A,$A139,Data!G:G)/ SUMIF(Data!$A:$A,$A139,Data!F:F) -> 0.352832337 | C139: =SUMIFS(Data!L:L,Data!$A:$A,$A139,Data!L:L,">="&0) -> 48973.7255 | D139: =SUMIFS(Data!M:M,Data!$A:$A,$A139,Data!M:M,">="&0) -> 48855.4933 | E139: =SUMIFS(Data!N:N,Data!$A:$A,$A139,Data!N:N,">="&0)*1000 -> 368.7563 | F139: =SUMIFS(Data!O:O,Data!$A:$A,$A139,Data!O:O,">="&0)*1000 -> 20.17210003 | G139: =SUMIFS(Data!R:R,Data!$A:$A,$A139,Data!R:R,">="&0) -> 46374.8474 | H139: =SUMIFS(Data!S:S,Data!$A:$A,$A139,Data!S:S,">="&0) -> 46268.10465 | I139: =SUMIFS(Data!AA:AA,Data!$A:$A,$A139,Data!AA:AA,">="&0)*1000 -> 21.9761 | J139: =SUMIFS(Data!AG:AG,Data!$A:$A,$A139,Data!AG:AG,">="&0)*1000 -> 18.02429999 | K139: =SUMIFS(Data!AM:AM,Data!$A:$A,$A139,Data!AM:AM,">="&0)*1000 -> 20.08560004 | L139: =SUMIFS(Data!AS:AS,Data!$A:$A,$A139,Data!AS:AS,">="&0)*1000 -> 14.87060002 | M139: 0.2414196568 | N139: 33.62511976 | O139: 26.04736329 | P139: 21.92484597 | Q139: 8.208917733 | R139: =Data!$AZ$5 -> 75.3 | S139: =IF(Data!$AZ$2,1,R139) * (1 + E139/F139) -> 19.28051117 | T139: 0.2301738032 | U139: 0.2168258046 | V139: 5.592164774
A140: 135 | B140: =SUMIF(Data!$A:$A,$A140,Data!G:G)/ SUMIF(Data!$A:$A,$A140,Data!F:F) -> 0.6446700508 | C140: =SUMIFS(Data!L:L,Data!$A:$A,$A140,Data!L:L,">="&0) -> 29722.4063 | D140: =SUMIFS(Data!M:M,Data!$A:$A,$A140,Data!M:M,">="&0) -> 29638.82817 | E140: =SUMIFS(Data!N:N,Data!$A:$A,$A140,Data!N:N,">="&0)*1000 -> 219.310201 | F140: =SUMIFS(Data!O:O,Data!$A:$A,$A140,Data!O:O,">="&0)*1000 -> 17.1415 | G140: =SUMIFS(Data!R:R,Data!$A:$A,$A140,Data!R:R,">="&0) -> 27462.6384 | H140: =SUMIFS(Data!S:S,Data!$A:$A,$A140,Data!S:S,">="&0) -> 27382.07048 | I140: =SUMIFS(Data!AA:AA,Data!$A:$A,$A140,Data!AA:AA,">="&0)*1000 -> 18.6145001 | J140: =SUMIFS(Data!AG:AG,Data!$A:$A,$A140,Data!AG:AG,">="&0)*1000 -> 16.20460005 | K140: =SUMIFS(Data!AM:AM,Data!$A:$A,$A140,Data!AM:AM,">="&0)*1000 -> 18.00999999 | L140: =SUMIFS(Data!AS:AS,Data!$A:$A,$A140,Data!AS:AS,">="&0)*1000 -> 13.5224999 | M140: 0.2811957187 | N140: 31.34707543 | O140: 25.97682473 | P140: 14.87170336 | Q140: 7.913186452 | R140: =Data!$AZ$5 -> 75.3 | S140: =IF(Data!$AZ$2,1,R140) * (1 + E140/F140) -> 13.79410793 | T140: 0.2933728501 | U140: -0.1679726659 | V140: 8.241735018
A141: 136 | B141: =SUMIF(Data!$A:$A,$A141,Data!G:G)/ SUMIF(Data!$A:$A,$A141,Data!F:F) -> 0.5450474655 | C141: =SUMIFS(Data!L:L,Data!$A:$A,$A141,Data!L:L,">="&0) -> 33066.3044 | D141: =SUMIFS(Data!M:M,Data!$A:$A,$A141,Data!M:M,">="&0) -> 32989.24032 | E141: =SUMIFS(Data!N:N,Data!$A:$A,$A141,Data!N:N,">="&0)*1000 -> 245.6984999 | F141: =SUMIFS(Data!O:O,Data!$A:$A,$A141,Data!O:O,">="&0)*1000 -> 19.9573 | G141: =SUMIFS(Data!R:R,Data!$A:$A,$A141,Data!R:R,">="&0) -> 30486.3691 | H141: =SUMIFS(Data!S:S,Data!$A:$A,$A141,Data!S:S,">="&0) -> 30416.07911 | I141: =SUMIFS(Data!AA:AA,Data!$A:$A,$A141,Data!AA:AA,">="&0)*1000 -> 21.6755 | J141: =SUMIFS(Data!AG:AG,Data!$A:$A,$A141,Data!AG:AG,">="&0)*1000 -> 18.86750009 | K141: =SUMIFS(Data!AM:AM,Data!$A:$A,$A141,Data!AM:AM,">="&0)*1000 -> 21.094 | L141: =SUMIFS(Data!AS:AS,Data!$A:$A,$A141,Data!AS:AS,">="&0)*1000 -> 15.67410001 | M141: 0.2330592469 | N141: 31.07289803 | O141: 25.89199079 | P141: 14.88273431 | Q141: 7.926922101 | R141: =Data!$AZ$5 -> 75.3 | S141: =IF(Data!$AZ$2,1,R141) * (1 + E141/F141) -> 13.31120943 | T141: 0.2305620383 | U141: 0.03324086659 | V141: 8.459871506
A142: 137 | B142: =SUMIF(Data!$A:$A,$A142,Data!G:G)/ SUMIF(Data!$A:$A,$A142,Data!F:F) -> 0.2650475185 | C142: =SUMIFS(Data!L:L,Data!$A:$A,$A142,Data!L:L,">="&0) -> 51021.4288 | D142: =SUMIFS(Data!M:M,Data!$A:$A,$A142,Data!M:M,">="&0) -> 50904.01658 | E142: =SUMIFS(Data!N:N,Data!$A:$A,$A142,Data!N:N,">="&0)*1000 -> 403.2748 | F142: =SUMIFS(Data!O:O,Data!$A:$A,$A142,Data!O:O,">="&0)*1000 -> 19.8982002 | G142: =SUMIFS(Data!R:R,Data!$A:$A,$A142,Data!R:R,">="&0) -> 48581.45108 | H142: =SUMIFS(Data!S:S,Data!$A:$A,$A142,Data!S:S,">="&0) -> 48477.16166 | I142: =SUMIFS(Data!AA:AA,Data!$A:$A,$A142,Data!AA:AA,">="&0)*1000 -> 21.6770999 | J142: =SUMIFS(Data!AG:AG,Data!$A:$A,$A142,Data!AG:AG,">="&0)*1000 -> 17.5162999 | K142: =SUMIFS(Data!AM:AM,Data!$A:$A,$A142,Data!AM:AM,">="&0)*1000 -> 20.1623001 | L142: =SUMIFS(Data!AS:AS,Data!$A:$A,$A142,Data!AS:AS,">="&0)*1000 -> 14.79909995 | M142: 0.2301233477 | N142: 32.82443272 | O142: 25.06637805 | P142: 23.7538751 | Q142: 8.20635467 | R142: =Data!$AZ$5 -> 75.3 | S142: =IF(Data!$AZ$2,1,R142) * (1 + E142/F142) -> 21.26689831 | T142: 0.2146692157 | U142: 0.3286614542 | V142: 5.006181956
A143: 138 | B143: =SUMIF(Data!$A:$A,$A143,Data!G:G)/ SUMIF(Data!$A:$A,$A143,Data!F:F) -> 0.2865287722 | C143: =SUMIFS(Data!L:L,Data!$A:$A,$A143,Data!L:L,">="&0) -> 51211.1438 | D143: =SUMIFS(Data!M:M,Data!$A:$A,$A143,Data!M:M,">="&0) -> 51088.55747 | E143: =SUMIFS(Data!N:N,Data!$A:$A,$A143,Data!N:N,">="&0)*1000 -> 404.2442997 | F143: =SUMIFS(Data!O:O,Data!$A:$A,$A143,Data!O:O,">="&0)*1000 -> 19.77829997 | G143: =SUMIFS(Data!R:R,Data!$A:$A,$A143,Data!R:R,">="&0) -> 48777.1686 | H143: =SUMIFS(Data!S:S,Data!$A:$A,$A143,Data!S:S,">="&0) -> 48667.24616 | I143: =SUMIFS(Data!AA:AA,Data!$A:$A,$A143,Data!AA:AA,">="&0)*1000 -> 21.54910001 | J143: =SUMIFS(Data!AG:AG,Data!$A:$A,$A143,Data!AG:AG,">="&0)*1000 -> 17.4158998 | K143: =SUMIFS(Data!AM:AM,Data!$A:$A,$A143,Data!AM:AM,">="&0)*1000 -> 20.0931 | L143: =SUMIFS(Data!AS:AS,Data!$A:$A,$A143,Data!AS:AS,">="&0)*1000 -> 14.7749 | M143: 0.2393743254 | N143: 32.73776844 | O143: 24.96596555 | P143: 23.73233802 | Q143: 8.217512746 | R143: =Data!$AZ$5 -> 75.3 | S143: =IF(Data!$AZ$2,1,R143) * (1 + E143/F143) -> 21.43877888 | T143: 0.2253563361 | U143: 0.3005285734 | V143: 4.97523797
A144: 139 | B144: =SUMIF(Data!$A:$A,$A144,Data!G:G)/ SUMIF(Data!$A:$A,$A144,Data!F:F) -> 0.7352252018 | C144: =SUMIFS(Data!L:L,Data!$A:$A,$A144,Data!L:L,">="&0) -> 23015.12169 | D144: =SUMIFS(Data!M:M,Data!$A:$A,$A144,Data!M:M,">="&0) -> 22941.24335 | E144: =SUMIFS(Data!N:N,Data!$A:$A,$A144,Data!N:N,">="&0)*1000 -> 177.5009995 | F144: =SUMIFS(Data!O:O,Data!$A:$A,$A144,Data!O:O,">="&0)*1000 -> 14.1674999 | G144: =SUMIFS(Data!R:R,Data!$A:$A,$A144,Data!R:R,">="&0) -> 21209.3953 | H144: =SUMIFS(Data!S:S,Data!$A:$A,$A144,Data!S:S,">="&0) -> 21136.2963 | I144: =SUMIFS(Data!AA:AA,Data!$A:$A,$A144,Data!AA:AA,">="&0)*1000 -> 15.3706 | J144: =SUMIFS(Data!AG:AG,Data!$A:$A,$A144,Data!AG:AG,">="&0)*1000 -> 13.55389997 | K144: =SUMIFS(Data!AM:AM,Data!$A:$A,$A144,Data!AM:AM,">="&0)*1000 -> 15.4857 | L144: =SUMIFS(Data!AS:AS,Data!$A:$A,$A144,Data!AS:AS,">="&0)*1000 -> 11.7942999 | M144: 0.3209991283 | N144: 29.68819419 | O144: 24.76675522 | P144: 13.40352248 | Q144: 7.827281303 | R144: =Data!$AZ$5 -> 75.3 | S144: =IF(Data!$AZ$2,1,R144) * (1 + E144/F144) -> 13.52874542 | T144: 0.344653862 | U144: -0.3200188698 | V144: 8.539561635
A145: 140 | B145: =SUMIF(Data!$A:$A,$A145,Data!G:G)/ SUMIF(Data!$A:$A,$A145,Data!F:F) -> 0.9951272334 | C145: =SUMIFS(Data!L:L,Data!$A:$A,$A145,Data!L:L,">="&0) -> 8453.6302 | D145: =SUMIFS(Data!M:M,Data!$A:$A,$A145,Data!M:M,">="&0) -> 8409.522924 | E145: =SUMIFS(Data!N:N,Data!$A:$A,$A145,Data!N:N,">="&0)*1000 -> 66.3997996 | F145: =SUMIFS(Data!O:O,Data!$A:$A,$A145,Data!O:O,">="&0)*1000 -> 8.62739997 | G145: =SUMIFS(Data!R:R,Data!$A:$A,$A145,Data!R:R,">="&0) -> 7367.52349 | H145: =SUMIFS(Data!S:S,Data!$A:$A,$A145,Data!S:S,">="&0) -> 7323.380496 | I145: =SUMIFS(Data!AA:AA,Data!$A:$A,$A145,Data!AA:AA,">="&0)*1000 -> 9.33589997 | J145: =SUMIFS(Data!AG:AG,Data!$A:$A,$A145,Data!AG:AG,">="&0)*1000 -> 8.59810001 | K145: =SUMIFS(Data!AM:AM,Data!$A:$A,$A145,Data!AM:AM,">="&0)*1000 -> 9.8284 | L145: =SUMIFS(Data!AS:AS,Data!$A:$A,$A145,Data!AS:AS,">="&0)*1000 -> 7.5334 | M145: 0.5217554466 | N145: 27.85403037 | O145: 24.63921573 | P145: 8.580965087 | Q145: 7.588984482 | R145: =Data!$AZ$5 -> 75.3 | S145: =IF(Data!$AZ$2,1,R145) * (1 + E145/F145) -> 8.696385914 | T145: 0.5991564745 | U145: -0.6731092091 | V145: 14.83116204
A146: 141 | B146: =SUMIF(Data!$A:$A,$A146,Data!G:G)/ SUMIF(Data!$A:$A,$A146,Data!F:F) -> 0.8721607455 | C146: =SUMIFS(Data!L:L,Data!$A:$A,$A146,Data!L:L,">="&0) -> 18545.9746 | D146: =SUMIFS(Data!M:M,Data!$A:$A,$A146,Data!M:M,">="&0) -> 18480.29852 | E146: =SUMIFS(Data!N:N,Data!$A:$A,$A146,Data!N:N,">="&0)*1000 -> 139.774399 | F146: =SUMIFS(Data!O:O,Data!$A:$A,$A146,Data!O:O,">="&0)*1000 -> 14.6033001 | G146: =SUMIFS(Data!R:R,Data!$A:$A,$A146,Data!R:R,">="&0) -> 16666.8194 | H146: =SUMIFS(Data!S:S,Data!$A:$A,$A146,Data!S:S,">="&0) -> 16601.02999 | I146: =SUMIFS(Data!AA:AA,Data!$A:$A,$A146,Data!AA:AA,">="&0)*1000 -> 15.8212001 | J146: =SUMIFS(Data!AG:AG,Data!$A:$A,$A146,Data!AG:AG,">="&0)*1000 -> 14.291 | K146: =SUMIFS(Data!AM:AM,Data!$A:$A,$A146,Data!AM:AM,">="&0)*1000 -> 16.3038 | L146: =SUMIFS(Data!AS:AS,Data!$A:$A,$A146,Data!AS:AS,">="&0)*1000 -> 12.41409978 | M146: 0.354125795 | N146: 28.75928768 | O146: 24.82530816 | P146: 10.70743895 | Q146: 7.697898973 | R146: =Data!$AZ$5 -> 75.3 | S146: =IF(Data!$AZ$2,1,R146) * (1 + E146/F146) -> 10.5714255 | T146: 0.3947328427 | U146: -0.4292743789 | V146: 11.32019237
A147: 142 | B147: =SUMIF(Data!$A:$A,$A147,Data!G:G)/ SUMIF(Data!$A:$A,$A147,Data!F:F) -> 0.5565899963 | C147: =SUMIFS(Data!L:L,Data!$A:$A,$A147,Data!L:L,">="&0) -> 33911.6888 | D147: =SUMIFS(Data!M:M,Data!$A:$A,$A147,Data!M:M,">="&0) -> 33817.09867 | E147: =SUMIFS(Data!N:N,Data!$A:$A,$A147,Data!N:N,">="&0)*1000 -> 263.372299 | F147: =SUMIFS(Data!O:O,Data!$A:$A,$A147,Data!O:O,">="&0)*1000 -> 18.0136 | G147: =SUMIFS(Data!R:R,Data!$A:$A,$A147,Data!R:R,">="&0) -> 31643.9883 | H147: =SUMIFS(Data!S:S,Data!$A:$A,$A147,Data!S:S,">="&0) -> 31554.24754 | I147: =SUMIFS(Data!AA:AA,Data!$A:$A,$A147,Data!AA:AA,">="&0)*1000 -> 19.5568 | J147: =SUMIFS(Data!AG:AG,Data!$A:$A,$A147,Data!AG:AG,">="&0)*1000 -> 16.85569996 | K147: =SUMIFS(Data!AM:AM,Data!$A:$A,$A147,Data!AM:AM,">="&0)*1000 -> 19.24379997 | L147: =SUMIFS(Data!AS:AS,Data!$A:$A,$A147,Data!AS:AS,">="&0)*1000 -> 14.44930015 | M147: 0.2789307562 | N147: 30.65283146 | O147: 25.01908416 | P147: 16.02484647 | Q147: 7.890861491 | R147: =Data!$AZ$5 -> 75.3 | S147: =IF(Data!$AZ$2,1,R147) * (1 + E147/F147) -> 15.6207476 | T147: 0.2835949728 | U147: -0.07285855013 | V147: 7.171304361
A148: 143 | B148: =SUMIF(Data!$A:$A,$A148,Data!G:G)/ SUMIF(Data!$A:$A,$A148,Data!F:F) -> 0.7656936192 | C148: =SUMIFS(Data!L:L,Data!$A:$A,$A148,Data!L:L,">="&0) -> 22842.0029 | D148: =SUMIFS(Data!M:M,Data!$A:$A,$A148,Data!M:M,">="&0) -> 22768.06791 | E148: =SUMIFS(Data!N:N,Data!$A:$A,$A148,Data!N:N,">="&0)*1000 -> 175.4506999 | F148: =SUMIFS(Data!O:O,Data!$A:$A,$A148,Data!O:O,">="&0)*1000 -> 14.7101 | G148: =SUMIFS(Data!R:R,Data!$A:$A,$A148,Data!R:R,">="&0) -> 20967.8694 | H148: =SUMIFS(Data!S:S,Data!$A:$A,$A148,Data!S:S,">="&0) -> 20893.76391 | I148: =SUMIFS(Data!AA:AA,Data!$A:$A,$A148,Data!AA:AA,">="&0)*1000 -> 15.9611 | J148: =SUMIFS(Data!AG:AG,Data!$A:$A,$A148,Data!AG:AG,">="&0)*1000 -> 14.13840002 | K148: =SUMIFS(Data!AM:AM,Data!$A:$A,$A148,Data!AM:AM,">="&0)*1000 -> 16.0999 | L148: =SUMIFS(Data!AS:AS,Data!$A:$A,$A148,Data!AS:AS,">="&0)*1000 -> 12.21940003 | M148: 0.3236799782 | N148: 29.64231413 | O148: 24.94523903 | P148: 12.8918405 | Q148: 7.837805665 | R148: =Data!$AZ$5 -> 75.3 | S148: =IF(Data!$AZ$2,1,R148) * (1 + E148/F148) -> 12.92722686 | T148: 0.3534240346 | U148: -0.3845081652 | V148: 8.970638359
A149: 144 | B149: =SUMIF(Data!$A:$A,$A149,Data!G:G)/ SUMIF(Data!$A:$A,$A149,Data!F:F) -> 0.7397643299 | C149: =SUMIFS(Data!L:L,Data!$A:$A,$A149,Data!L:L,">="&0) -> 28643.54593 | D149: =SUMIFS(Data!M:M,Data!$A:$A,$A149,Data!M:M,">="&0) -> 28561.88125 | E149: =SUMIFS(Data!N:N,Data!$A:$A,$A149,Data!N:N,">="&0)*1000 -> 219.7559005 | F149: =SUMIFS(Data!O:O,Data!$A:$A,$A149,Data!O:O,">="&0)*1000 -> 19.0649998 | G149: =SUMIFS(Data!R:R,Data!$A:$A,$A149,Data!R:R,">="&0) -> 26236.2906 | H149: =SUMIFS(Data!S:S,Data!$A:$A,$A149,Data!S:S,">="&0) -> 26155.68478 | I149: =SUMIFS(Data!AA:AA,Data!$A:$A,$A149,Data!AA:AA,">="&0)*1000 -> 20.6780998 | J149: =SUMIFS(Data!AG:AG,Data!$A:$A,$A149,Data!AG:AG,">="&0)*1000 -> 18.3467 | K149: =SUMIFS(Data!AM:AM,Data!$A:$A,$A149,Data!AM:AM,">="&0)*1000 -> 21.0081998 | L149: =SUMIFS(Data!AS:AS,Data!$A:$A,$A149,Data!AS:AS,">="&0)*1000 -> 15.9167 | M149: 0.2851067399 | N149: 29.35166451 | O149: 24.7726605 | P149: 12.70746129 | Q149: 7.801006938 | R149: =Data!$AZ$5 -> 75.3 | S149: =IF(Data!$AZ$2,1,R149) * (1 + E149/F149) -> 12.52666681 | T149: 0.3072302454 | U149: -0.2771337821 | V149: 9.199516244
A150: 145 | B150: =SUMIF(Data!$A:$A,$A150,Data!G:G)/ SUMIF(Data!$A:$A,$A150,Data!F:F) -> 0.11 | C150: =SUMIFS(Data!L:L,Data!$A:$A,$A150,Data!L:L,">="&0) -> 60195.41904 | D150: =SUMIFS(Data!M:M,Data!$A:$A,$A150,Data!M:M,">="&0) -> 60024.5461 | E150: =SUMIFS(Data!N:N,Data!$A:$A,$A150,Data!N:N,">="&0)*1000 -> 496.0456998 | F150: =SUMIFS(Data!O:O,Data!$A:$A,$A150,Data!O:O,">="&0)*1000 -> 21.5963002 | G150: =SUMIFS(Data!R:R,Data!$A:$A,$A150,Data!R:R,">="&0) -> 57669.2703 | H150: =SUMIFS(Data!S:S,Data!$A:$A,$A150,Data!S:S,">="&0) -> 57516.0132 | I150: =SUMIFS(Data!AA:AA,Data!$A:$A,$A150,Data!AA:AA,">="&0)*1000 -> 23.568 | J150: =SUMIFS(Data!AG:AG,Data!$A:$A,$A150,Data!AG:AG,">="&0)*1000 -> 18.50369986 | K150: =SUMIFS(Data!AM:AM,Data!$A:$A,$A150,Data!AM:AM,">="&0)*1000 -> 21.1627999 | L150: =SUMIFS(Data!AS:AS,Data!$A:$A,$A150,Data!AS:AS,">="&0)*1000 -> 15.43389992 | M150: 0.2838636938 | N150: 34.19836288 | O150: 25.35844569 | P150: 27.36912173 | Q150: 8.366003904 | R150: =Data!$AZ$5 -> 75.3 | S150: =IF(Data!$AZ$2,1,R150) * (1 + E150/F150) -> 23.96901299 | T150: 0.2657517586 | U150: 0.4341252104 | V150: 4.361451291
A151: 146 | B151: =SUMIF(Data!$A:$A,$A151,Data!G:G)/ SUMIF(Data!$A:$A,$A151,Data!F:F) -> 0.7371460507 | C151: =SUMIFS(Data!L:L,Data!$A:$A,$A151,Data!L:L,">="&0) -> 30080.5161 | D151: =SUMIFS(Data!M:M,Data!$A:$A,$A151,Data!M:M,">="&0) -> 30008.46085 | E151: =SUMIFS(Data!N:N,Data!$A:$A,$A151,Data!N:N,">="&0)*1000 -> 225.4427 | F151: =SUMIFS(Data!O:O,Data!$A:$A,$A151,Data!O:O,">="&0)*1000 -> 21.30070001 | G151: =SUMIFS(Data!R:R,Data!$A:$A,$A151,Data!R:R,">="&0) -> 27355.7135 | H151: =SUMIFS(Data!S:S,Data!$A:$A,$A151,Data!S:S,">="&0) -> 27284.90867 | I151: =SUMIFS(Data!AA:AA,Data!$A:$A,$A151,Data!AA:AA,">="&0)*1000 -> 23.09170013 | J151: =SUMIFS(Data!AG:AG,Data!$A:$A,$A151,Data!AG:AG,">="&0)*1000 -> 20.5847002 | K151: =SUMIFS(Data!AM:AM,Data!$A:$A,$A151,Data!AM:AM,">="&0)*1000 -> 23.12709996 | L151: =SUMIFS(Data!AS:AS,Data!$A:$A,$A151,Data!AS:AS,">="&0)*1000 -> 17.48330007 | M151: 0.239541269 | N151: 29.9372766 | O151: 25.49523405 | P151: 12.17894798 | Q151: 7.756034029 | R151: =Data!$AZ$5 -> 75.3 | S151: =IF(Data!$AZ$2,1,R151) * (1 + E151/F151) -> 11.58381649 | T151: 0.2588301343 | U151: -0.2234386758 | V151: 9.981899566
A152: 147 | B152: =SUMIF(Data!$A:$A,$A152,Data!G:G)/ SUMIF(Data!$A:$A,$A152,Data!F:F) -> 0.2759727751 | C152: =SUMIFS(Data!L:L,Data!$A:$A,$A152,Data!L:L,">="&0) -> 53965.7605 | D152: =SUMIFS(Data!M:M,Data!$A:$A,$A152,Data!M:M,">="&0) -> 53815.66456 | E152: =SUMIFS(Data!N:N,Data!$A:$A,$A152,Data!N:N,">="&0)*1000 -> 418.146802 | F152: =SUMIFS(Data!O:O,Data!$A:$A,$A152,Data!O:O,">="&0)*1000 -> 20.69459989 | G152: =SUMIFS(Data!R:R,Data!$A:$A,$A152,Data!R:R,">="&0) -> 51378.3917 | H152: =SUMIFS(Data!S:S,Data!$A:$A,$A152,Data!S:S,">="&0) -> 51241.3957 | I152: =SUMIFS(Data!AA:AA,Data!$A:$A,$A152,Data!AA:AA,">="&0)*1000 -> 22.5598999 | J152: =SUMIFS(Data!AG:AG,Data!$A:$A,$A152,Data!AG:AG,">="&0)*1000 -> 18.20830001 | K152: =SUMIFS(Data!AM:AM,Data!$A:$A,$A152,Data!AM:AM,">="&0)*1000 -> 20.66180002 | L152: =SUMIFS(Data!AS:AS,Data!$A:$A,$A152,Data!AS:AS,">="&0)*1000 -> 15.20270009 | M152: 0.278131798 | N152: 33.47694657 | O152: 25.50566936 | P152: 23.8989905 | Q152: 8.26821049 | R152: =Data!$AZ$5 -> 75.3 | S152: =IF(Data!$AZ$2,1,R152) * (1 + E152/F152) -> 21.20559973 | T152: 0.2666412775 | U152: 0.2436633786 | V152: 5.02380707
A153: 148 | B153: =SUMIF(Data!$A:$A,$A153,Data!G:G)/ SUMIF(Data!$A:$A,$A153,Data!F:F) -> 0.7786259542 | C153: =SUMIFS(Data!L:L,Data!$A:$A,$A153,Data!L:L,">="&0) -> 26246.784 | D153: =SUMIFS(Data!M:M,Data!$A:$A,$A153,Data!M:M,">="&0) -> 26147.59941 | E153: =SUMIFS(Data!N:N,Data!$A:$A,$A153,Data!N:N,">="&0)*1000 -> 197.2112 | F153: =SUMIFS(Data!O:O,Data!$A:$A,$A153,Data!O:O,">="&0)*1000 -> 16.76600001 | G153: =SUMIFS(Data!R:R,Data!$A:$A,$A153,Data!R:R,">="&0) -> 24067.2904 | H153: =SUMIFS(Data!S:S,Data!$A:$A,$A153,Data!S:S,">="&0) -> 23967.36143 | I153: =SUMIFS(Data!AA:AA,Data!$A:$A,$A153,Data!AA:AA,">="&0)*1000 -> 18.193 | J153: =SUMIFS(Data!AG:AG,Data!$A:$A,$A153,Data!AG:AG,">="&0)*1000 -> 16.133 | K153: =SUMIFS(Data!AM:AM,Data!$A:$A,$A153,Data!AM:AM,">="&0)*1000 -> 18.1434999 | L153: =SUMIFS(Data!AS:AS,Data!$A:$A,$A153,Data!AS:AS,">="&0)*1000 -> 13.83340011 | M153: 0.3778923544 | N153: 30.11484676 | O153: 25.33537505 | P153: 12.76885886 | Q153: 7.843676084 | R153: =Data!$AZ$5 -> 75.3 | S153: =IF(Data!$AZ$2,1,R153) * (1 + E153/F153) -> 12.76256709 | T153: 0.415206566 | U153: -0.4762251297 | V153: 9.096695881
A154: 149 | B154: =SUMIF(Data!$A:$A,$A154,Data!G:G)/ SUMIF(Data!$A:$A,$A154,Data!F:F) -> 0.163525033 | C154: =SUMIFS(Data!L:L,Data!$A:$A,$A154,Data!L:L,">="&0) -> 56783.8232 | D154: =SUMIFS(Data!M:M,Data!$A:$A,$A154,Data!M:M,">="&0) -> 56617.9588 | E154: =SUMIFS(Data!N:N,Data!$A:$A,$A154,Data!N:N,">="&0)*1000 -> 455.4055 | F154: =SUMIFS(Data!O:O,Data!$A:$A,$A154,Data!O:O,">="&0)*1000 -> 20.4413001 | G154: =SUMIFS(Data!R:R,Data!$A:$A,$A154,Data!R:R,">="&0) -> 54312.77983 | H154: =SUMIFS(Data!S:S,Data!$A:$A,$A154,Data!S:S,">="&0) -> 54162.8654 | I154: =SUMIFS(Data!AA:AA,Data!$A:$A,$A154,Data!AA:AA,">="&0)*1000 -> 22.29819987 | J154: =SUMIFS(Data!AG:AG,Data!$A:$A,$A154,Data!AG:AG,">="&0)*1000 -> 17.6561 | K154: =SUMIFS(Data!AM:AM,Data!$A:$A,$A154,Data!AM:AM,">="&0)*1000 -> 20.4003 | L154: =SUMIFS(Data!AS:AS,Data!$A:$A,$A154,Data!AS:AS,">="&0)*1000 -> 14.9067 | M154: 0.2920979791 | N154: 33.45474711 | O154: 25.00473278 | P154: 26.29176245 | Q154: 8.327577028 | R154: =Data!$AZ$5 -> 75.3 | S154: =IF(Data!$AZ$2,1,R154) * (1 + E154/F154) -> 23.27869547 | T154: 0.2760205434 | U154: 0.3742617297 | V154: 4.532798222
A155: 150 | B155: =SUMIF(Data!$A:$A,$A155,Data!G:G)/ SUMIF(Data!$A:$A,$A155,Data!F:F) -> 0.3602434077 | C155: =SUMIFS(Data!L:L,Data!$A:$A,$A155,Data!L:L,">="&0) -> 49768.5891 | D155: =SUMIFS(Data!M:M,Data!$A:$A,$A155,Data!M:M,">="&0) -> 49642.15984 | E155: =SUMIFS(Data!N:N,Data!$A:$A,$A155,Data!N:N,">="&0)*1000 -> 381.058299 | F155: =SUMIFS(Data!O:O,Data!$A:$A,$A155,Data!O:O,">="&0)*1000 -> 21.5073003 | G155: =SUMIFS(Data!R:R,Data!$A:$A,$A155,Data!R:R,">="&0) -> 47048.3072 | H155: =SUMIFS(Data!S:S,Data!$A:$A,$A155,Data!S:S,">="&0) -> 46931.688 | I155: =SUMIFS(Data!AA:AA,Data!$A:$A,$A155,Data!AA:AA,">="&0)*1000 -> 23.4149001 | J155: =SUMIFS(Data!AG:AG,Data!$A:$A,$A155,Data!AG:AG,">="&0)*1000 -> 19.3519002 | K155: =SUMIFS(Data!AM:AM,Data!$A:$A,$A155,Data!AM:AM,">="&0)*1000 -> 21.6946999 | L155: =SUMIFS(Data!AS:AS,Data!$A:$A,$A155,Data!AS:AS,">="&0)*1000 -> 16.0523999 | M155: 0.2540342459 | N155: 33.04875707 | O155: 25.8477931 | P155: 20.99535373 | Q155: 8.146948276 | R155: =Data!$AZ$5 -> 75.3 | S155: =IF(Data!$AZ$2,1,R155) * (1 + E155/F155) -> 18.71762581 | T155: 0.2478711923 | U155: 0.1153577311 | V155: 5.775355534
A156: 151 | B156: =SUMIF(Data!$A:$A,$A156,Data!G:G)/ SUMIF(Data!$A:$A,$A156,Data!F:F) -> 0.1871046229 | C156: =SUMIFS(Data!L:L,Data!$A:$A,$A156,Data!L:L,">="&0) -> 56322.6053 | D156: =SUMIFS(Data!M:M,Data!$A:$A,$A156,Data!M:M,">="&0) -> 56153.86357 | E156: =SUMIFS(Data!N:N,Data!$A:$A,$A156,Data!N:N,">="&0)*1000 -> 448.047698 | F156: =SUMIFS(Data!O:O,Data!$A:$A,$A156,Data!O:O,">="&0)*1000 -> 20.2817 | G156: =SUMIFS(Data!R:R,Data!$A:$A,$A156,Data!R:R,">="&0) -> 53855.2892 | H156: =SUMIFS(Data!S:S,Data!$A:$A,$A156,Data!S:S,">="&0) -> 53701.68256 | I156: =SUMIFS(Data!AA:AA,Data!$A:$A,$A156,Data!AA:AA,">="&0)*1000 -> 22.1203 | J156: =SUMIFS(Data!AG:AG,Data!$A:$A,$A156,Data!AG:AG,">="&0)*1000 -> 17.5754 | K156: =SUMIFS(Data!AM:AM,Data!$A:$A,$A156,Data!AM:AM,">="&0)*1000 -> 20.3757999 | L156: =SUMIFS(Data!AS:AS,Data!$A:$A,$A156,Data!AS:AS,">="&0)*1000 -> 14.9101 | M156: 0.2995985876 | N156: 33.19172317 | O156: 24.87641116 | P156: 25.8594399 | Q156: 8.311822172 | R156: =Data!$AZ$5 -> 75.3 | S156: =IF(Data!$AZ$2,1,R156) * (1 + E156/F156) -> 23.09122993 | T156: 0.2852210847 | U156: 0.3319942272 | V156: 4.56630201
A157: 152 | B157: =SUMIF(Data!$A:$A,$A157,Data!G:G)/ SUMIF(Data!$A:$A,$A157,Data!F:F) -> 0.4988077496 | C157: =SUMIFS(Data!L:L,Data!$A:$A,$A157,Data!L:L,">="&0) -> 42755.9807 | D157: =SUMIFS(Data!M:M,Data!$A:$A,$A157,Data!M:M,">="&0) -> 42653.8529 | E157: =SUMIFS(Data!N:N,Data!$A:$A,$A157,Data!N:N,">="&0)*1000 -> 328.126401 | F157: =SUMIFS(Data!O:O,Data!$A:$A,$A157,Data!O:O,">="&0)*1000 -> 21.5542999 | G157: =SUMIFS(Data!R:R,Data!$A:$A,$A157,Data!R:R,">="&0) -> 40036.8347 | H157: =SUMIFS(Data!S:S,Data!$A:$A,$A157,Data!S:S,">="&0) -> 39940.0076 | I157: =SUMIFS(Data!AA:AA,Data!$A:$A,$A157,Data!AA:AA,">="&0)*1000 -> 23.4323997 | J157: =SUMIFS(Data!AG:AG,Data!$A:$A,$A157,Data!AG:AG,">="&0)*1000 -> 19.9500998 | K157: =SUMIFS(Data!AM:AM,Data!$A:$A,$A157,Data!AM:AM,">="&0)*1000 -> 22.46839999 | L157: =SUMIFS(Data!AS:AS,Data!$A:$A,$A157,Data!AS:AS,">="&0)*1000 -> 16.78169999 | M157: 0.2388620219 | N157: 31.69518299 | O157: 25.57159655 | P157: 17.45505002 | Q157: 8.014969973 | R157: =Data!$AZ$5 -> 75.3 | S157: =IF(Data!$AZ$2,1,R157) * (1 + E157/F157) -> 16.22324559 | T157: 0.2418450428 | U157: -0.04839427939 | V157: 6.794804165
A158: 153 | B158: =SUMIF(Data!$A:$A,$A158,Data!G:G)/ SUMIF(Data!$A:$A,$A158,Data!F:F) -> 0.9466916689 | C158: =SUMIFS(Data!L:L,Data!$A:$A,$A158,Data!L:L,">="&0) -> 18726.0274 | D158: =SUMIFS(Data!M:M,Data!$A:$A,$A158,Data!M:M,">="&0) -> 18626.40789 | E158: =SUMIFS(Data!N:N,Data!$A:$A,$A158,Data!N:N,">="&0)*1000 -> 138.2572999 | F158: =SUMIFS(Data!O:O,Data!$A:$A,$A158,Data!O:O,">="&0)*1000 -> 16.9835999 | G158: =SUMIFS(Data!R:R,Data!$A:$A,$A158,Data!R:R,">="&0) -> 16531.87776 | H158: =SUMIFS(Data!S:S,Data!$A:$A,$A158,Data!S:S,">="&0) -> 16428.26561 | I158: =SUMIFS(Data!AA:AA,Data!$A:$A,$A158,Data!AA:AA,">="&0)*1000 -> 18.3832999 | J158: =SUMIFS(Data!AG:AG,Data!$A:$A,$A158,Data!AG:AG,">="&0)*1000 -> 16.83519999 | K158: =SUMIFS(Data!AM:AM,Data!$A:$A,$A158,Data!AM:AM,">="&0)*1000 -> 19.0837 | L158: =SUMIFS(Data!AS:AS,Data!$A:$A,$A158,Data!AS:AS,">="&0)*1000 -> 14.557 | M158: 0.5319842157 | N158: 28.45273577 | O158: 25.03280533 | P158: 9.195613423 | Q158: 7.613975769 | R158: =Data!$AZ$5 -> 75.3 | S158: =IF(Data!$AZ$2,1,R158) * (1 + E158/F158) -> 9.140635714 | T158: 0.6267415686 | U158: -0.8661424443 | V158: 13.38024556
A159: 154 | B159: =SUMIF(Data!$A:$A,$A159,Data!G:G)/ SUMIF(Data!$A:$A,$A159,Data!F:F) -> 0.4738033635 | C159: =SUMIFS(Data!L:L,Data!$A:$A,$A159,Data!L:L,">="&0) -> 39837.7808 | D159: =SUMIFS(Data!M:M,Data!$A:$A,$A159,Data!M:M,">="&0) -> 39708.77855 | E159: =SUMIFS(Data!N:N,Data!$A:$A,$A159,Data!N:N,">="&0)*1000 -> 309.585301 | F159: =SUMIFS(Data!O:O,Data!$A:$A,$A159,Data!O:O,">="&0)*1000 -> 19.6080999 | G159: =SUMIFS(Data!R:R,Data!$A:$A,$A159,Data!R:R,">="&0) -> 37371.4501 | H159: =SUMIFS(Data!S:S,Data!$A:$A,$A159,Data!S:S,">="&0) -> 37248.79978 | I159: =SUMIFS(Data!AA:AA,Data!$A:$A,$A159,Data!AA:AA,">="&0)*1000 -> 21.3065 | J159: =SUMIFS(Data!AG:AG,Data!$A:$A,$A159,Data!AG:AG,">="&0)*1000 -> 18.1266998 | K159: =SUMIFS(Data!AM:AM,Data!$A:$A,$A159,Data!AM:AM,">="&0)*1000 -> 20.37370007 | L159: =SUMIFS(Data!AS:AS,Data!$A:$A,$A159,Data!AS:AS,">="&0)*1000 -> 15.2518 | M159: 0.3238188659 | N159: 31.821199 | O159: 25.61295566 | P159: 17.54208011 | Q159: 7.97127684 | R159: =Data!$AZ$5 -> 75.3 | S159: =IF(Data!$AZ$2,1,R159) * (1 + E159/F159) -> 16.7886436 | T159: 0.3281925632 | U159: -0.07342844514 | V159: 6.604182644
A160: 155 | B160: =SUMIF(Data!$A:$A,$A160,Data!G:G)/ SUMIF(Data!$A:$A,$A160,Data!F:F) -> 0.1486152033 | C160: =SUMIFS(Data!L:L,Data!$A:$A,$A160,Data!L:L,">="&0) -> 59315.6161 | D160: =SUMIFS(Data!M:M,Data!$A:$A,$A160,Data!M:M,">="&0) -> 59124.23776 | E160: =SUMIFS(Data!N:N,Data!$A:$A,$A160,Data!N:N,">="&0)*1000 -> 466.738602 | F160: =SUMIFS(Data!O:O,Data!$A:$A,$A160,Data!O:O,">="&0)*1000 -> 20.9618999 | G160: =SUMIFS(Data!R:R,Data!$A:$A,$A160,Data!R:R,">="&0) -> 56743.9649 | H160: =SUMIFS(Data!S:S,Data!$A:$A,$A160,Data!S:S,">="&0) -> 56569.8364 | I160: =SUMIFS(Data!AA:AA,Data!$A:$A,$A160,Data!AA:AA,">="&0)*1000 -> 22.8771001 | J160: =SUMIFS(Data!AG:AG,Data!$A:$A,$A160,Data!AG:AG,">="&0)*1000 -> 18.0527001 | K160: =SUMIFS(Data!AM:AM,Data!$A:$A,$A160,Data!AM:AM,">="&0)*1000 -> 20.537 | L160: =SUMIFS(Data!AS:AS,Data!$A:$A,$A160,Data!AS:AS,">="&0)*1000 -> 14.9998 | M160: 0.3226441072 | N160: 34.22614336 | O160: 25.51343657 | P160: 26.7239802 | Q160: 8.371691305 | R160: =Data!$AZ$5 -> 75.3 | S160: =IF(Data!$AZ$2,1,R160) * (1 + E160/F160) -> 23.26604479 | T160: 0.3068669951 | U160: 0.3670709964 | V160: 4.515483025
A161: 156 | B161: =SUMIF(Data!$A:$A,$A161,Data!G:G)/ SUMIF(Data!$A:$A,$A161,Data!F:F) -> 0.4312896406 | C161: =SUMIFS(Data!L:L,Data!$A:$A,$A161,Data!L:L,">="&0) -> 45929.7445 | D161: =SUMIFS(Data!M:M,Data!$A:$A,$A161,Data!M:M,">="&0) -> 45805.7377 | E161: =SUMIFS(Data!N:N,Data!$A:$A,$A161,Data!N:N,">="&0)*1000 -> 349.1603998 | F161: =SUMIFS(Data!O:O,Data!$A:$A,$A161,Data!O:O,">="&0)*1000 -> 22.0671002 | G161: =SUMIFS(Data!R:R,Data!$A:$A,$A161,Data!R:R,">="&0) -> 43118.62916 | H161: =SUMIFS(Data!S:S,Data!$A:$A,$A161,Data!S:S,">="&0) -> 43001.5347 | I161: =SUMIFS(Data!AA:AA,Data!$A:$A,$A161,Data!AA:AA,">="&0)*1000 -> 23.9933998 | J161: =SUMIFS(Data!AG:AG,Data!$A:$A,$A161,Data!AG:AG,">="&0)*1000 -> 20.24639998 | K161: =SUMIFS(Data!AM:AM,Data!$A:$A,$A161,Data!AM:AM,">="&0)*1000 -> 22.75399987 | L161: =SUMIFS(Data!AS:AS,Data!$A:$A,$A161,Data!AS:AS,">="&0)*1000 -> 16.9305001 | M161: 0.2699923576 | N161: 32.12827334 | O161: 25.69399847 | P161: 18.50699297 | Q161: 8.028456226 | R161: =Data!$AZ$5 -> 75.3 | S161: =IF(Data!$AZ$2,1,R161) * (1 + E161/F161) -> 16.82266798 | T161: 0.2715635035 | U161: -0.02643086607 | V161: 6.52116958
A162: 157 | B162: =SUMIF(Data!$A:$A,$A162,Data!G:G)/ SUMIF(Data!$A:$A,$A162,Data!F:F) -> 0.443027089 | C162: =SUMIFS(Data!L:L,Data!$A:$A,$A162,Data!L:L,">="&0) -> 45017.0599 | D162: =SUMIFS(Data!M:M,Data!$A:$A,$A162,Data!M:M,">="&0) -> 44903.96055 | E162: =SUMIFS(Data!N:N,Data!$A:$A,$A162,Data!N:N,">="&0)*1000 -> 342.501099 | F162: =SUMIFS(Data!O:O,Data!$A:$A,$A162,Data!O:O,">="&0)*1000 -> 21.99800007 | G162: =SUMIFS(Data!R:R,Data!$A:$A,$A162,Data!R:R,">="&0) -> 42220.173 | H162: =SUMIFS(Data!S:S,Data!$A:$A,$A162,Data!S:S,">="&0) -> 42112.5384 | I162: =SUMIFS(Data!AA:AA,Data!$A:$A,$A162,Data!AA:AA,">="&0)*1000 -> 23.91250002 | J162: =SUMIFS(Data!AG:AG,Data!$A:$A,$A162,Data!AG:AG,">="&0)*1000 -> 20.21409999 | K162: =SUMIFS(Data!AM:AM,Data!$A:$A,$A162,Data!AM:AM,">="&0)*1000 -> 22.5599 | L162: =SUMIFS(Data!AS:AS,Data!$A:$A,$A162,Data!AS:AS,">="&0)*1000 -> 16.77549992 | M162: 0.2512366428 | N162: 32.33835835 | O162: 25.94460968 | P162: 18.29613998 | Q162: 8.006272654 | R162: =Data!$AZ$5 -> 75.3 | S162: =IF(Data!$AZ$2,1,R162) * (1 + E162/F162) -> 16.56964715 | T162: 0.2549364258 | U162: -0.06130409759 | V162: 6.628482291
A163: 158 | B163: =SUMIF(Data!$A:$A,$A163,Data!G:G)/ SUMIF(Data!$A:$A,$A163,Data!F:F) -> 0.2285573244 | C163: =SUMIFS(Data!L:L,Data!$A:$A,$A163,Data!L:L,">="&0) -> 55051.9315 | D163: =SUMIFS(Data!M:M,Data!$A:$A,$A163,Data!M:M,">="&0) -> 54885.6931 | E163: =SUMIFS(Data!N:N,Data!$A:$A,$A163,Data!N:N,">="&0)*1000 -> 434.8193 | F163: =SUMIFS(Data!O:O,Data!$A:$A,$A163,Data!O:O,">="&0)*1000 -> 20.73180011 | G163: =SUMIFS(Data!R:R,Data!$A:$A,$A163,Data!R:R,">="&0) -> 52508.6961 | H163: =SUMIFS(Data!S:S,Data!$A:$A,$A163,Data!S:S,">="&0) -> 52355.05273 | I163: =SUMIFS(Data!AA:AA,Data!$A:$A,$A163,Data!AA:AA,">="&0)*1000 -> 22.5946001 | J163: =SUMIFS(Data!AG:AG,Data!$A:$A,$A163,Data!AG:AG,">="&0)*1000 -> 18.15129999 | K163: =SUMIFS(Data!AM:AM,Data!$A:$A,$A163,Data!AM:AM,">="&0)*1000 -> 20.90369998 | L163: =SUMIFS(Data!AS:AS,Data!$A:$A,$A163,Data!AS:AS,">="&0)*1000 -> 15.31590009 | M163: 0.3019665168 | N163: 33.02605704 | O163: 25.07426886 | P163: 24.47923902 | Q163: 8.244447708 | R163: =Data!$AZ$5 -> 75.3 | S163: =IF(Data!$AZ$2,1,R163) * (1 + E163/F163) -> 21.97354295 | T163: 0.2926055709 | U163: 0.2056931473 | V163: 4.833612494
A164: 159 | B164: =SUMIF(Data!$A:$A,$A164,Data!G:G)/ SUMIF(Data!$A:$A,$A164,Data!F:F) -> 0.7808904452 | C164: =SUMIFS(Data!L:L,Data!$A:$A,$A164,Data!L:L,">="&0) -> 23331.10948 | D164: =SUMIFS(Data!M:M,Data!$A:$A,$A164,Data!M:M,">="&0) -> 23244.006 | E164: =SUMIFS(Data!N:N,Data!$A:$A,$A164,Data!N:N,">="&0)*1000 -> 177.071199 | F164: =SUMIFS(Data!O:O,Data!$A:$A,$A164,Data!O:O,">="&0)*1000 -> 15.8846 | G164: =SUMIFS(Data!R:R,Data!$A:$A,$A164,Data!R:R,">="&0) -> 21293.38143 | H164: =SUMIFS(Data!S:S,Data!$A:$A,$A164,Data!S:S,">="&0) -> 21203.77632 | I164: =SUMIFS(Data!AA:AA,Data!$A:$A,$A164,Data!AA:AA,">="&0)*1000 -> 17.2120001 | J164: =SUMIFS(Data!AG:AG,Data!$A:$A,$A164,Data!AG:AG,">="&0)*1000 -> 15.4007 | K164: =SUMIFS(Data!AM:AM,Data!$A:$A,$A164,Data!AM:AM,">="&0)*1000 -> 17.4851 | L164: =SUMIFS(Data!AS:AS,Data!$A:$A,$A164,Data!AS:AS,">="&0)*1000 -> 13.48209993 | M164: 0.3733362105 | N164: 29.31776194 | O164: 24.79290541 | P164: 11.76115436 | Q164: 7.712061889 | R164: =Data!$AZ$5 -> 75.3 | S164: =IF(Data!$AZ$2,1,R164) * (1 + E164/F164) -> 12.1473502 | T164: 0.4208120269 | U164: -0.5767053684 | V164: 9.622010953
A165: 160 | B165: =SUMIF(Data!$A:$A,$A165,Data!G:G)/ SUMIF(Data!$A:$A,$A165,Data!F:F) -> 0.2378538756 | C165: =SUMIFS(Data!L:L,Data!$A:$A,$A165,Data!L:L,">="&0) -> 54354.1968 | D165: =SUMIFS(Data!M:M,Data!$A:$A,$A165,Data!M:M,">="&0) -> 54190.27144 | E165: =SUMIFS(Data!N:N,Data!$A:$A,$A165,Data!N:N,">="&0)*1000 -> 434.404897 | F165: =SUMIFS(Data!O:O,Data!$A:$A,$A165,Data!O:O,">="&0)*1000 -> 20.63760007 | G165: =SUMIFS(Data!R:R,Data!$A:$A,$A165,Data!R:R,">="&0) -> 51850.2584 | H165: =SUMIFS(Data!S:S,Data!$A:$A,$A165,Data!S:S,">="&0) -> 51698.20264 | I165: =SUMIFS(Data!AA:AA,Data!$A:$A,$A165,Data!AA:AA,">="&0)*1000 -> 22.4925001 | J165: =SUMIFS(Data!AG:AG,Data!$A:$A,$A165,Data!AG:AG,">="&0)*1000 -> 18.08300009 | K165: =SUMIFS(Data!AM:AM,Data!$A:$A,$A165,Data!AM:AM,">="&0)*1000 -> 20.9145001 | L165: =SUMIFS(Data!AS:AS,Data!$A:$A,$A165,Data!AS:AS,">="&0)*1000 -> 15.33799993 | M165: 0.30158731 | N165: 32.82973182 | O165: 24.92244253 | P165: 24.38478122 | Q165: 8.246749013 | R165: =Data!$AZ$5 -> 75.3 | S165: =IF(Data!$AZ$2,1,R165) * (1 + E165/F165) -> 22.0491964 | T165: 0.2932594064 | U165: 0.183623582 | V165: 4.820416712
A166: 161 | B166: =SUMIF(Data!$A:$A,$A166,Data!G:G)/ SUMIF(Data!$A:$A,$A166,Data!F:F) -> 0.2358955408 | C166: =SUMIFS(Data!L:L,Data!$A:$A,$A166,Data!L:L,">="&0) -> 56002.3744 | D166: =SUMIFS(Data!M:M,Data!$A:$A,$A166,Data!M:M,">="&0) -> 55824.6418 | E166: =SUMIFS(Data!N:N,Data!$A:$A,$A166,Data!N:N,">="&0)*1000 -> 439.202796 | F166: =SUMIFS(Data!O:O,Data!$A:$A,$A166,Data!O:O,">="&0)*1000 -> 20.5507 | G166: =SUMIFS(Data!R:R,Data!$A:$A,$A166,Data!R:R,">="&0) -> 53464.1922 | H166: =SUMIFS(Data!S:S,Data!$A:$A,$A166,Data!S:S,">="&0) -> 53299.33125 | I166: =SUMIFS(Data!AA:AA,Data!$A:$A,$A166,Data!AA:AA,">="&0)*1000 -> 22.4017001 | J166: =SUMIFS(Data!AG:AG,Data!$A:$A,$A166,Data!AG:AG,">="&0)*1000 -> 17.96059989 | K166: =SUMIFS(Data!AM:AM,Data!$A:$A,$A166,Data!AM:AM,">="&0)*1000 -> 20.7529 | L166: =SUMIFS(Data!AS:AS,Data!$A:$A,$A166,Data!AS:AS,">="&0)*1000 -> 15.21199992 | M166: 0.3173661865 | N166: 32.97569001 | O166: 24.96056585 | P166: 24.72690354 | Q166: 8.262766182 | R166: =Data!$AZ$5 -> 75.3 | S166: =IF(Data!$AZ$2,1,R166) * (1 + E166/F166) -> 22.37167084 | T166: 0.3083576937 | U166: 0.2015350374 | V166: 4.737977927
A167: 162 | B167: =SUMIF(Data!$A:$A,$A167,Data!G:G)/ SUMIF(Data!$A:$A,$A167,Data!F:F) -> 0.2205360421 | C167: =SUMIFS(Data!L:L,Data!$A:$A,$A167,Data!L:L,">="&0) -> 53960.8568 | D167: =SUMIFS(Data!M:M,Data!$A:$A,$A167,Data!M:M,">="&0) -> 53797.0926 | E167: =SUMIFS(Data!N:N,Data!$A:$A,$A167,Data!N:N,">="&0)*1000 -> 437.245698 | F167: =SUMIFS(Data!O:O,Data!$A:$A,$A167,Data!O:O,">="&0)*1000 -> 20.13600013 | G167: =SUMIFS(Data!R:R,Data!$A:$A,$A167,Data!R:R,">="&0) -> 51548.0138 | H167: =SUMIFS(Data!S:S,Data!$A:$A,$A167,Data!S:S,">="&0) -> 51395.37206 | I167: =SUMIFS(Data!AA:AA,Data!$A:$A,$A167,Data!AA:AA,">="&0)*1000 -> 21.9308 | J167: =SUMIFS(Data!AG:AG,Data!$A:$A,$A167,Data!AG:AG,">="&0)*1000 -> 17.61610009 | K167: =SUMIFS(Data!AM:AM,Data!$A:$A,$A167,Data!AM:AM,">="&0)*1000 -> 20.8783 | L167: =SUMIFS(Data!AS:AS,Data!$A:$A,$A167,Data!AS:AS,">="&0)*1000 -> 15.2865 | M167: 0.3034870269 | N167: 31.88222039 | O167: 24.16610052 | P167: 24.4929348 | Q167: 8.183923386 | R167: =Data!$AZ$5 -> 75.3 | S167: =IF(Data!$AZ$2,1,R167) * (1 + E167/F167) -> 22.71462531 | T167: 0.2961156575 | U167: 0.1674378939 | V167: 4.673028803
A168: 163 | B168: =SUMIF(Data!$A:$A,$A168,Data!G:G)/ SUMIF(Data!$A:$A,$A168,Data!F:F) -> 0.5160502442 | C168: =SUMIFS(Data!L:L,Data!$A:$A,$A168,Data!L:L,">="&0) -> 35597.7549 | D168: =SUMIFS(Data!M:M,Data!$A:$A,$A168,Data!M:M,">="&0) -> 35467.71346 | E168: =SUMIFS(Data!N:N,Data!$A:$A,$A168,Data!N:N,">="&0)*1000 -> 283.316399 | F168: =SUMIFS(Data!O:O,Data!$A:$A,$A168,Data!O:O,">="&0)*1000 -> 18.0463999 | G168: =SUMIFS(Data!R:R,Data!$A:$A,$A168,Data!R:R,">="&0) -> 33371.4087 | H168: =SUMIFS(Data!S:S,Data!$A:$A,$A168,Data!S:S,">="&0) -> 33245.40173 | I168: =SUMIFS(Data!AA:AA,Data!$A:$A,$A168,Data!AA:AA,">="&0)*1000 -> 19.59960003 | J168: =SUMIFS(Data!AG:AG,Data!$A:$A,$A168,Data!AG:AG,">="&0)*1000 -> 16.78680003 | K168: =SUMIFS(Data!AM:AM,Data!$A:$A,$A168,Data!AM:AM,">="&0)*1000 -> 19.3989001 | L168: =SUMIFS(Data!AS:AS,Data!$A:$A,$A168,Data!AS:AS,">="&0)*1000 -> 14.5470999 | M168: 0.3653079818 | N168: 30.41366075 | O168: 24.61622498 | P168: 16.75602256 | Q168: 7.924652175 | R168: =Data!$AZ$5 -> 75.3 | S168: =IF(Data!$AZ$2,1,R168) * (1 + E168/F168) -> 16.69933065 | T168: 0.3775896041 | U168: -0.2050948716 | V168: 6.684568735
A169: 164 | B169: =SUMIF(Data!$A:$A,$A169,Data!G:G)/ SUMIF(Data!$A:$A,$A169,Data!F:F) -> 0.4830400871 | C169: =SUMIFS(Data!L:L,Data!$A:$A,$A169,Data!L:L,">="&0) -> 33956.5099 | D169: =SUMIFS(Data!M:M,Data!$A:$A,$A169,Data!M:M,">="&0) -> 33827.32804 | E169: =SUMIFS(Data!N:N,Data!$A:$A,$A169,Data!N:N,">="&0)*1000 -> 276.5855985 | F169: =SUMIFS(Data!O:O,Data!$A:$A,$A169,Data!O:O,">="&0)*1000 -> 16.9359998 | G169: =SUMIFS(Data!R:R,Data!$A:$A,$A169,Data!R:R,">="&0) -> 31899.1048 | H169: =SUMIFS(Data!S:S,Data!$A:$A,$A169,Data!S:S,">="&0) -> 31773.56151 | I169: =SUMIFS(Data!AA:AA,Data!$A:$A,$A169,Data!AA:AA,">="&0)*1000 -> 18.3890999 | J169: =SUMIFS(Data!AG:AG,Data!$A:$A,$A169,Data!AG:AG,">="&0)*1000 -> 15.7032 | K169: =SUMIFS(Data!AM:AM,Data!$A:$A,$A169,Data!AM:AM,">="&0)*1000 -> 18.26409982 | L169: =SUMIFS(Data!AS:AS,Data!$A:$A,$A169,Data!AS:AS,">="&0)*1000 -> 13.73500011 | M169: 0.3804332671 | N169: 30.27599322 | O169: 24.34567578 | P169: 17.10415648 | Q169: 7.90196425 | R169: =Data!$AZ$5 -> 75.3 | S169: =IF(Data!$AZ$2,1,R169) * (1 + E169/F169) -> 17.33122353 | T169: 0.3935636777 | U169: -0.2275660813 | V169: 6.463759278
A170: 165 | B170: =SUMIF(Data!$A:$A,$A170,Data!G:G)/ SUMIF(Data!$A:$A,$A170,Data!F:F) -> 0.8134802883 | C170: =SUMIFS(Data!L:L,Data!$A:$A,$A170,Data!L:L,">="&0) -> 25504.51039 | D170: =SUMIFS(Data!M:M,Data!$A:$A,$A170,Data!M:M,">="&0) -> 25410.47895 | E170: =SUMIFS(Data!N:N,Data!$A:$A,$A170,Data!N:N,">="&0)*1000 -> 195.2962 | F170: =SUMIFS(Data!O:O,Data!$A:$A,$A170,Data!O:O,">="&0)*1000 -> 19.3215001 | G170: =SUMIFS(Data!R:R,Data!$A:$A,$A170,Data!R:R,">="&0) -> 23077.266 | H170: =SUMIFS(Data!S:S,Data!$A:$A,$A170,Data!S:S,">="&0) -> 22979.51985 | I170: =SUMIFS(Data!AA:AA,Data!$A:$A,$A170,Data!AA:AA,">="&0)*1000 -> 20.9228 | J170: =SUMIFS(Data!AG:AG,Data!$A:$A,$A170,Data!AG:AG,">="&0)*1000 -> 18.84079994 | K170: =SUMIFS(Data!AM:AM,Data!$A:$A,$A170,Data!AM:AM,">="&0)*1000 -> 21.43129983 | L170: =SUMIFS(Data!AS:AS,Data!$A:$A,$A170,Data!AS:AS,">="&0)*1000 -> 16.345 | M170: 0.3686855327 | N170: 29.00025589 | O170: 24.90690683 | P170: 11.05048653 | Q170: 7.653372876 | R170: =Data!$AZ$5 -> 75.3 | S170: =IF(Data!$AZ$2,1,R170) * (1 + E170/F170) -> 11.10771415 | T170: 0.4235603559 | U170: -0.6095338499 | V170: 10.5788072
A171: 166 | B171: =SUMIF(Data!$A:$A,$A171,Data!G:G)/ SUMIF(Data!$A:$A,$A171,Data!F:F) -> 0.9183431953 | C171: =SUMIFS(Data!L:L,Data!$A:$A,$A171,Data!L:L,">="&0) -> 20959.36376 | D171: =SUMIFS(Data!M:M,Data!$A:$A,$A171,Data!M:M,">="&0) -> 20851.39084 | E171: =SUMIFS(Data!N:N,Data!$A:$A,$A171,Data!N:N,">="&0)*1000 -> 160.2376007 | F171: =SUMIFS(Data!O:O,Data!$A:$A,$A171,Data!O:O,">="&0)*1000 -> 18.67179997 | G171: =SUMIFS(Data!R:R,Data!$A:$A,$A171,Data!R:R,">="&0) -> 18630.0463 | H171: =SUMIFS(Data!S:S,Data!$A:$A,$A171,Data!S:S,">="&0) -> 18517.47901 | I171: =SUMIFS(Data!AA:AA,Data!$A:$A,$A171,Data!AA:AA,">="&0)*1000 -> 20.20960007 | J171: =SUMIFS(Data!AG:AG,Data!$A:$A,$A171,Data!AG:AG,">="&0)*1000 -> 18.45880006 | K171: =SUMIFS(Data!AM:AM,Data!$A:$A,$A171,Data!AM:AM,">="&0)*1000 -> 21.1067999 | L171: =SUMIFS(Data!AS:AS,Data!$A:$A,$A171,Data!AS:AS,">="&0)*1000 -> 16.10569997 | M171: 0.5151536146 | N171: 28.205995 | O171: 24.70516511 | P171: 9.484906951 | Q171: 7.609255476 | R171: =Data!$AZ$5 -> 75.3 | S171: =IF(Data!$AZ$2,1,R171) * (1 + E171/F171) -> 9.5817972 | T171: 0.6042244243 | U171: -0.8534584351 | V171: 12.60383138
A172: 167 | B172: =SUMIF(Data!$A:$A,$A172,Data!G:G)/ SUMIF(Data!$A:$A,$A172,Data!F:F) -> 0.9566009105 | C172: =SUMIFS(Data!L:L,Data!$A:$A,$A172,Data!L:L,">="&0) -> 15803.1842 | D172: =SUMIFS(Data!M:M,Data!$A:$A,$A172,Data!M:M,">="&0) -> 15700.985 | E172: =SUMIFS(Data!N:N,Data!$A:$A,$A172,Data!N:N,">="&0)*1000 -> 120.7649001 | F172: =SUMIFS(Data!O:O,Data!$A:$A,$A172,Data!O:O,">="&0)*1000 -> 14.8590001 | G172: =SUMIFS(Data!R:R,Data!$A:$A,$A172,Data!R:R,">="&0) -> 13938.48525 | H172: =SUMIFS(Data!S:S,Data!$A:$A,$A172,Data!S:S,">="&0) -> 13832.90387 | I172: =SUMIFS(Data!AA:AA,Data!$A:$A,$A172,Data!AA:AA,">="&0)*1000 -> 16.07999999 | J172: =SUMIFS(Data!AG:AG,Data!$A:$A,$A172,Data!AG:AG,">="&0)*1000 -> 14.75619999 | K172: =SUMIFS(Data!AM:AM,Data!$A:$A,$A172,Data!AM:AM,">="&0)*1000 -> 16.99679993 | L172: =SUMIFS(Data!AS:AS,Data!$A:$A,$A172,Data!AS:AS,">="&0)*1000 -> 12.97239986 | M172: 0.6467000492 | N172: 27.72189662 | O172: 24.43246222 | P172: 8.971144339 | Q172: 7.593282903 | R172: =Data!$AZ$5 -> 75.3 | S172: =IF(Data!$AZ$2,1,R172) * (1 + E172/F172) -> 9.127390759 | T172: 0.7574810467 | U172: -1.011141453 | V172: 13.5046202
A173: 168 | B173: =SUMIF(Data!$A:$A,$A173,Data!G:G)/ SUMIF(Data!$A:$A,$A173,Data!F:F) -> 0.4604479728 | C173: =SUMIFS(Data!L:L,Data!$A:$A,$A173,Data!L:L,">="&0) -> 42999.7508 | D173: =SUMIFS(Data!M:M,Data!$A:$A,$A173,Data!M:M,">="&0) -> 42889.40025 | E173: =SUMIFS(Data!N:N,Data!$A:$A,$A173,Data!N:N,">="&0)*1000 -> 344.5813 | F173: =SUMIFS(Data!O:O,Data!$A:$A,$A173,Data!O:O,">="&0)*1000 -> 21.8699 | G173: =SUMIFS(Data!R:R,Data!$A:$A,$A173,Data!R:R,">="&0) -> 40349.2579 | H173: =SUMIFS(Data!S:S,Data!$A:$A,$A173,Data!S:S,">="&0) -> 40241.47828 | I173: =SUMIFS(Data!AA:AA,Data!$A:$A,$A173,Data!AA:AA,">="&0)*1000 -> 23.7608999 | J173: =SUMIFS(Data!AG:AG,Data!$A:$A,$A173,Data!AG:AG,">="&0)*1000 -> 20.19240002 | K173: =SUMIFS(Data!AM:AM,Data!$A:$A,$A173,Data!AM:AM,">="&0)*1000 -> 23.2293999 | L173: =SUMIFS(Data!AS:AS,Data!$A:$A,$A173,Data!AS:AS,">="&0)*1000 -> 17.31249999 | M173: 0.2566306733 | N173: 30.89827445 | O173: 24.8672448 | P173: 17.67249003 | Q173: 7.958452365 | R173: =Data!$AZ$5 -> 75.3 | S173: =IF(Data!$AZ$2,1,R173) * (1 + E173/F173) -> 16.75596139 | T173: 0.2671167343 | U173: -0.1757040324 | V173: 6.580081257
A174: 169 | B174: =SUMIF(Data!$A:$A,$A174,Data!G:G)/ SUMIF(Data!$A:$A,$A174,Data!F:F) -> 0.6247246022 | C174: =SUMIFS(Data!L:L,Data!$A:$A,$A174,Data!L:L,">="&0) -> 21886.0275 | D174: =SUMIFS(Data!M:M,Data!$A:$A,$A174,Data!M:M,">="&0) -> 21795.44051 | E174: =SUMIFS(Data!N:N,Data!$A:$A,$A174,Data!N:N,">="&0)*1000 -> 169.5244999 | F174: =SUMIFS(Data!O:O,Data!$A:$A,$A174,Data!O:O,">="&0)*1000 -> 15.19149998 | G174: =SUMIFS(Data!R:R,Data!$A:$A,$A174,Data!R:R,">="&0) -> 19981.69327 | H174: =SUMIFS(Data!S:S,Data!$A:$A,$A174,Data!S:S,">="&0) -> 19893.17985 | I174: =SUMIFS(Data!AA:AA,Data!$A:$A,$A174,Data!AA:AA,">="&0)*1000 -> 16.47259999 | J174: =SUMIFS(Data!AG:AG,Data!$A:$A,$A174,Data!AG:AG,">="&0)*1000 -> 14.5776999 | K174: =SUMIFS(Data!AM:AM,Data!$A:$A,$A174,Data!AM:AM,">="&0)*1000 -> 16.6121 | L174: =SUMIFS(Data!AS:AS,Data!$A:$A,$A174,Data!AS:AS,">="&0)*1000 -> 12.5024 | M174: 0.413903318 | N174: 29.66055915 | O174: 25.04976008 | P174: 12.99862192 | Q174: 7.777157312 | R174: =Data!$AZ$5 -> 75.3 | S174: =IF(Data!$AZ$2,1,R174) * (1 + E174/F174) -> 12.15916796 | T174: 0.442972569 | U174: -0.3534579051 | V174: 9.562376002
A175: 170 | B175: =SUMIF(Data!$A:$A,$A175,Data!G:G)/ SUMIF(Data!$A:$A,$A175,Data!F:F) -> 0.8074632791 | C175: =SUMIFS(Data!L:L,Data!$A:$A,$A175,Data!L:L,">="&0) -> 27505.2198 | D175: =SUMIFS(Data!M:M,Data!$A:$A,$A175,Data!M:M,">="&0) -> 27405.80073 | E175: =SUMIFS(Data!N:N,Data!$A:$A,$A175,Data!N:N,">="&0)*1000 -> 206.7107001 | F175: =SUMIFS(Data!O:O,Data!$A:$A,$A175,Data!O:O,">="&0)*1000 -> 20.80479999 | G175: =SUMIFS(Data!R:R,Data!$A:$A,$A175,Data!R:R,">="&0) -> 24854.5962 | H175: =SUMIFS(Data!S:S,Data!$A:$A,$A175,Data!S:S,">="&0) -> 24751.09784 | I175: =SUMIFS(Data!AA:AA,Data!$A:$A,$A175,Data!AA:AA,">="&0)*1000 -> 22.5382999 | J175: =SUMIFS(Data!AG:AG,Data!$A:$A,$A175,Data!AG:AG,">="&0)*1000 -> 20.28659995 | K175: =SUMIFS(Data!AM:AM,Data!$A:$A,$A175,Data!AM:AM,">="&0)*1000 -> 22.9041002 | L175: =SUMIFS(Data!AS:AS,Data!$A:$A,$A175,Data!AS:AS,">="&0)*1000 -> 17.4456 | M175: 0.3614552828 | N175: 29.329852 | O175: 25.20472629 | P175: 11.09944473 | Q175: 7.691351689 | R175: =Data!$AZ$5 -> 75.3 | S175: =IF(Data!$AZ$2,1,R175) * (1 + E175/F175) -> 10.93572157 | T175: 0.4164153751 | U175: -0.6010282678 | V175: 10.72559653
A176: 171 | B176: =SUMIF(Data!$A:$A,$A176,Data!G:G)/ SUMIF(Data!$A:$A,$A176,Data!F:F) -> 0.8716775599 | C176: =SUMIFS(Data!L:L,Data!$A:$A,$A176,Data!L:L,">="&0) -> 24223.2378 | D176: =SUMIFS(Data!M:M,Data!$A:$A,$A176,Data!M:M,">="&0) -> 24114.93078 | E176: =SUMIFS(Data!N:N,Data!$A:$A,$A176,Data!N:N,">="&0)*1000 -> 180.0899007 | F176: =SUMIFS(Data!O:O,Data!$A:$A,$A176,Data!O:O,">="&0)*1000 -> 20.0804 | G176: =SUMIFS(Data!R:R,Data!$A:$A,$A176,Data!R:R,">="&0) -> 21647.6596 | H176: =SUMIFS(Data!S:S,Data!$A:$A,$A176,Data!S:S,">="&0) -> 21535.00488 | I176: =SUMIFS(Data!AA:AA,Data!$A:$A,$A176,Data!AA:AA,">="&0)*1000 -> 21.74310001 | J176: =SUMIFS(Data!AG:AG,Data!$A:$A,$A176,Data!AG:AG,">="&0)*1000 -> 19.73069997 | K176: =SUMIFS(Data!AM:AM,Data!$A:$A,$A176,Data!AM:AM,">="&0)*1000 -> 22.0471 | L176: =SUMIFS(Data!AS:AS,Data!$A:$A,$A176,Data!AS:AS,">="&0)*1000 -> 16.8049999 | M176: 0.4471203267 | N176: 29.42007977 | O176: 25.58116025 | P176: 10.19933425 | Q176: 7.647023696 | R176: =Data!$AZ$5 -> 75.3 | S176: =IF(Data!$AZ$2,1,R176) * (1 + E176/F176) -> 9.968441899 | T176: 0.5204013833 | U176: -0.730497954 | V176: 11.98015006
A177: 172 | B177: =SUMIF(Data!$A:$A,$A177,Data!G:G)/ SUMIF(Data!$A:$A,$A177,Data!F:F) -> 0.2740137758 | C177: =SUMIFS(Data!L:L,Data!$A:$A,$A177,Data!L:L,">="&0) -> 52597.15217 | D177: =SUMIFS(Data!M:M,Data!$A:$A,$A177,Data!M:M,">="&0) -> 52437.89754 | E177: =SUMIFS(Data!N:N,Data!$A:$A,$A177,Data!N:N,">="&0)*1000 -> 424.425498 | F177: =SUMIFS(Data!O:O,Data!$A:$A,$A177,Data!O:O,">="&0)*1000 -> 20.76570002 | G177: =SUMIFS(Data!R:R,Data!$A:$A,$A177,Data!R:R,">="&0) -> 50099.3898 | H177: =SUMIFS(Data!S:S,Data!$A:$A,$A177,Data!S:S,">="&0) -> 49949.39285 | I177: =SUMIFS(Data!AA:AA,Data!$A:$A,$A177,Data!AA:AA,">="&0)*1000 -> 22.6155 | J177: =SUMIFS(Data!AG:AG,Data!$A:$A,$A177,Data!AG:AG,">="&0)*1000 -> 18.3408 | K177: =SUMIFS(Data!AM:AM,Data!$A:$A,$A177,Data!AM:AM,">="&0)*1000 -> 21.3001001 | L177: =SUMIFS(Data!AS:AS,Data!$A:$A,$A177,Data!AS:AS,">="&0)*1000 -> 15.6454 | M177: 0.3027818493 | N177: 32.3262063 | O177: 24.7666542 | P177: 23.30705313 | Q177: 8.179345935 | R177: =Data!$AZ$5 -> 75.3 | S177: =IF(Data!$AZ$2,1,R177) * (1 + E177/F177) -> 21.43877633 | T177: 0.2993987563 | U177: 0.07252937226 | V177: 4.982051929
A178: 173 | B178: =SUMIF(Data!$A:$A,$A178,Data!G:G)/ SUMIF(Data!$A:$A,$A178,Data!F:F) -> 0.3390094891 | C178: =SUMIFS(Data!L:L,Data!$A:$A,$A178,Data!L:L,">="&0) -> 49687.39547 | D178: =SUMIFS(Data!M:M,Data!$A:$A,$A178,Data!M:M,">="&0) -> 49544.0893 | E178: =SUMIFS(Data!N:N,Data!$A:$A,$A178,Data!N:N,">="&0)*1000 -> 395.9916 | F178: =SUMIFS(Data!O:O,Data!$A:$A,$A178,Data!O:O,">="&0)*1000 -> 21.3564 | G178: =SUMIFS(Data!R:R,Data!$A:$A,$A178,Data!R:R,">="&0) -> 47091.4157 | H178: =SUMIFS(Data!S:S,Data!$A:$A,$A178,Data!S:S,">="&0) -> 46954.93345 | I178: =SUMIFS(Data!AA:AA,Data!$A:$A,$A178,Data!AA:AA,">="&0)*1000 -> 23.2358 | J178: =SUMIFS(Data!AG:AG,Data!$A:$A,$A178,Data!AG:AG,">="&0)*1000 -> 19.17920011 | K178: =SUMIFS(Data!AM:AM,Data!$A:$A,$A178,Data!AM:AM,">="&0)*1000 -> 22.1462 | L178: =SUMIFS(Data!AS:AS,Data!$A:$A,$A178,Data!AS:AS,">="&0)*1000 -> 16.3378001 | M178: 0.2884155401 | N178: 31.8759039 | O178: 24.89188083 | P178: 21.15103793 | Q178: 8.088380861 | R178: =Data!$AZ$5 -> 75.3 | S178: =IF(Data!$AZ$2,1,R178) * (1 + E178/F178) -> 19.54205765 | T178: 0.2898240539 | U178: -0.02752525728 | V178: 5.514129528
A179: 174 | B179: =SUMIF(Data!$A:$A,$A179,Data!G:G)/ SUMIF(Data!$A:$A,$A179,Data!F:F) -> 0.2570361146 | C179: =SUMIFS(Data!L:L,Data!$A:$A,$A179,Data!L:L,">="&0) -> 52537.3203 | D179: =SUMIFS(Data!M:M,Data!$A:$A,$A179,Data!M:M,">="&0) -> 52377.63396 | E179: =SUMIFS(Data!N:N,Data!$A:$A,$A179,Data!N:N,">="&0)*1000 -> 424.4554 | F179: =SUMIFS(Data!O:O,Data!$A:$A,$A179,Data!O:O,">="&0)*1000 -> 20.9514 | G179: =SUMIFS(Data!R:R,Data!$A:$A,$A179,Data!R:R,">="&0) -> 50018.7123 | H179: =SUMIFS(Data!S:S,Data!$A:$A,$A179,Data!S:S,">="&0) -> 49868.6858 | I179: =SUMIFS(Data!AA:AA,Data!$A:$A,$A179,Data!AA:AA,">="&0)*1000 -> 22.8172 | J179: =SUMIFS(Data!AG:AG,Data!$A:$A,$A179,Data!AG:AG,">="&0)*1000 -> 18.5031 | K179: =SUMIFS(Data!AM:AM,Data!$A:$A,$A179,Data!AM:AM,">="&0)*1000 -> 21.4429999 | L179: =SUMIFS(Data!AS:AS,Data!$A:$A,$A179,Data!AS:AS,">="&0)*1000 -> 15.74529993 | M179: 0.3039483915 | N179: 32.41185058 | O179: 24.84019883 | P179: 23.31555253 | Q179: 8.177164595 | R179: =Data!$AZ$5 -> 75.3 | S179: =IF(Data!$AZ$2,1,R179) * (1 + E179/F179) -> 21.25904713 | T179: 0.2999407484 | U179: 0.08519867452 | V179: 5.031109442
A180: 175 | B180: =SUMIF(Data!$A:$A,$A180,Data!G:G)/ SUMIF(Data!$A:$A,$A180,Data!F:F) -> 0.6142232817 | C180: =SUMIFS(Data!L:L,Data!$A:$A,$A180,Data!L:L,">="&0) -> 29600.7789 | D180: =SUMIFS(Data!M:M,Data!$A:$A,$A180,Data!M:M,">="&0) -> 29506.79808 | E180: =SUMIFS(Data!N:N,Data!$A:$A,$A180,Data!N:N,">="&0)*1000 -> 230.1643997 | F180: =SUMIFS(Data!O:O,Data!$A:$A,$A180,Data!O:O,">="&0)*1000 -> 17.89400012 | G180: =SUMIFS(Data!R:R,Data!$A:$A,$A180,Data!R:R,">="&0) -> 27358.0262 | H180: =SUMIFS(Data!S:S,Data!$A:$A,$A180,Data!S:S,">="&0) -> 27266.7321 | I180: =SUMIFS(Data!AA:AA,Data!$A:$A,$A180,Data!AA:AA,">="&0)*1000 -> 19.40129997 | J180: =SUMIFS(Data!AG:AG,Data!$A:$A,$A180,Data!AG:AG,">="&0)*1000 -> 16.9903999 | K180: =SUMIFS(Data!AM:AM,Data!$A:$A,$A180,Data!AM:AM,">="&0)*1000 -> 19.1176003 | L180: =SUMIFS(Data!AS:AS,Data!$A:$A,$A180,Data!AS:AS,">="&0)*1000 -> 14.51740011 | M180: 0.3174944157 | N180: 30.61671157 | O180: 25.37585255 | P180: 14.18977825 | Q180: 7.76906626 | R180: =Data!$AZ$5 -> 75.3 | S180: =IF(Data!$AZ$2,1,R180) * (1 + E180/F180) -> 13.86265777 | T180: 0.3337013399 | U180: -0.2246710443 | V180: 8.21538119
A181: 176 | B181: =SUMIF(Data!$A:$A,$A181,Data!G:G)/ SUMIF(Data!$A:$A,$A181,Data!F:F) -> 0.4216682913 | C181: =SUMIFS(Data!L:L,Data!$A:$A,$A181,Data!L:L,">="&0) -> 45933.1762 | D181: =SUMIFS(Data!M:M,Data!$A:$A,$A181,Data!M:M,">="&0) -> 45809.54695 | E181: =SUMIFS(Data!N:N,Data!$A:$A,$A181,Data!N:N,">="&0)*1000 -> 359.3542995 | F181: =SUMIFS(Data!O:O,Data!$A:$A,$A181,Data!O:O,">="&0)*1000 -> 21.88780013 | G181: =SUMIFS(Data!R:R,Data!$A:$A,$A181,Data!R:R,">="&0) -> 43219.858 | H181: =SUMIFS(Data!S:S,Data!$A:$A,$A181,Data!S:S,">="&0) -> 43100.79143 | I181: =SUMIFS(Data!AA:AA,Data!$A:$A,$A181,Data!AA:AA,">="&0)*1000 -> 23.7987001 | J181: =SUMIFS(Data!AG:AG,Data!$A:$A,$A181,Data!AG:AG,">="&0)*1000 -> 20.0140001 | K181: =SUMIFS(Data!AM:AM,Data!$A:$A,$A181,Data!AM:AM,">="&0)*1000 -> 22.6068 | L181: =SUMIFS(Data!AS:AS,Data!$A:$A,$A181,Data!AS:AS,">="&0)*1000 -> 16.82 | M181: 0.2691502313 | N181: 32.05968774 | O181: 25.51945825 | P181: 18.91026272 | Q181: 8.029430019 | R181: =Data!$AZ$5 -> 75.3 | S181: =IF(Data!$AZ$2,1,R181) * (1 + E181/F181) -> 17.41801814 | T181: 0.2754904239 | U181: -0.1104335886 | V181: 6.284700188
A182: 177 | B182: =SUMIF(Data!$A:$A,$A182,Data!G:G)/ SUMIF(Data!$A:$A,$A182,Data!F:F) -> 0.7757880992 | C182: =SUMIFS(Data!L:L,Data!$A:$A,$A182,Data!L:L,">="&0) -> 29728.2664 | D182: =SUMIFS(Data!M:M,Data!$A:$A,$A182,Data!M:M,">="&0) -> 29633.01255 | E182: =SUMIFS(Data!N:N,Data!$A:$A,$A182,Data!N:N,">="&0)*1000 -> 223.991301 | F182: =SUMIFS(Data!O:O,Data!$A:$A,$A182,Data!O:O,">="&0)*1000 -> 21.7238 | G182: =SUMIFS(Data!R:R,Data!$A:$A,$A182,Data!R:R,">="&0) -> 26963.7155 | H182: =SUMIFS(Data!S:S,Data!$A:$A,$A182,Data!S:S,">="&0) -> 26866.07751 | I182: =SUMIFS(Data!AA:AA,Data!$A:$A,$A182,Data!AA:AA,">="&0)*1000 -> 23.5414 | J182: =SUMIFS(Data!AG:AG,Data!$A:$A,$A182,Data!AG:AG,">="&0)*1000 -> 21.0946 | K182: =SUMIFS(Data!AM:AM,Data!$A:$A,$A182,Data!AM:AM,">="&0)*1000 -> 23.7712001 | L182: =SUMIFS(Data!AS:AS,Data!$A:$A,$A182,Data!AS:AS,">="&0)*1000 -> 18.0756999 | M182: 0.3204150848 | N182: 29.59652341 | O182: 25.30050038 | P182: 11.59917704 | Q182: 7.720866219 | R182: =Data!$AZ$5 -> 75.3 | S182: =IF(Data!$AZ$2,1,R182) * (1 + E182/F182) -> 11.31087107 | T182: 0.3621088125 | U182: -0.4715923782 | V182: 10.2989915
A183: 178 | B183: =SUMIF(Data!$A:$A,$A183,Data!G:G)/ SUMIF(Data!$A:$A,$A183,Data!F:F) -> 0.498694517 | C183: =SUMIFS(Data!L:L,Data!$A:$A,$A183,Data!L:L,">="&0) -> 38024.9347 | D183: =SUMIFS(Data!M:M,Data!$A:$A,$A183,Data!M:M,">="&0) -> 37903.20708 | E183: =SUMIFS(Data!N:N,Data!$A:$A,$A183,Data!N:N,">="&0)*1000 -> 305.4401 | F183: =SUMIFS(Data!O:O,Data!$A:$A,$A183,Data!O:O,">="&0)*1000 -> 19.0621998 | G183: =SUMIFS(Data!R:R,Data!$A:$A,$A183,Data!R:R,">="&0) -> 35692.1044 | H183: =SUMIFS(Data!S:S,Data!$A:$A,$A183,Data!S:S,">="&0) -> 35573.98869 | I183: =SUMIFS(Data!AA:AA,Data!$A:$A,$A183,Data!AA:AA,">="&0)*1000 -> 20.69529997 | J183: =SUMIFS(Data!AG:AG,Data!$A:$A,$A183,Data!AG:AG,">="&0)*1000 -> 17.6781001 | K183: =SUMIFS(Data!AM:AM,Data!$A:$A,$A183,Data!AM:AM,">="&0)*1000 -> 20.34939989 | L183: =SUMIFS(Data!AS:AS,Data!$A:$A,$A183,Data!AS:AS,">="&0)*1000 -> 15.28880022 | M183: 0.3201257831 | N183: 30.68351599 | O183: 24.72137698 | P183: 17.0674442 | Q183: 7.891164527 | R183: =Data!$AZ$5 -> 75.3 | S183: =IF(Data!$AZ$2,1,R183) * (1 + E183/F183) -> 17.02333955 | T183: 0.3309295206 | U183: -0.1839156919 | V183: 6.547532272
A184: 179 | B184: =SUMIF(Data!$A:$A,$A184,Data!G:G)/ SUMIF(Data!$A:$A,$A184,Data!F:F) -> 0.7601150872 | C184: =SUMIFS(Data!L:L,Data!$A:$A,$A184,Data!L:L,">="&0) -> 30338.5072 | D184: =SUMIFS(Data!M:M,Data!$A:$A,$A184,Data!M:M,">="&0) -> 30247.61222 | E184: =SUMIFS(Data!N:N,Data!$A:$A,$A184,Data!N:N,">="&0)*1000 -> 233.7834999 | F184: =SUMIFS(Data!O:O,Data!$A:$A,$A184,Data!O:O,">="&0)*1000 -> 21.92170002 | G184: =SUMIFS(Data!R:R,Data!$A:$A,$A184,Data!R:R,">="&0) -> 27609.6991 | H184: =SUMIFS(Data!S:S,Data!$A:$A,$A184,Data!S:S,">="&0) -> 27516.26641 | I184: =SUMIFS(Data!AA:AA,Data!$A:$A,$A184,Data!AA:AA,">="&0)*1000 -> 23.7551 | J184: =SUMIFS(Data!AG:AG,Data!$A:$A,$A184,Data!AG:AG,">="&0)*1000 -> 21.24679989 | K184: =SUMIFS(Data!AM:AM,Data!$A:$A,$A184,Data!AM:AM,">="&0)*1000 -> 24.2937 | L184: =SUMIFS(Data!AS:AS,Data!$A:$A,$A184,Data!AS:AS,">="&0)*1000 -> 18.431 | M184: 0.2996026779 | N184: 29.08131066 | O184: 24.80290632 | P184: 11.80554306 | Q184: 7.717921541 | R184: =Data!$AZ$5 -> 75.3 | S184: =IF(Data!$AZ$2,1,R184) * (1 + E184/F184) -> 11.66447856 | T184: 0.3384053179 | U184: -0.4526125622 | V184: 9.926295121
A185: 180 | B185: =SUMIF(Data!$A:$A,$A185,Data!G:G)/ SUMIF(Data!$A:$A,$A185,Data!F:F) -> 0.2639739902 | C185: =SUMIFS(Data!L:L,Data!$A:$A,$A185,Data!L:L,">="&0) -> 52156.2119 | D185: =SUMIFS(Data!M:M,Data!$A:$A,$A185,Data!M:M,">="&0) -> 52000.72014 | E185: =SUMIFS(Data!N:N,Data!$A:$A,$A185,Data!N:N,">="&0)*1000 -> 426.406103 | F185: =SUMIFS(Data!O:O,Data!$A:$A,$A185,Data!O:O,">="&0)*1000 -> 20.0612 | G185: =SUMIFS(Data!R:R,Data!$A:$A,$A185,Data!R:R,">="&0) -> 49773.2215 | H185: =SUMIFS(Data!S:S,Data!$A:$A,$A185,Data!S:S,">="&0) -> 49626.9401 | I185: =SUMIFS(Data!AA:AA,Data!$A:$A,$A185,Data!AA:AA,">="&0)*1000 -> 21.8425 | J185: =SUMIFS(Data!AG:AG,Data!$A:$A,$A185,Data!AG:AG,">="&0)*1000 -> 17.66909989 | K185: =SUMIFS(Data!AM:AM,Data!$A:$A,$A185,Data!AM:AM,">="&0)*1000 -> 21.00740005 | L185: =SUMIFS(Data!AS:AS,Data!$A:$A,$A185,Data!AS:AS,">="&0)*1000 -> 15.4245999 | M185: 0.2981270195 | N185: 31.49584425 | O185: 24.02038391 | P185: 23.61976635 | Q185: 8.155202014 | R185: =Data!$AZ$5 -> 75.3 | S185: =IF(Data!$AZ$2,1,R185) * (1 + E185/F185) -> 22.25526404 | T185: 0.2938957849 | U185: 0.09416724221 | V185: 4.783248847
A186: 181 | B186: =SUMIF(Data!$A:$A,$A186,Data!G:G)/ SUMIF(Data!$A:$A,$A186,Data!F:F) -> 0.3267455467 | C186: =SUMIFS(Data!L:L,Data!$A:$A,$A186,Data!L:L,">="&0) -> 50964.1366 | D186: =SUMIFS(Data!M:M,Data!$A:$A,$A186,Data!M:M,">="&0) -> 50818.89817 | E186: =SUMIFS(Data!N:N,Data!$A:$A,$A186,Data!N:N,">="&0)*1000 -> 404.1779 | F186: =SUMIFS(Data!O:O,Data!$A:$A,$A186,Data!O:O,">="&0)*1000 -> 20.8506 | G186: =SUMIFS(Data!R:R,Data!$A:$A,$A186,Data!R:R,">="&0) -> 48419.3142 | H186: =SUMIFS(Data!S:S,Data!$A:$A,$A186,Data!S:S,">="&0) -> 48281.97626 | I186: =SUMIFS(Data!AA:AA,Data!$A:$A,$A186,Data!AA:AA,">="&0)*1000 -> 22.6968001 | J186: =SUMIFS(Data!AG:AG,Data!$A:$A,$A186,Data!AG:AG,">="&0)*1000 -> 18.6028 | K186: =SUMIFS(Data!AM:AM,Data!$A:$A,$A186,Data!AM:AM,">="&0)*1000 -> 21.50349997 | L186: =SUMIFS(Data!AS:AS,Data!$A:$A,$A186,Data!AS:AS,">="&0)*1000 -> 15.8627 | M186: 0.2849816355 | N186: 32.11548032 | O186: 24.85764433 | P186: 22.00744028 | Q186: 8.134186722 | R186: =Data!$AZ$5 -> 75.3 | S186: =IF(Data!$AZ$2,1,R186) * (1 + E186/F186) -> 20.38447335 | T186: 0.2836428856 | U186: 0.02728971096 | V186: 5.254387054
A187: 182 | B187: =SUMIF(Data!$A:$A,$A187,Data!G:G)/ SUMIF(Data!$A:$A,$A187,Data!F:F) -> 0.4679533343 | C187: =SUMIFS(Data!L:L,Data!$A:$A,$A187,Data!L:L,">="&0) -> 44733.0785 | D187: =SUMIFS(Data!M:M,Data!$A:$A,$A187,Data!M:M,">="&0) -> 44608.51415 | E187: =SUMIFS(Data!N:N,Data!$A:$A,$A187,Data!N:N,">="&0)*1000 -> 346.0053995 | F187: =SUMIFS(Data!O:O,Data!$A:$A,$A187,Data!O:O,">="&0)*1000 -> 21.39900001 | G187: =SUMIFS(Data!R:R,Data!$A:$A,$A187,Data!R:R,">="&0) -> 42040.3416 | H187: =SUMIFS(Data!S:S,Data!$A:$A,$A187,Data!S:S,">="&0) -> 41918.9234 | I187: =SUMIFS(Data!AA:AA,Data!$A:$A,$A187,Data!AA:AA,">="&0)*1000 -> 23.2502 | J187: =SUMIFS(Data!AG:AG,Data!$A:$A,$A187,Data!AG:AG,">="&0)*1000 -> 19.6881 | K187: =SUMIFS(Data!AM:AM,Data!$A:$A,$A187,Data!AM:AM,">="&0)*1000 -> 22.4063 | L187: =SUMIFS(Data!AS:AS,Data!$A:$A,$A187,Data!AS:AS,">="&0)*1000 -> 16.72159998 | M187: 0.2784613851 | N187: 31.48451105 | O187: 25.21839325 | P187: 18.09265495 | Q187: 7.962082004 | R187: =Data!$AZ$5 -> 75.3 | S187: =IF(Data!$AZ$2,1,R187) * (1 + E187/F187) -> 17.16923218 | T187: 0.2888135428 | U187: -0.1777385995 | V187: 6.41617325
A188: 183 | B188: =SUMIF(Data!$A:$A,$A188,Data!G:G)/ SUMIF(Data!$A:$A,$A188,Data!F:F) -> 0.494759973 | C188: =SUMIFS(Data!L:L,Data!$A:$A,$A188,Data!L:L,">="&0) -> 37239.5926 | D188: =SUMIFS(Data!M:M,Data!$A:$A,$A188,Data!M:M,">="&0) -> 37100.69331 | E188: =SUMIFS(Data!N:N,Data!$A:$A,$A188,Data!N:N,">="&0)*1000 -> 289.6659009 | F188: =SUMIFS(Data!O:O,Data!$A:$A,$A188,Data!O:O,">="&0)*1000 -> 18.8713001 | G188: =SUMIFS(Data!R:R,Data!$A:$A,$A188,Data!R:R,">="&0) -> 34865.9913 | H188: =SUMIFS(Data!S:S,Data!$A:$A,$A188,Data!S:S,">="&0) -> 34732.31287 | I188: =SUMIFS(Data!AA:AA,Data!$A:$A,$A188,Data!AA:AA,">="&0)*1000 -> 20.4856 | J188: =SUMIFS(Data!AG:AG,Data!$A:$A,$A188,Data!AG:AG,">="&0)*1000 -> 17.5446998 | K188: =SUMIFS(Data!AM:AM,Data!$A:$A,$A188,Data!AM:AM,">="&0)*1000 -> 19.9113001 | L188: =SUMIFS(Data!AS:AS,Data!$A:$A,$A188,Data!AS:AS,">="&0)*1000 -> 14.86780012 | M188: 0.3729882104 | N188: 31.13869317 | O188: 25.30762306 | P188: 16.76232842 | Q188: 7.880168997 | R188: =Data!$AZ$5 -> 75.3 | S188: =IF(Data!$AZ$2,1,R188) * (1 + E188/F188) -> 16.34954663 | T188: 0.3834063654 | U188: -0.1703321108 | V188: 6.818954007
